Workbook

Sheet AER Sheet Heading (hidden)
B1: =IF(dms_MultiYear_ResponseFlag="Yes","REGULATORY REPORTING STATEMENT - HISTORICAL INFORMATION",INDEX(dms_Worksheet_List,MATCH(dms_Model,dms_Model_List))) -> REGULATORY REPORTING STATEMENT
B2: =INDEX(dms_TradingNameFull_List,MATCH(dms_TradingName,dms_TradingName_List)) -> Powercor Australia
B3: =dms_Header_Span -> 2021-22 to 2025-26
B4: XX
C11: EXPENDITURE
C12: =CONCATENATE("Forecast ($0's, real ",dms_DollarReal,")") -> Forecast ($0's, real June 2021)
C13: =CRCP_y4 -> 2019-20 | D13: =CRCP_y5 -> 2020-21 | E13: =FRCP_y1 -> 2021-22 | F13: =FRCP_y2 -> 2022-23 | G13: =FRCP_y3 -> 2023-24 | H13: =FRCP_y4 -> 2024-25 | I13: =FRCP_y5 -> 2025-26
C42: VOLUMES
C43: 0's
C44: =CRCP_y4 -> 2019-20 | D44: =CRCP_y5 -> 2020-21 | E44: =FRCP_y1 -> 2021-22 | F44: =FRCP_y2 -> 2022-23 | G44: =FRCP_y3 -> 2023-24 | H44: =FRCP_y4 -> 2024-25 | I44: =FRCP_y5 -> 2025-26

Sheet AER CF (hidden)
B1: AER CONDITIONAL FORMATTING
B4: CONDITIONAL FORMATTING MAP
F5: =INDEX(dms_CF_3.6.1, MATCH(dms_TradingName,dms_CF_TradingName))="Y" | G5: =INDEX(dms_CF_3.6.5, MATCH(dms_TradingName,dms_CF_TradingName))="Y" | H5: =INDEX(dms_CF_3.6.6, MATCH(dms_TradingName,dms_CF_TradingName))="Y" | I5: =INDEX(dms_CF_3.6.7.1, MATCH(dms_TradingName,dms_CF_TradingName))="Y" | J5: =INDEX(dms_CF_3.6.7.2, MATCH(dms_TradingName,dms_CF_TradingName))="Y" | K5: =INDEX(dms_CF_3.6.7.3, MATCH(dms_TradingName,dms_CF_TradingName))="Y" | L5: =INDEX(dms_CF_3.6.7.4, MATCH(dms_TradingName,dms_CF_TradingName))="Y" | M5: =INDEX(dms_CF_3.6.8, MATCH(dms_TradingName,dms_CF_TradingName))="Y" | N5: =INDEX(dms_CF_4.1, MATCH(dms_TradingName,dms_CF_TradingName))="Y" | O5: =INDEX(dms_CF_6.6.1, MATCH(dms_TradingName,dms_CF_TradingName))="Y" | P5: =INDEX(dms_CF_6.8, MATCH(dms_TradingName,dms_CF_TradingName))="Y" | Q5: =INDEX(dms_CF_7.12, MATCH(dms_TradingName,dms_CF_TradingName))="Y" | R5: =INDEX(dms_CF_8.1_A, MATCH(dms_TradingName,dms_CF_TradingName))="Y" | S5: =INDEX(dms_CF_8.1_B, MATCH(dms_TradingName,dms_CF_TradingName))="Y" | T5: =INDEX(dms_CF_8.1_Neg, MATCH(dms_TradingName,dms_CF_TradingName))="Y" | U5: =INDEX(dms_CF_4.4.1_Neg, MATCH(dms_TradingName,dms_CF_TradingName))="Y"
B6: dms_CF_TradingName | C6: JurisdictionList | D6: Sector | E6: Segment | F6: dms_CF_3.6.1 | G6: dms_CF_3.6.5 | H6: dms_CF_3.6.6 | I6: dms_CF_3.6.7.1 | J6: dms_CF_3.6.7.2 | K6: dms_CF_3.6.7.3 | L6: dms_CF_3.6.7.4 | M6: dms_CF_3.6.8 | N6: dms_CF_4.1 | O6: dms_CF_6.6.1 | P6: dms_CF_6.8 | Q6: dms_CF_7.12 | R6: dms_CF_8.1_A | S6: dms_CF_8.1_B | T6: dms_CF_8.1_Neg | U6: dms_CF_4.4.1 | V6: dms_CF_MAIFI_flag | W6: Spare1 | X6: Spare2
B7: ActewAGL Distribution | C7: ACT | D7: Electricity | E7: Distribution | G7: Y | I7: Y | J7: Y | K7: N | L7: Y | M7: N | N7: N | O7: N | P7: Y | Q7: Y | R7: N | S7: Y | T7: Y | U7: N | V7: N | W7: N | X7: N
B8: Ausgrid | C8: NSW | D8: Electricity | E8: Distribution | G8: Y | I8: N | J8: N | K8: N | L8: Y | M8: N | N8: N | O8: N | P8: Y | Q8: Y | R8: N | S8: Y | T8: Y | U8: N | V8: N | W8: N | X8: N
B9: AusNet (D) | C9: Vic | D9: Electricity | E9: Distribution | G9: N | I9: N | J9: N | K9: N | L9: N | M9: N | N9: Y | O9: N | P9: Y | Q9: N | R9: N | S9: N | T9: Y | U9: N | V9: N | W9: N | X9: N
B10: AusNet (T) | C10: Vic | D10: Electricity | E10: Transmission | G10: N | I10: N | J10: N | K10: N | L10: N | M10: N | N10: Y | O10: N | P10: Y | Q10: N | R10: N | S10: N | T10: Y | U10: N | V10: N | W10: N | X10: N
B11: CitiPower | C11: Vic | D11: Electricity | E11: Distribution | G11: N | I11: N | J11: N | K11: N | L11: N | M11: N | N11: Y | O11: N | P11: Y | Q11: N | R11: N | S11: N | T11: Y | U11: N | V11: N | W11: N | X11: N
B12: Directlink | C12: Qld | D12: Electricity | E12: Transmission | G12: N | I12: N | J12: N | K12: N | L12: N | M12: N | N12: Y | O12: N | P12: Y | Q12: N | R12: N | S12: Y | T12: Y | U12: N | V12: N | W12: N | X12: N
B13: ElectraNet | C13: SA | D13: Electricity | E13: Transmission | G13: N | I13: N | J13: N | K13: N | L13: N | M13: N | N13: Y | O13: N | P13: Y | Q13: N | R13: N | S13: Y | T13: Y | U13: N | V13: N | W13: N | X13: N
B14: Endeavour Energy | C14: NSW | D14: Electricity | E14: Distribution | G14: Y | I14: N | J14: N | K14: N | L14: Y | M14: N | N14: N | O14: N | P14: Y | Q14: Y | R14: N | S14: Y | T14: Y | U14: Y | V14: N | W14: N | X14: N
B15: Energex | C15: Qld | D15: Electricity | E15: Distribution | G15: Y | I15: N | J15: N | K15: N | L15: N | M15: N | N15: N | O15: N | P15: Y | Q15: Y | R15: N | S15: Y | T15: Y | U15: Y | V15: N | W15: N | X15: N
B16: Ergon Energy | C16: Qld | D16: Electricity | E16: Distribution | G16: Y | I16: N | J16: N | K16: N | L16: N | M16: N | N16: N | O16: N | P16: Y | Q16: Y | R16: N | S16: Y | T16: Y | U16: N | V16: N | W16: N | X16: N
B17: Essential Energy | C17: NSW | D17: Electricity | E17: Distribution | G17: Y | I17: N | J17: N | K17: N | L17: Y | M17: N | N17: N | O17: N | P17: Y | Q17: Y | R17: N | S17: Y | T17: Y | U17: N | V17: N | W17: N | X17: N
B18: Jemena Electricity | C18: Vic | D18: Electricity | E18: Distribution | G18: N | I18: N | J18: N | K18: N | L18: N | M18: N | N18: Y | O18: N | P18: Y | Q18: N | R18: N | S18: N | T18: Y | U18: N | V18: N | W18: N | X18: N
B19: Murraylink | C19: SA | D19: Electricity | E19: Transmission | G19: N | I19: N | J19: N | K19: N | L19: N | M19: N | N19: Y | O19: N | P19: Y | Q19: N | R19: N | S19: Y | T19: Y | U19: N | V19: N | W19: N | X19: N
B20: Power and Water | C20: NT | D20: Electricity | E20: Distribution | G20: N | I20: N | J20: Y | K20: N | L20: N | M20: Y | N20: Y | O20: Y | P20: Y | Q20: Y | R20: N | S20: Y | T20: Y | U20: N | V20: N | W20: N | X20: N
B21: Powercor Australia | C21: Vic | D21: Electricity | E21: Distribution | G21: N | I21: N | J21: N | K21: N | L21: N | M21: N | N21: Y | O21: N | P21: Y | Q21: N | R21: N | S21: N | T21: Y | U21: N | V21: N | W21: N | X21: N
B22: Powerlink | C22: Qld | D22: Electricity | E22: Transmission | G22: N | I22: N | J22: N | K22: N | L22: N | M22: N | N22: Y | O22: N | P22: Y | Q22: N | R22: N | S22: Y | T22: Y | U22: N | V22: N | W22: N | X22: N
B23: SA Power Networks | C23: SA | D23: Electricity | E23: Distribution | G23: Y | I23: N | J23: N | K23: N | L23: N | M23: N | N23: Y | O23: N | P23: Y | Q23: Y | R23: Y | S23: Y | T23: N | U23: N | V23: N | W23: N | X23: N
B24: TasNetworks (D) | C24: Tas | D24: Electricity | E24: Distribution | G24: Y | I24: N | J24: N | K24: N | L24: N | M24: N | N24: N | O24: N | P24: Y | Q24: Y | R24: N | S24: Y | T24: Y | U24: N | V24: N | W24: N | X24: N
B25: TasNetworks (T) | C25: Tas | D25: Electricity | E25: Transmission | G25: N | I25: N | J25: N | K25: N | L25: N | M25: N | N25: Y | O25: N | P25: Y | Q25: N | R25: N | S25: Y | T25: Y | U25: N | V25: N | W25: N | X25: N
B26: TransGrid | C26: NSW | D26: Electricity | E26: Transmission | G26: N | I26: N | J26: N | K26: N | L26: N | M26: N | N26: Y | O26: N | P26: Y | Q26: N | R26: N | S26: Y | T26: Y | U26: N | V26: N | W26: N | X26: N
B27: United Energy | C27: Vic | D27: Electricity | E27: Distribution | G27: N | I27: N | J27: N | K27: N | L27: N | M27: N | N27: Y | O27: N | P27: Y | Q27: N | R27: N | S27: N | T27: Y | U27: N | V27: N | W27: N | X27: N
B30: Confidential
B31: Amended
B33: Worksheet 6.2 STPIS reliability
B34: Formula | F34: Applied to:
B36: =INDEX(dms_CBD_flag,MATCH(dms_TradingName,dms_TradingName_List))="NO" | F36: $D$11,$D$17,$D$23,$D$33,$D$39,$D$45,$D$55,$D$61,$D$67,$D$77,$D$83,$D$89
B37: =INDEX(dms_Urban_flag,MATCH(dms_TradingName,dms_TradingName_List))="NO" | F37: $D$12,$D$18,$D$24,$D$56,$D$62,$D$78,$D$68,$D$84
B38: =INDEX(dms_ShortRural_flag,MATCH(dms_TradingName,dms_TradingName_List))="NO" | F38: $D$13,$D$19,$D$25,$D$57,$D$63,$D$69,$D$79,$D$85
B39: =INDEX(dms_LongRural_flag,MATCH(dms_TradingName,dms_TradingName_List))="NO" | F39: $D$14,$D$20,$D$26,$D$58,$D$64,$D$65,$D$70,$D$71,$D$80,$D$86
B40: =INDEX(dms_FeederType_5_flag,MATCH(dms_TradingName,dms_TradingName_List))="NO" | F40: $D$87,$D$81,$D$71,$D$65,$D$59,$D$49,$D$43,$D$37,$D$21,$D$15
B41: =dms_MAIFI_Flag="No" | F41: $D$55:$D$72
B44: Business & other details
B45: =(INDEX(dms_Model_Span,MATCH(dms_Model,dms_Model_List))>1)
B46: =(INDEX(dms_Model_Span,MATCH(dms_Model,dms_Model_List))=1)
B49: STYLES IN USE
B50: HEADING ONE | C50: dms_1
B51: HEADING TWO | C51: dms_2
B52: HEADING THREE | C52: dms_3
B53: HEADING FOUR | C53: dms_4
B54: HEADING FIVE | C54: dms_5
C55: dms_NUM
C56: dms_NUM%
C57: dms_Row_Locked
C58: dms_Row1
C59: dms_Row2
C60: dms_T1
C61: dms_T2
C62: dms_BH
C63: dms_BY1
C64: dms_BY2
C65: dms_GH
C66: dms_GY1
C67: dms_GY2

Sheet AER NRs (hidden)
B1: AER NAMED RANGES
B3: DROP DOWN SELECTORS USED IN WORKBOOKS
B5: COVER SHEET | C5: dms_DataQuality_List | D5: dms_Confid_status_List
C6: -- select -- | D6: -- select --
C7: Actual | D7: Public
C8: Estimate | D8: Confidential
C9: Consolidated
C12: For all files either AER or business needs to be able to specify the type of submission | D12: For PTRM & RFM templates we must provide a choice in case they change their form of control - otherwise it is drawn from the business specific lookup table above.
C13: dms_SourceList | D13: dms_FormControl_Choices
C14: -- select -- | D14: Revenue cap
C15: After appeal | D15: Revenue yield
C16: Draft decision | D16: Weighted average price cap
C17: Final decision
C18: PTRM update 1
C19: PTRM update 2
C20: PTRM update 3
C21: PTRM update 4
C22: PTRM update 5
C23: PTRM update 6
C24: PTRM update 7
C25: Regulatory proposal
C26: Reporting
C27: Revised regulatory proposal
K30: This is used to create an image to insert on 6.3 STPIS sheet - not for dropdown lists. | N30: GAS
B31: CA & RESET RINS DNSP | C31: dms_DNSP_020301_SubstationType | D31: dms_DNSP_020301_ProjectType | E31: dms_DNSP_020301_ProjectTrigger | F31: dms_DNSP_020302_ProjectType | G31: dms_DNSP_020302_ProjectTrigger | H31: dms_STPIS_Exclusion_List | I31: dms_Reason_Interruption | J31: dms_Reason_Interruption_Detailed | K31: Reason for interruption | N31: dms_N0205_AssetType
C32: Subtransmission substation | D32: New substation establishment | E32: Demand growth | F32: New line on new route - single circuit | G32: Demand growth | H32: Weather | I32: Animal | J32: Animal impact | K32: Animal | L32: Animal impact | N32: Cast Iron
C33: Zone substation | D33: Substation upgrade - capacity | E33: Voltage issues | F33: New line on new route - dual circuit | G33: Voltage issues | H33: Equipment failure | I33: Asset failure | J33: Animal nesting/burrowing, etc and other | L33: Animal nesting/burrowing, etc and other | N33: PVC
C34: Switching station | D34: Substation upgrade - voltage | E34: Reactive power issue | F34: New line on new route - other | G34: Reactive power issue | H34: Operational error | I34: Other | J34: Other | L34: Other | N34: Polyamide
C35: Other | D35: Other | E35: Fault level issues | F35: Line rebuild over existing route - single circuit | G35: Fault level issues | H35: Vegetation | I35: Overloads | J35: LV | K35: Asset failure | L35: LV | N35: High density polyethylene (80)
E36: Safety | F36: Line rebuild over existing route - dual circuit | G36: Net market benefit | H36: Animals | I36: Planned | J36: Distribution substation | L36: Distribution substation | N36: High density polyethylene (100)
E37: Environment | F37: Reconductor - Single circuit | G37: Safety | H37: Third party impacts | I37: Network business | J37: HV | L37: HV | N37: High density polyethylene (250)
E38: Other | F38: Reconductor - Dual circuit | G38: Environment | H38: Transmission failure | I38: Third party | J38: Zone substation | L38: Zone substation | N38: High density polyethylene (575)
F39: Reconductor - Other | G39: Other | H39: Load shedding | I39: Unknown | J39: Subtransmission | L39: Subtransmission | N39: Medium density polyethylene
F40: Line upgrade - raising/retensoring | H40: Inter-distributor connection failure | I40: Vegetation | J40: insert description of 'other' | K40: Other | L40: insert description of 'other' | N40: Unprotected steel
F41: Line upgrade - voltage upgrade | H41: Other | I41: Weather | J41: Network error | K41: Overloads | N41: Protected steel
F42: Line upgrade - capacity | I42: 2 - STPIS Exclusion (3.3)(a) | J42: Switching and protection error | K42: Planned | N42: Other
F43: String spare circuit | I43: 3 - STPIS Exclusion (3.3)(a) | J43: Fire | K43: Network business | L43: Network error
F44: Other | I44: 4 - STPIS Exclusion (3.3)(a) | J44: Other | L44: Switching and protection error
I45: 5 - STPIS Exclusion (3.3)(a) | J45: Dig-in | K45: Third party | L45: Fire
I46: 6 - STPIS Exclusion (3.3)(a) | J46: Unauthorised access | L46: Other
I47: 7 - STPIS Exclusion (3.3)(a) | J47: Vehicle impact | L47: Dig-in
J48: Unknown | L48: Unauthorised access
J49: Blow-in/Fall-in - NSP responsibility | L49: Vehicle impact
J50: Grow-in - NSP responsibility | K50: Unknown | L50: Unknown
J51: Blow-in/Fall-in - Other responsible party | K51: Vegetation | L51: Blow-in/Fall-in - NSP responsibility
J52: Grow-in - Other responsible party | L52: Grow-in - NSP responsibility
L53: Blow-in/Fall-in - Other responsible party
L54: Grow-in - Other responsible party
K55: Weather
K56: 2 - STPIS Exclusion (3.3)(a)
K57: 3 - STPIS Exclusion (3.3)(a)
K58: 4 - STPIS Exclusion (3.3)(a)
K59: 5 - STPIS Exclusion (3.3)(a)
K60: 6 - STPIS Exclusion (3.3)(a)
K61: 7 - STPIS Exclusion (3.3)(a)
B64: CA & RESET RINS TNSP | C64: dms_TNSP_0203_SubstationType | D64: dms_TNSP_020301_ProjectType | E64: dms_TNSP_020301_ProjectTrigger | F64: dms_TNSP_020302_ProjectType | G64: dms_TNSP_0203_ProjectTrigger
C65: Terminal station | D65: New substation establishment | E65: Demand growth | F65: New line on new route - single circuit | G65: Demand growth
C66: Switching station | D66: Capacity upgrade | E66: Voltage issues | F66: New line on new route - dual circuit | G66: Voltage issues
C67: Transmission substation | D67: Voltage upgrade | E67: Reactive power issue | F67: New line on new route - other | G67: Reactive power issue
C68: Other | D68: Other | E68: Fault level issues | F68: Line rebuild over existing route - single circuit | G68: Fault level issues
E69: Net market benefit | F69: Line rebuild over existing route - dual circuit | G69: Net market benefit
E70: Safety | F70: Reconductor - Single circuit | G70: Safety
E71: Environment | F71: Reconductor - Dual circuit | G71: Environment
E72: Other | F72: Reconductor - Other | G72: Other
F73: Line upgrade - raising/retensoring
F74: Line upgrade - voltage upgrade
F75: Line upgrade - capacity
F76: String spare circuit
F77: Other
B81: NAMED RANGES USED IN ETL PROCESS
B83: CA & RESET RINS DNSP ONLY | C83: dms_020303_01_UOM | D83: dms_020501_01_UOM | E83: dms_020501_02_UOM | F83: dms_020501_03_UOM | G83: dms_020501_04_UOM | H83: dms_020701_01_UOM | I83: dms_020701_02_UOM | J83: dms_020701_01_Rows | K83: dms_040102_01_UOM | L83: dms_040102_04_UOM | M83: dms_S140101_UOM | N83: dms_S140102_UOM | O83: dms_S140201_UOM
C84: Circuit line length in km | D84: 0's | E84: 0's | F84: 0's | G84: 0's | H84: km | I84: km | J84: Route line length within zone | K84: 0's | L84: days | M84: number | N84: number | O84: number per km
C85: Circuit line length in km | D85: 0's | E85: 0's | F85: 0's | G85: 0's | H85: 0's | I85: 0's | J85: Number of maintenance spans | K85: 0's | L85: 0's | M85: number | N85: number | O85: number
C86: Circuit line length in km | D86: MVA added | E86: MVA added | F86: MVA added | G86: MVA added | H86: km | I86: km | J86: Total length of maintenance spans | K86: 0's | L86: $0s | M86: number | N86: number | O86: number
C87: Circuit line length in km | D87: 0's | E87: 0's | F87: 0's | G87: 0's | H87: km | I87: km | J87: Length of vegetation corridors | K87: $0s | L87: 0's | M87: km | N87: number
C88: Number | D88: total spend $0s | E88: total spend $0s | F88: total spend $0s | G88: total spend $0s | H88: 0's | I88: 0's | J88: Average number of trees per maintenance span
C89: Number | D89: net circuit km added | E89: net circuit km added | F89: net circuit km added | G89: net circuit km added | H89: years | I89: years | J89: Average frequency of cutting cycle
C90: Number | D90: total spend $0s | E90: total spend $0s | F90: total spend $0s | G90: total spend $0s
D91: net circuit km added | E91: net circuit km added | F91: net circuit km added | G91: net circuit km added
D92: total spend $0s | E92: total spend $0s | F92: total spend $0s | G92: total spend $0s
D93: 0's | F93: $0s
D94: 0's
D95: 0's
D96: $0s
B99: CA & RESET RINS TNSP ONLY | C99: dms_020701_01_UOM
C100: km
C101: 0's
C102: km
C103: 0's
C104: km
C105: metres
C106: years
B109: CA & RESET RINS DNSP & TNSP | C109: dms_020603_01_UOM
C110: 0's
C111: 0's
C112: 0's
C113: 0's
C114: (per cent)
B117: EB & RESET RINS DNSP ONLY | C117: dms_030601_01_UOM | D117: dms_030601_02_UOM | E117: dms_030701_01_UOM | F117: dms_030702_01_UOM | G117: dms_030703_01_UOM
C118: minutes/customer | D118: minutes/customer | E118: Customer / km | F118: % | G118: km
C119: minutes/customer | D119: minutes/customer | E119: MWh/customer | F119: Number of spans
C120: interruptions/customer | D120: interruptions/customer | E120: kVA / customer | F120: Number of spans
C121: interruptions/customer | D121: interruptions/customer | F121: Number of spans
F122: Number of spans
F123: Years
F124: Years
F125: Trees
F126: Trees
F127: Defects
F128: Defects
F129: Spans
F130: km
F131: Spans
C133: WHEN INSERTING COVER SHEET INTO A TNSP FILE - APPLY THESE NAMED RANGES
B134: EB & RESET RINS TNSP ONLY | C134: dms_030601_01_UOM | E134: dms_030701_01_UOM | F134: dms_030702_01_UOM
C135: % | E135: Number of spans | F135: km
C136: number | E136: Years | F136: %
C137: number | E137: Trees | F137: km
C138: % | E138: Defects | F138: number
C139: number | E139: Number of spans
C140: number | E140: km
C141: % | E141: km
C142: number | E142: Number of spans
C143: number
C144: %
C145: number
C146: %
C147: number
C148: %
C149: number
B151: EB & RESET RINS DNSP & TNSP | C151: dms_EB_RAB_PIT
C152: Beginning of year
C153: End of year
C154: End of year
C155: End of year
C156: End of year
C157: End of year
B159: ARR DNSP ONLY | C159: dms_030605_UOM | D159: dms_03060703_UOM | E159: Spare | F159: Spare
C160: number | D160: number
C161: number | D161: number
C162: number | D162: number
C163: number | D163: number
C164: number | D164: (per cent)
C165: number
C166: number
C167: number
C168: number
C169: number
C170: number
C171: number
C172: (per cent)
C173: (per cent)
B175: RFM | C175: dms_Beg | D175: dms_Mid | E175: dms_End
C176: Beginning of year | D176: Mid year | E176: End of Year
B178: PTRM | C178: dms_PTRM_RAB_PIT | D178: dms_PTRM_TAB_PIT | E178: DMS_Xfactor
C179: Beginning of year | D179: Beginning of year | E179: x factors
C180: End of year | D180: End of year
C181: End of year | D181: End of year
C182: End of year | D182: End of year
C183: End of year
B186: STPIS & MIC NAMED RANGES
B188: These "row descriptions" are the column headings in the various templates but become row descriptions in the ETL process
B190: Table 6.3 sustained interruptions - row descriptions | C190: dms_060301_CustNo_Affected_Row | D190: dms_060301_Avg_Duration_Sustained_Int_Row | E190: dms_060301_Effect_unplanned_SAIDI_Row | F190: dms_060301_Effect_unplanned_SAIFI_Row
C191: Number of customers affected by the interruption | D191: Average duration of sustained customer interruption | E191: Effect on unplanned SAIDI | F191: Effect on unplanned SAIFI
B194: Table 6.1 telephone answering - row descriptions and start date | C194: dms_060101_Rows | D194: dms_060102_Rows | E194: dms_060101_StartDateTxt
C195: Total number of calls (after removing excluded events) | D195: Number of calls answered within 30 seconds (after excluding excluded events) | E195: =dms_060701_StartDateTxt -> 2015-01-01
B198: Table 6.8.1 - row descriptions | C198: dms_060801_01_Rows | D198: dms_060801_02_Rows | E198: dms_060801_03_Rows | F198: dms_060801_04_Rows
C199: Number of interruptions | D199: Duration of interruptions | E199: Total unplanned minutes off supply | F199: Effect on unplanned MAIFI
B202: Table 7.9.4 - market impact component - row descriptions | C202: dms_070904_01_Rows | D202: without exclusions | E202: with exclusions
B205: These headings (Lists) are determined from the INDEX/MATCH function on the NSP selected on the Business & other details sheet
B207: Table 6.7.1 - daily performance data - unplanned - MAIFI -- row descriptions and header named range values | C207: dms_060701_Feeder_Header_Lvl4 | D207: =INDEX(dms_FeederName_1,MATCH(dms_TradingName,dms_TradingName_List)) -> CBD | E207: =INDEX(dms_FeederName_1,MATCH(dms_TradingName,dms_TradingName_List)) -> CBD | F207: =INDEX(dms_FeederName_2,MATCH(dms_TradingName,dms_TradingName_List)) -> Urban | G207: =INDEX(dms_FeederName_2,MATCH(dms_TradingName,dms_TradingName_List)) -> Urban | H207: =INDEX(dms_FeederName_3,MATCH(dms_TradingName,dms_TradingName_List)) -> Short rural | I207: =INDEX(dms_FeederName_3,MATCH(dms_TradingName,dms_TradingName_List)) -> Short rural | J207: =INDEX(dms_FeederName_4,MATCH(dms_TradingName,dms_TradingName_List)) -> Long rural | K207: =INDEX(dms_FeederName_4,MATCH(dms_TradingName,dms_TradingName_List)) -> Long rural | L207: =IF((INDEX(dms_FeederName_5,MATCH(dms_TradingName,dms_TradingName_List))=0),"Network",(INDEX(dms_FeederName_5,MATCH(dms_TradingName,dms_TradingName_List)))) -> Network | M207: =IF((INDEX(dms_FeederName_5,MATCH(dms_TradingName,dms_TradingName_List))=0),"Network",(INDEX(dms_FeederName_5,MATCH(dms_TradingName,dms_TradingName_List)))) -> Network | N207: Network | O207: Network
C209: dms_060701_Rows | D209: All events | E209: After removing excluded events | F209: All events | G209: After removing excluded events | H209: All events | I209: After removing excluded events | J209: All events | K209: After removing excluded events | L209: All events | M209: After removing excluded events | N209: All events | O209: After removing excluded events
D210: the number of column headings changes from 10 to 12 depending on the number of feeder categories for the NSP
C212: dms_0603_FeederList | D212: =INDEX(dms_FeederName_1,MATCH(dms_TradingName,dms_TradingName_List)) -> CBD | E212: =INDEX(dms_FeederName_2,MATCH(dms_TradingName,dms_TradingName_List)) -> Urban | F212: =INDEX(dms_FeederName_3,MATCH(dms_TradingName,dms_TradingName_List)) -> Short rural | G212: =INDEX(dms_FeederName_4,MATCH(dms_TradingName,dms_TradingName_List)) -> Long rural
B215: Use these to add to specific worksheets in existing files | C215: Use these to add to specific worksheets in existing files
B218: ARRs 6.7 STPIS daily performance | C218: dms_060101_Values | D218: dms_060102_Values | E218: dms_060701_Values
C219: dms_LeapYear
B222: ARR's 6.8 STPIS exclusions | C222: dms_060801_Event_Date | D222: dms_060801_OutageID | E222: dms_060801_FeederID | F222: dms_060801_FeederClass | G222: dms_060801_CauseID | H222: dms_060801_01_Values | I222: dms_060801_02_Values | J222: dms_060801_03_Values | K222: dms_060801_Excl_Cat | L222: dms_060801_04_Values
C223: dms_060801_StartCell
B226: CA 6.3 sustained interruptions | C226: dms_060301_Event_Date | D226: dms_060301_Event_Time | E226: dms_060301_AssetID | F226: dms_060301_FeederClass | G226: dms_060301_Reason | H226: dms_060301_DetailedReason | I226: dms_060301_CustNo_Affected_Values | J226: dms_060301_Avg_Duration_Sustained_Int_Values | K226: dms_060301_Effect_unplanned_SAIDI_Values | L226: dms_060301_Effect_unplanned_SAIFI_Values | M226: dms_060301_MED

Sheet AER lookups (hidden)
B1: AER LOOKUP TABLES
B3: Data in these columns used for data validation and database purposes.
B4: Date last modified: | C4: 2017-01-16 | D4: added (Albury and Victora) for AGN
C5: 2016-10-17 | D5: updated TransGrid's correct legal name, corrected TasNetworks (T) to June financial year
C6: 2017-02-01 | D6: inserted Power and Water, added NRs (dms_FeederCat_1 and dms_FeederCat_2)
C7: 2017-03-03 | D7: inserted AEMO as a business | Z7: FOR ELECTRICITY BUSINESSES ONLY
C8: 2018-03-28 | D8: major changes to accommodate STPIS
C9: Template Version | D9: 5 | Z9: Feeder Types | AD9: TasNetworks (D) | AE9: MAIFI flag | AF9: Feeder Names
Z11: CBD | AA11: Urban | AB11: Short rural | AC11: long rural | AD11: EXTRA
B12: dms_TradingName_List | C12: dms_TradingNameFull_List | D12: dms_ABN_List | E12: dms_JurisdictionList | F12: dms_Sector_List | G12: dms_Segment_List | H12: dms_FormControl_List | I12: dms_RPT_List | J12: dms_RPTMonth_List | K12: dms_CRCPlength_List | L12: dms_FRCPlength_List | M12: dms_PRCPlength_List | N12: dms_663_List | O12: dms_DeterminationRef_List | P12: dms_Addr1_List | Q12: dms_Addr2_List | R12: dms_Suburb_List | S12: dms_State_List | T12: dms_PostCode_List | U12: dms_PAddr1_List | V12: dms_PAddr2_List | W12: dms_PSuburb_List | X12: dms_PState_List | Y12: dms_PPostCode_List | Z12: dms_CBD_flag | AA12: dms_Urban_flag | AB12: dms_ShortRural_flag | AC12: dms_LongRural_flag | AD12: dms_FeederType_5_flag | AE12: dms_MAIFI_flag_List | AF12: dms_FeederName_1 | AG12: dms_FeederName_2 | AH12: dms_FeederName_3 | AI12: dms_FeederName_4 | AJ12: dms_FeederName_5 | AK12: dms_Public_Lighting_List | AL12: Name
B13: AusNet (D) | C13: AusNet Electricity Services Pty Ltd | D13: 91064651118 | E13: Vic | F13: Electricity | G13: Distribution | H13: Revenue cap | I13: Financial | J13: June | K13: 5 | L13: 5 | M13: 5 | N13: 2 | O13: 2016-20 Distribution Determination | P13: Level 32 | Q13: 2 Southbank Boulevard | R13: SOUTHBANK | S13: Vic | T13: 3006 | U13: Locked Bag 14051 | W13: MELBOURNE CITY MAIL CENTRE | X13: Vic | Y13: 8001 | Z13: NO | AA13: YES | AB13: YES | AC13: YES | AD13: NO | AE13: YES | AF13: CBD | AG13: Urban | AH13: Short rural | AI13: Long rural | AK13: YES | AL13: =B13 -> AusNet (D)
B14: Australian Distribution Co. (Vic) | C14: Australian Distribution Co. (Victoria) | D14: 11222333444 | E14: Vic | F14: Electricity | G14: Distribution | H14: Revenue cap | I14: Financial | J14: June | K14: 5 | L14: 5 | M14: 5 | N14: 2 | O14: distribution determination | P14: 123 Straight Street | R14: MELBOURNE | S14: Vic | T14: 3000 | U14: PO Box 123 | W14: MELBOURNE | X14: Vic | Y14: 3000 | Z14: NO | AA14: NO | AB14: NO | AC14: NO | AD14: NO | AE14: YES | AF14: CBD | AG14: Urban | AH14: Short rural | AI14: Long rural | AK14: YES | AL14: Australian Distribution Co. (Vic)
B15: CitiPower | C15: CitiPower | D15: 76064651056 | E15: Vic | F15: Electricity | G15: Distribution | H15: Revenue cap | I15: Financial | J15: June | K15: 5 | L15: 5 | M15: 5 | N15: 2 | O15: 2016-20 Distribution Determination | P15: 40 Market Street | R15: MELBOURNE | S15: Vic | T15: 3000 | U15: Locked Bag 14090 | W15: MELBOURNE | X15: Vic | Y15: 8001 | Z15: YES | AA15: YES | AB15: NO | AC15: NO | AD15: NO | AE15: YES | AF15: CBD | AG15: Urban | AH15: Short rural | AI15: Long rural | AK15: YES | AL15: CitiPower
B16: Jemena Electricity | C16: Jemena Electricity | D16: 82064651083 | E16: Vic | F16: Electricity | G16: Distribution | H16: Revenue cap | I16: Financial | J16: June | K16: 5 | L16: 5 | M16: 5 | N16: 2 | O16: 2016-20 Distribution Determination | P16: Level 16 | Q16: 567 Collins Street | R16: MELBOURNE | S16: Vic | T16: 3000 | U16: PO Box 16182 | W16: MELBOURNE | X16: Vic | Y16: 8001 | Z16: NO | AA16: YES | AB16: YES | AC16: NO | AD16: NO | AE16: YES | AF16: CBD | AG16: Urban | AH16: Short rural | AI16: Long rural | AK16: YES | AL16: Jemena Electricity
B17: Powercor Australia | C17: Powercor Australia | D17: 89064651109 | E17: Vic | F17: Electricity | G17: Distribution | H17: Revenue cap | I17: Financial | J17: June | K17: 5 | L17: 5 | M17: 5 | N17: 2 | O17: 2016-20 Distribution Determination | P17: 40 Market Street | R17: MELBOURNE | S17: Vic | T17: 3000 | U17: Locked bag 14090 | W17: MELBOURNE | X17: Vic | Y17: 8001 | Z17: NO | AA17: NO | AB17: YES | AC17: YES | AD17: NO | AE17: YES | AF17: CBD | AG17: Urban | AH17: Short rural | AI17: Long rural | AK17: YES | AL17: Powercor Australia
B18: United Energy | C18: United Energy | D18: 70064651029 | E18: Vic | F18: Electricity | G18: Distribution | H18: Revenue cap | I18: Financial | J18: June | K18: 5 | L18: 5 | M18: 5 | N18: 2 | O18: 2016-20 Distribution Determination | P18: 43-45 Centreway | R18: MOUNT WAVERLEY | S18: Vic | T18: 3149 | U18: PO Box 449 | W18: MOUNT WAVERLEY | X18: Vic | Y18: 3170 | Z18: NO | AA18: NO | AB18: YES | AC18: NO | AD18: NO | AE18: YES | AF18: CBD | AG18: Urban | AH18: Short rural | AI18: Long rural | AK18: YES | AL18: United Energy
B23: The Reg Year Ending (dms_RYE) must be set to the last year of the regulatory period. For forecast data is is usually (FRCP_y5) for actual it is a single year (CRY). For historical actual data the RYE will need to be set manually in the business details sheet by setting the dms_Multiyear_flag to 1 and putting the correct value in 'dms_Specified_FinalYear. See cells C67:C68
B24: dms_Model_List | C24: dms_Model_Name_Format1 | D24: dms_Worksheet_List | E24: dms_Model_Span_List
B25: ARR | C25: Annual Reporting | D25: =IF(dms_MultiYear_ResponseFlag="yes","NEW HISTORICAL ANNUAL REPORTING","ANNUAL REPORTING") -> ANNUAL REPORTING | E25: 1
B26: CA | C26: Category Analysis | D26: =IF(dms_MultiYear_ResponseFlag="yes","NEW HISTORICAL CATEGORY ANALYSIS","CATEGORY ANALYSIS") -> CATEGORY ANALYSIS | E26: 1
B27: CESS | C27: Capitlal Expenditure | D27: CAPITLAL EXPENDITURE SHARING SCHEMING | E27: 5
B28: CPI | C28: CPI | D28: CPI | E28: 5
B29: EB | C29: Economic Benchmarking | D29: =IF(dms_MultiYear_ResponseFlag="yes","NEW HISTORICAL ECONOMIC BENCHMARKING","ECONOMIC BENCHMARKING") -> ECONOMIC BENCHMARKING | E29: 1
B30: Pricing | C30: Pricing Proposal | D30: PRICING PROPOSAL | E30: 5
B31: PTRM | C31: Post Tax Revenue Model | D31: POST TAX REVENUE MODEL | E31: 5
B32: Reset | C32: Regulatory Reporting (Reset) | D32: REGULATORY REPORTING STATEMENT | E32: 5
B33: RFM | C33: Roll Forward Model | D33: ROLL FORWARD MODEL | E33: 5
B34: WACC | C34: Weighted Average Cost of Capital | D34: WEIGHTED AVERAGE COST OF CAPITAL | E34: 1
B38: Financial | C38: Calendar | E38: PREVIOUS | G38: CURRENT | I38: FORTHCOMING
B39: 1987-88 | C39: 1988 | D39: PRCP_y1 | E39: =INDEX(INDIRECT(dms_RPT),dms_PRCP_start_row) -> 2011-12 | F39: CRCP_y1 | G39: =INDEX(INDIRECT(dms_RPT),dms_CRCP_start_row) -> 2016-17 | H39: =FRCP_y1 -> 2021-22 | I39: =INDEX(INDIRECT(dms_RPT),dms_FRCP_start_row) -> 2021-22
B40: 1988-89 | C40: 1989 | D40: PRCP_y2 | E40: =INDEX(INDIRECT(dms_RPT),dms_PRCP_start_row+1) -> 2012-13 | F40: CRCP_y2 | G40: =INDEX(INDIRECT(dms_RPT),dms_CRCP_start_row+1) -> 2017-18 | H40: FRCP_y2 | I40: =INDEX(INDIRECT(dms_RPT),dms_FRCP_start_row+1) -> 2022-23
B41: 1989-90 | C41: 1990 | D41: PRCP_y3 | E41: =INDEX(INDIRECT(dms_RPT),dms_PRCP_start_row+2) -> 2013-14 | F41: CRCP_y3 | G41: =INDEX(INDIRECT(dms_RPT),dms_CRCP_start_row+2) -> 2018-19 | H41: FRCP_y3 | I41: =INDEX(INDIRECT(dms_RPT),dms_FRCP_start_row+2) -> 2023-24
B42: 1990-91 | C42: 1991 | D42: PRCP_y4 | E42: =INDEX(INDIRECT(dms_RPT),dms_PRCP_start_row+3) -> 2014-15 | F42: CRCP_y4 | G42: =INDEX(INDIRECT(dms_RPT),dms_CRCP_start_row+3) -> 2019-20 | H42: FRCP_y4 | I42: =INDEX(INDIRECT(dms_RPT),dms_FRCP_start_row+3) -> 2024-25
B43: 1991-92 | C43: 1992 | D43: PRCP_y5 | E43: =INDEX(INDIRECT(dms_RPT),dms_PRCP_start_row+4) -> 2015-16 | F43: CRCP_y5 | G43: =INDEX(INDIRECT(dms_RPT),dms_CRCP_start_row+4) -> 2020-21 | H43: FRCP_y5 | I43: =INDEX(INDIRECT(dms_RPT),dms_FRCP_start_row+4) -> 2025-26
B44: 1992-93 | C44: 1993 | D44: PRCP_y6 | E44: =INDEX(INDIRECT(dms_RPT),dms_PRCP_start_row+5) -> 2016-17 | F44: CRCP_y6 | G44: =INDEX(INDIRECT(dms_RPT),dms_CRCP_start_row+5) -> 2021-22 | H44: FRCP_y6 | I44: =INDEX(INDIRECT(dms_RPT),dms_FRCP_start_row+5) -> 2026-27
B45: 1993-94 | C45: 1994 | D45: PRCP_y7 | E45: =INDEX(INDIRECT(dms_RPT),dms_PRCP_start_row+6) -> 2017-18 | F45: CRCP_y7 | G45: =INDEX(INDIRECT(dms_RPT),dms_CRCP_start_row+6) -> 2022-23 | H45: FRCP_y7 | I45: =INDEX(INDIRECT(dms_RPT),dms_FRCP_start_row+6) -> 2027-28
B46: 1994-95 | C46: 1995 | D46: PRCP_y8 | E46: =INDEX(INDIRECT(dms_RPT),dms_PRCP_start_row+7) -> 2018-19 | F46: CRCP_y8 | G46: =INDEX(INDIRECT(dms_RPT),dms_CRCP_start_row+7) -> 2023-24 | H46: FRCP_y8 | I46: =INDEX(INDIRECT(dms_RPT),dms_FRCP_start_row+7) -> 2028-29
B47: 1995-96 | C47: 1996 | D47: PRCP_y9 | E47: =INDEX(INDIRECT(dms_RPT),dms_PRCP_start_row+8) -> 2019-20 | F47: CRCP_y9 | G47: =INDEX(INDIRECT(dms_RPT),dms_CRCP_start_row+8) -> 2024-25 | H47: FRCP_y9 | I47: =INDEX(INDIRECT(dms_RPT),dms_FRCP_start_row+8) -> 2029-30
B48: 1996-97 | C48: 1997 | D48: PRCP_y10 | E48: =INDEX(INDIRECT(dms_RPT),dms_PRCP_start_row+9) -> 2020-21 | F48: CRCP_y10 | G48: =INDEX(INDIRECT(dms_RPT),dms_CRCP_start_row+9) -> 2025-26 | H48: FRCP_y10 | I48: =INDEX(INDIRECT(dms_RPT),dms_FRCP_start_row+9) -> 2030-31
B49: 1997-98 | C49: 1998 | D49: PRCP_y11 | E49: =INDEX(INDIRECT(dms_RPT),dms_PRCP_start_row+10) -> 2021-22 | F49: CRCP_y11 | G49: =INDEX(INDIRECT(dms_RPT),dms_CRCP_start_row+10) -> 2026-27 | H49: FRCP_y11 | I49: =INDEX(INDIRECT(dms_RPT),dms_FRCP_start_row+10) -> 2031-32
B50: 1998-99 | C50: 1999 | D50: PRCP_y12 | E50: =INDEX(INDIRECT(dms_RPT),dms_PRCP_start_row+11) -> 2022-23 | F50: CRCP_y12 | G50: =INDEX(INDIRECT(dms_RPT),dms_CRCP_start_row+11) -> 2027-28 | H50: FRCP_y12 | I50: =INDEX(INDIRECT(dms_RPT),dms_FRCP_start_row+11) -> 2032-33
B51: 1999-00 | C51: 2000 | D51: PRCP_y13 | E51: =INDEX(INDIRECT(dms_RPT),dms_PRCP_start_row+12) -> 2023-24 | F51: CRCP_y13 | G51: =INDEX(INDIRECT(dms_RPT),dms_CRCP_start_row+12) -> 2028-29 | H51: FRCP_y13 | I51: =INDEX(INDIRECT(dms_RPT),dms_FRCP_start_row+12) -> 2033-34
B52: 2000-01 | C52: 2001 | D52: PRCP_y14 | E52: =INDEX(INDIRECT(dms_RPT),dms_PRCP_start_row+13) -> 2024-25 | F52: CRCP_y14 | G52: =INDEX(INDIRECT(dms_RPT),dms_CRCP_start_row+13) -> 2029-30 | H52: FRCP_y14 | I52: =INDEX(INDIRECT(dms_RPT),dms_FRCP_start_row+13) -> 2034-35
B53: 2001-02 | C53: 2002 | D53: PRCP_y15 | E53: =INDEX(INDIRECT(dms_RPT),dms_PRCP_start_row+14) -> 2025-26 | F53: CRCP_y15 | G53: =INDEX(INDIRECT(dms_RPT),dms_CRCP_start_row+14) -> 2030-31 | H53: FRCP_y15 | I53: =INDEX(INDIRECT(dms_RPT),dms_FRCP_start_row+14) -> 2035-36
B54: 2002-03 | C54: 2003 | D54: PRCP_y16 | E54: =INDEX(INDIRECT(dms_RPT),dms_PRCP_start_row+15) -> 2026-27 | F54: CRCP_y16 | G54: =INDEX(INDIRECT(dms_RPT),dms_CRCP_start_row+15) -> 2031-32 | H54: FRCP_y16 | I54: =INDEX(INDIRECT(dms_RPT),dms_FRCP_start_row+15) -> 2036-37
B55: 2003-04 | C55: 2004
B56: 2004-05 | C56: 2005
B57: 2005-06 | C57: 2006 | E57: CRY - FRY
B58: 2006-07 | C58: 2007 | D58: dms_y1 | E58: =IFERROR(INDEX(INDIRECT(dms_RPT),dms_CRY_start_row),0) -> 2019-20
B59: 2007-08 | C59: 2008 | D59: dms_y2 | E59: =IFERROR(INDEX(INDIRECT(dms_RPT),dms_CRY_start_row+1),0) -> 2020-21
B60: 2008-09 | C60: 2009 | D60: dms_y3 | E60: =IFERROR(INDEX(INDIRECT(dms_RPT),dms_CRY_start_row+2),0) -> 2021-22
B61: 2009-10 | C61: 2010 | D61: dms_y4 | E61: =IFERROR(INDEX(INDIRECT(dms_RPT),dms_CRY_start_row+3),0) -> 2022-23
B62: 2010-11 | C62: 2011 | D62: dms_y5 | E62: =IFERROR(INDEX(INDIRECT(dms_RPT),dms_CRY_start_row+4),0) -> 2023-24
B63: 2011-12 | C63: 2012 | D63: dms_y6 | E63: =IFERROR(INDEX(INDIRECT(dms_RPT),dms_CRY_start_row+5),0) -> 2024-25
B64: 2012-13 | C64: 2013 | D64: dms_y7 | E64: =IFERROR(INDEX(INDIRECT(dms_RPT),dms_CRY_start_row+6),0) -> 2025-26
B65: 2013-14 | C65: 2014 | D65: dms_y8 | E65: =IFERROR(INDEX(INDIRECT(dms_RPT),dms_CRY_start_row+7),0) -> 2026-27
B66: 2014-15 | C66: 2015 | D66: dms_y9 | E66: =IFERROR(INDEX(INDIRECT(dms_RPT),dms_CRY_start_row+8),0) -> 2027-28
B67: 2015-16 | C67: 2016 | D67: dms_y10 | E67: =IFERROR(INDEX(INDIRECT(dms_RPT),dms_CRY_start_row+9),0) -> 2028-29
B68: 2016-17 | C68: 2017 | D68: dms_y11 | E68: =IFERROR(INDEX(INDIRECT(dms_RPT),dms_CRY_start_row+10),0) -> 2029-30
B69: 2017-18 | C69: 2018 | D69: dms_y12 | E69: =IFERROR(INDEX(INDIRECT(dms_RPT),dms_CRY_start_row+11),0) -> 2030-31
B70: 2018-19 | C70: 2019 | D70: dms_y13 | E70: =IFERROR(INDEX(INDIRECT(dms_RPT),dms_CRY_start_row+12),0) -> 2031-32
B71: 2019-20 | C71: 2020 | D71: dms_y14 | E71: =IFERROR(INDEX(INDIRECT(dms_RPT),dms_CRY_start_row+13),0) -> 2032-33
B72: 2020-21 | C72: 2021 | D72: dms_y15 | E72: =IFERROR(INDEX(INDIRECT(dms_RPT),dms_CRY_start_row+14),0) -> 2033-34
B73: 2021-22 | C73: 2022 | D73: dms_y16 | E73: =IFERROR(INDEX(INDIRECT(dms_RPT),dms_CRY_start_row+15),0) -> 2034-35
B74: 2022-23 | C74: 2023
B75: 2023-24 | C75: 2024
B76: 2024-25 | C76: 2025
B77: 2025-26 | C77: 2026
B78: 2026-27 | C78: 2027
B79: 2027-28 | C79: 2028
B80: 2028-29 | C80: 2029
B81: 2029-30 | C81: 2030
B82: 2030-31 | C82: 2031
B83: 2031-32 | C83: 2032
B84: 2032-33 | C84: 2033
B85: 2033-34 | C85: 2034
B86: 2034-35 | C86: 2035
B87: 2035-36 | C87: 2036
B88: 2036-37 | C88: 2037

Sheet AER ETL (hidden)
B1: AER ETL INFORMATION
B3: USES NAMED RANGES FLAG | C3: yes | D3: dms_Defined_Names_Used
B5: IF THIS IS AN ABC RIN - make sure the the named range CRY is applied and the named range dms_dollar_nom_UOM is applied
B6: IF THIS IS A RESET RIN - make sure the named ranges CRY and dms_dollar_nom_UOM are NOT present in the workbook
B7: FOR ABC RINS THAT SPAN MULTIPLE YEARS - make sure MultiYear Flag is set and final year entered as required
B9: Full trading name | C9: =INDEX(dms_TradingNameFull_List,MATCH(dms_TradingName,dms_TradingName_List)) -> Powercor Australia | E9: dms_TradingNameFull
B10: Trading name | C10: =dms_TradingName -> Powercor Australia
A11: Selected here | B11: Model / RIN | C11: Reset | D11: dms_Model
A12: Read from Business & other details | B12: Source | C12: Regulatory proposal | D12: dms_Source
B13: Data quality | C13: =dms_Selected_Quality -> Consolidated | D13: dms_DQ_1
B14: Data status | C14: =dms_Selected_Status -> Public | D14: dms_DQ_2
B15: Amendment reason | C15: =dms_Amendment_Text -> . | F15: dms_AmendmentReason
B16: Submission date | C16: =dms_Typed_Submission_Date -> 2020-01-31 | D16: dms_SubmissionDate
A18: Redundant | B18: EBSS - First application of scheme in forthcoming period? | C18: No
A19: Pre-populated from lookup table | B19: Data ingestion data quality | C19: =dms_Selected_Quality -> Consolidated | D19: dms_DataQuality | E19: =IF(dms_DQ_2="Confidential","Consolidated","Public")
B20: Sector | C20: =INDEX(dms_Sector_List,MATCH(dms_TradingName,dms_TradingName_List)) -> Electricity | D20: dms_Sector | E20: =INDEX(dms_Sector_List,MATCH(dms_TradingName,dms_TradingName_List))
B21: Segment | C21: =INDEX(dms_Segment_List,MATCH(dms_TradingName,dms_TradingName_List)) -> Distribution | D21: dms_Segment | E21: =INDEX(dms_Segment_List,MATCH(dms_TradingName,dms_TradingName_List))
B22: Regulatory Year Ending | C22: =dms_RYE_result -> 2026 | D22: dms_RYE | E22: =IF(dms_MultiYear_Flag=1,LEFT(dms_Specified_FinalYear,2)&RIGHT(dms_Specified_FinalYear,2),INDEX(dms_RYE_Formula_Result,MATCH(dms_Model,dms_Model_List)))
B23: Reporting Period Type | C23: =INDEX(dms_RPT_List,MATCH(dms_TradingName,dms_TradingName_List)) -> Financial | D23: dms_RPT | E23: =INDEX(dms_RPT_List,MATCH(dms_TradingName,dms_TradingName_List))
B24: EB/CA Unit of Measure for Monetary Values | C24: $0s | D24: dms_dollar_nom_UOM | E24: If the cover sheet is attached to an ABC RIN apply the NAMED RANGE to the cell
B25: Security Classification | C25: Public | D25: dms_Classification | E25: Always Public
B26: Jurisdiction | C26: =INDEX(dms_JurisdictionList,MATCH(dms_TradingName,dms_TradingName_List)) -> Vic | D26: dms_Jurisdiction | E26: =INDEX(dms_JurisdictionList,MATCH(dms_TradingName,dms_TradingName_List))
A27: Relevant for PTRM, RFMs and Reset RINS | B27: $ REAL REFERENCES
B28: Does the named range CRY exist in this file? | C28: =IFERROR(CRY,"NO") -> NO
B29: CRY-1 (last full calendar year before CRY) | C29: =IFERROR(IF(dms_RPT="calendar",CRY-1,LEFT(CRY,4)),"CRY not present") -> CRY not present | D29: dms_Cal_Year_B4_CRY | E29: '=IF(dms_RPT="financial",VALUE(LEFT(dms_SingleYear_FinalYear_Result,4)),VALUE(LEFT(dms_SingleYear_FinalYear_Result,4)-1))
B30: Dollar $ real month | C30: =INDEX(dms_RPTMonth_List,MATCH(dms_TradingName,dms_TradingName_List)) -> June | D30: dms_RPTMonth | E30: =INDEX(dms_RPTMonth_List,MATCH(dms_TradingName,dms_TradingName_List))
B31: Dollar $ real (the last month before the FRCP_y1) | C31: =IF(dms_SingleYearModel="yes",CONCATENATE(dms_RPTMonth)&" "&VALUE((LEFT(CRY,2))&RIGHT(CRY,2)),CONCATENATE(dms_RPTMonth)&" "&dms_DollarReal_year) -> June 2021 | D31: dms_DollarReal | E31: =IF(SUM(dms_SingleYear_Model)>0,CONCATENATE(dms_RPTMonth)&" "&VALUE((LEFT(CRY,2))&RIGHT(CRY,2)),CONCATENATE(dms_RPTMonth)&" "&VALUE((LEFT(dms_RYE,2)&RIGHT(dms_RYE,2))))
B32: Dollar $ real previous year (PRCP_y5) | C32: =IF(dms_SingleYearModel="yes",CONCATENATE(dms_RPTMonth)&" "&VALUE((LEFT(CRY,2))&RIGHT(CRY,2)),CONCATENATE(dms_RPTMonth)&" "&dms_Previous_DollarReal_year) -> June 2016 | D32: dms_DollarReal_Prev | E32: =IF(SUM(dms_SingleYear_Model)>0,CONCATENATE(dms_RPTMonth)&" "&VALUE(((LEFT(CRY,2))&RIGHT(CRY,2))-1),CONCATENATE(dms_RPTMonth)&" "&VALUE(((LEFT(dms_CRCP_FirstYear_Result,2)&RIGHT(dms_CRCP_FirstYear_Result,2))))-1)
B33: PTRM/ RFMs
B34: Form of control | C34: =INDEX(dms_FormControl_List,MATCH(dms_TradingName,dms_TradingName_List)) -> Revenue cap | D34: dms_FormControl | E34: =INDEX(dms_FormControl_List,MATCH(dms_TradingName,dms_TradingName_List))
A35: All potential values for Regulatory Years or RYEs as calculated | B35: This block works out the various RYE's for ALL RIN types and MODELS
B36: dms_start_year | C36: =FRCP_y1 -> 2021-22 | D36: =FRCP_y1 | E36: FRCP_y1 from cover sheet
B37: dms_CRY_start_year | C37: =IFERROR(CRY,CRCP_y4) -> 2019-20 | D37: =IFERROR(CRY,CRCP_y4)
B38: dms_CRY_start_row | C38: =IFERROR(MATCH(dms_CRY_start_year,INDIRECT(dms_RPT),0),0) -> 33 | D38: =IFERROR(MATCH(dms_CRY_start_year,INDIRECT(dms_RPT),0),0)
B39: dms_FRCP_start_row | C39: =MATCH(dms_start_year,INDIRECT(dms_RPT),0) -> 35 | D39: =MATCH(dms_start_year,INDIRECT(dms_RPT),0) | E39: Uses FRCP_y1 as a start reference
B40: dms_CRCP_start_row | C40: =dms_FRCP_start_row-dms_CRCPlength_Num -> 30 | D40: =dms_FRCP_start_row-dms_CRCPlength_Num | E40: Uses the value in dms_CRCPlength_Num
B41: dms_PRCP_start_row | C41: =dms_FRCP_start_row-dms_CRCPlength_Num-dms_PRCPlength_Num -> 25 | D41: =dms_FRCP_start_row-dms_CRCPlength_Num-dms_PRCPlength_Num | E41: Uses the value in dms_CRCPlength_Num and dms_PRCPlength_Num
B42: dms_RYE_start_row | C42: =dms_FRCP_start_row+(dms_FRCPlength_Num-1) -> 39 | D42: =dms_FRCP_start_row+(dms_FRCPlength_Num-1) | E42: Uses the value in dms_FRCPlength_Num-1
B43: FRCP_start_year | C43: =INDEX(INDIRECT(dms_RPT),dms_FRCP_start_row) -> 2021-22 | D43: =INDEX(INDIRECT(dms_RPT),dms_FRCP_start_row) | E43: Converts the FRCP start row to display the year
B44: CRCP_start_year | C44: =INDEX(INDIRECT(dms_RPT),dms_CRCP_start_row) -> 2016-17 | D44: =INDEX(INDIRECT(dms_RPT),dms_CRCP_start_row) | E44: Converts the CRCP start row to display the year
B45: PRCP_start_year | C45: =INDEX(INDIRECT(dms_RPT),dms_PRCP_start_row) -> 2011-12 | D45: =INDEX(INDIRECT(dms_RPT),dms_PRCP_start_row) | E45: Converts the PRCP start row to display the year
B46: FRCP_final_year | C46: =INDEX(INDIRECT(dms_RPT),dms_FRCP_start_row+dms_FRCPlength_Num-1) -> 2025-26 | D46: =INDEX(INDIRECT(dms_RPT),dms_FRCP_start_row+dms_FRCPlength_Num-1) | E46: Finds the FRCP final year
B47: CRCP_final_year | C47: =INDEX(INDIRECT(dms_RPT),dms_CRCP_start_row+dms_CRCPlength_Num-1) -> 2020-21 | D47: =INDEX(INDIRECT(dms_RPT),dms_CRCP_start_row+dms_CRCPlength_Num-1) | E47: Finds the CRCP final year
B48: PRCP_final_year | C48: =INDEX(INDIRECT(dms_RPT),dms_PRCP_start_row+dms_FRCPlength_Num-1) -> 2015-16 | D48: =INDEX(INDIRECT(dms_RPT),dms_PRCP_start_row+dms_FRCPlength_Num-1) | E48: Finds the PRCP final year
B49: dms_Reset_final_year | C49: =INDEX(INDIRECT(dms_RPT),dms_RYE_start_row) -> 2025-26 | D49: =INDEX(INDIRECT(dms_RPT),dms_RYE_start_row) | E49: For Resets and PTRM/RFMs (same as FRCP_final_year)
B50: dms_SpecifiedYear_final_year | C50: =FRY -> 2017-18 | D50: =FRY | E50: FRY from cover sheet
B51: dms_DollarReal_year | C51: =LEFT(CRCP_final_year,2)&RIGHT(CRCP_final_year,2) -> 2021 | D51: =LEFT(CRCP_final_year,2)&RIGHT(CRCP_final_year,2) | E51: Uses the value in CRCP_final_year
B52: dms_Previous_DollarReal_year | C52: =LEFT(PRCP_final_year,2)&RIGHT(PRCP_final_year,2) -> 2016 | D52: =LEFT(PRCP_final_year,2)&RIGHT(PRCP_final_year,2) | E52: Uses the value in PRCP_final_year
B53: dms_CRY_RYE | C53: =IFERROR(LEFT(CRY,2)&RIGHT(CRY,2),0) -> 0 | D53: =IFERROR(LEFT(CRY,2)&RIGHT(CRY,2),0) | E53: For ABC single year RINS
B54: dms_Reset_RYE | C54: =IF(dms_Model_Span>1,IF(dms_Model="RFM",(LEFT(dms_DollarReal_year,2)&RIGHT(dms_DollarReal_year,2)),(LEFT(dms_Reset_final_year,2)&RIGHT(dms_Reset_final_year,2))),0) -> 2026 | D54: =IF(dms_Model_Span>1,IF(dms_Model="RFM",(LEFT(dms_DollarReal_year,2)&RIGHT(dms_DollarReal_year,2)),(LEFT(dms_Reset_final_year,2)&RIGHT(dms_Reset_final_year,2))),0) | E54: If model span > 1 then uses dms_Reset_RYE otherwise it's a multi year ABC and uses dms_Specified_RYE
B55: dms_Specified_RYE | C55: =IF(dms_MultiYear_ResponseFlag="Yes",(LEFT(dms_Specified_FinalYear,2)&RIGHT(dms_Specified_FinalYear,2)),0) -> 0 | D55: =IF(dms_MultiYear_ResponseFlag="Yes",(LEFT(dms_Specified_FinalYear,2)&RIGHT(dms_Specified_FinalYear,2)),0) | E55: If multi year ABC - uses dms_Specified_FinalYear
B56: dms_Model_Span | C56: =INDEX(dms_Model_Span_List,MATCH(dms_Model,dms_Model_List)) -> 5 | D56: =INDEX(dms_Model_Span_List,MATCH(dms_Model,dms_Model_List)) | E56: A result of 5 is used to signify that it is more than 1 year span
B57: dms_RYE_result | C57: =IF(dms_MultiYear_ResponseFlag="yes",dms_Specified_RYE,(IF(dms_Model_Span>1,dms_Reset_RYE,dms_CRY_RYE))) -> 2026 | D57: =IF(dms_MultiYear_ResponseFlag="yes",dms_Specified_RYE,(IF(dms_Model_Span>1,dms_Reset_RYE,dms_CRY_RYE))) | E57: Nested IF - feeds into dms_RYE
B58: dms_Reset_Span | C58: =IF(dms_Reset_RYE>0,CONCATENATE(FRCP_y1," to ",FRCP_final_year),0) -> 2021-22 to 2025-26 | D58: =IF(dms_Reset_RYE>0,CONCATENATE(FRCP_y1," to ",FRCP_final_year),0) | E58: Reset span of years as text
B59: dms_SpecifiedYear_Span | C59: =IF(dms_Specified_RYE>0,CONCATENATE(CRY," to ",dms_Specified_FinalYear),0) -> 0 | D59: =IF(dms_Specified_RYE>0,CONCATENATE(CRY," to ",dms_Specified_FinalYear),0) | E59: Multi year ABC span of years as text
B60: dms_Header_Span | C60: =IF(dms_MultiYear_Flag=1,dms_SpecifiedYear_Span,IF(dms_Model_Span>1,dms_Reset_Span,CRY)) -> 2021-22 to 2025-26 | D60: =IF(dms_MultiYear_Flag=1,dms_SpecifiedYear_Span,IF(dms_Model_Span>1,dms_Reset_Span,CRY)) | E60: NESTED IF - for Sheet Headers
B61: ABC RINS THAT SPAN MULTIPLE YEARS
B62: This is a multi year ABC RIN? | C62: No
C63: =IF(dms_MultiYear_ResponseFlag="No",0,1) -> 0 | D63: dms_MultiYear_Flag | E63: This is set from the answer provided above
C64: =IF(dms_MultiYear_Flag=1,FRY,"not a Multiple year submission") -> not a Multiple year submission | D64: dms_Specified_FinalYear | E64: The result here is returned to dms_CRCP_FinalYear_Result if response to Q in C73 is "yes" and dms_MultiYear_Flag is set to 1
B65: Start year for 5.2 in Multi year ABC RINS | C65: =IFERROR(IF(dms_MultiYear_Flag=1,FRY,CRY),"not an ABC") -> not an ABC | D65: dms_0502_Inst_Year | E65: =IF(dms_MultiYear_Flag=1,FRY,CRY) | G65: For single year RINS this is CRY - multi year RINS need to start a the end of the span of years (ie. FRY)
B66: WHAT IS THE RYE?
B67: Reg Period Lengths
B68: PRCP length in years | C68: =INDEX(dms_PRCPlength_List,MATCH(dms_TradingName,dms_TradingName_List)) -> 5 | D68: dms_PRCPlength_Num | E68: =INDEX(dms_PRCPlength_List,MATCH(dms_TradingName,dms_TradingName_List))
B69: CRCP length in years | C69: =INDEX(dms_CRCPlength_List,MATCH(dms_TradingName,dms_TradingName_List)) -> 5 | D69: dms_CRCPlength_Num | E69: =INDEX(dms_CRCPlength_List,MATCH(dms_TradingName,dms_TradingName_List))
B70: FRCP length in years | C70: =INDEX(dms_FRCPlength_List,MATCH(dms_TradingName,dms_TradingName_List)) -> 5 | D70: dms_FRCPlength_Num | E70: =INDEX(dms_FRCPlength_List,MATCH(dms_TradingName,dms_TradingName_List))
B71: Single year RIN?
B72: Single Year ABC RIN ? | C72: =IF(dms_Model="EB",1,0) -> 0 | D72: dms_EB
C73: =IF(dms_Model="CA",1,0) -> 0 | D73: dms_CA | E73: =dms_SingleYear_Model
C74: =IF(dms_Model="ARR",1,0) -> 0 | D74: dms_ARR
B75: Is this a single Year ABC RIN? | C75: =IF(SUM(dms_SingleYear_Model)=1,"yes","no") -> no | D75: dms_SingleYearModel | E75: =IF(SUM(dms_SingleYear_Model)=1,"yes","no")
B76: Single Year Final Year Result | C76: =IF(AND(dms_SingleYearModel="yes",dms_MultiYear_Flag=0),CRY,0) -> 0 | D76: dms_SingleYear_FinalYear_Result | E76: =IFERROR(IF(SUM(dms_SingleYear_Model)<>0,(INDIRECT(dms_SingleYear_FinalYear_Ref)),"not a single year RIN"),"CRY not present")
B77: Multi year RIN?
B79: Multi Year Reset/Model? | C79: =IF(dms_Model_Span>1,"yes","no") -> yes
B80: Final year result for Reset/Model | C80: =IF(dms_Model_Span>1,dms_Reset_final_year,0) -> 2025-26 | D80: dms_MultiYear_FinalYear_Result | E80: dms_CRCP_FinalYear_Result
B82: Multi Year ABC RIN? | C82: =IF(dms_MultiYear_Flag=1,"yes","no") -> no | D82: dms_MultiYear_ABC_RIN
B83: Final year result for ABC multi year | C83: =IF(dms_MultiYear_Flag=1,C50,0) -> 0
B85: EB RINS
B86: Calendar Year for table 3.6 data | C86: =IFERROR(IF(dms_Segment="Transmission",dms_Cal_Year_B4_CRY,CRY),"CRY not present") -> CRY not present | D86: dms_0306_Year | E86: =IF(dms_Segment="Transmission",dms_Cal_Year_B4_CRY,CRY)
B87: CA RINS
B88: Find how many rows in tables 6.3 sustained interruptions? | E88: dms_060301_MaxRows only returns a valid value when cover sheet is attached to a CA file
C89: =IF(dms_Model<>"CA","not a CA","Is a CA") -> not a CA | E89: =IF(dms_Model<>"CA","not a CA","Is a CA")
B90: dms_060301_Avg_Duration_Sustained_Int_Values present? | C90: =IFERROR(IF(INDEX(dms_060301_Avg_Duration_Sustained_Int_Values,1,1)<>"","yes","no"),"no") -> no | D90: dms_060301_checkvalue | E90: =IFERROR(IF(INDEX(dms_060301_Avg_Duration_Sustained_Int_Values,1,1)<>"","yes","no"),"no")
C91: =IF(AND(dms_Model="CA",(dms_060301_checkvalue="no")),"error - NR not present","no errors") -> no errors | E91: =IF(AND(dms_Model="CA",(dms_060301_checkvalue="no")),"error - NR not present","no errors")
B92: Table 6.3.1 - last row reference | C92: =IFERROR(IF(dms_Model="CA",LOOKUP(2,1/(dms_060301_Avg_Duration_Sustained_Int_Values<>""),(ROW(dms_060301_Avg_Duration_Sustained_Int_Values))),"not a CA"),"6.3 not present") -> not a CA | D92: dms_060301_LastRow | E92: =IFERROR(IF(dms_Model="CA",LOOKUP(2,1/(dms_060301_Avg_Duration_Sustained_Int_Values<>""),(ROW(dms_060301_Avg_Duration_Sustained_Int_Values))),"not a CA"),"6.3 not present")
B93: Table 6.3.1 - max number rows | C93: =IFERROR(IF(dms_Model="CA",(dms_060301_LastRow-15),"not a CA"),"error") -> not a CA | D93: dms_060301_MaxRows | E93: =IFERROR(IF(dms_Model="CA",(dms_060301_LastRow-15),"not a CA"),"error")
B94: Table 6.6.3 - Public lighting repair - no. business days | C94: =INDEX(dms_663_List,MATCH(dms_TradingName,dms_TradingName_List)) -> 2 | D94: dms_663 | E94: =INDEX(dms_663_List,MATCH(dms_TradingName,dms_TradingName_List))
B95: ARR or RESET RINS
B96: How many rows in tables 6.1 or 6.7? (leap year?) | C96: insert dms_LeapYear NR if required | E96: 'dms_LeapYear is used to determine dms_060701_Max_Rows BUT it is only found on worksheet 6.1 or 6.7 and the date value in the cell is used to determine whether it is a leap year
B97: Is dms_LeapYear named range present? | C97: =IFERROR(IF(dms_LeapYear,"yes"),"no") -> no
B98: Table 6.7.1 - includes a leap year? | C98: =IFERROR(IF(MONTH(DATE(YEAR(dms_LeapYear),2,29))=2,"is a leap year","not a leap year"), "dms_LeapYear not present") -> dms_LeapYear not present | D98: dms_LeapYear_Result | E98: =IFERROR(IF(MONTH(DATE(YEAR(dms_LeapYear),2,29))=2,"is a leap year","not a leap year"),"dms_LeapYear not present")
B99: MaxRows if Reset and leap year | C99: =IF(dms_LeapYear_Result="is a leap year",1827,1826) -> 1826 | D99: dms_060701_Reset_MaxRows | E99: =IF(dms_LeapYear_Result="is a leap year",1827,1826) | H99: number of days present in Reset RIN table
B100: MaxRows if ARR and leap year | C100: =IF(dms_LeapYear_Result="is a leap year",366,365) -> 365 | D100: dms_060701_ARR_MaxRows | E100: =IF(dms_LeapYear_Result="is a leap year",366,365) | H100: number of days present in ARR RIN table
B101: Table 6.7.1 - Max Rows (leap year/ non leap year) | C101: =IF(dms_Model="ARR",dms_060701_ARR_MaxRows,IF(dms_Model="Reset",dms_060701_Reset_MaxRows,"not a relevant RIN type")) -> 1826 | D101: dms_060701_MaxRows | E101: =IF(dms_Model="ARR",dms_060701_ARR_MaxRows,IF(dms_Model="Reset",dms_060701_Reset_MaxRows,"not a relevant RIN type"))
B102: How many columns in 6.7? (4 or 5 feeder categories) | C102: =IF(dms_FifthFeeder_flag_NSP="NO","This NSP has only 4 feeder categories","This NSP has 5 feeder categories") -> This NSP has only 4 feeder categories
B103: Table 6.7.1 - Last column (# of feeder categories > 4) | C103: =IF(dms_FifthFeeder_flag_NSP="NO",10,12) -> 10 | D103: dms_060701_MaxCols | E103: =IF(dms_FifthFeeder_flag_NSP="NO",8,10)
B104: Table 6.7.1 - Number of offset rows | C104: =IF(dms_Model="ARR",15,9) -> 9 | D104: dms_060701_OffsetRows | E104: =IF(dms_Model="ARR",15,9)
B105: Start date for telephone answering in 6.1 or 6.7? | E105: Using 060101 as naming standard not 060701 for start dates
B106: Table 6.1.1 and 6.7.1 - Start Date as Text | C106: 2015-01-01 | D106: dms_060101_StartDateTxt | E106: =IF(SUM(dms_SingleYear_Model)>1,(CONCATENATE(IF(LEN(CRY)=4,"1-Jan-","1-Jul-"),LEFT(CRY,4))),(CONCATENATE(IF(LEN(CRCP_y4)=4,"1-Jan-","1-Jul-"),LEFT(CRCP_y4,4))))
B107: Table 6.1.1 and 6.7.1 - Start Date as Date Value | C107: 42005 | D107: dms_060101_StartDateVal | E107: =DATEVALUE(dms_060701_StartDateTxt)
B108: ARRs
B109: How many rows in table 6.8? | C109: insert dms_060801_StartCell NR if required | E109: dms_060801_StartCell is only found on worksheet 6.8 and is used to determine the starting date for the date range
B110: Is dms_060801_StartCell named range present? | C110: yes | E110: =IFERROR(IF((ROW(dms_060801_StartCell)-1)=1,"yes","yes"),"no")
B111: Table 6.8 - Number of offset rows | C111: 12 | D111: dms_0608_OffsetRows | E111: =IFERROR(IF(dms_Model="ARR",(ROW(dms_060801_StartCell)-1),"not an ARR"),"6.8 error")
B112: Table 6.8 - Last row | C112: 0 | D112: dms_0608_LastRow | E112: =IFERROR(IF(dms_060801_StartCell<>"",IF(dms_Model="ARR",(LOOKUP(2,1/(dms_060801_01_Values<>""),(ROW(dms_060801_01_Values)))),"not an ARR"),0),"0")
B113: Table 6.8 - MaxRows | C113: =IFERROR(IF(dms_Model="ARR",(MAX(0,dms_0608_LastRow-dms_0608_OffsetRows)),"not an ARR"),"0") -> not an ARR | D113: dms_060801_MaxRows | E113: =IFERROR(IF(dms_Model="ARR",(MAX(0,dms_0608_LastRow-dms_0608_OffsetRows)),"not an ARR"),"0")
B114: TNSP RESET RINS
B115: Table 7.9.4 only appears in TNSPs Reset RIN
B116: Table 7.9.4 - first year | C116: =LEFT(PRCP_y3,4) -> 2013 | D116: dms_070904_Start_Year | E116: =LEFT(PRCP_y3,4)
B118: MISC
B119: Distribution Determination Reference | C119: =INDEX(dms_DeterminationRef_List,MATCH(dms_TradingName,dms_TradingName_List)) -> 2016-20 Distribution Determination | D119: dms_DeterminationRef
B120: Public lighting NSP? | C120: =INDEX(dms_Public_Lighting_List,MATCH(dms_TradingName,dms_TradingName_List)) -> YES | D120: dms_Public_Lighting | E120: =INDEX(dms_Public_Lighting_List,MATCH(dms_TradingName,dms_TradingName_List))
B121: CBD Feeder for this business | C121: =INDEX(dms_CBD_flag,MATCH(dms_TradingName,dms_TradingName_List)) -> NO | D121: dms_CBD_flag_NSP
B122: Urban Feeder for this business | C122: =INDEX(dms_Urban_flag,MATCH(dms_TradingName,dms_TradingName_List)) -> NO | D122: dms_Urban_flag_NSP
B123: Short rural Feeder for this business | C123: =INDEX(dms_ShortRural_flag,MATCH(dms_TradingName,dms_TradingName_List)) -> YES | D123: dms_ShortRural_flag_NSP
B124: Long rural Feeder for this business | C124: =INDEX(dms_LongRural_flag,MATCH(dms_TradingName,dms_TradingName_List)) -> YES | D124: dms_LongRural_flag_NSP
B125: Fifth Feeder Category (eg. TasNetworks (D)) | C125: =INDEX(dms_FeederType_5_flag,MATCH(dms_TradingName,dms_TradingName_List)) -> NO | D125: dms_FifthFeeder_flag_NSP | E125: =INDEX(dms_FeederType_5_flag,MATCH(dms_TradingName,dms_TradingName_List))
B127: DISCARD FILES
B128: discard this record? | C128: NO | D128: dms_DISCARD | E128: If record is to be discarded from DB set this flag to YES
B130: SUBSET FILES
B131: Is this Submission File a Subset File | C131: NO | D131: dms_Partial
B134: REGULATORY YEARS FOR MULTI RYE SUBMISSIONS
B135: Multiple RYE flag | C135: NO | D135: dms_Multi_RYE_flag
C136: Manually specify RYE | D136: Named ranges to apply
C137: 2013 | D137: dms_RYE_01
C138: 2014 | D138: dms_RYE_02
C139: 2015 | D139: dms_RYE_03
C140: 2016 | D140: dms_RYE_04
C141: 2017 | D141: dms_RYE_05
C142: 2018 | D142: dms_RYE_06
C143: 2019 | D143: dms_RYE_07
C144: 2020 | D144: dms_RYE_08
C145: 2021 | D145: dms_RYE_09

Sheet Instructions
B2: =CONCATENATE(dms_Sector," ",dms_Segment," ", "Network Service Provider") -> Electricity Distribution Network Service Provider
B3: =IF(dms_Model="Reset","Regulatory Proposal RIN Template","Annual Reporting RIN") -> Regulatory Proposal RIN Template
B4: =CONCATENATE("This template is to be used by ",dms_TradingNameFull," to fulfil its reporting obligations to the AER.") -> This template is to be used by Powercor Australia to fulfil its reporting obligations to the AER.
B5: INSTRUCTIONS
B6: GENERAL | C6: Complete the Business & other details worksheet before entering data or values in any other worksheets. The Business & other details worksheet is linked to other worksheets within the workbook and automatically generates certain column headings and conditional formatting.
B8: CONFIDENTIAL INFORMATION | C8: Please use the macro at the top of each worksheet to identify confidential information in the confidential workbook.
C9: -Do this by selecting the cell or cells that contain confidential information and then run the Mark selection as CONFIDENTIAL macro. This will format the cells a specific colour that is identified by the AER's database which in turn marks that information as confidential. -To reverse this, select the cell or cells and run the Return selection to NON-CONFIDENTIAL macro.
B11: RESPONSES | C11: Please return two (2) files to the AER: 1. A confidential version which must contain a complete set of all responses with confidential information marked using the Mark selection CONFIDENTIAL macro and which has been completed using the locked template file provided by the AER. 2. A public version with confidential information either removed completely or aggregated in some form together with writtten consent to disclose the public version of the response. Use the drop down box on the Business and other details worksheet to identify the file as either confidential ('consolidated') or public.
B13: AMENDMENTS | C13: If an NSP wishes to correct data previously submitted to the AER it should resubmit that data using the original completed submission as the starting point. Please make any necessary changes to the data. Data that is not being amended should be left unchanged. NSPs must identify the reason for the amendments in the Amendment Reason box on the Business and other details worksheet. NSPs may provide further details regarding any amendments in the Amendments worksheet. .
C14: NSP may use Amended Data macro to highlight cells that contain amended data. NB: if data is also CONFIDENTIAL, re-apply the Confidentiality macro after applying the Amended macro
C15: Please resubmit two (2) files - a confidential version and a public version of the amended submission to the AER
B17: UNITS OF MEASURE | C17: All amounts are to be unrounded and reported on a one for one basis: that is 1000 is to be entered as '1000'. Applicable units of measure may be identified in the table column headings or row descriptors.
B19: INPUT / NON-INPUT CELLS
D20: Yellow = Input cell (mandatory)
D21: Darker yellow = input cell (mandatory)
D22: Orange = input cell (if data available)
D23: Grey = Not applicable/No inputs required
D24: PLEASE DO NOT ENTER TEXT into cells that are to contain numeric data.
B27: NAVIGATION | C27: Many tables in the worksheets have been "grouped" to allow for easy navigation. To ungroup or group data use the outline symbols in the left margin (for Row groupings) or above the columns (for column groupings).

Sheet CONTENTS
C1: =IF(dms_MultiYear_ResponseFlag="Yes","REGULATORY REPORTING STATEMENT - HISTORICAL INFORMATION",INDEX(dms_Worksheet_List,MATCH(dms_Model,dms_Model_List))) -> REGULATORY REPORTING STATEMENT
C2: =INDEX(dms_TradingNameFull_List,MATCH(dms_TradingName,dms_TradingName_List)) -> Powercor Australia
C3: =dms_Header_Span -> 2021-22 to 2025-26
D7: CONTENTS
D9: SUBMISSION | E9: Business & other details
E10: CPI series
D12: EXPENDITURE | E12: 2.1 Expenditure summary
E13: 2.2 Repex
E14: 2.3 Augex (a)
E15: 2.3 Augex (b)
E16: 2.5 Connections
E17: 2.6 Non-network
E18: 2.10 Overheads
E19: 2.11 Labour
E20: 2.14 Forecast price changes
E21: 2.16 Opex Summary
E22: 2.17 Step Changes
D24: ECONOMIC BENCHMARKING | E24: 3.1 Revenue
E25: 3.2 Operating expenditure
E26: 3.3 Assets (RAB)
E27: 3.4 Operational data
E28: 3.5 Physical assets
E29: 3.6 Quality of service
E30: 3.7 Operating Environment
D32: ALTERNATIVE CONTROL | E32: 4.1 Public lighting
E33: 4.2 Metering
E34: 4.3 Fee-based services
E35: 4.4 Quoted services
D37: NETWORK | E37: 5.4 MD & utilisation-Spatial
D39: SERVICE | E39: 6.1 Telephone answering
E40: 6.2 Reliability & Cust serv
D42: OTHER | E42: 7.1 Policies and Procedures
E43: 7.2 Contingent projects
E44: 7.3 Obligations
E45: 7.4 Shared Assets
E46: 7.7 TSS-LRMC
D48: FINANCIAL | E48: 8.2 Capex

Sheet Business & other details
V1: =INDEX(dms_Worksheet_List,MATCH(dms_Model,dms_Model_List)) -> REGULATORY REPORTING STATEMENT
V2: =INDEX(dms_TradingNameFull_List,MATCH(dms_TradingName,dms_TradingName_List)) -> Powercor Australia
V3: =dms_Header_Span -> 2021-22 to 2025-26
V4: BUSINESS & OTHER DETAILS
V6: INSTRUCTIONS
V7: Complete the following business details regulatory template before entering data or values in any other regulatory template. This regulatory template is linked to other cells within the spreadsheet and automatically generates column headings and conditional formatting to distinguish business specific input and non-input cells.
Q9: SUBMISSION PARTICULARS INPUT SHEET
V12: ENTITY DETAILS
V14: Business Name
V16: Short name | AL16: Powercor Australia
V17: ACN/ABN | AL17: =INDEX(dms_ABN_List,MATCH(dms_TradingName,dms_TradingName_List)) -> 89064651109
V21: Business Address | BQ21: Postal Address
V23: Address 1 | AL23: =INDEX(dms_Addr1_List,MATCH(dms_TradingName,dms_TradingName_List)) -> 40 Market Street | BI23: Address 1 | BQ23: =INDEX(dms_PAddr1_List,MATCH(dms_TradingName,dms_TradingName_List)) -> Locked bag 14090
V24: Address 2 | AL24: =IF(ISBLANK(INDEX(dms_Addr2_List,MATCH(dms_TradingName,dms_TradingName_List))),"",(INDEX(dms_Addr2_List,MATCH(dms_TradingName,dms_TradingName_List)))) ->  | BI24: Address 2 | BQ24: =IF(ISBLANK(INDEX(dms_PAddr2_List,MATCH(dms_TradingName,dms_TradingName_List))),"",(INDEX(dms_PAddr2_List,MATCH(dms_TradingName,dms_TradingName_List)))) -> 
V25: Suburb | AL25: =INDEX(dms_Suburb_List,MATCH(dms_TradingName,dms_TradingName_List)) -> MELBOURNE | BI25: Suburb | BQ25: =INDEX(dms_PSuburb_List,MATCH(dms_TradingName,dms_TradingName_List)) -> MELBOURNE
V26: State | AL26: =INDEX(dms_State_List,MATCH(dms_TradingName,dms_TradingName_List)) -> Vic | AV26: Post code | BI26: State | BQ26: =INDEX(dms_PState_List,MATCH(dms_TradingName,dms_TradingName_List)) -> Vic | CA26: Post code
BA28: `
V30: Contact Names
V32: Name | AL32: Brent Cleeve | BI32: Name
V33: Phone | AL33: (03) 9683 4465 | BI33: Phone
V34: Email | AL34: bcleeve@powercor.com.au | BI34: Email
Q39: REGULATORY CONTROL PERIODS
Z42: Forthcoming period | AL42: 2021-22 | AU42: =FRCP_y2 -> 2022-23 | BD42: =FRCP_y3 -> 2023-24 | BM42: =FRCP_y4 -> 2024-25 | BV42: =FRCP_y5 -> 2025-26
AL43: =FRCP_y6 -> 2026-27 | AU43: =FRCP_y7 -> 2027-28 | BD43: =FRCP_y8 -> 2028-29 | BM43: =FRCP_y9 -> 2029-30 | BV43: =FRCP_y10 -> 2030-31
AL44: =FRCP_y11 -> 2031-32 | AU44: =FRCP_y12 -> 2032-33 | BD44: =FRCP_y13 -> 2033-34 | BM44: =FRCP_y14 -> 2034-35 | BV44: =FRCP_y15 -> 2035-36
X46: RESETS | Z46: Current period | AL46: =CRCP_y1 -> 2016-17 | AU46: =CRCP_y2 -> 2017-18 | BD46: =CRCP_y3 -> 2018-19 | BM46: =CRCP_y4 -> 2019-20 | BV46: =CRCP_y5 -> 2020-21
AL47: =CRCP_y6 -> 2021-22 | AU47: =CRCP_y7 -> 2022-23 | BD47: =CRCP_y8 -> 2023-24 | BM47: =CRCP_y9 -> 2024-25 | BV47: =CRCP_y10 -> 2025-26
AL48: =CRCP_y11 -> 2026-27 | AU48: =CRCP_y12 -> 2027-28 | BD48: =CRCP_y13 -> 2028-29 | BM48: =CRCP_y14 -> 2029-30 | BV48: =CRCP_y15 -> 2030-31
Z50: Previous period | AL50: =PRCP_y1 -> 2011-12 | AU50: =PRCP_y2 -> 2012-13 | BD50: =PRCP_y3 -> 2013-14 | BM50: =PRCP_y4 -> 2014-15 | BV50: =PRCP_y5 -> 2015-16
AL51: =PRCP_y6 -> 2016-17 | AU51: =PRCP_y7 -> 2017-18 | BD51: =PRCP_y8 -> 2018-19 | BM51: =PRCP_y9 -> 2019-20 | BV51: =PRCP_y10 -> 2020-21
AL52: =PRCP_y11 -> 2021-22 | AU52: =PRCP_y12 -> 2022-23 | BD52: =PRCP_y13 -> 2023-24 | BM52: =PRCP_y14 -> 2024-25 | BV52: =PRCP_y15 -> 2025-26
Z54: Commencing year | AL54: 2017-18
X55: ANNUAL RINS
Z56: Final year | AL56: 2017-18
Q60: SUBMISSION DETAILS
Z62: RIN type | AL62: =INDIRECT(dms_Model) -> Regulatory Reporting (Reset)
Z64: Source | AL64: Regulatory proposal
X66: THIS FILE | Z66: Data Quality | AL66: Consolidated
Z68: Confidentiality Status | AL68: Public
Z70: Amended RIN Amendment Reason | AL70: .
Z74: Submission Date | AL74: 2020-01-31 | BD74: Please enter date this file submitted to AER

Sheet CPI series
B1: =INDEX(dms_Worksheet_List,MATCH(dms_Model,dms_Model_List)) -> REGULATORY REPORTING STATEMENT
B2: =INDEX(dms_TradingNameFull_List,MATCH(dms_TradingName,dms_TradingName_List)) -> Powercor Australia
B3: =dms_Header_Span -> 2021-22 to 2025-26
B4: CPI SERIES
B8: NOMINATED CPI SERIES
B10: Name of CPI series | C10: ABS CPI All Groups, Weighted Average of Eight Capital Cities , December quarter (to December 2018)
C12: =CRCP_y1 -> 2016-17 | D12: =CRCP_y2 -> 2017-18 | E12: =CRCP_y3 -> 2018-19 | F12: =CRCP_y4 -> 2019-20 | G12: =CRCP_y5 -> 2020-21 | H12: =FRCP_y1 -> 2021-22 | I12: =FRCP_y2 -> 2022-23 | J12: =FRCP_y3 -> 2023-24 | K12: =FRCP_y4 -> 2024-25 | L12: =FRCP_y5 -> 2025-26
B13: Series data | C13: 110 | D13: 112.1 | E13: 114.1 | F13: =E13*1.02 -> 116.382 | G13: =F13*1.02 -> 118.70964 | H13: =G13*1.024 -> 121.5586714 | I13: =H13*1.024 -> 124.4760795 | J13: 127.4635054 | K13: 130.5226295 | L13: 133.6551726

Sheet 2.1 Expenditure summary
B1: =INDEX(dms_Worksheet_List,MATCH(dms_Model,dms_Model_List)) -> REGULATORY REPORTING STATEMENT
B2: =INDEX(dms_TradingNameFull_List,MATCH(dms_TradingName,dms_TradingName_List)) -> Powercor Australia
B3: =dms_Header_Span -> 2021-22 to 2025-26
B4: 2.1 EXPENDITURE SUMMARY & RECONCILIATION
B7: 2.1.1 - STANDARD CONTROL SERVICES CAPEX
C8: =CONCATENATE("Forecast ($0's, real ", dms_DollarReal, ")") -> Forecast ($0's, real June 2021)
C9: =CRCP_y4 -> 2019-20 | D9: =CRCP_y5 -> 2020-21 | E9: =FRCP_y1 -> 2021-22 | F9: =FRCP_y2 -> 2022-23 | G9: =FRCP_y3 -> 2023-24 | H9: =FRCP_y4 -> 2024-25 | I9: =FRCP_y5 -> 2025-26
B10: Replacement expenditure | C10: =SUM('2.2 Repex'!E$12:E$143) -> 102980068.8 | D10: =SUM('2.2 Repex'!F$12:F$143) -> 97063172.43 | E10: =SUM('2.2 Repex'!G$12:G$143) -> 142464054 | F10: =SUM('2.2 Repex'!H$12:H$143) -> 141440706.6 | G10: =SUM('2.2 Repex'!I$12:I$143) -> 136535279.1 | H10: =SUM('2.2 Repex'!J$12:J$143) -> 139108809.1 | I10: =SUM('2.2 Repex'!K$12:K$143) -> 135268585.4
B11: Connections | C11: =SUM('2.5 Connections'!E$105:E$118)+'4.4 Quoted services'!C$11 -> 169748620.7 | D11: =SUM('2.5 Connections'!F$105:F$118)+'4.4 Quoted services'!D$11 -> 168667538.6 | E11: =SUM('2.5 Connections'!G$105:G$118)+'4.4 Quoted services'!E$11 -> 172214106.9 | F11: =SUM('2.5 Connections'!H$105:H$118)+'4.4 Quoted services'!F$11 -> 170367063.5 | G11: =SUM('2.5 Connections'!I$105:I$118)+'4.4 Quoted services'!G$11 -> 171257757.3 | H11: =SUM('2.5 Connections'!J$105:J$118)+'4.4 Quoted services'!H$11 -> 173803995.1 | I11: =SUM('2.5 Connections'!K$105:K$118)+'4.4 Quoted services'!I$11 -> 176833564.5
B12: Augmentation Expenditure | C12: =SUM('2.3 Augex (b)'!D$48:D$56) -> 75104305.02 | D12: =SUM('2.3 Augex (b)'!E$48:E$56) -> 142202906.6 | E12: =SUM('2.3 Augex (b)'!F$48:F$56) -> 152896404.4 | F12: =SUM('2.3 Augex (b)'!G$48:G$56) -> 134372728.8 | G12: =SUM('2.3 Augex (b)'!H$48:H$56) -> 78027598.39 | H12: =SUM('2.3 Augex (b)'!I$48:I$56) -> 62277470.13 | I12: =SUM('2.3 Augex (b)'!J$48:J$56) -> 47667164.69
B13: Non-network | C13: =SUM('2.6 Non-network'!E$32:E$39) -> 76317825.28 | D13: =SUM('2.6 Non-network'!F$32:F$39) -> 78858463.83 | E13: =SUM('2.6 Non-network'!G$32:G$39) -> 104946613.8 | F13: =SUM('2.6 Non-network'!H$32:H$39) -> 103969037.6 | G13: =SUM('2.6 Non-network'!I$32:I$39) -> 86804795.65 | H13: =SUM('2.6 Non-network'!J$32:J$39) -> 59054380.2 | I13: =SUM('2.6 Non-network'!K$32:K$39) -> 38534675.58
B14: Public lighting
B15: Metering
B16: Capitalised network overheads | C16: ='2.10 Overheads'!D$15 -> 46910548.57 | D16: ='2.10 Overheads'!E$15 -> 48433786.64 | E16: ='2.10 Overheads'!F$15 -> 49502746 | F16: ='2.10 Overheads'!G$15 -> 51493363.99 | G16: ='2.10 Overheads'!H$15 -> 53041215.77 | H16: ='2.10 Overheads'!I$15 -> 54484704.65 | I16: ='2.10 Overheads'!J$15 -> 55898257.25
B17: Capitalised corporate overheads
B18: capcons (included in the above) | C18: 75194009.41 | D18: 77275815.34 | E18: 106476248.3 | F18: 104683484.1 | G18: 104575372.2 | H18: 105503374.8 | I18: 107323678.3
B19: Total | C19: =SUM(C10:C17) -> 471061368.4 | D19: 535225868 | E19: 622023925.2 | F19: 601642900.5 | G19: 525666646.3 | H19: 488729359.1 | I19: 454202247.4
B22: 2.1.2 - STANDARD CONTROL SERVICES OPEX BY CATEGORY
C23: =CONCATENATE("Forecast ($0's, real ", dms_DollarReal, ")") -> Forecast ($0's, real June 2021)
C24: =CRCP_y4 -> 2019-20 | D24: =CRCP_y5 -> 2020-21
B25: Vegetation management | C25: 47416395.6 | D25: 49123486.5
B26: Maintenance | C26: 52128894.73 | D26: 54005645.59
B27: Emergency response | C27: 30421875.54 | D27: 31517127.63
B28: Non-network
B29: Metering
B30: Network overheads | C30: ='2.10 Overheads'!D12 -> 31875562.98 | D30: ='2.10 Overheads'!E12 -> 32910598.22
B31: Corporate overheads | C31: ='2.10 Overheads'!D27 -> 88315738.63 | D31: ='2.10 Overheads'!E27 -> 91183449.62
B32: Total | C32: =SUM(C25:C31) -> 250158467.5 | D32: =SUM(D25:D31) -> 258740307.6
B35: 2.1.3 - ALTERNATIVE CONTROL SERVICES CAPEX
C36: =CONCATENATE("Forecast ($0's, real ", dms_DollarReal, ")") -> Forecast ($0's, real June 2021)
C37: =CRCP_y4 -> 2019-20 | D37: =CRCP_y5 -> 2020-21 | E37: =FRCP_y1 -> 2021-22 | F37: =FRCP_y2 -> 2022-23 | G37: =FRCP_y3 -> 2023-24 | H37: =FRCP_y4 -> 2024-25 | I37: =FRCP_y5 -> 2025-26
B38: Connections
B39: Metering | C39: =SUM('4.2 Metering'!E29,'4.2 Metering'!E47,'4.2 Metering'!E59,'4.2 Metering'!E61) -> 12616226.3 | D39: =SUM('4.2 Metering'!F29,'4.2 Metering'!F47,'4.2 Metering'!F59,'4.2 Metering'!F61) -> 13366834.23 | E39: =SUM('4.2 Metering'!G29,'4.2 Metering'!G47,'4.2 Metering'!G59,'4.2 Metering'!G61) -> 17307223.41 | F39: =SUM('4.2 Metering'!H29,'4.2 Metering'!H47,'4.2 Metering'!H59,'4.2 Metering'!H61) -> 18439309.12 | G39: =SUM('4.2 Metering'!I29,'4.2 Metering'!I47,'4.2 Metering'!I59,'4.2 Metering'!I61) -> 16160982.32 | H39: =SUM('4.2 Metering'!J29,'4.2 Metering'!J47,'4.2 Metering'!J59,'4.2 Metering'!J61) -> 19047194.23 | I39: =SUM('4.2 Metering'!K29,'4.2 Metering'!K47,'4.2 Metering'!K59,'4.2 Metering'!K61) -> 22080005.26
B40: Public lighting | C40: ='4.1 Public lighting'!D18 -> 4091324.784 | D40: ='4.1 Public lighting'!E18 -> 2892391.28 | E40: ='4.1 Public lighting'!F18 -> 1693457.776 | F40: ='4.1 Public lighting'!G18 -> 2023698.265 | G40: ='4.1 Public lighting'!H18 -> 2167218.499 | H40: ='4.1 Public lighting'!I18 -> 2295935.485 | I40: ='4.1 Public lighting'!J18 -> 2410170.366
B41: Fee and quoted
B42: Network overheads
B43: Corporate overheads
B44: Total | C44: =SUM(C38:C43) -> 16707551.08 | D44: 16259225.51 | E44: 19000681.19 | F44: 20463007.38 | G44: 18328200.82 | H44: 21343129.72 | I44: 24490175.63
B47: 2.1.4 - ALTERNATIVE CONTROL SERVICES OPEX
C48: =CONCATENATE("Forecast ($0's, real ", dms_DollarReal, ")") -> Forecast ($0's, real June 2021)
C49: =CRCP_y4 -> 2019-20 | D49: =CRCP_y5 -> 2020-21 | E49: =FRCP_y1 -> 2021-22 | F49: =FRCP_y2 -> 2022-23 | G49: =FRCP_y3 -> 2023-24 | H49: =FRCP_y4 -> 2024-25 | I49: =FRCP_y5 -> 2025-26
B50: Connections | C50: =SUM('4.2 Metering'!E44:E46) -> 16019790.23 | D50: =SUM('4.2 Metering'!F44:F46) -> 16113926.66 | E50: =SUM('4.2 Metering'!G44:G46) -> 16511051.8 | F50: =SUM('4.2 Metering'!H44:H46) -> 16317668.8 | G50: =SUM('4.2 Metering'!I44:I46) -> 16436754.98 | H50: =SUM('4.2 Metering'!J44:J46) -> 16435314.18 | I50: =SUM('4.2 Metering'!K44:K46) -> 16480991.4
B51: Metering | C51: =SUM('4.2 Metering'!E32:E40,'4.2 Metering'!E50:E58,'4.2 Metering'!E60,'4.2 Metering'!E62) -> 11518624.03 | D51: =SUM('4.2 Metering'!F32:F40,'4.2 Metering'!F50:F58,'4.2 Metering'!F60,'4.2 Metering'!F62) -> 11912360.46 | E51: =SUM('4.2 Metering'!G32:G40,'4.2 Metering'!G50:G58,'4.2 Metering'!G60,'4.2 Metering'!G62) -> 10905283.05 | F51: =SUM('4.2 Metering'!H32:H40,'4.2 Metering'!H50:H58,'4.2 Metering'!H60,'4.2 Metering'!H62) -> 11328830.1 | G51: =SUM('4.2 Metering'!I32:I40,'4.2 Metering'!I50:I58,'4.2 Metering'!I60,'4.2 Metering'!I62) -> 11763310.29 | H51: =SUM('4.2 Metering'!J32:J40,'4.2 Metering'!J50:J58,'4.2 Metering'!J60,'4.2 Metering'!J62) -> 12184038.55 | I51: =SUM('4.2 Metering'!K32:K40,'4.2 Metering'!K50:K58,'4.2 Metering'!K60,'4.2 Metering'!K62) -> 12595382.05
B52: Public lighting | C52: ='4.1 Public lighting'!D22 -> 4161202.701 | D52: ='4.1 Public lighting'!E22 -> 5148019.887 | E52: ='4.1 Public lighting'!F22 -> 6134837.074 | F52: ='4.1 Public lighting'!G22 -> 5857634.319 | G52: ='4.1 Public lighting'!H22 -> 5647835.433 | H52: ='4.1 Public lighting'!I22 -> 5508327.265 | I52: ='4.1 Public lighting'!J22 -> 5458152.174
B53: Fee and quoted | C53: =SUM('4.3 Fee-based services'!C$13:C$14,'4.3 Fee-based services'!C$16:C$28)+SUM('4.4 Quoted services'!C12:C17) -> 15624070.56 | D53: =SUM('4.3 Fee-based services'!D$13:D$14,'4.3 Fee-based services'!D$16:D$28)+SUM('4.4 Quoted services'!D12:D17) -> 16702285.24 | E53: =SUM('4.3 Fee-based services'!E$13:E$14,'4.3 Fee-based services'!E$16:E$28)+SUM('4.4 Quoted services'!E12:E17) -> 15264142.38 | F53: =SUM('4.3 Fee-based services'!F$13:F$14,'4.3 Fee-based services'!F$16:F$28)+SUM('4.4 Quoted services'!F12:F17) -> 15320694.77 | G53: =SUM('4.3 Fee-based services'!G$13:G$14,'4.3 Fee-based services'!G$16:G$28)+SUM('4.4 Quoted services'!G12:G17) -> 15378375.95 | H53: =SUM('4.3 Fee-based services'!H$13:H$14,'4.3 Fee-based services'!H$16:H$28)+SUM('4.4 Quoted services'!H12:H17) -> 15437142.64 | I53: =SUM('4.3 Fee-based services'!I$13:I$14,'4.3 Fee-based services'!I$16:I$28)+SUM('4.4 Quoted services'!I12:I17) -> 15497030.58
B54: Network overheads
B55: Corporate overheads
B56: Total | C56: =SUM(C50:C55) -> 47323687.52 | D56: 49876592.25 | E56: 48815314.31 | F56: 48824827.99 | G56: 49226276.65 | H56: 49564822.64 | I56: 50031556.21
B59: 2.1.5 - DUAL FUNCTION ASSETS CAPEX
C60: =CONCATENATE("Forecast ($0's, real ", dms_DollarReal, ")") -> Forecast ($0's, real June 2021)
C61: =CRCP_y4 -> 2019-20 | D61: =CRCP_y5 -> 2020-21 | E61: =FRCP_y1 -> 2021-22 | F61: =FRCP_y2 -> 2022-23 | G61: =FRCP_y3 -> 2023-24 | H61: =FRCP_y4 -> 2024-25 | I61: =FRCP_y5 -> 2025-26
B62: Replacement expenditure
B63: Connections
B64: Augmentation expenditure
B65: Non-network
B66: Capitalised network overheads
B67: Capitalised corporate overheads
B68: capcons (included in the above)
B69: Total | C69: =SUM(C62:C67) -> 0 | D69: 0 | E69: 0 | F69: 0 | G69: 0 | H69: 0 | I69: 0
B72: 2.1.6 - DUAL FUNCTION ASSETS OPEX BY CATEGORY
C73: =CONCATENATE("Forecast ($0's, real ", dms_DollarReal, ")") -> Forecast ($0's, real June 2021)
C74: =CRCP_y4 -> 2019-20 | D74: =CRCP_y5 -> 2020-21
B75: Vegetation management
B76: Maintenance
B77: Emergency response
B78: Non-network
B79: Metering
B80: Network overheads
B81: Corporate overheads
B96: Total | C96: =SUM(C75:C95) -> 0 | D96: =SUM(D75:D95) -> 0
B99: 2.1.7 - STANDARD CONTROL SERVICES CAPCONS
C100: =CONCATENATE("Forecast ($0's, real ", dms_DollarReal, ")") -> Forecast ($0's, real June 2021)
C101: =CRCP_y4 -> 2019-20 | D101: =CRCP_y5 -> 2020-21 | E101: =FRCP_y1 -> 2021-22 | F101: =FRCP_y2 -> 2022-23 | G101: =FRCP_y3 -> 2023-24 | H101: =FRCP_y4 -> 2024-25 | I101: =FRCP_y5 -> 2025-26
B102: Replacement expenditure
B103: Connections | C103: =C18 -> 75194009.41 | D103: =D18 -> 77275815.34 | E103: 106476248.3 | F103: 104683484.1 | G103: 104575372.2 | H103: 105503374.8 | I103: 107323678.3
B104: Augmentation Expenditure
B105: Non-network
B106: Capitalised network overheads
B107: Capitalised corporate overheads
B108: Total | C108: =SUM(C102:C107) -> 75194009.41 | D108: 77275815.34 | E108: 106476248.3 | F108: 104683484.1 | G108: 104575372.2 | H108: 105503374.8 | I108: 107323678.3
B111: 2.1.8 - STANDARD CONTROL SERVICES CAPITALISED OVERHEADS
C112: =CONCATENATE("Forecast ($0's, real ", dms_DollarReal, ")") -> Forecast ($0's, real June 2021)
C113: =CRCP_y4 -> 2019-20 | D113: =CRCP_y5 -> 2020-21 | E113: =FRCP_y1 -> 2021-22 | F113: =FRCP_y2 -> 2022-23 | G113: =FRCP_y3 -> 2023-24 | H113: =FRCP_y4 -> 2024-25 | I113: =FRCP_y5 -> 2025-26
B114: Replacement expenditure | C114: =C10/SUM(C$10:C$12)*'2.10 Overheads'!D$15 -> 13888422.31 | D114: =D10/SUM(D$10:D$12)*'2.10 Overheads'!E$15 -> 11524269.59 | E114: 16487103.92 | F114: 16348622.35 | G114: 18770372.93 | H114: 20201222.94 | I114: 21017018.06
B115: Connections | C115: =C11/SUM(C$10:C$12)*'2.10 Overheads'!D$15 -> 22893172.99 | D115: =D11/SUM(D$10:D$12)*'2.10 Overheads'!E$15 -> 20025825.83 | E115: 19930023.02 | F115: 19692115.86 | G115: 23543892.78 | H115: 25239618.37 | I115: 27475072.72
B116: Augmentation Expenditure | C116: =C12/SUM(C$10:C$12)*'2.10 Overheads'!D$15 -> 10128953.27 | D116: =D12/SUM(D$10:D$12)*'2.10 Overheads'!E$15 -> 16883691.22 | E116: 13085619.06 | F116: 15452625.78 | G116: 10726950.06 | H116: 9043863.339 | I116: 7406166.468
B117: Non-network
B118: capcons (included in the above)
B119: Total | C119: =SUM(C114:C117) -> 46910548.57 | D119: 48433786.64 | E119: 49502746 | F119: 51493363.99 | G119: 53041215.77 | H119: 54484704.65 | I119: 55898257.25

Sheet 2.2 Repex
B1: =INDEX(dms_Worksheet_List,MATCH(dms_Model,dms_Model_List)) -> REGULATORY REPORTING STATEMENT
B2: =INDEX(dms_TradingNameFull_List,MATCH(dms_TradingName,dms_TradingName_List)) -> Powercor Australia
B3: =dms_Header_Span -> 2021-22 to 2025-26
B4: 2.2 REPEX
B6: There are THREE sub-tables on this worksheet. The table has been sub-grouped for easy navigation. See the Instructions sheet on how to group or ungroup tables.
B8: 2.2.1 - REPLACEMENT EXPENDITURE, VOLUMES AND ASSET FAILURES BY ASSET CATEGORY
B9: EXPENDITURE
E10: =CONCATENATE("EXPENDITURE ($0's, real ", dms_DollarReal,")") -> EXPENDITURE ($0's, real June 2021)
B11: ASSET GROUP | C11: ASSET CATEGORY | D11: UNITS | E11: =CRCP_y4 -> 2019-20 | F11: =CRCP_y5 -> 2020-21 | G11: =FRCP_y1 -> 2021-22 | H11: =FRCP_y2 -> 2022-23 | I11: =FRCP_y3 -> 2023-24 | J11: =FRCP_y4 -> 2024-25 | K11: =FRCP_y5 -> 2025-26
B12: POLES BY: HIGHEST OPERATING VOLTAGE ; MATERIAL TYPE | C12: Staking of a wooden pole | E12: 0 | F12: 0 | G12: 0 | H12: 0 | I12: 0 | J12: 0 | K12: 0
C13: ˂ = 1 kV; Wood | E13: 6512064.534 | F13: 5298216.069 | G13: 14907732.96 | H13: 15193974.86 | I13: 15484817.02 | J13: 15746924.47 | K13: 15992087.39
C14: > 1 kV & < = 11 kV; Wood | E14: 36729.84533 | F14: 27363.73881 | G14: 25602.46345 | H14: 26052.89904 | I14: 26509.7916 | J14: 26916.13143 | K14: 27292.27782
C15: ˃ 11 kV & < = 22 kV; Wood | E15: 19950901.87 | F15: 16849034.99 | G15: 27488484.02 | H15: 28065685.16 | I15: 28653101.31 | J15: 29188978.35 | K15: 29694923.12
C16: > 22 kV & < = 66 kV; Wood | E16: 1408471.872 | F16: 1121579.867 | G16: 2601345.295 | H16: 2647111.926 | I16: 2693534.619 | J16: 2734820.888 | K16: 2773039.346
C17: > 66 kV & < = 132 kV; Wood | E17: 0 | F17: 0 | G17: 0 | H17: 0 | I17: 0 | J17: 0 | K17: 0
C18: > 132 kV; Wood | E18: 0 | F18: 0 | G18: 0 | H18: 0 | I18: 0 | J18: 0 | K18: 0
C19: ˂ = 1 kV; Concrete | E19: 330369.5668 | F19: 337937.4142 | G19: 350997.5281 | H19: 364996.194 | I19: 379357.7817 | J19: 393255.1744 | K19: 406946.4015
C20: > 1 kV & < = 11 kV; Concrete | E20: 0 | F20: 0 | G20: 0 | H20: 0 | I20: 0 | J20: 0 | K20: 0
C21: ˃ 11 kV & < = 22 kV; Concrete | E21: 2069634.792 | F21: 2191265.424 | G21: 2349662.622 | H21: 2516739.32 | I21: 2688818.768 | J21: 2859936.968 | K21: 3031623.487
C22: > 22 kV & < = 66 kV; Concrete | E22: 186453.3858 | F22: 190712.3413 | G22: 198070.6254 | H22: 205958.1486 | I22: 214050.0494 | J22: 221879.6493 | K22: 229592.5889
C23: > 66 kV & < = 132 kV; Concrete | E23: 0 | F23: 0 | G23: 0 | H23: 0 | I23: 0 | J23: 0 | K23: 0
C24: > 132 kV; Concrete | E24: 0 | F24: 0 | G24: 0 | H24: 0 | I24: 0 | J24: 0 | K24: 0
C25: ˂ = 1 kV; Steel | E25: 33461.20008 | F25: 33461.20008 | G25: 33993.11045 | H25: 34591.16645 | I25: 35197.79554 | J25: 35737.30435 | K25: 36236.72449
C26: > 1 kV & < = 11 kV; Steel | E26: 0 | F26: 0 | G26: 0 | H26: 0 | I26: 0 | J26: 0 | K26: 0
C27: ˃ 11 kV & < = 22 kV; Steel | E27: 0 | F27: 0 | G27: 0 | H27: 0 | I27: 0 | J27: 0 | K27: 0
C28: > 22 kV & < = 66 kV; Steel | E28: 0 | F28: 0 | G28: 0 | H28: 0 | I28: 0 | J28: 0 | K28: 0
C29: > 66 kV & < = 132 kV; Steel | E29: 0 | F29: 0 | G29: 0 | H29: 0 | I29: 0 | J29: 0 | K29: 0
C30: > 132 kV; Steel | E30: 0 | F30: 0 | G30: 0 | H30: 0 | I30: 0 | J30: 0 | K30: 0
C31: Other | E31: 154591.3373 | F31: 154591.3373 | G31: 157048.7727 | H31: 159811.802 | I31: 162614.4391 | J31: 165106.9794 | K31: 167414.3093
B32: POLE TOP STRUCTURES BY: HIGHEST OPERATING VOLTAGE | C32: ˂ = 1 kV | E32: 6413329.636 | F32: 6490617.599 | G32: 6282916.831 | H32: 6418359.129 | I32: 6556259.477 | J32: 6682482.567 | K32: 6801957.499
C33: > 1 kV & < = 11 kV | E33: 578.6887319 | F33: 593.0316907 | G33: -4189.077715 | H33: -4262.778033 | I33: -4337.53484 | J33: -4404.020204 | K33: -4465.565317
C34: ˃ 11 kV & < = 22 kV | E34: 8247316.944 | F34: 8422733.78 | G34: 9097388.894 | H34: 9243707.182 | I34: 9391838.053 | J34: 9521604.072 | K34: 9640276.58
C35: > 22 kV & < = 66 kV | E35: 1045191.884 | F35: 1066302.601 | G35: 1134690.038 | H35: 1150973.426 | I35: 1167413.92 | J35: 1181506.296 | K35: 1194162.787
C36: > 66 kV & < = 132 kV | E36: 0 | F36: 0 | G36: 0 | H36: 0 | I36: 0 | J36: 0 | K36: 0
C37: > 132 kV | E37: 0 | F37: 0 | G37: 0 | H37: 0 | I37: 0 | J37: 0 | K37: 0
C38: Other | E38: 0 | F38: 0 | G38: 0 | H38: 0 | I38: 0 | J38: 0 | K38: 0
B39: STAKING WOODEN POLES BY: HIGHEST OPERATING VOLTAGE | C39: ˂ = 1 Kv | D39: for year wooden pole staked | E39: 0 | F39: 0 | G39: 0 | H39: 0 | I39: 0 | J39: 0 | K39: 0
C40: > 1 kV & < = 11 kV | D40: for year wooden pole staked | E40: 0 | F40: 0 | G40: 0 | H40: 0 | I40: 0 | J40: 0 | K40: 0
C41: ˃ 11 kV & < = 22 kV | D41: for year wooden pole staked | E41: 1545238.754 | F41: 1670322.652 | G41: 4338939.957 | H41: 4415276.869 | I41: 4492708.064 | J41: 4561571.911 | K41: 4625318.77
C42: > 22 kV & < = 66 kV | D42: for year wooden pole staked | E42: 0 | F42: 0 | G42: 0 | H42: 0 | I42: 0 | J42: 0 | K42: 0
C43: > 66 kV & < = 132 kV | D43: for year wooden pole staked | E43: 0 | F43: 0 | G43: 0 | H43: 0 | I43: 0 | J43: 0 | K43: 0
C44: > 132 kV | D44: for year wooden pole staked | E44: 0 | F44: 0 | G44: 0 | H44: 0 | I44: 0 | J44: 0 | K44: 0
B45: OVERHEAD CONDUCTORS BY: Highest operating voltage; Number of phases (at HV) | C45: ˂ = 1 kV | D45: per km | E45: 3251176.445 | F45: 3251176.445 | G45: 3302858.228 | H45: 3360966.891 | I45: 3419908.536 | J45: 3472328.603 | K45: 3520853.552
C46: > 1 kV & < = 11 kV | D46: per km | E46: 0 | F46: 0 | G46: 0 | H46: 0 | I46: 0 | J46: 0 | K46: 0
C47: ˃ 11 kV & < = 22 kV ; SWER | D47: per km | E47: 524767.4996 | F47: 524767.4996 | G47: 533109.3785 | H47: 542488.6103 | I47: 552002.2926 | J47: 560463.3368 | K47: 568295.6757
C48: ˃ 11 kV & < = 22 kV ; Single-Phase | D48: per km | E48: 0 | F48: 0 | G48: 0 | H48: 0 | I48: 0 | J48: 0 | K48: 0
C49: ˃ 11 kV & < = 22 kV ; Multiple-Phase | D49: per km | E49: 4250459.271 | F49: 4250459.271 | G49: 4318025.986 | H49: 4393994.949 | I49: 4471052.921 | J49: 4539584.84 | K49: 4603024.435
C50: > 22 kV & < = 66 kV | D50: per km | E50: 675245.5037 | F50: 675245.5037 | G50: 685979.431 | H50: 698048.174 | I50: 710289.9215 | J50: 721177.185 | K50: 731255.4609
C51: > 66 kV & < = 132 kV | D51: per km | E51: 0 | F51: 0 | G51: 0 | H51: 0 | I51: 0 | J51: 0 | K51: 0
C52: > 132 kV | D52: per km | E52: 0 | F52: 0 | G52: 0 | H52: 0 | I52: 0 | J52: 0 | K52: 0
C53: Other | D53: per km | E53: 0 | F53: 0 | G53: 0 | H53: 0 | I53: 0 | J53: 0 | K53: 0
B54: UNDERGROUND CABLES BY: Highest operating voltage | C54: ˂ = 1 kV | D54: per km | E54: 28535.69792 | F54: 28535.69792 | G54: 28989.31087 | H54: 29499.33279 | I54: 30016.66583 | J54: 30476.75872 | K54: 30902.66402
C55: > 1 kV & < = 11 kV | D55: per km | E55: 0 | F55: 0 | G55: 0 | H55: 0 | I55: 0 | J55: 0 | K55: 0
C56: > 11 kV & < = 22 kV | D56: per km | E56: 538760.6275 | F56: 594877.6713 | G56: 604334.0448 | H56: 614966.364 | I56: 625751.0967 | J56: 635342.5562 | K56: 644221.314
C57: > 22 kV & < = 33 kV | D57: per km | E57: 0 | F57: 0 | G57: 0 | H57: 0 | I57: 0 | J57: 0 | K57: 0
C58: > 33 kV & < = 66 kV | D58: per km | E58: 0 | F58: 0 | G58: 0 | H58: 0 | I58: 0 | J58: 0 | K58: 0
C59: > 66 kV & < = 132 kV | D59: per km | E59: 0 | F59: 0 | G59: 0 | H59: 0 | I59: 0 | J59: 0 | K59: 0
C60: > 132 kV | D60: per km | E60: 0 | F60: 0 | G60: 0 | H60: 0 | I60: 0 | J60: 0 | K60: 0
C61: Other | D61: per km | E61: 0 | F61: 0 | G61: 0 | H61: 0 | I61: 0 | J61: 0 | K61: 0
B62: SERVICE LINES BY: Connection voltage; Customer type; Connection complexity | C62: ˂ = 11 kV ; Residential ; Simple Type | D62: per number of spans | E62: 9295071.365 | F62: 9267622.991 | G62: 9118032.701 | H62: 9327487.829 | I62: 9540962.483 | J62: 9737867.843 | K62: 9925322.473
C63: ˂ = 11 kV ; Commercial & Industrial ; Simple Type | D63: per number of spans | E63: 0 | F63: 0 | G63: 0 | H63: 0 | I63: 0 | J63: 0 | K63: 0
C64: ˂ = 11 kV ; Residential ; Complex Type | D64: per number of spans | E64: 0 | F64: 0 | G64: 0 | H64: 0 | I64: 0 | J64: 0 | K64: 0
C65: ˂ = 11 kV ; Commercial & Industrial ; Complex Type | D65: per number of spans | E65: 0 | F65: 0 | G65: 0 | H65: 0 | I65: 0 | J65: 0 | K65: 0
C66: ˂ = 11 kV ; Subdivision ; Complex Type | D66: per number of spans | E66: 0 | F66: 0 | G66: 0 | H66: 0 | I66: 0 | J66: 0 | K66: 0
C67: > 11 kV & < = 22 kV ; Commercial & Industrial | D67: per number of spans | E67: 0 | F67: 0 | G67: 0 | H67: 0 | I67: 0 | J67: 0 | K67: 0
C68: > 11 kV & < = 22 kV ; Subdivision | D68: per number of spans | E68: 0 | F68: 0 | G68: 0 | H68: 0 | I68: 0 | J68: 0 | K68: 0
C69: > 22 kV & < = 33 kV ; Commercial & Industrial | D69: per number of spans | E69: 0 | F69: 0 | G69: 0 | H69: 0 | I69: 0 | J69: 0 | K69: 0
C70: > 22 kV & < = 33 kV ; Subdivision | D70: per number of spans | E70: 0 | F70: 0 | G70: 0 | H70: 0 | I70: 0 | J70: 0 | K70: 0
C71: > 33 kV & < = 66 kV ; Commercial & Industrial | D71: per number of spans | E71: 0 | F71: 0 | G71: 0 | H71: 0 | I71: 0 | J71: 0 | K71: 0
C72: > 33 kV & < = 66 kV ; Subdivision | D72: per number of spans | E72: 0 | F72: 0 | G72: 0 | H72: 0 | I72: 0 | J72: 0 | K72: 0
C73: > 66 kV & < = 132 kV ; Commercial & Industrial | D73: per number of spans | E73: 0 | F73: 0 | G73: 0 | H73: 0 | I73: 0 | J73: 0 | K73: 0
C74: > 66 kV & < = 132 kV ; Subdivision | D74: per number of spans | E74: 0 | F74: 0 | G74: 0 | H74: 0 | I74: 0 | J74: 0 | K74: 0
C75: > 132 kV ; Commercial & Industrial | D75: per number of spans | E75: 0 | F75: 0 | G75: 0 | H75: 0 | I75: 0 | J75: 0 | K75: 0
C76: > 132 kV ; Subdivision | D76: per number of spans | E76: 0 | F76: 0 | G76: 0 | H76: 0 | I76: 0 | J76: 0 | K76: 0
C77: Other | D77: per number of spans | E77: 0 | F77: 0 | G77: 0 | H77: 0 | I77: 0 | J77: 0 | K77: 0
B78: TRANSFORMERS BY: Mounting type; Highest operating voltage; Ampere rating; Number of phases (at LV) | C78: Pole Mounted ; < = 22kV ; < = 60 kVA ; Single Phase | E78: 2619884.161 | F78: 2525375.283 | G78: 2469508.267 | H78: 2415255.04 | I78: 2358197.859 | J78: 2293406.536 | K78: 2223108.178
C79: Pole Mounted ; < = 22kV ; > 60 kVA and < = 600 kVA ; Single Phase | E79: 421744.1885 | F79: 436505.2351 | G79: 458439.7607 | H79: 481764.8156 | I79: 505740.7049 | J79: 529257.7808 | K79: 552639.4689
C80: Pole Mounted ; < = 22kV ; > 600 kVA ; Single Phase | E80: 0 | F80: 0 | G80: 0 | H80: 0 | I80: 0 | J80: 0 | K80: 0
C81: Pole Mounted ; < = 22kV ; < = 60 kVA ; Multiple Phase | E81: 535815.6089 | F81: 558222.4435 | G81: 589859.1544 | H81: 623400.3114 | I81: 657902.673 | J81: 691917.9458 | K81: 725852.7575
C82: Pole Mounted ; < = 22kV ; > 60 kVA and < = 600 kVA ; Multiple Phase | E82: 1584430.613 | F82: 1666738.697 | G82: 1776850.211 | H82: 1893198.714 | I82: 2012979.721 | J82: 2131741.363 | K82: 2250667.268
C83: Pole Mounted ; < = 22kV ; > 600 kVA ; Multiple Phase | E83: 268375.8144 | F83: 287545.5154 | G83: 311590.8636 | H83: 336889.8724 | I83: 362962.5322 | J83: 388999.6571 | K83: 415195.6135
C84: Kiosk Mounted ; < = 22kV ; < = 60 kVA ; Single Phase | E84: 0 | F84: 0 | G84: 0 | H84: 0 | I84: 0 | J84: 0 | K84: 0
C85: Kiosk Mounted ; < = 22kV ; > 60 kVA and < = 600 kVA ; Single Phase | E85: 0 | F85: 0 | G85: 0 | H85: 0 | I85: 0 | J85: 0 | K85: 0
C86: Kiosk Mounted ; < = 22kV ; > 600 kVA ; Single Phase | E86: 0 | F86: 0 | G86: 0 | H86: 0 | I86: 0 | J86: 0 | K86: 0
C87: Kiosk Mounted ; < = 22kV ; < = 60 kVA ; Multiple Phase | E87: 0 | F87: 0 | G87: 0 | H87: 0 | I87: 0 | J87: 0 | K87: 0
C88: Kiosk Mounted ; < = 22kV ; > 60 kVA and < = 600 kVA ; Multiple Phase | E88: 1704440.24 | F88: 1806564.216 | G88: 1770318.619 | H88: 1840967.13 | I88: 1913447.635 | J88: 1983588.171 | K88: 2218639.169
C89: Kiosk Mounted ; < = 22kV ; > 600 kVA ; Multiple Phase | E89: 24242.12064 | F89: 18181.59048 | G89: 12313.74073 | H89: 6265.190939 | I89: 6.369968832e-12 | J89: 0 | K89: 0
C90: Ground Outdoor / Indoor Chamber Mounted; ˂ 22 kV ; < = 60 kVA ; Single Phase | E90: 0 | F90: 0 | G90: 0 | H90: 0 | I90: 0 | J90: 0 | K90: 0
C91: Ground Outdoor / Indoor Chamber Mounted; ˂ 22 kV ; > 60 kVA and < = 600 kVA ; Single Phase | E91: 0 | F91: 0 | G91: 0 | H91: 0 | I91: 0 | J91: 0 | K91: 0
C92: Ground Outdoor / Indoor Chamber Mounted; ˂ 22 kV ; > 600 kVA ; Single Phase | E92: 0 | F92: 0 | G92: 0 | H92: 0 | I92: 0 | J92: 0 | K92: 0
C93: Ground Outdoor / Indoor Chamber Mounted; ˂ 22 kV ; < = 60 kVA ; Multiple Phase | E93: 0 | F93: 0 | G93: 0 | H93: 0 | I93: 0 | J93: 0 | K93: 0
C94: Ground Outdoor / Indoor Chamber Mounted; ˂ 22 kV ; > 60 kVA and < = 600 kVA ; Multiple Phase | E94: 131131.925 | F94: 163232.2397 | G94: 165827.0337 | H94: 168744.5029 | I94: 171703.7938 | J94: 174335.6549 | K94: 176771.9534
C95: Ground Outdoor / Indoor Chamber Mounted; ˂ 22 kV ; > 600 kVA ; Multiple Phase | E95: 0 | F95: 0 | G95: 0 | H95: 0 | I95: 0 | J95: 0 | K95: 0
C96: Ground Outdoor / Indoor Chamber Mounted; > = 22 kV & < = 33 kV ; < = 15 MVA | E96: 0 | F96: 0 | G96: 0 | H96: 0 | I96: 0 | J96: 0 | K96: 0
C97: Ground Outdoor / Indoor Chamber Mounted; > = 22 kV & < = 33 kV ; > 15 MVA and < = 40 MVA | E97: 0 | F97: 0 | G97: 0 | H97: 0 | I97: 0 | J97: 0 | K97: 0
C98: Ground Outdoor / Indoor Chamber Mounted; > = 22 kV & < = 33 kV ; > 40 MVA | E98: 0 | F98: 0 | G98: 0 | H98: 0 | I98: 0 | J98: 0 | K98: 0
C99: Ground Outdoor / Indoor Chamber Mounted; > 33 kV & < = 66 kV ; < = 15 MVA | E99: 0 | F99: 0 | G99: 0 | H99: 0 | I99: 0 | J99: 0 | K99: 0
C100: Ground Outdoor / Indoor Chamber Mounted; > 33 kV & < = 66 kV ; > 15 MVA and < = 40 MVA | E100: 1798205.557 | F100: 2370504.021 | G100: 3545561.949 | H100: 2127262.473 | I100: 2696020.518 | J100: 2208505.101 | K100: 28222.64194
C101: Ground Outdoor / Indoor Chamber Mounted; > 33 kV & < = 66 kV ; > 40 MVA | E101: 0 | F101: 0 | G101: 0 | H101: 0 | I101: 0 | J101: 0 | K101: 0
C102: Ground Outdoor / Indoor Chamber Mounted; > 66 kV & < = 132 kV ; < = 100 MVA | E102: 0 | F102: 0 | G102: 0 | H102: 0 | I102: 0 | J102: 0 | K102: 0
C103: Ground Outdoor / Indoor Chamber Mounted; > 66 kV & < = 132 kV ; > 100 MVA | E103: 0 | F103: 0 | G103: 0 | H103: 0 | I103: 0 | J103: 0 | K103: 0
C104: Ground Outdoor / Indoor Chamber Mounted; > 132 kV ; < = 100 MVA | E104: 0 | F104: 0 | G104: 0 | H104: 0 | I104: 0 | J104: 0 | K104: 0
C105: Ground Outdoor / Indoor Chamber Mounted; > 132 kV ; > 100 MVA | E105: 0 | F105: 0 | G105: 0 | H105: 0 | I105: 0 | J105: 0 | K105: 0
C106: Other | E106: 94530.97879 | F106: 88622.79262 | G106: 84029.46537 | H106: 79400.13096 | I106: 74577.76594 | J106: 69410.81363 | K106: 63982.55716
B107: SWITCHGEAR BY: Highest operating voltage; Switch function | C107: ˂ = 11 kV ; FUSE | E107: 0 | F107: 0 | G107: 0 | H107: 0 | I107: 0 | J107: 0 | K107: 0
C108: ˂ = 11 kV ; Switch | E108: 0 | F108: 0 | G108: 0 | H108: 0 | I108: 0 | J108: 0 | K108: 0
C109: ˂ = 11 kV ; Circuit Breaker | E109: 0 | F109: 0 | G109: 0 | H109: 0 | I109: 0 | J109: 0 | K109: 0
C110: > 11 kV & < = 22 kV ; Switch | E110: 2764966.095 | F110: 3007486.352 | G110: 3021256.937 | H110: 3039775.006 | I110: 3089559.506 | J110: 3136916.012 | K110: 3180753.651
C111: > 11 kV & < = 22 kV ; Circuit Breaker | E111: 475688.4373 | F111: 321204.3373 | G111: 571793.877 | H111: 581853.7024 | I111: 592057.7347 | J111: 601132.7453 | K111: 609533.4293
C112: > 22 kV & < = 33 kV ; Switch | E112: 506851.915 | F112: 570208.4044 | G112: 643636.2522 | H112: 720456.036 | I112: 799735.3665 | J112: 879659.779 | K112: 960564.5653
C113: > 22 kV & < = 33 kV ; Circuit Breaker | E113: 0 | F113: 0 | G113: 0 | H113: 0 | I113: 0 | J113: 0 | K113: 0
C114: > 33 kV & < = 66 kV ; Switch | E114: 0 | F114: 0 | G114: 0 | H114: 0 | I114: 0 | J114: 0 | K114: 0
C115: > 33 kV & < = 66 kV ; Circuit Breaker | E115: 530425.8144 | F115: 435388.8265 | G115: 442309.9122 | H115: 450091.6683 | I115: 457984.9754 | J115: 465004.9301 | K115: 471503.261
C116: > 66 kV & < = 132 kV ; Switch | E116: 0 | F116: 0 | G116: 0 | H116: 0 | I116: 0 | J116: 0 | K116: 0
C117: > 66 kV & < = 132 kV ; Circuit Breaker | E117: 0 | F117: 0 | G117: 0 | H117: 0 | I117: 0 | J117: 0 | K117: 0
C118: > 132 kV ; Switch | E118: 0 | F118: 0 | G118: 0 | H118: 0 | I118: 0 | J118: 0 | K118: 0
C119: > 132 kV ; Circuit Breaker | E119: 0 | F119: 0 | G119: 0 | H119: 0 | I119: 0 | J119: 0 | K119: 0
C120: Other | E120: 7762220.138 | F120: 8077561.698 | G120: 6847557.057 | H120: 6958646.169 | I120: 7071133.137 | J120: 7169824.946 | K120: 7260192.118
B121: PUBLIC LIGHTING BY: Asset type ; Lighting obligation | C121: Luminaires ; Major Road | E121: 0 | F121: 0 | G121: 0 | H121: 0 | I121: 0 | J121: 0 | K121: 0
C122: Luminaires ; Minor Road | E122: 0 | F122: 0 | G122: 0 | H122: 0 | I122: 0 | J122: 0 | K122: 0
C123: Brackets ; Major Road | E123: 0 | F123: 0 | G123: 0 | H123: 0 | I123: 0 | J123: 0 | K123: 0
C124: Brackets ; Minor Road | E124: 0 | F124: 0 | G124: 0 | H124: 0 | I124: 0 | J124: 0 | K124: 0
C125: Lamps ; Major Road | E125: 0 | F125: 0 | G125: 0 | H125: 0 | I125: 0 | J125: 0 | K125: 0
C126: Lamps ; Minor Road | E126: 0 | F126: 0 | G126: 0 | H126: 0 | I126: 0 | J126: 0 | K126: 0
C127: Poles / Columns ; Major Road | E127: 95459.65868 | F127: 96569.65472 | G127: 99232.399 | H127: 102125.719 | I127: 105084.3124 | J127: 107880.5362 | K127: 110590.2079
C128: Poles / Columns ; Minor Road | E128: 88750.79691 | F128: 99844.64652 | G128: 112702.0114 | H128: 126153.3111 | I128: 140035.2825 | J128: 154030.209 | K128: 168196.8009
C129: Other | E129: 0 | F129: 0 | G129: 0 | H129: 0 | I129: 0 | J129: 0 | K129: 0
B130: SCADA, NETWORK CONTROL AND PROTECTION SYSTEMS BY: Function | C130: Field Devices | E130: 2762460.71 | F130: 3857020.614 | G130: 4633164.136 | H130: 4687736.452 | I130: 4742532.319 | J130: 4870892.797 | K130: 4938962.34
C131: Local Network Wiring Assets | E131: 0 | F131: 0 | G131: 0 | H131: 0 | I131: 0 | J131: 0 | K131: 0
C132: Communications Network Assets | E132: 0 | F132: 0 | G132: 0 | H132: 0 | I132: 0 | J132: 0 | K132: 0
C133: Master Station Assets | E133: 0 | F133: 0 | G133: 0 | H133: 0 | I133: 0 | J133: 0 | K133: 0
C134: Communications Site Infrastructure | E134: 0 | F134: 0 | G134: 0 | H134: 0 | I134: 0 | J134: 0 | K134: 0
C135: Communications Linear Assets | E135: 0 | F135: 0 | G135: 0 | H135: 0 | I135: 0 | J135: 0 | K135: 0
C136: AFLC | E136: 0 | F136: 0 | G136: 0 | H136: 0 | I136: 0 | J136: 0 | K136: 0
C137: Other | E137: 0 | F137: 0 | G137: 0 | H137: 0 | I137: 0 | J137: 0 | K137: 0
B138: OTHER BY: enter DNSP defined asset group here | C138: RECOVERABLE WORK - FAULTS | E138: 0 | F138: 0 | G138: 0 | H138: 0 | I138: 0 | J138: 0 | K138: 0
C139: MAJOR ZONE SUBSTATION REPLACEMENT WORKS | E139: 413407.4575 | F139: 308887.9323 | G139: 313798.1177 | H139: 233107.6632 | I139: 149472.5568 | J139: 151763.6594 | K139: 153884.5196
C140: PLANT AND STATIONS MISCELLANEOUS | E140: 3023933.871 | F140: 2896930.522 | G140: 2899837.599 | H140: 2923629.689 | I140: 2891791.155 | J140: 2936116.284 | K140: 2977147.795
C141: Environmental related expenditure | E141: 620250.6123 | F141: 1344745.025 | G141: 10661446.49 | H141: 13154912.31 | I141: 9663208.755 | J141: 10296709.51 | K141: 6224409.605
C142: VBRC ACR's | E142: 5970042.448 | F142: 0 | G142: 0 | H142: 0 | I142: 0 | J142: 0 | K142: 0
C143: BUSHFIRE MITIGATION RELATED REPLACEMENT EXPENDITURE | E143: 2284458.961 | F143: 3678415.258 | G143: 13479007.06 | H143: 9082643.222 | I143: 4787283.38 | J143: 4854156.782 | K143: 4917486.195
B182: ASSET REPLACEMENTS
E183: VOLUMES (0's)
B184: ASSET GROUP | C184: ASSET CATEGORY | E184: =CRCP_y4 -> 2019-20 | F184: =CRCP_y5 -> 2020-21 | G184: =FRCP_y1 -> 2021-22 | H184: =FRCP_y2 -> 2022-23 | I184: =FRCP_y3 -> 2023-24 | J184: =FRCP_y4 -> 2024-25 | K184: =FRCP_y5 -> 2025-26
B185: POLES BY: HIGHEST OPERATING VOLTAGE ; MATERIAL TYPE | C185: Staking of a wooden pole | E185: 0 | F185: 0 | G185: 0 | H185: 0 | I185: 0 | J185: 0 | K185: 0
C186: ˂ = 1 kV; Wood | E186: 646.1079411 | F186: 524.1964493 | G186: 1462.366667 | H186: 1464.283333 | I186: 1466.2 | J186: 1468.116667 | K186: 1470.033333
C187: > 1 kV & < = 11 kV; Wood | E187: 3.789309558 | F187: 2.823036037 | G187: 2.6 | H187: 2.6 | I187: 2.6 | J187: 2.6 | K187: 2.6
C188: ˃ 11 kV & < = 22 kV; Wood | E188: 1957.141476 | F188: 1648.389411 | G188: 2658.3 | H188: 2665.8 | I188: 2673.3 | J188: 2680.8 | K188: 2688.3
C189: > 22 kV & < = 66 kV; Wood | E189: 110.8894513 | F189: 88.07826426 | G189: 202.5 | H189: 202.5 | I189: 202.5 | J189: 202.5 | K189: 202.5
C190: > 66 kV & < = 132 kV; Wood | E190: 0 | F190: 0 | G190: 0 | H190: 0 | I190: 0 | J190: 0 | K190: 0
C191: > 132 kV; Wood | E191: 0 | F191: 0 | G191: 0 | H191: 0 | I191: 0 | J191: 0 | K191: 0
C192: ˂ = 1 kV; Concrete | E192: 21.45833333 | F192: 21.875 | G192: 22.29166667 | H192: 22.70833333 | I192: 23.125 | J192: 23.54166667 | K192: 23.95833333
C193: > 1 kV & < = 11 kV; Concrete | E193: 0 | F193: 0 | G193: 0 | H193: 0 | I193: 0 | J193: 0 | K193: 0
C194: ˃ 11 kV & < = 22 kV; Concrete | E194: 133.25 | F194: 140 | G194: 146.75 | H194: 153.5 | I194: 160.25 | J194: 167 | K194: 173.75
C195: > 22 kV & < = 66 kV; Concrete | E195: 10.83333333 | F195: 11 | G195: 11.16666667 | H195: 11.33333333 | I195: 11.5 | J195: 11.66666667 | K195: 11.83333333
C196: > 66 kV & < = 132 kV; Concrete | E196: 0 | F196: 0 | G196: 0 | H196: 0 | I196: 0 | J196: 0 | K196: 0
C197: > 132 kV; Concrete | E197: 0 | F197: 0 | G197: 0 | H197: 0 | I197: 0 | J197: 0 | K197: 0
C198: ˂ = 1 kV; Steel | E198: 3.25 | F198: 3.25 | G198: 3.25 | H198: 3.25 | I198: 3.25 | J198: 3.25 | K198: 3.25
C199: > 1 kV & < = 11 kV; Steel | E199: 0 | F199: 0 | G199: 0 | H199: 0 | I199: 0 | J199: 0 | K199: 0
C200: ˃ 11 kV & < = 22 kV; Steel | E200: 0 | F200: 0 | G200: 0 | H200: 0 | I200: 0 | J200: 0 | K200: 0
C201: > 22 kV & < = 66 kV; Steel | E201: 0 | F201: 0 | G201: 0 | H201: 0 | I201: 0 | J201: 0 | K201: 0
C202: > 66 kV & < = 132 kV; Steel | E202: 0 | F202: 0 | G202: 0 | H202: 0 | I202: 0 | J202: 0 | K202: 0
C203: > 132 kV; Steel | E203: 0 | F203: 0 | G203: 0 | H203: 0 | I203: 0 | J203: 0 | K203: 0
C204: Other | E204: 15 | F204: 15 | G204: 15 | H204: 15 | I204: 15 | J204: 15 | K204: 15
B205: POLE TOP STRUCTURES BY: HIGHEST OPERATING VOLTAGE | C205: ˂ = 1 kV | E205: 2631 | F205: 2659.986578 | G205: 2525.15 | H205: 2531.4 | I205: 2537.65 | J205: 2543.9 | K205: 2550.15
C206: > 1 kV & < = 11 kV | E206: 0.1931859634 | F206: 0.1979741304 | G206: -1.376574013 | H206: -1.376574013 | I206: -1.376574013 | J206: -1.376574013 | K206: -1.376574013
C207: ˃ 11 kV & < = 22 kV | E207: 2546.047502 | F207: 2600.78708 | G207: 2766.302389 | H207: 2762.469056 | I207: 2758.635722 | J207: 2754.802389 | K207: 2750.969056
C208: > 22 kV & < = 66 kV | E208: 295.092645 | F208: 301.3963516 | G208: 316.1408517 | H208: 315.3908517 | I208: 314.6408517 | J208: 313.8908517 | K208: 313.1408517
C209: > 66 kV & < = 132 kV | E209: 0 | F209: 0 | G209: 0 | H209: 0 | I209: 0 | J209: 0 | K209: 0
C210: > 132 kV | E210: 0 | F210: 0 | G210: 0 | H210: 0 | I210: 0 | J210: 0 | K210: 0
C211: Other | E211: 0 | F211: 0 | G211: 0 | H211: 0 | I211: 0 | J211: 0 | K211: 0
B212: STAKING WOODEN POLES BY: HIGHEST OPERATING VOLTAGE | C212: ˂ = 1 Kv | E212: 0 | F212: 0 | G212: 0 | H212: 0 | I212: 0 | J212: 0 | K212: 0
C213: > 1 kV & < = 11 kV | E213: 0 | F213: 0 | G213: 0 | H213: 0 | I213: 0 | J213: 0 | K213: 0
C214: ˃ 11 kV & < = 22 kV | E214: 1367.002398 | F214: 1477.658429 | G214: 3778.4 | H214: 3778.4 | I214: 3778.4 | J214: 3778.4 | K214: 3778.4
C215: > 22 kV & < = 66 kV | E215: 0 | F215: 0 | G215: 0 | H215: 0 | I215: 0 | J215: 0 | K215: 0
C216: > 66 kV & < = 132 kV | E216: 0 | F216: 0 | G216: 0 | H216: 0 | I216: 0 | J216: 0 | K216: 0
C217: > 132 kV | E217: 0 | F217: 0 | G217: 0 | H217: 0 | I217: 0 | J217: 0 | K217: 0
B218: OVERHEAD CONDUCTORS BY: Highest operating voltage; Number of phases (at HV) | C218: ˂ = 1 kV | E218: 13.91819766 | F218: 13.91819766 | G218: 13.91819766 | H218: 13.91819766 | I218: 13.91819766 | J218: 13.91819766 | K218: 13.91819766
C219: > 1 kV & < = 11 kV | E219: 0.07948605797 | F219: 0.07948605797 | G219: 0.07948605797 | H219: 0.07948605797 | I219: 0.07948605797 | J219: 0.07948605797 | K219: 0.07948605797
C220: ˃ 11 kV & < = 22 kV ; SWER | E220: 31.13717375 | F220: 31.13717375 | G220: 31.13717375 | H220: 31.13717375 | I220: 31.13717375 | J220: 31.13717375 | K220: 31.13717375
C221: ˃ 11 kV & < = 22 kV ; Single-Phase | E221: 0 | F221: 0 | G221: 0 | H221: 0 | I221: 0 | J221: 0 | K221: 0
C222: ˃ 11 kV & < = 22 kV ; Multiple-Phase | E222: 50.1776448 | F222: 50.1776448 | G222: 50.1776448 | H222: 50.1776448 | I222: 50.1776448 | J222: 50.1776448 | K222: 50.1776448
C223: > 22 kV & < = 66 kV | E223: 4.655674244 | F223: 4.655674244 | G223: 4.655674244 | H223: 4.655674244 | I223: 4.655674244 | J223: 4.655674244 | K223: 4.655674244
C224: > 66 kV & < = 132 kV | E224: 0 | F224: 0 | G224: 0 | H224: 0 | I224: 0 | J224: 0 | K224: 0
C225: > 132 kV | E225: 0 | F225: 0 | G225: 0 | H225: 0 | I225: 0 | J225: 0 | K225: 0
C226: Other | E226: 0.03182348573 | F226: 0.03182348573 | G226: 0.03182348573 | H226: 0.03182348573 | I226: 0.03182348573 | J226: 0.03182348573 | K226: 0.03182348573
B227: UNDERGROUND CABLES BY: Highest operating voltage | C227: ˂ = 1 kV | E227: 1 | F227: 1 | G227: 1 | H227: 1 | I227: 1 | J227: 1 | K227: 1
C228: > 1 kV & < = 11 kV | E228: 0 | F228: 0 | G228: 0 | H228: 0 | I228: 0 | J228: 0 | K228: 0
C229: > 11 kV & < = 22 kV | E229: 2.5 | F229: 1.5 | G229: 1 | H229: 1 | I229: 1 | J229: 1 | K229: 1.5
C230: > 22 kV & < = 33 kV | E230: 0 | F230: 0 | G230: 0 | H230: 0 | I230: 0 | J230: 0 | K230: 0
C231: > 33 kV & < = 66 kV | E231: 0 | F231: 0 | G231: 0 | H231: 0 | I231: 0 | J231: 0 | K231: 0
C232: > 66 kV & < = 132 kV | E232: 0 | F232: 0 | G232: 0 | H232: 0 | I232: 0 | J232: 0 | K232: 0
C233: > 132 kV | E233: 0 | F233: 0 | G233: 0 | H233: 0 | I233: 0 | J233: 0 | K233: 0
C234: Other | E234: 0 | F234: 0 | G234: 0 | H234: 0 | I234: 0 | J234: 0 | K234: 0
B235: SERVICE LINES BY: Connection voltage; Customer type; Connection complexity | C235: ˂ = 11 kV ; Residential ; Simple Type | E235: 155.0965093 | F235: 156.0419292 | G235: 153.7530593 | H235: 155.6130593 | I235: 157.4730593 | J235: 159.3330593 | K235: 161.1930593
C236: ˂ = 11 kV ; Commercial & Industrial ; Simple Type | E236: 0 | F236: 0 | G236: 0 | H236: 0 | I236: 0 | J236: 0 | K236: 0
C237: ˂ = 11 kV ; Residential ; Complex Type | E237: 0 | F237: 0 | G237: 0 | H237: 0 | I237: 0 | J237: 0 | K237: 0
C238: ˂ = 11 kV ; Commercial & Industrial ; Complex Type | E238: 0 | F238: 0 | G238: 0 | H238: 0 | I238: 0 | J238: 0 | K238: 0
C239: ˂ = 11 kV ; Subdivision ; Complex Type | E239: 0 | F239: 0 | G239: 0 | H239: 0 | I239: 0 | J239: 0 | K239: 0
C240: > 11 kV & < = 22 kV ; Commercial & Industrial | E240: 0 | F240: 0 | G240: 0 | H240: 0 | I240: 0 | J240: 0 | K240: 0
... 215 more rows

Sheet 2.3 Augex (a)
B1: =INDEX(dms_Worksheet_List,MATCH(dms_Model,dms_Model_List)) -> REGULATORY REPORTING STATEMENT
B2: =INDEX(dms_TradingNameFull_List,MATCH(dms_TradingName,dms_TradingName_List)) -> Powercor Australia
B3: =dms_Header_Span -> 2021-22 to 2025-26
B4: 2.3 AUGEX PROJECT DATA
B6: There are TWO tables on this worksheet - each has been 'grouped' (and sub-grouped) for easy navigation. Both ROWS and COLUMNS have been grouped. See the Instructions sheet on how to group or ungroup tables.
B9: 2.3.1 - AUGEX ASSET DATA - SUBTRANSMISSION SUBSTATIONS, SWITCHING STATIONS AND ZONE SUBSTATIONS
B10: PROJECT DESCRIPTION AND CHANGES | L10: PLANT AND EQUIPMENT EXPENDITURE AND VOLUME | X10: OTHER EXPENDITURE | Z10: TOTAL DIRECT EXPENDITURE ($0's) | AA10: YEARS INCURRED | AB10: ALL RELATED PARTY CONTRACTS | AD10: ALL NON-RELATED PARTY CONTRACTS | AE10: LAND AND EASEMENTS
B11: SUBSTATION ID | C11: SUBSTATION TYPE (drop down) | D11: PROJECT ID | E11: PROJECT TYPE (drop down) | F11: PROJECT TRIGGER (drop down) | G11: VOLTAGE (KV) | H11: SUBSTATION RATING NORMAL CYCLIC (MVA) | J11: SUBSTATION RATING N-1 EMERGENCY (MVA) | L11: TRANSFORMERS | O11: SWITCHGEAR | R11: CAPACITORS | U11: OTHER PLANT ITEM | V11: INSTALLATION (LABOUR) | X11: CIVIL WORKS | Y11: OTHER DIRECT | AB11: RELATED PARTY MARGINS | AC11: TOTAL | AE11: LAND PURCHASE | AF11: EASEMENTS
H12: PRE | I12: POST | J12: PRE | K12: POST | L12: UNITS ADDED | M12: MVA ADDED | N12: =CONCATENATE("EXPENDITURE ($0's, real ", dms_DollarReal,")") -> EXPENDITURE ($0's, real June 2021) | O12: UNITS ADDED | Q12: =CONCATENATE("EXPENDITURE ($0's, real ", dms_DollarReal,")") -> EXPENDITURE ($0's, real June 2021) | R12: MVAR ADDED | T12: =CONCATENATE("EXPENDITURE ($0's, real ", dms_DollarReal,")") -> EXPENDITURE ($0's, real June 2021) | U12: =CONCATENATE("EXPENDITURE ($0's, real ", dms_DollarReal,")") -> EXPENDITURE ($0's, real June 2021) | V12: VOLUME | W12: =CONCATENATE("EXPENDITURE ($0's, real ", dms_DollarReal,")") -> EXPENDITURE ($0's, real June 2021) | X12: =CONCATENATE("EXPENDITURE ($0's, real ", dms_DollarReal,")") -> EXPENDITURE ($0's, real June 2021) | AB12: =CONCATENATE("EXPENDITURE ($0's, real ", dms_DollarReal,")") -> EXPENDITURE ($0's, real June 2021) | AE12: =CONCATENATE("EXPENDITURE ($0's, real ", dms_DollarReal,")") -> EXPENDITURE ($0's, real June 2021)
B13: TQY | C13: Zone Substation | D13: Surf coast supply area (inc TQY REFCL and WPD works to connect TQY, Excluding Subtranssmission lines) | E13: New substation establishment | F13: Safety | G13: 66/22 | H13: 0 | I13: 66 | J13: 0 | K13: 33 | L13: 2 | M13: 66 | N13: 2502244.937 | O13: 8 | Q13: 3223400.141 | R13: 0 | T13: 0 | U13: 6142889.15 | V13: 26368.39239 | W13: 3568056.807 | X13: 2887747.309 | Y13: 18601214.01 | Z13: 41207476 | AA13: 2021-2023 | AB13: 0 | AC13: 0 | AD13: 36846178.52 | AE13: 1284500.451 | AF13: 0
B14: BMH | C14: Zone Substation | D14: Bacchus Marsh Supply area | E14: Substation upgrade - capacity | F14: Demand growth | G14: 66/22 | H14: 27 | I14: 60 | J14: 13.5 | K14: 27 | L14: 1 | M14: 33 | N14: 1314920 | O14: 4 | Q14: 973107.2 | R14: 0 | T14: 0 | U14: 1706000 | V14: 14637.35991 | W14: 2117509.8 | X14: 1000000 | Y14: 600000 | Z14: 7711537 | AA14: 2021-2023 | AB14: 0 | AC14: 0 | AD14: 5594027.2 | AE14: 0 | AF14: 0
B15: TRT | C15: Zone Substation | D15: Tarneit Supply area (Excluding subtransmission lines) | E15: New substation establishment | F15: Demand growth | G15: 66/22 | H15: 0 | I15: 66 | J15: 0 | K15: 33 | L15: 2 | M15: 66 | N15: 2487134.161 | O15: 11 | Q15: 2758693.417 | R15: 12 | T15: 870077.0497 | U15: 1613425.486 | V15: 20737.60402 | W15: 2837207.771 | X15: 2870308.528 | Y15: 4350385.248 | Z15: 17787231.66 | AA15: 2022-2026 | AB15: 0 | AC15: 0 | AD15: 16714835.81 | AE15: 945735.9235 | AF15: 0
B16: WPD | C16: Zone Substation | D16: WPD REFCL only works | E16: Other | F16: Safety | G16: 66/22 | H16: 79.5 | I16: 79.5 | J16: 60.6 | K16: 60.6 | L16: 0 | M16: 0 | N16: 0 | O16: 0 | Q16: 0 | R16: 0 | T16: 0 | U16: 8875954.479 | V16: 29093.16519 | W16: 4390447.31 | X16: 2341571.899 | Y16: 22888865.31 | Z16: 38496839 | AA16: 2021-2023 | AB16: 0 | AC16: 0 | AD16: 24881741.38 | AE16: 1580561.032 | AF16: 0
B17: BAW | C17: Zone Substation | D17: Ballarat West Zone substation (Excluding subtransmission lines) | E17: New substation establishment | F17: Safety | G17: 66/22 | H17: 0 | I17: 66 | J17: 0 | K17: 33 | L17: 2 | M17: 66 | N17: 2654996.655 | O17: 11 | Q17: 2944884.08 | R17: 6 | T17: 464400.291 | U17: 6013104.235 | V17: 34562.67336 | W17: 5047829.25 | X17: 3064032.355 | Y17: 4492497.868 | Z17: 24681744.73 | AA17: 2021-2024 | AB17: 0 | AC17: 0 | AD17: 19633915.48 | AE17: 858130.9726 | AF17: 0
B18: WND | C18: Zone Substation | D18: WND new transformer and REFCL | E18: Other | F18: Safety | G18: 66/22 | H18: 66 | I18: 99 | J18: 37.5 | K18: 70.5 | L18: 1 | M18: 33 | N18: 1601273.304 | O18: 5 | Q18: 1471679.327 | R18: 0 | T18: 0 | U18: 3626604.676 | V18: 12155.61831 | W18: 2131101.726 | X18: 0 | Y18: 487108.966 | Z18: 9317768 | AA18: 2022-2026 | AB18: 0 | AC18: 0 | AD18: 7186666.274 | AE18: 0 | AF18: 0
B19: WIN | C19: Zone Substation | D19: WIN new transformer and REFCL | E19: Other | F19: Safety | G19: 66/22 | H19: 13.5 | I19: 27 | J19: 7 | K19: 13.5 | L19: 1 | M19: 33 | N19: 1554158.842 | O19: 4 | Q19: 1150156.024 | R19: 0 | T19: 0 | U19: 3519898.64 | V19: 12155.61831 | W19: 2068398.057 | X19: 0 | Y19: 295485.4368 | Z19: 8588097 | AA19: 2022-2024 | AB19: 0 | AC19: 0 | AD19: 6519698.943 | AE19: 0 | AF19: 0
B20: EHK | C20: Zone Substation | D20: EHK new transformer and REFCL | E20: Other | F20: Safety | G20: 66/22 | H20: 54 | I20: 87 | J20: 38.6 | K20: 71.6 | L20: 1 | M20: 33 | N20: 1449301.781 | O20: 4 | Q20: 1072556.504 | R20: 0 | T20: 0 | U20: 3282415.69 | V20: 12155.61831 | W20: 1928845.95 | X20: 0 | Y20: 440879.0744 | Z20: 8173999 | AA20: 2023-2025 | AB20: 0 | AC20: 0 | AD20: 6245153.05 | AE20: 0 | AF20: 0
Z22: =IF(SUM(N22,Q22,T22,U22,W22,X22,Y22)<>0,SUM(N22,Q22,T22,U22,W22,X22,Y22),"") -> 
D65: Non material projects - [forecast] | Z65: 24528439.1 | AA65: 2021-25 | AE65: 9826792.029
B68: 2.3.2 - AUGEX ASSET DATA - SUBTRANSMISSION LINES
B69: PROJECT DESCRIPTION AND CHANGES | L69: PLANT AND EQUIPMENT EXPENDITURE AND VOLUME | X69: OTHER EXPENDITURE | Z69: TOTAL DIRECT EXPENDITURE ($0's) | AA69: YEARS INCURRED | AB69: ALL RELATED PARTY CONTRACTS | AD69: ALL NON RELATED PARTY CONTRACTS | AE69: LAND AND EASEMENTS
B70: LINE ID | D70: PROJECT ID | E70: PROJECT TYPE (drop down) | F70: PROJECT TRIGGER (drop down) | G70: VOLTAGE (KV) (drop down) | H70: ROUTE LINE LENGTH ADDED | L70: POLES/TOWERS (INCLUDING STRUCTURES, AND CIVIL WORKS) | O70: OVERHEAD LINES | R70: UNDERGROUND CABLES | U70: OTHER PLANT ITEM | V70: INSTALLATION (LABOUR) | X70: CIVIL WORKS | Y70: OTHER DIRECT | AB70: RELATED PARTY MARGINS | AC70: TOTAL | AE70: LAND PURCHASE | AF70: EASEMENTS
H71: KM ADDED | L71: POLES/TOWERS ADDED | M71: POLES/TOWERS UPGRADED | N71: =CONCATENATE("EXPENDITURE ($0's, real ", dms_DollarReal,")") -> EXPENDITURE ($0's, real June 2021) | O71: CIRCUIT KM ADDED | P71: CIRCUIT KM UPGRADED | Q71: =CONCATENATE("EXPENDITURE ($0's, real ", dms_DollarReal,")") -> EXPENDITURE ($0's, real June 2021) | R71: CIRCUIT KM ADDED | S71: CIRCUIT KM UPGRADED | T71: =CONCATENATE("EXPENDITURE ($0's, real ", dms_DollarReal,")") -> EXPENDITURE ($0's, real June 2021) | U71: =CONCATENATE("EXPENDITURE ($0's, real ", dms_DollarReal,")") -> EXPENDITURE ($0's, real June 2021) | V71: VOLUME | W71: =CONCATENATE("EXPENDITURE ($0's, real ", dms_DollarReal,")") -> EXPENDITURE ($0's, real June 2021) | X71: =CONCATENATE("EXPENDITURE ($0's, real ", dms_DollarReal,")") -> EXPENDITURE ($0's, real June 2021) | AB71: =CONCATENATE("EXPENDITURE ($0's, real ", dms_DollarReal,")") -> EXPENDITURE ($0's, real June 2021) | AE71: =CONCATENATE("EXPENDITURE ($0's, real ", dms_DollarReal,")") -> EXPENDITURE ($0's, real June 2021)
B72: WPD-TQY1 | D72: Surf coast supply area (Subtranssmission lines only) | F72: Safety | G72: 66 | H72: 14.25 | I72: 0 | J72: 0 | K72: 0 | L72: 186 | M72: 0 | N72: 1027697.412 | O72: 14.25 | P72: 0 | Q72: 234699.6407 | R72: 0 | S72: 0 | T72: 0 | U72: 0 | V72: 6489.662167 | W72: 878153.0147 | X72: 0 | Y72: 0 | Z72: 2140550.067 | AA72: 2021-2023 | AB72: 0 | AC72: 0 | AD72: 1262397.052 | AE72: 0 | AF72: 0
B73: WPD-TQY2 | D73: Surf coast supply area (Subtranssmission lines only) | F73: Safety | G73: 66 | H73: 14.3 | I73: 0 | J73: 0 | K73: 0 | L73: 186 | M73: 0 | N73: 1027697.412 | O73: 14.3 | P73: 0 | Q73: 235523.1482 | R73: 0 | S73: 0 | T73: 0 | U73: 0 | V73: 6489.662167 | W73: 878153.0147 | X73: 0 | Y73: 0 | Z73: 2141373.574 | AA73: 2021-2023 | AB73: 0 | AC73: 0 | AD73: 1263220.56 | AE73: 0 | AF73: 0
B74: TNA-TRT | D74: Tarneit Supply area (Subtransmission lines only) | F74: Demand growth | G74: 66 | H74: 8.9 | I74: 0 | J74: 0 | K74: 0 | L74: 116 | M74: 0 | N74: 637059.0669 | O74: 8.9 | P74: 0 | Q74: 145699.1306 | R74: 0 | S74: 0 | T74: 0 | U74: 0 | V74: 3978.799657 | W74: 544358.0317 | X74: 0 | Y74: 0 | Z74: 1327116.229 | AA74: 2022-2026 | AB74: 0 | AC74: 0 | AD74: 782758.1976 | AE74: 0 | AF74: 0
B75: DPTS-TRT | D75: Tarneit Supply area (Subtransmission lines only) | F75: Demand growth | G75: 66 | H75: 9.9 | I75: 0 | J75: 0 | K75: 0 | L75: 129 | M75: 0 | N75: 708453.6175 | O75: 9.9 | P75: 0 | Q75: 162069.8195 | R75: 0 | S75: 0 | T75: 0 | U75: 0 | V75: 4424.699618 | W75: 605363.6732 | X75: 0 | Y75: 0 | Z75: 1475887.11 | AA75: 2022-2026 | AB75: 0 | AC75: 0 | AD75: 870523.437 | AE75: 0 | AF75: 0
B76: BAS-BAW1 | D76: Ballarat West Zone substation (Subtransmission lines only) | F76: Safety | G76: 66 | H76: 19.02 | I76: 0 | J76: 0 | K76: 0 | L76: 248 | M76: 0 | N76: 1453912.125 | O76: 19.02 | P76: 0 | Q76: 332385.6241 | R76: 0 | S76: 0 | T76: 0 | U76: 0 | V76: 8506.399266 | W76: 1242347.506 | X76: 0 | Y76: 0 | Z76: 3028645.255 | AA76: 2021-2024 | AB76: 0 | AC76: 0 | AD76: 1786297.749 | AE76: 0 | AF76: 0
B77: BAS-BAW2 | D77: Ballarat West Zone substation (Subtransmission lines only) | F77: Safety | G77: 66 | H77: 19.03 | I77: 0 | J77: 0 | K77: 0 | L77: 248 | M77: 0 | N77: 1453912.125 | O77: 19.03 | P77: 0 | Q77: 332560.38 | R77: 0 | S77: 0 | T77: 0 | U77: 0 | V77: 8506.399266 | W77: 1242347.506 | X77: 0 | Y77: 0 | Z77: 3028820.011 | AA77: 2021-2024 | AB77: 0 | AC77: 0 | AD77: 1786472.505 | AE77: 0 | AF77: 0
Z78: =IF(SUM(N78,Q78,T78,U78,W78,X78,Y78)<>0,SUM(N78,Q78,T78,U78,W78,X78,Y78),"") -> 
D126: Non material projects - [forecast] | Z126: 850045.6459 | AA126: 2024-25

Sheet 2.3 Augex (b)
B1: =INDEX(dms_Worksheet_List,MATCH(dms_Model,dms_Model_List)) -> REGULATORY REPORTING STATEMENT
B2: =INDEX(dms_TradingNameFull_List,MATCH(dms_TradingName,dms_TradingName_List)) -> Powercor Australia
B3: =dms_Header_Span -> 2021-22 to 2025-26
B4: 2.3 AUGEX PROJECT DATA
B6: There are FOUR tables on this worksheet. These tables have been 'grouped' (and sub-grouped) for easy navigation. See the Instructions sheet on how to group or ungroup tables.
B8: NOTE: DNSP must provide expenditure information on an 'as incurred' basis.
B9: 2.3.3 - AUGEX DATA - HV/LV FEEDERS AND DISTRIBUTION SUBSTATIONS
B10: PROJECT TYPE | C10: Units | D10: VOLUMES (0's)
D11: =CRCP_y4 -> 2019-20 | E11: =CRCP_y5 -> 2020-21 | F11: =FRCP_y1 -> 2021-22 | G11: =FRCP_y2 -> 2022-23 | H11: =FRCP_y3 -> 2023-24 | I11: =FRCP_y4 -> 2024-25 | J11: =FRCP_y5 -> 2025-26
B12: DESCRIPTOR METRICS - UNITS ADDED
B13: HV Feeder Augmentations - Overhead Lines | C13: Circuit Line Length in KM | D13: 8.75 | E13: 9.083333333 | F13: 9.416666667 | G13: 9.75 | H13: 10.08333333 | I13: 10.41666667 | J13: 10.75
B14: HV Feeder Augmentations - Underground Cables | C14: Circuit Line Length in KM | D14: 0 | E14: 0 | F14: 0 | G14: 0 | H14: 0 | I14: 0 | J14: 0
B15: LV Feeder Augmentations - Overhead Lines | C15: Circuit Line Length in KM | D15: 0 | E15: 0 | F15: 0 | G15: 0 | H15: 0 | I15: 0 | J15: 0
B16: LV Feeder Augmentations - Underground Cables | C16: Circuit Line Length in KM | D16: 0 | E16: 0 | F16: 0 | G16: 0 | H16: 0 | I16: 0 | J16: 0
B17: Distribution Substation Augmentations - Pole Mounted | C17: Number | D17: 11 | E17: 11.5 | F17: 12 | G17: 12.5 | H17: 13 | I17: 13.5 | J17: 14
B18: Distribution Substation Augmentations - Ground Mounted | C18: Number | D18: 0 | E18: 0 | F18: 0 | G18: 0 | H18: 0 | I18: 0 | J18: 0
B19: Distribution Substation Augmentations - Indoor | C19: Number | D19: 0 | E19: 0 | F19: 0 | G19: 0 | H19: 0 | I19: 0 | J19: 0
B20: DESCRIPTOR METRICS - UNITS UPGRADED
B21: HV Feeder Augmentations - Overhead Lines | C21: Circuit Line Length in KM | D21: 1.892857143 | E21: 1.702380952 | F21: 1.511904762 | G21: 1.321428571 | H21: 1.130952381 | I21: 0.9404761905 | J21: 0.75
B22: HV Feeder Augmentations - Underground Cables | C22: Circuit Line Length in KM | D22: 0 | E22: 0 | F22: 0 | G22: 0 | H22: 0 | I22: 0 | J22: 0
B23: LV Feeder Augmentations - Overhead Lines | C23: Circuit Line Length in KM | D23: 0 | E23: 0 | F23: 0 | G23: 0 | H23: 0 | I23: 0 | J23: 0
B24: LV Feeder Augmentations - Underground Cables | C24: Circuit Line Length in KM | D24: 0 | E24: 0 | F24: 0 | G24: 0 | H24: 0 | I24: 0 | J24: 0
B25: Distribution Substation Augmentations - Pole Mounted | C25: Number | D25: 10.33333333 | E25: 9.833333333 | F25: 9.333333333 | G25: 8.833333333 | H25: 8.333333333 | I25: 7.833333333 | J25: 7.333333333
B26: Distribution Substation Augmentations - Ground Mounted | C26: Number | D26: 0 | E26: 0 | F26: 0 | G26: 0 | H26: 0 | I26: 0 | J26: 0
B27: Distribution Substation Augmentations - Indoor | C27: Number | D27: 0 | E27: 0 | F27: 0 | G27: 0 | H27: 0 | I27: 0 | J27: 0
B29: COST METRICS
B30: PROJECT TYPE | D30: =CONCATENATE("TOTAL DIRECT EXPENDITURE ($0's, real ", dms_DollarReal,")") -> TOTAL DIRECT EXPENDITURE ($0's, real June 2021)
D31: =CRCP_y4 -> 2019-20 | E31: =CRCP_y5 -> 2020-21 | F31: =FRCP_y1 -> 2021-22 | G31: =FRCP_y2 -> 2022-23 | H31: =FRCP_y3 -> 2023-24 | I31: =FRCP_y4 -> 2024-25 | J31: =FRCP_y5 -> 2025-26
B32: HV Feeder Augmentations - Overhead Lines | D32: 180099.5087 | E32: 740767.7436 | F32: 1121036.944 | G32: 873713.0392 | H32: 723703.0743 | I32: 787648.4371 | J32: 587021.4886
B33: HV Feeder Augmentations - Underground Cables | D33: 135089.9994 | E33: 555639.0172 | F33: 840873.3661 | G33: 655359.3332 | H33: 542839.0591 | I33: 590803.5377 | J33: 440316.2069
B34: HV Feeder Non-Material Projects | D34: 2395537.089 | E34: 9853089.644 | F34: 14911121.07 | G34: 11621419.77 | H34: 9626109.302 | I34: 10476658.48 | J34: 7808082.088
B35: LV Feeder Augmentations - Overhead Lines | D35: 87006.92799 | E35: 179131.9107 | F35: 1366596.369 | G35: 1407031.924 | H35: 1487576.622 | I35: 1433163.617 | J35: 1481891.842
B36: LV Feeder Augmentations - Underground Cables | D36: 32527.9144 | E36: 66969.2356 | F36: 510907.9329 | G36: 526024.9389 | H36: 556136.9209 | I36: 535794.3849 | J36: 554011.6415
B37: LV Feeder Non-Material Projects | D37: 340337.8636 | E37: 700695.6022 | F37: 5345602.925 | G37: 5503771.367 | H37: 5818831.456 | I37: 5605988.568 | J37: 5796594.77
B38: Distribution Substation Augmentations - Pole Mounted | D38: 380308.2471 | E38: 782987.5684 | F38: 5973407.886 | G38: 6150152.143 | H38: 6502213.912 | I38: 6264374.064 | J38: 6477365.677
B39: Distribution Substation Augmentations - Ground Mounted | D39: 77549.35904 | E39: 159660.4452 | F39: 1218048.665 | G39: 1254088.914 | H39: 1325878.481 | I39: 1277380.118 | J39: 1320811.632
B40: Distribution Substation Augmentations - Indoor | D40: 2015.099828 | E40: 4148.734945 | F40: 31650.67625 | G40: 32587.1727 | H40: 34452.60584 | I40: 33192.38853 | J40: 34320.94508
B45: 2.3.4 - AUGEX - TOTAL EXPENDITURE
D46: =CONCATENATE("TOTAL DIRECT EXPENDITURE ($0's, real ", dms_DollarReal,")") -> TOTAL DIRECT EXPENDITURE ($0's, real June 2021)
D47: =CRCP_y4 -> 2019-20 | E47: =CRCP_y5 -> 2020-21 | F47: =FRCP_y1 -> 2021-22 | G47: =FRCP_y2 -> 2022-23 | H47: =FRCP_y3 -> 2023-24 | I47: =FRCP_y4 -> 2024-25 | J47: =FRCP_y5 -> 2025-26
B48: Subtransmission Substations, Switching Stations, Zone Substations | D48: 683766.3599 | E48: 4045169.468 | F48: 24231274.79 | G48: 21985997.53 | H48: 12736857.5 | I48: 17018604.19 | J48: 10724842.79
B49: Subtransmission Lines | D49: 677681.6493 | E49: 2787374.101 | F49: 4218257.844 | G49: 3287623.035 | H49: 2723162.859 | I49: 2963777.613 | J49: 2208854.946
B50: HV Feeders | D50: 2710726.597 | E50: 11149496.41 | F50: 16873031.38 | G50: 13150492.14 | H50: 10892651.44 | I50: 11855110.45 | J50: 8835419.784
B51: HV Feeders - Land Purchases and Easements | D51: 0 | E51: 0 | F51: 0 | G51: 0 | H51: 0 | I51: 0 | J51: 0
B52: Distribution Substations | D52: 459872.706 | E52: 946796.7485 | F52: 7223107.227 | G52: 7436828.23 | H52: 7862544.999 | I52: 7574946.57 | J52: 7832498.254
B53: Distribution Substations - Land Purchases and Easements | D53: 0 | E53: 0 | F53: 0 | G53: 0 | H53: 0 | I53: 0 | J53: 0
B54: LV Feeders | D54: 459872.706 | E54: 946796.7485 | F54: 7223107.227 | G54: 7436828.23 | H54: 7862544.999 | I54: 7574946.57 | J54: 7832498.254
B55: LV Feeders - Land Purchases and Easements | D55: 0 | E55: 0 | F55: 0 | G55: 0 | H55: 0 | I55: 0 | J55: 0
B56: Other Assets | D56: 70112385 | E56: 122327273.1 | F56: 93127625.98 | G56: 81074959.65 | H56: 35949836.61 | I56: 15290084.74 | J56: 10233050.66
B60: 2.3.5 - AUGEX - BY DRIVER
D61: =CONCATENATE("TOTAL DIRECT EXPENDITURE ($0's, real ", dms_DollarReal,")") -> TOTAL DIRECT EXPENDITURE ($0's, real June 2021)
D62: =CRCP_y4 -> 2019-20 | E62: =CRCP_y5 -> 2020-21 | F62: =FRCP_y1 -> 2021-22 | G62: =FRCP_y2 -> 2022-23 | H62: =FRCP_y3 -> 2023-24 | I62: =FRCP_y4 -> 2024-25 | J62: =FRCP_y5 -> 2025-26
B63: "Greenfield" driven augex (network expansion capex) | D63: 4093374.415 | E63: 15900506.78 | F63: 25700574.74 | G63: 13324442.29 | H63: 10098662.83 | I63: 25373188.11 | J63: 23209150.7
B64: Reinforcement driven augex (augmentation of the existing network) | D64: 898545.6033 | E64: 3975126.694 | F64: 34068203.73 | G64: 39973326.88 | H64: 31979098.96 | I64: 21614197.28 | J64: 14224963.33
B68: 2.3.6 - AUGEX - GREENFIELDS DRIVEN
D69: =CONCATENATE("TOTAL DIRECT EXPENDITURE ($0's, real ", dms_DollarReal,")") -> TOTAL DIRECT EXPENDITURE ($0's, real June 2021)
D70: =CRCP_y4 -> 2019-20 | E70: =CRCP_y5 -> 2020-21 | F70: =FRCP_y1 -> 2021-22 | G70: =FRCP_y2 -> 2022-23 | H70: =FRCP_y3 -> 2023-24 | I70: =FRCP_y4 -> 2024-25 | J70: =FRCP_y5 -> 2025-26
B71: Subtransmission Substations, Switching Stations, Zone Substations | D71: 560688.4151 | E71: 3236135.574 | F71: 10419448.16 | G71: 5496499.383 | H71: 3056845.799 | I71: 9190046.263 | J71: 6649402.529
B72: Subtransmission Lines | D72: 555698.9524 | E72: 2229899.281 | F72: 1813850.873 | G72: 821905.7588 | H72: 653559.0861 | I72: 1600439.911 | J72: 1369490.067
B73: HV Feeders | D73: 2222795.81 | E73: 8919597.124 | F73: 7255403.492 | G73: 3287623.035 | H73: 2614236.344 | I73: 6401759.643 | J73: 5477960.266
B74: HV Feeders - Land Purchases and Easements | D74: 0 | E74: 0 | F74: 0 | G74: 0 | H74: 0 | I74: 0 | J74: 0
B75: Distribution Substations | D75: 377095.6189 | E75: 757437.3988 | F75: 3105936.108 | G75: 1859207.058 | H75: 1887010.8 | I75: 4090471.148 | J75: 4856148.917
B76: Distribution Substations - Land Purchases and Easements | D76: 0 | E76: 0 | F76: 0 | G76: 0 | H76: 0 | I76: 0 | J76: 0
B77: LV Feeders | D77: 377095.6189 | E77: 757437.3988 | F77: 3105936.108 | G77: 1859207.058 | H77: 1887010.8 | I77: 4090471.148 | J77: 4856148.917
B78: LV Feeders - Land Purchases and Easements | D78: 0 | E78: 0 | F78: 0 | G78: 0 | H78: 0 | I78: 0 | J78: 0
B79: Other Assets | D79: 0 | E79: 0 | F79: 0 | G79: 0 | H79: 0 | I79: 0 | J79: 0

Sheet 2.5 Connections
B1: =INDEX(dms_Worksheet_List,MATCH(dms_Model,dms_Model_List)) -> REGULATORY REPORTING STATEMENT
B2: =INDEX(dms_TradingNameFull_List,MATCH(dms_TradingName,dms_TradingName_List)) -> Powercor Australia
B3: =dms_Header_Span -> 2021-22 to 2025-26
B4: 2.5 CONNECTIONS
B6: There are THREE tables on this worksheet - each has been 'grouped' (and sub-grouped) for easy navigation. See the Instructions sheet on how to group or ungroup tables.
B8: 2.5.1 - DESCRIPTOR METRICS
B9: VOLUMES AND EXPENDITURE - ALL
B10: CONNECTION SUBCATEGORY | C10: DESCRIPTOR METRIC | D10: Unit of Measure | E10: =CONCATENATE("VOLUMES and EXPENDITURE (0's, real ", dms_DollarReal, ")") -> VOLUMES and EXPENDITURE (0's, real June 2021)
E11: =CRCP_y4 -> 2019-20 | F11: =CRCP_y5 -> 2020-21 | G11: =FRCP_y1 -> 2021-22 | H11: =FRCP_y2 -> 2022-23 | I11: =FRCP_y3 -> 2023-24 | J11: =FRCP_y4 -> 2024-25 | K11: =FRCP_y5 -> 2025-26
B12: RESIDENTIAL | C12: Underground connections | D12: 0's | E12: 14635.875 | F12: 14250.22006 | G12: 14270.92538 | H12: 14782.8035 | I12: 15233.05063 | J12: 15302.01211 | K12: 15492.67287
C13: Overhead connections | D13: 0's | E13: 407.875 | F13: 397.127504 | G13: 397.7045232 | H13: 411.9696278 | I13: 424.51719 | J13: 426.4390198 | K13: 431.7523855
C14: Distribution substations installed | D14: MVA added | E14: 60.02996123 | F14: 58.44817326 | G14: 58.53309741 | H14: 60.63259769 | I14: 62.47931463 | J14: 62.76216445 | K14: 63.54417152
C15: Distribution substations installed | D15: 0's | E15: 172.7574918 | F15: 168.2053363 | G15: 168.4497356 | H15: 174.4917918 | I15: 179.8063744 | J15: 180.6203751 | K15: 182.8708776
C16: Distribution substations installed | D16: total spend $0s | E16: 11958097.77 | F16: 11643002.2 | G16: 11659919.27 | H16: 12078144.25 | I16: 12446014.25 | J16: 12502358.55 | K16: 12658136.04
C17: Augmentation HV | D17: net circuit KM added | E17: 28.10898908 | F17: 27.36831793 | G17: 27.4080836 | H17: 28.3911732 | I17: 29.25589716 | J17: 29.3883414 | K17: 29.75451569
C18: Augmentation HV | D18: total spend $0s | E18: 9109577.99 | F18: 8869540.84 | G18: 8882428.123 | H18: 9201028.388 | I18: 9481268.649 | J18: 9524191.257 | K18: 9642861.239
C19: Augmentation LV | D19: net circuit KM added | E19: 86.86077814 | F19: 84.57199883 | G19: 84.69488042 | H19: 87.73276724 | I19: 90.40488741 | J19: 90.81415897 | K19: 91.94568965
C20: Augmentation LV | D20: total spend $0s | E20: 4175303.441 | F20: 4065284.301 | G20: 4071191.086 | H20: 4217219.012 | I20: 4345664.932 | J20: 4365338.171 | K20: 4419729.625
C21: Mean days to connect residential customer with LV single phase connection | D21: 0's | E21: 8.97 | F21: 8.733640726 | G21: 8.746330549 | H21: 9.060049184 | I21: 9.335995572 | J21: 9.378260515 | K21: 9.495112222
C22: Volume of GSL breaches for residential customers | D22: 0's | E22: 817.875 | F22: 796.3240144 | G22: 797.4810589 | H22: 826.0855883 | I22: 851.2460846 | J22: 855.0997568 | K22: 865.7541705
C23: Volume of customer complaints relating to connection services | D23: 0's | E23: 96.125 | F23: 93.59210868 | G23: 93.72809633 | H23: 97.08999196 | I23: 100.0471097 | J23: 100.5000326 | K23: 101.7522478
C24: GSL payments | D24: $0's | E24: 198856.8296 | F24: 193616.9572 | G24: 193898.2791 | H24: 200853.139 | I24: 206970.6221 | J24: 207907.5979 | K24: 210498.0951
B25: COMMERCIAL/INDUSTRIAL | C25: Underground connections | D25: 0's | E25: 1548.875 | F25: 1545.517591 | G25: 1525.531526 | H25: 1578.964136 | I25: 1545.026321 | J25: 1558.942941 | K25: 1591.858696
C26: Overhead connections | D26: 0's | E26: 601.625 | F26: 600.3208914 | G26: 592.5577624 | H26: 613.3124353 | I26: 600.1300689 | J26: 605.535661 | K26: 618.3210317
C27: Distribution substations installed | D27: MVA added | E27: 103.1693754 | F27: 102.945741 | G27: 101.6144845 | H27: 105.1735897 | I27: 102.9130179 | J27: 103.8399933 | K27: 106.0324865
C28: Distribution substations installed | D28: 0's | E28: 320.2061306 | F28: 319.5120379 | G28: 315.3802257 | H28: 326.4265976 | I28: 319.4104754 | J28: 322.2875229 | K28: 329.0923499
C29: Distribution substations installed | D29: total spend $0s | E29: 11681861.35 | F29: 11656539.24 | G29: 11505801.16 | H29: 11908798.4 | I29: 11652834.01 | J29: 11757795.36 | K29: 12006051.22
C30: Augmentation HV | D30: net circuit KM added | E30: 90.72116028 | F30: 90.52450914 | G30: 89.35387947 | H30: 92.48354996 | I30: 90.49573434 | J30: 91.31086267 | K30: 93.23881391
C31: Augmentation HV | D31: total spend $0s | E31: 13179399.81 | F31: 13150831.57 | G31: 12980769.85 | H31: 13435428.71 | I31: 13146651.35 | J31: 13265068.07 | K31: 13545148.7
C32: Augmentation LV | D32: net circuit KM added | E32: 190.6505303 | F32: 190.2372679 | G32: 187.7771895 | H32: 194.3541925 | I32: 190.1767977 | J32: 191.88979 | K32: 195.9413798
C33: Augmentation LV | D33: total spend $0s | E33: 4002803.111 | F33: 3994126.46 | G33: 3942475.885 | H33: 4080563.347 | I33: 3992856.857 | J33: 4028821.986 | K33: 4113887.137
B34: SUBDIVISION | C34: Underground connections | D34: 0's | E34: 0 | F34: 0 | G34: 0 | H34: 0 | I34: 0 | J34: 0 | K34: 0
C35: Overhead connections | D35: 0's | E35: 0 | F35: 0 | G35: 0 | H35: 0 | I35: 0 | J35: 0 | K35: 0
C36: Distribution substations installed | D36: MVA added | E36: 20.00337718 | F36: 19.4762887 | G36: 19.5045874 | H36: 20.20418965 | I36: 20.81955862 | J36: 20.91381075 | K36: 21.17439367
C37: Distribution substations installed | D37: 0's | E37: 50.27086445 | F37: 48.94622844 | G37: 49.01734643 | H37: 50.77553004 | I37: 52.32202541 | J37: 52.55889221 | K37: 53.21376806
C38: Distribution substations installed | D38: total spend $0s | E38: 2307256.533 | F38: 2246460.381 | G38: 2249724.448 | H38: 2330418.915 | I38: 2401397.634 | J38: 2412268.99 | K38: 2442325.497
C39: Augmentation HV | D39: net circuit KM added | E39: 26.33197701 | F39: 25.63813008 | G39: 25.67538182 | H39: 26.59632183 | I39: 27.40637913 | J39: 27.53045042 | K39: 27.87347567
C40: Augmentation HV | D40: total spend $0s | E40: 3994133.755 | F40: 3888888.431 | G40: 3894538.916 | H40: 4034230.576 | I40: 4157103.127 | J40: 4175922.73 | K40: 4227954.095
C41: Augmentation LV | D41: net circuit KM added | E41: 367.9351086 | F41: 358.2400278 | G41: 358.7605441 | H41: 371.6287827 | I41: 382.9476639 | J41: 384.6813045 | K41: 389.4743754
C42: Augmentation LV | D42: total spend $0s | E42: 7947301.778 | F42: 7737890.577 | G42: 7749133.593 | H42: 8027084.169 | I42: 8271569.032 | J42: 8309015.214 | K42: 8412544.287
C43: Cost per lot | D43: $0's | E43: 1375.31345 | F43: 1339.073975 | G43: 1341.019626 | H43: 1389.120123 | I43: 1431.42924 | J43: 1437.909456 | K43: 1455.825591
B44: EMBEDDED GENERATION | C44: Underground connections | D44: 0's | E44: 0 | F44: 0 | G44: 0 | H44: 0 | I44: 0 | J44: 0 | K44: 0
C45: Overhead connections | D45: 0's | E45: 0 | F45: 0 | G45: 0 | H45: 0 | I45: 0 | J45: 0 | K45: 0
C46: Distribution substations installed | D46: MVA added | E46: 1.774197175 | F46: 1.774197175 | G46: 1.774197175 | H46: 1.774197175 | I46: 1.774197175 | J46: 1.774197175 | K46: 1.774197175
C47: Distribution substations installed | D47: 0's | E47: 5.44345775 | F47: 5.44345775 | G47: 5.44345775 | H47: 5.44345775 | I47: 5.44345775 | J47: 5.44345775 | K47: 5.44345775
C48: Distribution substations installed | D48: total spend $0's | E48: 981139.8887 | F48: 981139.8887 | G48: 981139.8887 | H48: 981139.8887 | I48: 981139.8887 | J48: 981139.8887 | K48: 981139.8887
C49: Augmentation HV | D49: net circuit KM added | E49: 34.02499859 | F49: 34.02499859 | G49: 34.02499859 | H49: 34.02499859 | I49: 34.02499859 | J49: 34.02499859 | K49: 34.02499859
C50: Augmentation HV | D50: total spend $0s | E50: 18614888.7 | F50: 18614888.7 | G50: 18614888.7 | H50: 18614888.7 | I50: 18614888.7 | J50: 18614888.7 | K50: 18614888.7
C51: Augmentation LV | D51: net circuit KM added | E51: 0.5099876243 | F51: 0.5099876243 | G51: 0.5099876243 | H51: 0.5099876243 | I51: 0.5099876243 | J51: 0.5099876243 | K51: 0.5099876243
C52: Augmentation LV | D52: total spend $0s | E52: 22596.71082 | F52: 22596.71082 | G52: 22596.71082 | H52: 22596.71082 | I52: 22596.71082 | J52: 22596.71082 | K52: 22596.71082
B54: VOLUMES AND EXPENDITURE - STANDARD CONTROL SERVICES
B55: CONNECTION SUBCATEGORY | C55: DESCRIPTOR METRIC | D55: Unit of Measure | E55: =CONCATENATE("VOLUMES and EXPENDITURE (0's, real ", dms_DollarReal, ")") -> VOLUMES and EXPENDITURE (0's, real June 2021)
E56: =CRCP_y4 -> 2019-20 | F56: =CRCP_y5 -> 2020-21 | G56: =FRCP_y1 -> 2021-22 | H56: =FRCP_y2 -> 2022-23 | I56: =FRCP_y3 -> 2023-24 | J56: =FRCP_y4 -> 2024-25 | K56: =FRCP_y5 -> 2025-26
B57: RESIDENTIAL | C57: Underground connections | D57: 0's | E57: 14635.875 | F57: 14250.22006 | G57: 14270.92538 | H57: 14782.8035 | I57: 15233.05063 | J57: 15302.01211 | K57: 15492.67287
C58: Overhead connections | D58: 0's | E58: 407.875 | F58: 397.127504 | G58: 397.7045232 | H58: 411.9696278 | I58: 424.51719 | J58: 426.4390198 | K58: 431.7523855
C59: Distribution substations installed | D59: MVA added | E59: 60.02996123 | F59: 58.44817326 | G59: 58.53309741 | H59: 60.63259769 | I59: 62.47931463 | J59: 62.76216445 | K59: 63.54417152
C60: Distribution substations installed | D60: 0's | E60: 172.7574918 | F60: 168.2053363 | G60: 168.4497356 | H60: 174.4917918 | I60: 179.8063744 | J60: 180.6203751 | K60: 182.8708776
C61: Distribution substations installed | D61: total spend $0s | E61: 11958097.77 | F61: 11643002.2 | G61: 11659919.27 | H61: 12078144.25 | I61: 12446014.25 | J61: 12502358.55 | K61: 12658136.04
C62: Augmentation HV | D62: net circuit KM added | E62: 28.10898908 | F62: 27.36831793 | G62: 27.4080836 | H62: 28.3911732 | I62: 29.25589716 | J62: 29.3883414 | K62: 29.75451569
C63: Augmentation HV | D63: total spend $0s | E63: 9109577.99 | F63: 8869540.84 | G63: 8882428.123 | H63: 9201028.388 | I63: 9481268.649 | J63: 9524191.257 | K63: 9642861.239
C64: Augmentation LV | D64: net circuit KM added | E64: 86.86077814 | F64: 84.57199883 | G64: 84.69488042 | H64: 87.73276724 | I64: 90.40488741 | J64: 90.81415897 | K64: 91.94568965
C65: Augmentation LV | D65: total spend $0s | E65: 4175303.441 | F65: 4065284.301 | G65: 4071191.086 | H65: 4217219.012 | I65: 4345664.932 | J65: 4365338.171 | K65: 4419729.625
C66: Mean days to connect residential customer with LV single phase connection | D66: 0's | E66: 8.97 | F66: 8.733640726 | G66: 8.746330549 | H66: 9.060049184 | I66: 9.335995572 | J66: 9.378260515 | K66: 9.495112222
C67: Volume of GSL breaches for residential customers | D67: 0's | E67: 817.875 | F67: 796.3240144 | G67: 797.4810589 | H67: 826.0855883 | I67: 851.2460846 | J67: 855.0997568 | K67: 865.7541705
C68: Volume of customer complaints relating to connection services | D68: 0's | E68: 96.125 | F68: 93.59210868 | G68: 93.72809633 | H68: 97.08999196 | I68: 100.0471097 | J68: 100.5000326 | K68: 101.7522478
C69: GSL payments | D69: $0's | E69: 198856.8296 | F69: 193616.9572 | G69: 193898.2791 | H69: 200853.139 | I69: 206970.6221 | J69: 207907.5979 | K69: 210498.0951
B70: COMMERCIAL/INDUSTRIAL | C70: Underground connections | D70: 0's | E70: 1548.875 | F70: 1545.517591 | G70: 1525.531526 | H70: 1578.964136 | I70: 1545.026321 | J70: 1558.942941 | K70: 1591.858696
C71: Overhead connections | D71: 0's | E71: 601.625 | F71: 600.3208914 | G71: 592.5577624 | H71: 613.3124353 | I71: 600.1300689 | J71: 605.535661 | K71: 618.3210317
C72: Distribution substations installed | D72: MVA added | E72: 103.1693754 | F72: 102.945741 | G72: 101.6144845 | H72: 105.1735897 | I72: 102.9130179 | J72: 103.8399933 | K72: 106.0324865
C73: Distribution substations installed | D73: 0's | E73: 320.2061306 | F73: 319.5120379 | G73: 315.3802257 | H73: 326.4265976 | I73: 319.4104754 | J73: 322.2875229 | K73: 329.0923499
C74: Distribution substations installed | D74: total spend $0s | E74: 11681861.35 | F74: 11656539.24 | G74: 11505801.16 | H74: 11908798.4 | I74: 11652834.01 | J74: 11757795.36 | K74: 12006051.22
C75: Augmentation HV | D75: net circuit KM added | E75: 90.72116028 | F75: 90.52450914 | G75: 89.35387947 | H75: 92.48354996 | I75: 90.49573434 | J75: 91.31086267 | K75: 93.23881391
C76: Augmentation HV | D76: total spend $0s | E76: 13179399.81 | F76: 13150831.57 | G76: 12980769.85 | H76: 13435428.71 | I76: 13146651.35 | J76: 13265068.07 | K76: 13545148.7
C77: Augmentation LV | D77: net circuit KM added | E77: 190.6505303 | F77: 190.2372679 | G77: 187.7771895 | H77: 194.3541925 | I77: 190.1767977 | J77: 191.88979 | K77: 195.9413798
C78: Augmentation LV | D78: total spend $0s | E78: 4002803.111 | F78: 3994126.46 | G78: 3942475.885 | H78: 4080563.347 | I78: 3992856.857 | J78: 4028821.986 | K78: 4113887.137
B79: SUBDIVISION | C79: Underground connections | D79: 0's | E79: 0 | F79: 0 | G79: 0 | H79: 0 | I79: 0 | J79: 0 | K79: 0
C80: Overhead connections | D80: 0's | E80: 0 | F80: 0 | G80: 0 | H80: 0 | I80: 0 | J80: 0 | K80: 0
C81: Distribution substations installed | D81: MVA added | E81: 20.00337718 | F81: 19.4762887 | G81: 19.5045874 | H81: 20.20418965 | I81: 20.81955862 | J81: 20.91381075 | K81: 21.17439367
C82: Distribution substations installed | D82: 0's | E82: 50.27086445 | F82: 48.94622844 | G82: 49.01734643 | H82: 50.77553004 | I82: 52.32202541 | J82: 52.55889221 | K82: 53.21376806
C83: Distribution substations installed | D83: total spend $0s | E83: 2307256.533 | F83: 2246460.381 | G83: 2249724.448 | H83: 2330418.915 | I83: 2401397.634 | J83: 2412268.99 | K83: 2442325.497
C84: Augmentation HV | D84: net circuit KM added | E84: 26.33197701 | F84: 25.63813008 | G84: 25.67538182 | H84: 26.59632183 | I84: 27.40637913 | J84: 27.53045042 | K84: 27.87347567
C85: Augmentation HV | D85: total spend $0s | E85: 3994133.755 | F85: 3888888.431 | G85: 3894538.916 | H85: 4034230.576 | I85: 4157103.127 | J85: 4175922.73 | K85: 4227954.095
C86: Augmentation LV | D86: net circuit KM added | E86: 367.9351086 | F86: 358.2400278 | G86: 358.7605441 | H86: 371.6287827 | I86: 382.9476639 | J86: 384.6813045 | K86: 389.4743754
C87: Augmentation LV | D87: total spend $0s | E87: 7947301.778 | F87: 7737890.577 | G87: 7749133.593 | H87: 8027084.169 | I87: 8271569.032 | J87: 8309015.214 | K87: 8412544.287
C88: Cost per lot | D88: $0's | E88: 1375.31345 | F88: 1339.073975 | G88: 1341.019626 | H88: 1389.120123 | I88: 1431.42924 | J88: 1437.909456 | K88: 1455.825591
B89: EMBEDDED GENERATION | C89: Underground connections | D89: 0's | E89: 0 | F89: 0 | G89: 0 | H89: 0 | I89: 0 | J89: 0 | K89: 0
C90: Overhead connections | D90: 0's | E90: 0 | F90: 0 | G90: 0 | H90: 0 | I90: 0 | J90: 0 | K90: 0
C91: Distribution substations installed | D91: MVA added | E91: 1.774197175 | F91: 1.774197175 | G91: 1.774197175 | H91: 1.774197175 | I91: 1.774197175 | J91: 1.774197175 | K91: 1.774197175
C92: Distribution substations installed | D92: 0's | E92: 5.44345775 | F92: 5.44345775 | G92: 5.44345775 | H92: 5.44345775 | I92: 5.44345775 | J92: 5.44345775 | K92: 5.44345775
C93: Distribution substations installed | D93: total spend $0s | E93: 981139.8887 | F93: 981139.8887 | G93: 981139.8887 | H93: 981139.8887 | I93: 981139.8887 | J93: 981139.8887 | K93: 981139.8887
C94: Augmentation HV | D94: net circuit KM added | E94: 34.02499859 | F94: 34.02499859 | G94: 34.02499859 | H94: 34.02499859 | I94: 34.02499859 | J94: 34.02499859 | K94: 34.02499859
C95: Augmentation HV | D95: total spend $0s | E95: 18614888.7 | F95: 18614888.7 | G95: 18614888.7 | H95: 18614888.7 | I95: 18614888.7 | J95: 18614888.7 | K95: 18614888.7
C96: Augmentation LV | D96: net circuit KM added | E96: 0.5099876243 | F96: 0.5099876243 | G96: 0.5099876243 | H96: 0.5099876243 | I96: 0.5099876243 | J96: 0.5099876243 | K96: 0.5099876243
C97: Augmentation LV | D97: total spend $0s | E97: 22596.71082 | F97: 22596.71082 | G97: 22596.71082 | H97: 22596.71082 | I97: 22596.71082 | J97: 22596.71082 | K97: 22596.71082
B101: 2.5.2 - COST METRICS BY CONNECTION CLASSIFICATION
B102: EXPENDITURE - ALL
B103: CONNECTION SUBCATEGORY | C103: CONNECTION CLASSICIATION | E103: =CONCATENATE("EXPENDITURE ($'0s, real ", dms_DollarReal,")") -> EXPENDITURE ($'0s, real June 2021)
E104: =CRCP_y4 -> 2019-20 | F104: =CRCP_y5 -> 2020-21 | G104: =FRCP_y1 -> 2021-22 | H104: =FRCP_y2 -> 2022-23 | I104: =FRCP_y3 -> 2023-24 | J104: =FRCP_y4 -> 2024-25 | K104: =FRCP_y5 -> 2025-26
B105: RESIDENTIAL | C105: Simple connection LV | E105: 0 | F105: 0 | G105: 0 | H105: 0 | I105: 0 | J105: 0 | K105: 0
C106: Complex connection LV | E106: 17398468.28 | F106: 17417057.59 | G106: 18329999.22 | H106: 19206821.39 | I106: 19640630.11 | J106: 20187661.64 | K106: 20850922.62
C107: Complex connection HV | E107: 5851287.317 | F107: 5848694.805 | G107: 6144353.061 | H107: 6399584.192 | I107: 6544775.688 | J107: 6738997.801 | K107: 6956596.99
B108: COMMERCIAL/INDUSTRIAL | C108: Simple connection LV | E108: 0 | F108: 0 | G108: 0 | H108: 0 | I108: 0 | J108: 0 | K108: 0
C109: Complex connection HV (customer connected at LV, minor HV works) | E109: 0 | F109: 0 | G109: 0 | H109: 0 | I109: 0 | J109: 0 | K109: 0
C110: Complex connection HV (customer connected at LV, upstream asset works) | E110: 29022289.36 | F110: 28208890.97 | G110: 29079894.66 | H110: 28240695.38 | I110: 29013837.43 | J110: 30336102.58 | K110: 30754759.64
C111: Complex connection HV (customer connected at HV) | E111: 3451286.413 | F111: 3451286.413 | G111: 3508191.516 | H111: 3572921.33 | I111: 3637089.701 | J111: 3690816.949 | K111: 3743767.623
C112: Complex connection sub-transmission | E112: 0 | F112: 0 | G112: 0 | H112: 0 | I112: 0 | J112: 0 | K112: 0
B113: SUBDIVISION | C113: Complex connection LV | E113: 0 | F113: 0 | G113: 0 | H113: 0 | I113: 0 | J113: 0 | K113: 0
C114: Complex connection HV (no upstream asset works) | E114: 0 | F114: 0 | G114: 0 | H114: 0 | I114: 0 | J114: 0 | K114: 0
C115: Complex connection HV (with upstream asset works) | E115: 59539317.23 | F115: 59562741.87 | G115: 61133471.27 | H115: 62788780.49 | I115: 63998662.93 | J115: 65174725.47 | K115: 66459867.84
B116: EMBEDDED GENERATION | C116: Simple connection LV | E116: 0 | F116: 0 | G116: 0 | H116: 0 | I116: 0 | J116: 0 | K116: 0
C117: Complex connection HV (small capacity) | E117: 21883062.43 | F117: 21883062.43 | G117: 22243872.21 | H117: 22654294.99 | I117: 23061157.91 | J117: 23401818.34 | K117: 23737554.87
C118: Complex connection HV (large capacity) | E118: 1647112.226 | F118: 1647112.226 | G118: 1674269.951 | H118: 1705161.989 | I118: 1735786.08 | J118: 1761427.187 | K118: 1786697.678
B120: EXPENDITURE - STANDARD CONTROL SERVICES
E121: =CONCATENATE("EXPENDITURE ($'0s, real ", dms_DollarReal,")") -> EXPENDITURE ($'0s, real June 2021)
E122: =CRCP_y4 -> 2019-20 | F122: =CRCP_y5 -> 2020-21 | G122: =FRCP_y1 -> 2021-22 | H122: =FRCP_y2 -> 2022-23 | I122: =FRCP_y3 -> 2023-24 | J122: =FRCP_y4 -> 2024-25 | K122: =FRCP_y5 -> 2025-26
B123: RESIDENTIAL | C123: Simple connection LV | E123: 0 | F123: 0 | G123: 0 | H123: 0 | I123: 0 | J123: 0 | K123: 0
C124: Complex connection LV | E124: 17398468.28 | F124: 17417057.59 | G124: 4516021.815 | H124: 4830805.742 | I124: 5045951.399 | J124: 5275452.839 | K124: 5534479.721
C125: Complex connection HV | E125: 5851287.317 | F125: 5848694.805 | G125: 2355681.534 | H125: 2498669.967 | I125: 2610331.785 | J125: 2735938.261 | K125: 2868120.266
B126: COMMERCIAL/INDUSTRIAL | C126: Simple connection LV | E126: 0 | F126: 0 | G126: 0 | H126: 0 | I126: 0 | J126: 0 | K126: 0
C127: Complex connection HV (customer connected at LV, minor HV works) | E127: 0 | F127: 0 | G127: 0 | H127: 0 | I127: 0 | J127: 0 | K127: 0
C128: Complex connection HV (customer connected at LV, upstream asset works) | E128: 29022289.36 | F128: 28208890.97 | G128: 21316847.75 | H128: 21180639.49 | I128: 22236687.36 | J128: 23644138.36 | K128: 24339515.83
C129: Complex connection HV (customer connected at HV) | E129: 3451286.413 | F129: 3451286.413 | G129: 1790960.998 | H129: 1866589.508 | I129: 1940850.452 | J129: 2002002.682 | K129: 2063210.491
C130: Complex connection sub-transmission | E130: 0 | F130: 0 | G130: 0 | H130: 0 | I130: 0 | J130: 0 | K130: 0
B131: SUBDIVISION | C131: Complex connection LV | E131: 0 | F131: 0 | G131: 0 | H131: 0 | I131: 0 | J131: 0 | K131: 0
C132: Complex connection HV (no upstream asset works) | E132: 0 | F132: 0 | G132: 0 | H132: 0 | I132: 0 | J132: 0 | K132: 0
C133: Complex connection HV (with upstream asset works) | E133: 59539317.23 | F133: 59562741.87 | G133: 32846907.8 | H133: 34619506.06 | I133: 36058219.03 | J133: 37369444.77 | K133: 38781972.59
B134: EMBEDDED GENERATION | C134: Simple connection LV | E134: 0 | F134: 0 | G134: 0 | H134: 0 | I134: 0 | J134: 0 | K134: 0
C135: Complex connection HV (small capacity) | E135: 21883062.43 | F135: 21883062.43 | G135: 0 | H135: 0 | I135: 0 | J135: 0 | K135: 0
C136: Complex connection HV (large capacity) | E136: 1647112.226 | F136: 1647112.226 | G136: 0 | H136: 0 | I136: 0 | J136: 0 | K136: 0
B138: EXPENDITURE - STANDARD CONTROL SERVICES - CAPITAL CONTRIBUTIONS
E139: =CONCATENATE("EXPENDITURE ($'0s, real ", dms_DollarReal,")") -> EXPENDITURE ($'0s, real June 2021)
E140: =CRCP_y4 -> 2019-20 | F140: =CRCP_y5 -> 2020-21 | G140: =FRCP_y1 -> 2021-22 | H140: =FRCP_y2 -> 2022-23 | I140: =FRCP_y3 -> 2023-24 | J140: =FRCP_y4 -> 2024-25 | K140: =FRCP_y5 -> 2025-26
B141: RESIDENTIAL | C141: Simple connection LV | E141: 0 | F141: 0 | G141: 0 | H141: 0 | I141: 0 | J141: 0 | K141: 0
C142: Complex connection LV | E142: 13195315.59 | F142: 13211901.06 | G142: 13867982.23 | H142: 14507027.09 | I142: 14803792.01 | J142: 15189413.37 | K142: 15661614.89
C143: Complex connection HV | E143: 3648797.896 | F143: 3649806.196 | G143: 3826661.091 | H143: 3987443.438 | I143: 4069275.278 | J143: 4180061.02 | K143: 4308492.507
B144: COMMERCIAL/INDUSTRIAL | C144: Simple connection LV | E144: 0 | F144: 0 | G144: 0 | H144: 0 | I144: 0 | J144: 0 | K144: 0
C145: Complex connection HV (customer connected at LV, minor HV works) | E145: 0 | F145: 0 | G145: 0 | H145: 0 | I145: 0 | J145: 0 | K145: 0
C146: Complex connection HV (customer connected at LV, upstream asset works) | E146: 8202203.532 | F146: 7990056.078 | G146: 8183028.823 | H146: 7931604.785 | I146: 8122867.439 | J146: 8470222.137 | K146: 8584615.126
C147: Complex connection HV (customer connected at HV) | E147: 1726038.03 | F147: 1726038.03 | G147: 1749455.453 | H147: 1777383.639 | I147: 1805551.238 | J147: 1829385.167 | K147: 1852300.437
C148: Complex connection sub-transmission | E148: 0 | F148: 0 | G148: 0 | H148: 0 | I148: 0 | J148: 0 | K148: 0
B149: SUBDIVISION | C149: Complex connection LV | E149: 0 | F149: 0 | G149: 0 | H149: 0 | I149: 0 | J149: 0 | K149: 0
C150: Complex connection HV (no upstream asset works) | E150: 0 | F150: 0 | G150: 0 | H150: 0 | I150: 0 | J150: 0 | K150: 0
C151: Complex connection HV (with upstream asset works) | E151: 28319117.67 | F151: 28326155.07 | G151: 28886799.72 | H151: 29505530.52 | I151: 29997646.55 | J151: 30462308.86 | K151: 30947943.56
B152: EMBEDDED GENERATION | C152: Simple connection LV | E152: 0 | F152: 0 | G152: 0 | H152: 0 | I152: 0 | J152: 0 | K152: 0
C153: Complex connection HV (small capacity) | E153: 21883062.43 | F153: 21883062.43 | G153: 22179953.29 | H153: 22534032.52 | I153: 22891147.1 | J153: 23193318.52 | K153: 23483842.99
C154: Complex connection HV (large capacity) | E154: 1647112.226 | F154: 1647112.226 | G154: 1669458.85 | H154: 1696109.975 | I154: 1722989.567 | J154: 1745733.652 | K154: 1767601.085
B158: 2.5.3 - VOLUMES BY CONNECTION CLASSIFICATION
B159: NEW CONNECTIONS - ALL
E160: VOLUMES (0's)
E161: =CRCP_y4 -> 2019-20 | F161: =CRCP_y5 -> 2020-21 | G161: =FRCP_y1 -> 2021-22 | H161: =FRCP_y2 -> 2022-23 | I161: =FRCP_y3 -> 2023-24 | J161: =FRCP_y4 -> 2024-25 | K161: =FRCP_y5 -> 2025-26
B162: RESIDENTIAL | C162: Simple connection LV | E162: 0 | F162: 0 | G162: 0 | H162: 0 | I162: 0 | J162: 0 | K162: 0
C163: Complex connection LV | E163: 2297.876573 | F163: 2301.051912 | G163: 2383.424098 | H163: 2455.352173 | I163: 2466.483893 | J163: 2497.43635 | K163: 2543.378393
C164: Complex connection HV | E164: 222.7292487 | F164: 222.7804801 | G164: 230.4990953 | H164: 236.4111041 | I164: 237.5082039 | J164: 240.8349225 | K164: 245.1922682
B165: COMMERCIAL/INDUSTRIAL | C165: Simple connection LV | E165: 0 | F165: 0 | G165: 0 | H165: 0 | I165: 0 | J165: 0 | K165: 0
C166: Complex connection HV (customer connected at LV, minor HV works) | E166: 0 | F166: 0 | G166: 0 | H166: 0 | I166: 0 | J166: 0 | K166: 0
C167: Complex connection HV (customer connected at LV, upstream asset works) | E167: 351.7138617 | F167: 339.7937378 | G167: 344.0852376 | H167: 322.2763713 | I167: 325.7286805 | J167: 338.8793128 | K167: 339.5747602
C168: Complex connection HV (customer connected at HV) | E168: 6.324504044 | F168: 6.013271922 | G168: 6.384005717 | H168: 6.83125953 | I168: 7.097582816 | J168: 7.047291003 | K168: 6.99598342
C169: Complex connection sub-transmission | E169: 0 | F169: 0 | G169: 0 | H169: 0 | I169: 0 | J169: 0 | K169: 0
B170: SUBDIVISION | C170: Complex connection LV | E170: 0 | F170: 0 | G170: 0 | H170: 0 | I170: 0 | J170: 0 | K170: 0
C171: Complex connection HV (no upstream asset works) | E171: 0 | F171: 0 | G171: 0 | H171: 0 | I171: 0 | J171: 0 | K171: 0
C172: Complex connection HV (with upstream asset works) | E172: 466.1625168 | F172: 466.8398426 | G172: 483.5847343 | H172: 498.3135131 | I172: 500.569426 | J172: 506.8064453 | K172: 516.1389263
B173: EMBEDDED GENERATION | C173: Simple connection LV | E173: 0 | F173: 0 | G173: 0 | H173: 0 | I173: 0 | J173: 0 | K173: 0
C174: Complex connection HV (small capacity) | E174: 31.24859696 | F174: 31.24859696 | G174: 31.24859696 | H174: 31.24859696 | I174: 31.24859696 | J174: 31.24859696 | K174: 31.24859696
C175: Complex connection HV (large capacity) | E175: 2.352044933 | F175: 2.352044933 | G175: 2.352044933 | H175: 2.352044933 | I175: 2.352044933 | J175: 2.352044933 | K175: 2.352044933
B177: NEW CONNECTIONS - STANDARD CONTROL SERVICES
E178: VOLUMES (0's)
E179: =CRCP_y4 -> 2019-20 | F179: =CRCP_y5 -> 2020-21 | G179: =FRCP_y1 -> 2021-22 | H179: =FRCP_y2 -> 2022-23 | I179: =FRCP_y3 -> 2023-24 | J179: =FRCP_y4 -> 2024-25 | K179: =FRCP_y5 -> 2025-26
B180: RESIDENTIAL | C180: Simple connection LV | E180: 0 | F180: 0 | G180: 0 | H180: 0 | I180: 0 | J180: 0 | K180: 0
C181: Complex connection LV | E181: 2297.876573 | F181: 2301.051912 | G181: 2383.424098 | H181: 2455.352173 | I181: 2466.483893 | J181: 2497.43635 | K181: 2543.378393
C182: Complex connection HV | E182: 222.7292487 | F182: 222.7804801 | G182: 230.4990953 | H182: 236.4111041 | I182: 237.5082039 | J182: 240.8349225 | K182: 245.1922682
B183: COMMERCIAL/INDUSTRIAL | C183: Simple connection LV | E183: 0 | F183: 0 | G183: 0 | H183: 0 | I183: 0 | J183: 0 | K183: 0
C184: Complex connection HV (customer connected at LV, minor HV works) | E184: 0 | F184: 0 | G184: 0 | H184: 0 | I184: 0 | J184: 0 | K184: 0
C185: Complex connection HV (customer connected at LV, upstream asset works) | E185: 351.7138617 | F185: 339.7937378 | G185: 344.0852376 | H185: 322.2763713 | I185: 325.7286805 | J185: 338.8793128 | K185: 339.5747602
C186: Complex connection HV (customer connected at HV) | E186: 6.324504044 | F186: 6.013271922 | G186: 6.384005717 | H186: 6.83125953 | I186: 7.097582816 | J186: 7.047291003 | K186: 6.99598342
C187: Complex connection sub-transmission | E187: 0 | F187: 0 | G187: 0 | H187: 0 | I187: 0 | J187: 0 | K187: 0
B188: SUBDIVISION | C188: Complex connection LV | E188: 0 | F188: 0 | G188: 0 | H188: 0 | I188: 0 | J188: 0 | K188: 0
C189: Complex connection HV (no upstream asset works) | E189: 0 | F189: 0 | G189: 0 | H189: 0 | I189: 0 | J189: 0 | K189: 0
C190: Complex connection HV (with upstream asset works) | E190: 466.1625168 | F190: 466.8398426 | G190: 483.5847343 | H190: 498.3135131 | I190: 500.569426 | J190: 506.8064453 | K190: 516.1389263
B191: EMBEDDED GENERATION | C191: Simple connection LV | E191: 0 | F191: 0 | G191: 0 | H191: 0 | I191: 0 | J191: 0 | K191: 0
C192: Complex connection HV (small capacity) | E192: 31.24859696 | F192: 31.24859696 | G192: 31.24859696 | H192: 31.24859696 | I192: 31.24859696 | J192: 31.24859696 | K192: 31.24859696
C193: Complex connection HV (large capacity) | E193: 2.352044933 | F193: 2.352044933 | G193: 2.352044933 | H193: 2.352044933 | I193: 2.352044933 | J193: 2.352044933 | K193: 2.352044933
B195: EXISTING CONNECTIONS
E196: VOLUMES (0's)
E197: =CRCP_y4 -> 2019-20 | F197: =CRCP_y5 -> 2020-21 | G197: =FRCP_y1 -> 2021-22 | H197: =FRCP_y2 -> 2022-23 | I197: =FRCP_y3 -> 2023-24 | J197: =FRCP_y4 -> 2024-25 | K197: =FRCP_y5 -> 2025-26
B198: RESIDENTIAL | C198: Simple connection LV
C199: Complex connection LV
C200: Complex connection HV
B201: COMMERCIAL/INDUSTRIAL | C201: Simple connection LV
C202: Complex connection HV (customer connected at LV, minor HV works)
C203: Complex connection HV (customer connected at LV, upstream asset works)
C204: Complex connection HV (customer connected at HV)
C205: Complex connection sub-transmission
B206: SUBDIVISION | C206: Complex connection LV
C207: Complex connection HV (no upstream asset works)
C208: Complex connection HV (with upstream asset works)
B209: EMBEDDED GENERATION | C209: Simple connection LV
C210: Complex connection HV (small capacity)
C211: Complex connection HV (large capacity)

Sheet 2.6 Non-network
B1: =INDEX(dms_Worksheet_List,MATCH(dms_Model,dms_Model_List)) -> REGULATORY REPORTING STATEMENT
B2: =INDEX(dms_TradingNameFull_List,MATCH(dms_TradingName,dms_TradingName_List)) -> Powercor Australia
B3: =dms_Header_Span -> 2021-22 to 2025-26
B4: 2.6 NON NETWORK EXPENDITURE
B6: There are THREE tables on this worksheet - each has been 'grouped' (and sub-grouped) for easy navigation. See the Instructions sheet on how to group or ungroup tables.
B8: 2.6.1 - NON-NETWORK EXPENDITURE
E9: =CONCATENATE("EXPENDITURE ($'0s, real ", dms_DollarReal,")") -> EXPENDITURE ($'0s, real June 2021)
B10: SERVICE SUBCATEGORY | C10: ASSET CATEGORY | E10: =CRCP_y4 -> 2019-20 | F10: =CRCP_y5 -> 2020-21 | G10: =FRCP_y1 -> 2021-22 | H10: =FRCP_y2 -> 2022-23 | I10: =FRCP_y3 -> 2023-24 | J10: =FRCP_y4 -> 2024-25 | K10: =FRCP_y5 -> 2025-26
B11: OPEX
B12: IT & COMMUNICATIONS | C12: Total IT and communications | E12: 34952737.45 | F12: 36087692 | G12: 41182396.75 | H12: 42020836.95 | I12: 43592553.84 | J12: 44954190.15 | K12: 46047687.41
B13: MOTOR VEHICLES | C13: Car | E13: 2730248.234 | F13: 2818902.454 | G13: 2910435.375 | H13: 2997927.402 | I13: 3087060.163 | J13: 3171072.887 | K13: 3253343.284
C14: Light commercial vehicle | E14: 2365638.023 | F14: 2442452.941 | G14: 2521762.124 | H14: 2597570.054 | I14: 2674799.606 | J14: 2747592.875 | K14: 2818876.496
C15: Elevated work platform (LCV) | E15: 933073.2362 | F15: 963371.1697 | G15: 994652.911 | H15: 1024553.661 | I15: 1055015.138 | J15: 1083726.821 | K15: 1111843.058
C16: Elevated work platform (HCV) | E16: 2839199.939 | F16: 2931391.942 | G16: 3026577.523 | H16: 3117560.957 | I16: 3210250.598 | J16: 3297615.885 | K16: 3383169.317
C17: Heavy commercial vehicle | E17: 3718133.006 | F17: 3838864.951 | G17: 3963517.198 | H17: 4082666.435 | I17: 4204050.071 | J17: 4318461.09 | K17: 4430499.357
B18: BUILDINGS AND PROPERTY | C18: Total buildings and property expenditure | E18: 9781294.451 | F18: 10098904.04 | G18: 10426826.77 | H18: 10740272.73 | I18: 11059596.73 | J18: 11360577.86 | K18: 11655316.98
B19: OTHER | C19: Other expenditure | E19: 0 | F19: 0 | G19: 0 | H19: 0 | I19: 0 | J19: 0 | K19: 0
B20: OTHER - DNSP nominated
B31: CAPEX
B32: IT & COMMUNICATIONS | C32: Total IT and communications | E32: 27188468.78 | F32: 35113625.59 | G32: 42133319.85 | H32: 33971056.79 | I32: 36396827.63 | J32: 32778041.5 | K32: 20514995.71
B33: MOTOR VEHICLES | C33: Car | E33: 5431584.228 | F33: 7524876.271 | G33: 8058454.856 | H33: 7109238.755 | I33: 5250578.316 | J33: 2741401.648 | K33: 2768197.202
C34: Light commercial vehicle | E34: 2283281.766 | F34: 3561869.674 | G34: 5498691.139 | H34: 3496929.156 | I34: 1096718.37 | J34: 1872364.615 | K34: 2346094.347
C35: Elevated work platform (LCV) | E35: 36629.26746 | F35: 0 | G35: 271937.7922 | H35: 1886956.9 | I35: 2627944.82 | J35: 906547.8815 | K35: 591356.0601
C36: Elevated work platform (HCV) | E36: 2157942.973 | F36: 4859176.259 | G36: 8297571.811 | H36: 7983243.909 | I36: 3052974.951 | J36: 850869.0685 | K36: 1178629.824
C37: Heavy commercial vehicle | E37: 5533684.749 | F37: 3132749.054 | G37: 7539407.57 | H37: 9378939.041 | I37: 8007107.021 | J37: 3708478.673 | K37: 3264440.995
B38: BUILDINGS AND PROPERTY | C38: Total buildings and property expenditure | E38: 31323858.95 | F38: 22713906.51 | G38: 30706615.81 | H38: 37702058.07 | I38: 27932029.59 | J38: 13756061.85 | K38: 5430346.482
B39: OTHER | C39: Other expenditure | E39: 2362374.566 | F39: 1952260.479 | G39: 2440614.961 | H39: 2440614.961 | I39: 2440614.961 | J39: 2440614.961 | K39: 2440614.961
B40: OTHER - DNSP nominated
B54: 2.6.2 - ANNUAL DESCRIPTOR METRICS
B55: IT & COMMUNICATIONS
E56: VOLUMES (0's)
E57: =CRCP_y4 -> 2019-20 | F57: =CRCP_y5 -> 2020-21 | G57: =FRCP_y1 -> 2021-22 | H57: =FRCP_y2 -> 2022-23 | I57: =FRCP_y3 -> 2023-24 | J57: =FRCP_y4 -> 2024-25 | K57: =FRCP_y5 -> 2025-26
B58: Employee numbers | E58: 1401.622277 | F58: 1401.622277 | G58: 1401.622277 | H58: 1401.622277 | I58: 1401.622277 | J58: 1401.622277 | K58: 1401.622277
B59: User numbers | E59: 1327.656946 | F59: 1327.656946 | G59: 1327.656946 | H59: 1327.656946 | I59: 1327.656946 | J59: 1327.656946 | K59: 1327.656946
B60: Number of devices | E60: 4203.5 | F60: 4203.5 | G60: 4203.5 | H60: 4203.5 | I60: 4203.5 | J60: 4203.5 | K60: 4203.5
B62: MOTOR VEHICLES
E63: VOLUMES (0's or %)
B64: ASSET CATEGORY | C64: DESCRIPTOR METRIC | D64: Units | E64: =CRCP_y4 -> 2019-20 | F64: =CRCP_y5 -> 2020-21 | G64: =FRCP_y1 -> 2021-22 | H64: =FRCP_y2 -> 2022-23 | I64: =FRCP_y3 -> 2023-24 | J64: =FRCP_y4 -> 2024-25 | K64: =FRCP_y5 -> 2025-26
B65: CAR | C65: Average kilometres travelled | D65: 0's | E65: 21506.35827 | F65: 21506.35827 | G65: 21506.35827 | H65: 21506.35827 | I65: 21506.35827 | J65: 21506.35827 | K65: 21506.35827
C66: Number purchased | D66: 0's | E66: 97.5 | F66: 80.5 | G66: 80 | H66: 104 | I66: 110 | J66: 76 | K66: 70
C67: Number leased | D67: 0's | E67: 0 | F67: 0 | G67: 0 | H67: 0 | I67: 0 | J67: 0 | K67: 0
C68: Number in fleet | D68: 0's | E68: 339.75 | F68: 390.75 | G68: 380 | H68: 381.75 | I68: 408 | J68: 379.75 | K68: 383.25
C69: Proportion of total fleet expenditure allocated as regulatory expenditure | D69: % | E69: 1 | F69: 1 | G69: 1 | H69: 1 | I69: 1 | J69: 1 | K69: 1
B70: LIGHT COMMERCIAL VEHICLE | C70: Average kilometres travelled | D70: 0's | E70: 25182.64615 | F70: 25182.64615 | G70: 25182.64615 | H70: 25182.64615 | I70: 25182.64615 | J70: 25182.64615 | K70: 25182.64615
C71: Number purchased | D71: 0's | E71: 28.5 | F71: 29 | G71: 51.5 | H71: 55.5 | I71: 30.5 | J71: 39 | K71: 66
C72: Number leased | D72: 0's | E72: 0 | F72: 0 | G72: 0 | H72: 0 | I72: 0 | J72: 0 | K72: 0
C73: Number in fleet | D73: 0's | E73: 163.75 | F73: 174.25 | G73: 189.5 | H73: 215.5 | I73: 251.25 | J73: 272.5 | K73: 271.75
C74: Proportion of total fleet expenditure allocated as regulatory expenditure | D74: % | E74: 1 | F74: 1 | G74: 1 | H74: 1 | I74: 1 | J74: 1 | K74: 1
B75: ELEVATED WORK PLATFORM (LCV) | C75: Average kilometres travelled | D75: 0's | E75: 26328.61782 | F75: 26328.61782 | G75: 26328.61782 | H75: 26328.61782 | I75: 26328.61782 | J75: 26328.61782 | K75: 26328.61782
C76: Number purchased | D76: 0's | E76: 2 | F76: 1 | G76: 0 | H76: 19.5 | I76: 44 | J76: 31.5 | K76: 14
C77: Number leased | D77: 0's | E77: 0 | F77: 0 | G77: 0 | H77: 0 | I77: 0 | J77: 0 | K77: 0
C78: Number in fleet | D78: 0's | E78: 21.75 | F78: 22 | G78: 20.5 | H78: 18.5 | I78: 18 | J78: 32.5 | K78: 29.25
C79: Proportion of total fleet expenditure allocated as regulatory expenditure | D79: % | E79: 1 | F79: 1 | G79: 1 | H79: 1 | I79: 1 | J79: 1 | K79: 1
B80: ELEVATED WORK PLATFORM (HCV) | C80: Average kilometres travelled | D80: 0's | E80: 22591.27007 | F80: 22591.27007 | G80: 22591.27007 | H80: 22591.27007 | I80: 22591.27007 | J80: 22591.27007 | K80: 22591.27007
C81: Number purchased | D81: 0's | E81: 2.5 | F81: 4.5 | G81: 6 | H81: 24 | I81: 39.5 | J81: 27.5 | K81: 16
C82: Number leased | D82: 0's | E82: 0 | F82: 0 | G82: 0 | H82: 0 | I82: 0 | J82: 0 | K82: 0
C83: Number in fleet | D83: 0's | E83: 42.25 | F83: 46.25 | G83: 54 | H83: 68.5 | I83: 41.25 | J83: 32 | K83: 68
C84: Proportion of total fleet expenditure allocated as regulatory expenditure | D84: % | E84: 1 | F84: 1 | G84: 1 | H84: 1 | I84: 1 | J84: 1 | K84: 1
B85: HEAVY COMMERCIAL VEHICLE | C85: Average kilometres travelled | D85: 0's | E85: 14235.14884 | F85: 14235.14884 | G85: 14235.14884 | H85: 14235.14884 | I85: 14235.14884 | J85: 14235.14884 | K85: 14235.14884
C86: Number purchased | D86: 0's | E86: 39.5 | F86: 16.5 | G86: 28 | H86: 101.5 | I86: 160.5 | J86: 117.5 | K86: 74
C87: Number leased | D87: 0's | E87: 0 | F87: 0 | G87: 0 | H87: 0 | I87: 0 | J87: 0 | K87: 0
C88: Number in fleet | D88: 0's | E88: 409 | F88: 420 | G88: 404.75 | H88: 420 | I88: 511.5 | J88: 557 | K88: 524.25
C89: Proportion of total fleet expenditure allocated as regulatory expenditure | D89: % | E89: 1 | F89: 1 | G89: 1 | H89: 1 | I89: 1 | J89: 1 | K89: 1
B92: Table 2.6.4 intentionally omitted
B94: 2.6.5 - INFORMATION & COMMUNICATIONS TECHNOLOGY - CAPEX
E95: =CONCATENATE("EXPENDITURE ($'0s, real ", dms_DollarReal,")") -> EXPENDITURE ($'0s, real June 2021)
E96: =CRCP_y4 -> 2019-20 | F96: =CRCP_y5 -> 2020-21 | G96: =FRCP_y1 -> 2021-22 | H96: =FRCP_y2 -> 2022-23 | I96: =FRCP_y3 -> 2023-24 | J96: =FRCP_y4 -> 2024-25 | K96: =FRCP_y5 -> 2025-26
B97: RECURRENT
B98: Market Compliance | C98: Market Compliance | D98: Market Compliance | E98: 2599754.694 | F98: 3357556.237 | G98: 1944558.823 | H98: 1879373.888 | I98: 3793427.037 | J98: 974294.0761 | K98: 3013860.129
B99: Customer Engagement | C99: Customer Engagement | D99: Customer Engagement | E99: 776501.7546 | F99: 1002843.966 | G99: 2719985.071 | H99: 1527385.691 | I99: 2673031.254 | J99: 361740.4117 | K99: 615070.6822
B100: Corporate Services | C100: Corporate Services | D100: Corporate Services | E100: 5849130.232 | F100: 7554091.06 | G100: 7777077.718 | H100: 6315322.668 | I100: 5387431.122 | J100: 9131239.068 | K100: 3737153.809
B101: Field Work & Construction | C101: Field Work & Construction | D101: Field Work & Construction | E101: 2258234.56 | F101: 2916486.524 | G101: 2749350.636 | H101: 3711642.214 | I101: 1515385.354 | J101: 2402049.124 | K101: 717857.1909
B102: Service Management and Ops | C102: Service Management and Ops | D102: Service Management and Ops | E102: 2348092.908 | F102: 3032537.649 | G102: 2749807.887 | H102: 2789188.489 | I102: 2829001.377 | J102: 2863409.159 | K102: 2895960.575
B103: Network Assets and Network Operations | C103: Network Assets and Network Operations | D103: Network Assets and Network Operations | E103: 6202046.753 | F103: 8009879.088 | G103: 6539077.99 | H103: 5796936.339 | I103: 1946184.651 | J103: 5477773.722 | K103: 4775894.497
B104: Cyber Security | C104: Cyber Security | D104: Cyber Security | E104: 1430586.406 | F104: 1847587.514 | G104: 2722409.49 | H104: 2838162.841 | I104: 3094732.604 | J104: 3014690.405 | K104: 2415791.401
B108: NON-RECURRENT
B109: Market Compliance | C109: Market Compliance | D109: Market Compliance | E109: 3878796.01 | F109: 5009424.837 | G109: 7273811.664 | H109: 1620536.175 | I109: 31572.00092 | J109: 38844.50306 | K109: 79009.75827
B110: Customer Engagement | C110: Customer Engagement | D110: Customer Engagement | E110: 333525.0825 | F110: 430744.1866 | G110: 1134647.422 | H110: 302823.6811 | I110: 1640329.951 | J110: 1504155.835 | K110: 0
B111: Corporate Services | C111: Corporate Services | D111: Corporate Services | E111: 431315.4097 | F111: 557039.3805 | G111: 0 | H111: 0 | I111: 0 | J111: 0 | K111: 0
B112: Field Work & Construction | C112: Field Work & Construction | D112: Field Work & Construction | E112: 60313.38688 | F112: 77894.11392 | G112: 0 | H112: 1816586.165 | I112: 5676849.86 | J112: 4315087.891 | K112: 0
B113: Service Management and Ops | C113: Service Management and Ops | D113: Service Management and Ops | E113: 1343.313953 | F113: 1734.876045 | G113: 0 | H113: 0 | I113: 0 | J113: 0 | K113: 0
B114: Network Assets and Network Operations | C114: Network Assets and Network Operations | D114: Network Assets and Network Operations | E114: 995882.2368 | F114: 1286171.585 | G114: 5379105.395 | H114: 4176313.376 | I114: 6502047.319 | J114: 1410558.406 | K114: 1241496.791
B115: Cyber Security | C115: Cyber Security | D115: Cyber Security | E115: 22946.03621 | F115: 29634.5679 | G115: 1143487.756 | H115: 1196785.265 | I115: 1306835.095 | J115: 1284198.9 | K115: 1022900.873

Sheet 2.10 Overheads
B1: =INDEX(dms_Worksheet_List,MATCH(dms_Model,dms_Model_List)) -> REGULATORY REPORTING STATEMENT
B2: =INDEX(dms_TradingNameFull_List,MATCH(dms_TradingName,dms_TradingName_List)) -> Powercor Australia
B3: =dms_Header_Span -> 2021-22 to 2025-26
B4: 2.10 OVERHEADS
B6: There are TWO tables on this worksheet. Each table has been 'grouped' (and sub-grouped) for easy navigation. See the Instructions sheet on how to group or ungroup data.
B8: 2.10.1 - NETWORK OVERHEADS EXPENDITURE
D9: =CONCATENATE("EXPENDITURE ($0's, real ", dms_DollarReal,")") -> EXPENDITURE ($0's, real June 2021)
D10: =CRCP_y4 -> 2019-20 | E10: =CRCP_y5 -> 2020-21 | F10: =FRCP_y1 -> 2021-22 | G10: =FRCP_y2 -> 2022-23 | H10: =FRCP_y3 -> 2023-24 | I10: =FRCP_y4 -> 2024-25 | J10: =FRCP_y5 -> 2025-26
B11: OPEX
B12: Standard Control Services | C12: Total | D12: 31875562.98 | E12: 32910598.22 | F12: 35280111.85 | G12: 36531768.04 | H12: 37809132.03 | I12: 39046753.56 | J12: 40283787.19
B13: Alternative Control Services | C13: Total | D13: 1788218.579 | E13: =D13 -> 1788218.579 | F13: 1788218.579 | G13: 1788218.579 | H13: 1788218.579 | I13: 1788218.579 | J13: 1788218.579
B14: CAPEX
B15: Standard Control Services | C15: Total | D15: 46910548.57 | E15: 48433786.64 | F15: ='2.1 Expenditure summary'!E119 -> 49502746 | G15: ='2.1 Expenditure summary'!F119 -> 51493363.99 | H15: ='2.1 Expenditure summary'!G119 -> 53041215.77 | I15: ='2.1 Expenditure summary'!H119 -> 54484704.65 | J15: ='2.1 Expenditure summary'!I119 -> 55898257.25
B16: Alternative Control Services | C16: Total | D16: 2447671.334 | E16: =D16 -> 2447671.334 | F16: 2447671.334 | G16: 2447671.334 | H16: 2447671.334 | I16: 2447671.334 | J16: 2447671.334
B17: OTHER DISTRIBUTION SERVICES
B18: Negotiated Services | C18: Total | D18: 504461.7874 | E18: =D18 -> 504461.7874 | F18: =E18 -> 504461.7874 | G18: 504461.7874 | H18: 504461.7874 | I18: 504461.7874 | J18: 504461.7874
B19: Unregulated Distribution Services | C19: Total | D19: 0 | E19: =D19 -> 0 | F19: =E19 -> 0 | G19: 0 | H19: 0 | I19: 0 | J19: 0
B23: 2.10.2 - CORPORATE OVERHEADS EXPENDITURE
D24: =CONCATENATE("EXPENDITURE ($0's, real ", dms_DollarReal,")") -> EXPENDITURE ($0's, real June 2021)
D25: =CRCP_y4 -> 2019-20 | E25: =CRCP_y5 -> 2020-21 | F25: =FRCP_y1 -> 2021-22 | G25: =FRCP_y2 -> 2022-23 | H25: =FRCP_y3 -> 2023-24 | I25: =FRCP_y4 -> 2024-25 | J25: =FRCP_y5 -> 2025-26
B26: OPEX
B27: Standard Control Services | C27: Total | D27: 88315738.63 | E27: 91183449.62 | F27: 99429501.95 | G27: 101983874.1 | H27: 105303655.8 | I27: 108312674.2 | J27: 111019029.2
B28: Alternative Control Services | C28: Total | D28: 11702014.5 | E28: =D28 -> 11702014.5 | F28: 11702014.5 | G28: 11702014.5 | H28: 11702014.5 | I28: 11702014.5 | J28: 11702014.5
B29: CAPEX
B30: Standard Control Services | C30: Total | D30: 0 | E30: =D30 -> 0 | F30: 0 | G30: 0 | H30: 0 | I30: 0 | J30: 0
B31: Alternative Control Services | C31: Total | D31: 0 | E31: 0 | F31: 0 | G31: 0 | H31: 0 | I31: 0 | J31: 0
B32: OTHER DISTRIBUTION SERVICES
B33: Negotiated Services | C33: Total | D33: 348951.4038 | E33: =D33 -> 348951.4038 | F33: =E33 -> 348951.4038 | G33: 348951.4038 | H33: 348951.4038 | I33: 348951.4038 | J33: 348951.4038
B34: Unregulated Distribution Services | C34: Total | D34: 0 | E34: =D34 -> 0 | F34: 0 | G34: 0 | H34: 0 | I34: 0 | J34: 0

Sheet 2.11 Labour
B1: =INDEX(dms_Worksheet_List,MATCH(dms_Model,dms_Model_List)) -> REGULATORY REPORTING STATEMENT
B2: =INDEX(dms_TradingNameFull_List,MATCH(dms_TradingName,dms_TradingName_List)) -> Powercor Australia
B3: =dms_Header_Span -> 2021-22 to 2025-26
B4: 2.11 LABOUR
B6: Table numbering on this worksheet starts at 2.11.3.
B8: 2.11.3 - LABOUR / NON-LABOUR EXPENDITURE SPLIT - STANDARD CONTROL SERVICES
C9: EXPENDITURE
C10: =CONCATENATE("($0's, real ", dms_DollarReal,")") -> ($0's, real June 2021)
C11: =CRCP_y4 -> 2019-20 | D11: =CRCP_y5 -> 2020-21 | E11: =FRCP_y1 -> 2021-22 | F11: =FRCP_y2 -> 2022-23 | G11: =FRCP_y3 -> 2023-24 | H11: =FRCP_y4 -> 2024-25 | I11: =FRCP_y5 -> 2025-26
B12: OPEX
B13: In-house labour expenditure
B14: Labour expenditure outsourced to related parties
B15: Labour expenditure outsourced to unrelated parties
B16: Controllable non-labour expenditure
B17: Uncontrollable non-labour expenditure
B18: Total | C18: =SUM(C13:C17) -> 0 | D18: 0 | E18: 0 | F18: 0 | G18: 0 | H18: 0 | I18: 0
B19: CAPEX
B20: In-house labour expenditure
B21: Labour expenditure outsourced to related parties
B22: Labour expenditure outsourced to unrelated parties
B23: Controllable non-labour expenditure
B24: Uncontrollable non-labour expenditure
B25: Total | C25: =SUM(C20:C24) -> 0 | D25: 0 | E25: 0 | F25: 0 | G25: 0 | H25: 0 | I25: 0

Sheet 2.14 Forecast price changes
B1: =INDEX(dms_Worksheet_List,MATCH(dms_Model,dms_Model_List)) -> REGULATORY REPORTING STATEMENT
B2: =INDEX(dms_TradingNameFull_List,MATCH(dms_TradingName,dms_TradingName_List)) -> Powercor Australia
B3: =dms_Header_Span -> 2021-22 to 2025-26
B4: 2.14 FORECAST PRICE CHANGES
B6: There is ONE table on this worksheet. It has been grouped for easy navigation. See the Instructions sheet on how to group or ungroup data.
B8: Instructions
B9: =CONCATENATE(dms_TradingName, " must provide all forecast price changes used to forecast opex and capex, including forecast changes in CPI. Forecast price changes must be expressed in real terms, except for CPI. "&"If the same escalators are not used for capex and opex, report capex and opex escalators separately. Add additional rows as required. If price changes for a given year were not used to forecast either opex or capex enter '0' for that year.") -> Powercor Australia must provide all forecast price changes used to forecast opex and capex, including forecast changes in CPI. Forecast price changes must be expressed in real terms, except for CPI. If the same escalators are not used for capex and opex, report capex and opex escalators separately. Add additional rows as required. If price changes for a given year were not used to forecast either opex or capex enter '0' for that year.
B11: 2.14.2 - FORECAST CAPEX AND OPEX PRICE CHANGES
C12: Price changes (% YoY real) Current regulatory period | E12: Price changes (%YoY real) Forthcoming regulatory period
C13: Forecast
C14: =CRCP_y4 -> 2019-20 | D14: =CRCP_y5 -> 2020-21 | E14: =FRCP_y1 -> 2021-22 | F14: =FRCP_y2 -> 2022-23 | G14: =FRCP_y3 -> 2023-24 | H14: =FRCP_y4 -> 2024-25 | I14: =FRCP_y5 -> 2025-26
B15: OPEX
B16: CPI | C16: 0.02 | D16: 0.02 | E16: 0.02399804305 | F16: 0.02399804305 | G16: 0.02399804305 | H16: 0.02399804305 | I16: 0.02399804305
B17: Real labour escalation | C17: 0.0143 | D17: 0.0138 | E17: 0.02003652968 | F17: 0.02172318182 | G17: 0.02160180995 | H17: 0.01906981982 | I17: 0.01714080717
B18: Real non-labour escalation | C18: 0 | D18: 0 | E18: 0 | F18: 0 | G18: 0 | H18: 0 | I18: 0
B19: CAPEX
B20: CPI
B21: Real labour escalation | C21: =C17 -> 0.0143 | D21: =D17 -> 0.0138 | E21: 0.02003652968 | F21: 0.02172318182 | G21: 0.02160180995 | H21: 0.01906981982 | I21: 0.01714080717
B22: Real materials escalation | C22: 0 | D22: 0 | E22: 0 | F22: 0 | G22: 0 | H22: 0 | I22: 0
B23: Real contracts escalaction | C23: 0.0047 | D23: 0.0056 | E23: 0.01431050228 | F23: 0.01921181818 | G23: 0.01878914027 | H23: 0.01394684685 | I23: 0.01442869955

Sheet 2.16 Opex Summary
B1: =INDEX(dms_Worksheet_List,MATCH(dms_Model,dms_Model_List)) -> REGULATORY REPORTING STATEMENT
B2: =INDEX(dms_TradingNameFull_List,MATCH(dms_TradingName,dms_TradingName_List)) -> Powercor Australia
B3: =dms_Header_Span -> 2021-22 to 2025-26
B4: 2.16 OPEX SUMMARY
B6: There are FOUR tables on this worksheet. Each table has been 'grouped' (and 'sub-grouped') for easy navigation. See the Instructions sheet on how to group or ungroup data.
B8: Instructions | J8: IMPORTANT!
B9: =CONCATENATE("Complete the tables below in accordance with the regulatory information notice. ",dms_TradingName,"'s total forecast opex must reconcile to Table 2.16.1 (and if ",dms_TradingName," owns any dual function assets Table 2.16.3). If ",dms_TradingName," did not forecast its total opex using a Base Year approach, total forecast opex must reconcile to Table 2.16.2 (and if ",dms_TradingName," owns any dual function assets Table 2.16.4).") -> Complete the tables below in accordance with the regulatory information notice. Powercor Australia's total forecast opex must reconcile to Table 2.16.1 (and if Powercor Australia owns any dual function assets Table 2.16.3). If Powercor Australia did not forecast its total opex using a Base Year approach, total forecast opex must reconcile to Table 2.16.2 (and if Powercor Australia owns any dual function assets Table 2.16.4). | J9: =CONCATENATE("Has ",dms_TradingName," used a base-step-trend model to derive its opex forecast? ") -> Has Powercor Australia used a base-step-trend model to derive its opex forecast? | L9: Yes
B10: =CONCATENATE("If ",dms_TradingName," does not own any dual function assets,Table 2.16.3 and 2.16.4 may be left blank.") -> If Powercor Australia does not own any dual function assets,Table 2.16.3 and 2.16.4 may be left blank. | J10: Yes / No
B11: The total step changes in Table 2.16.1 and Table 2.16.3 must "&"reconcile (in each year) to the total step changes for each year in Table 2.17.1 and Table 2.17.3 of worksheet '2.17 Step Changes', respectively.") | J11: Please nominate the base year. | L11: 2019
B14: 2.16.1 - STANDARD CONTROL SERVICES - OPEX BY DRIVER
C15: EXPENDITURE
C16: =CONCATENATE("Forecast ($0's, real ", dms_DollarReal,")") -> Forecast ($0's, real June 2021)
C17: 2017 | D17: 2018 | E17: 2019 | F17: 2020 | G17: 2021 | H17: =FRCP_y1 -> 2021-22 | I17: =FRCP_y2 -> 2022-23 | J17: =FRCP_y3 -> 2023-24 | K17: =FRCP_y4 -> 2024-25 | L17: =FRCP_y5 -> 2025-26
B18: Base year total opex, excluding category specific | E18: 243644410.4 | F18: =E18 -> 243644410.4 | G18: =F18 -> 243644410.4 | H18: =G25-G24 -> 254105649.5 | I18: =H18 -> 254105649.5 | J18: =I18 -> 254105649.5 | K18: 254105649.5 | L18: 254105649.5
B19: Increment from base year to final year | G19: 10461239.04
B20: Price growth | H20: 4090890.632 | I20: 8653672.23 | J20: 13326288.16 | K20: 17571575.31 | L20: 21492137.73
B21: Output growth | H21: 5730990.158 | I21: 10656898.9 | J21: 15666216.4 | K21: 20668211.06 | L21: 25871978.41
B22: Productivity growth | H22: -1353149.857 | I22: -2746977.417 | J22: -4182245.505 | K22: -5656573.663 | L22: -7169151.828
B23: Step changes | H23: 11284348.44 | I23: 11364640.26 | J23: 12836819.47 | K23: 13016286.56 | L23: 13424573.53
B24: Category specific | G24: 6702441.141 | H24: =G24 -> 6702441.141 | I24: =H24 -> 6702441.141 | J24: 6702441.141 | K24: 6702441.141 | L24: 6702441.141
B25: Total opex | C25: =SUM(C18:C24) -> 0 | D25: 0 | E25: 243644410.4 | F25: 243644410.4 | G25: 260808090.6 | H25: 280561170 | I25: 288736324.6 | J25: 298455169.1 | K25: 306407589.9 | L25: 314427628.5
B28: 2.16.2 - STANDARD CONTROL SERVICES - OPEX BY CATEGORY
C29: EXPENDITURE
C30: =CONCATENATE("Forecast ($0's, real ", dms_DollarReal,")") -> Forecast ($0's, real June 2021)
C31: =CRCP_y1 -> 2016-17 | D31: =CRCP_y2 -> 2017-18 | E31: =CRCP_y3 -> 2018-19 | F31: =CRCP_y4 -> 2019-20 | G31: =CRCP_y5 -> 2020-21 | H31: =FRCP_y1 -> 2021-22 | I31: =FRCP_y2 -> 2022-23 | J31: =FRCP_y3 -> 2023-24 | K31: =FRCP_y4 -> 2024-25 | L31: =FRCP_y5 -> 2025-26
B32: Vegetation management
B33: Maintenance
B34: Emergency response
B35: Non-network
B36: Metering
B37: Network overheads
B38: Corporate overheads
B39: Total opex | C39: =SUM(C32:C38) -> 0 | D39: 0 | E39: 0 | F39: 0 | G39: 0 | H39: 0 | I39: 0 | J39: 0 | K39: 0 | L39: 0
B42: 2.16.3 - DUAL FUNCTION ASSETS - OPEX BY DRIVER
C43: EXPENDITURE
C44: =CONCATENATE("Forecast ($0's, real ", dms_DollarReal,")") -> Forecast ($0's, real June 2021)
C45: 2017 | D45: 2018 | E45: 2019 | F45: 2020 | G45: 2021 | H45: =FRCP_y1 -> 2021-22 | I45: =FRCP_y2 -> 2022-23 | J45: =FRCP_y3 -> 2023-24 | K45: =FRCP_y4 -> 2024-25 | L45: =FRCP_y5 -> 2025-26
B46: Base year total opex, excluding category specific
B47: Increment from base year to final year
B48: Price growth
B49: Output growth
B50: Productivity growth
B51: Step changes
B52: Category specific
B53: Total opex | C53: =SUM(C46:C52) -> 0 | D53: 0 | E53: 0 | F53: 0 | G53: 0 | H53: 0 | I53: 0 | J53: 0 | K53: 0 | L53: 0
B56: 2.16.4 - DUAL FUNCTION ASSETS - OPEX BY CATEGORY
C57: EXPENDITURE
C58: =CONCATENATE("Forecast ($0's, real ", dms_DollarReal,")") -> Forecast ($0's, real June 2021)
C59: =CRCP_y1 -> 2016-17 | D59: =CRCP_y2 -> 2017-18 | E59: =CRCP_y3 -> 2018-19 | F59: =CRCP_y4 -> 2019-20 | G59: =CRCP_y5 -> 2020-21 | H59: =FRCP_y1 -> 2021-22 | I59: =FRCP_y2 -> 2022-23 | J59: =FRCP_y3 -> 2023-24 | K59: =FRCP_y4 -> 2024-25 | L59: =FRCP_y5 -> 2025-26
B60: Vegetation management
B61: Maintenance
B62: Emergency response
B63: Non-network
B64: Metering
B65: Network overheads
B66: Corporate overheads
B67: Total opex | C67: =SUM(C60:C66) -> 0 | D67: 0 | E67: 0 | F67: 0 | G67: 0 | H67: 0 | I67: 0 | J67: 0 | K67: 0 | L67: 0

Sheet 2.17 Step Changes
B1: =INDEX(dms_Worksheet_List,MATCH(dms_Model,dms_Model_List)) -> REGULATORY REPORTING STATEMENT
B2: =INDEX(dms_TradingNameFull_List,MATCH(dms_TradingName,dms_TradingName_List)) -> Powercor Australia
B3: =dms_Header_Span -> 2021-22 to 2025-26
B4: 2.17 STEP CHANGES
B6: There are FIVE tables on this worksheet. Each table has been 'grouped' (and 'sub-grouped') for easy navigation. See the Instructions sheet on how to group or ungroup data.
B8: 2.17.1 - STEP CHANGES FOR STANDARD CONTROL SERVICES - FORECAST OPEX
E9: EXPENDITURE
E10: =CONCATENATE("Forecast ($0's, real ", dms_DollarReal, ")") -> Forecast ($0's, real June 2021)
B11: Step change | C11: Description | E11: =CRCP_y4 -> 2019-20 | F11: =CRCP_y5 -> 2020-21 | G11: =FRCP_y1 -> 2021-22 | H11: =FRCP_y2 -> 2022-23 | I11: =FRCP_y3 -> 2023-24 | J11: =FRCP_y4 -> 2024-25 | K11: =FRCP_y5 -> 2025-26
B12: Refer to 2.17a Step changes worksheet
B22: Total | E22: =SUM(E12:E21) -> 0 | F22: 0 | G22: 0 | H22: 0 | I22: 0 | J22: 0 | K22: 0
B23: Check | G23: =IF(ROUND(G$22,0)-ROUND('2.16 Opex Summary'!H$23,0)=0,"OK","Error") -> Error | H23: =IF(ROUND(H$22,0)-ROUND('2.16 Opex Summary'!I$23,0)=0,"OK","Error") -> Error | I23: =IF(ROUND(I$22,0)-ROUND('2.16 Opex Summary'!J$23,0)=0,"OK","Error") -> Error | J23: =IF(ROUND(J$22,0)-ROUND('2.16 Opex Summary'!K$23,0)=0,"OK","Error") -> Error | K23: =IF(ROUND(K$22,0)-ROUND('2.16 Opex Summary'!L$23,0)=0,"OK","Error") -> Error
B25: 2.17.2 - STEP CHANGES FOR STANDARD CONTROL SERVICES - FORECAST CAPEX
E26: EXPENDITURE
E27: =CONCATENATE("Forecast ($0's, real ", dms_DollarReal, ")") -> Forecast ($0's, real June 2021)
B28: Step change | C28: Description | E28: =CRCP_y4 -> 2019-20 | F28: =CRCP_y5 -> 2020-21 | G28: =FRCP_y1 -> 2021-22 | H28: =FRCP_y2 -> 2022-23 | I28: =FRCP_y3 -> 2023-24 | J28: =FRCP_y4 -> 2024-25 | K28: =FRCP_y5 -> 2025-26
B39: Total | E39: =SUM(E29:E38) -> 0 | F39: 0 | G39: 0 | H39: 0 | I39: 0 | J39: 0 | K39: 0
B41: 2.17.3 - STEP CHANGES FOR DUAL FUNCTION ASSETS - FORECAST OPEX
E42: EXPENDITURE
E43: =CONCATENATE("Forecast ($0's, real ", dms_DollarReal, ")") -> Forecast ($0's, real June 2021)
B44: Step change | C44: Description | E44: =CRCP_y4 -> 2019-20 | F44: =CRCP_y5 -> 2020-21 | G44: =FRCP_y1 -> 2021-22 | H44: =FRCP_y2 -> 2022-23 | I44: =FRCP_y3 -> 2023-24 | J44: =FRCP_y4 -> 2024-25 | K44: =FRCP_y5 -> 2025-26
B55: Total | E55: =SUM(E45:E54) -> 0 | F55: 0 | G55: 0 | H55: 0 | I55: 0 | J55: 0 | K55: 0
B56: Check | G56: =IF(ROUND(G$22,0)-ROUND('2.16 Opex Summary'!H$51,0)=0,"OK","Error") -> OK | H56: =IF(ROUND(H$22,0)-ROUND('2.16 Opex Summary'!I$51,0)=0,"OK","Error") -> OK | I56: =IF(ROUND(I$22,0)-ROUND('2.16 Opex Summary'!J$51,0)=0,"OK","Error") -> OK | J56: =IF(ROUND(J$22,0)-ROUND('2.16 Opex Summary'!K$51,0)=0,"OK","Error") -> OK | K56: =IF(ROUND(K$22,0)-ROUND('2.16 Opex Summary'!L$51,0)=0,"OK","Error") -> OK
B58: 2.17.4 - STEP CHANGES FOR DUAL FUNCTION ASSETS - FORECAST CAPEX
E59: EXPENDITURE
E60: =CONCATENATE("Forecast ($0's, real ", dms_DollarReal, ")") -> Forecast ($0's, real June 2021)
B61: Step change | C61: Description | E61: =CRCP_y4 -> 2019-20 | F61: =CRCP_y5 -> 2020-21 | G61: =FRCP_y1 -> 2021-22 | H61: =FRCP_y2 -> 2022-23 | I61: =FRCP_y3 -> 2023-24 | J61: =FRCP_y4 -> 2024-25 | K61: =FRCP_y5 -> 2025-26
B72: Total | E72: =SUM(E62:E71) -> 0 | F72: 0 | G72: 0 | H72: 0 | I72: 0 | J72: 0 | K72: 0
B75: 2.17.5 - FORECAST CATEGORY SPECIFIC OPEX
D76: EXPENDITURE
D77: =CONCATENATE("Forecast ($0's, real ", dms_DollarReal, ")") -> Forecast ($0's, real June 2021)
B78: Category | C78: Description | D78: =CRCP_y3 -> 2018-19 | E78: =CRCP_y4 -> 2019-20 | F78: =CRCP_y5 -> 2020-21 | G78: =FRCP_y1 -> 2021-22 | H78: =FRCP_y2 -> 2022-23 | I78: =FRCP_y3 -> 2023-24 | J78: =FRCP_y4 -> 2024-25 | K78: =FRCP_y5 -> 2025-26
B79: Emergency recoverable works | C79: Reclassification from unclassified to standard control | G79: 250127.109 | H79: =G79 -> 250127.109 | I79: =H79 -> 250127.109 | J79: 250127.109 | K79: 250127.109
B80: Communications network | C80: Reclassification from metering services to standard control | G80: 1486062.84 | H80: =G80 -> 1486062.84 | I80: 1486062.84 | J80: 1486062.84 | K80: 1486062.84
B81: Wasted truck visits | C81: Reclassification from alternative control services to standard control | G81: 1211421.446 | H81: =G81 -> 1211421.446 | I81: 1211421.446 | J81: 1211421.446 | K81: 1211421.446
B82: Replacement expenditure on faults and minor repairs | C82: Reclassification from capital expenditure to operating expenditure | G82: 3754829.746 | H82: =G82 -> 3754829.746 | I82: 3754829.746 | J82: 3754829.746 | K82: 3754829.746
B89: Total | D89: =SUM(D86:D88) -> 0 | E89: 0 | F89: 0 | G89: =SUM(G79:G88) -> 6702441.141 | H89: =SUM(H79:H88) -> 6702441.141 | I89: 6702441.141 | J89: 6702441.141 | K89: 6702441.141

Sheet 2.17a Step changes
B1: =INDEX(dms_Worksheet_List,MATCH(dms_Model,dms_Model_List)) -> REGULATORY REPORTING STATEMENT
B2: =INDEX(dms_TradingNameFull_List,MATCH(dms_TradingName,dms_TradingName_List)) -> Powercor Australia
B3: =dms_Header_Span -> 2021-22 to 2025-26
B4: 2.17 STEP CHANGES
B6: There are FIVE tables on this worksheet. Each table has been 'grouped' (and 'sub-grouped') for easy navigation. See the Instructions sheet on how to group or ungroup data.
B8: 2.17.1 - STEP CHANGES FOR STANDARD CONTROL SERVICES - FORECAST OPEX
E9: EXPENDITURE
E10: =CONCATENATE("Forecast ($0's, real ", dms_DollarReal, ")") -> Forecast ($0's, real June 2021)
B11: Step change | C11: Description | E11: =CRCP_y4 -> 2019-20 | F11: =CRCP_y5 -> 2020-21 | G11: =FRCP_y1 -> 2021-22 | H11: =FRCP_y2 -> 2022-23 | I11: =FRCP_y3 -> 2023-24 | J11: =FRCP_y4 -> 2024-25 | K11: =FRCP_y5 -> 2025-26
B12: Security of critical infrastructure | C12: To comply with new critical infrastructure system and data control regulatory obligations | G12: 3068446.469 | H12: 2784226.427 | I12: 2830297.589 | J12: 2871641.652 | K12: 2909346.395
B13: Replacing EDO fuses with fault tamers | C13: Material increase in fuse maintenance to reduce the risk of EDO fuses starting a bushfire | G13: 2178940.719 | H13: 2208855.513 | I13: 2238957.772 | J13: 2265121.421 | K13: 2288234.318
B14: REFCL on-going operating expenditure | C14: To comply with the Amended Bushfire Mitigation Regulations | G14: 1173115.284 | H14: 1294672.996 | I14: 1867402.943 | J14: 2018060.802 | K14: 2044558.002
B15: Solar enablement | C15: Operating expenditure associated with enabling more solar on the network | G15: 1346199.257 | H15: 1320574.331 | I15: 1516588.292 | J15: 971011.7296 | K15: 1008016.901
B16: IT cloud solutions | C16: Reducing costs and delivering customer benefits by migrating IT infrastructure to cloud | G16: 854450.4892 | H16: 857034.6086 | I16: 1241599.482 | J16: 1486357.77 | K16: 1488921.658
B17: Increasing insurance premiums | C17: Material increase in insurance premiums due to worsening global insurance market conditions | G17: 1008324.22 | H17: 1008324.22 | I17: 1008324.22 | J17: 1008324.22 | K17: 1008324.22
B18: 5 minute settlement | C18: To comply with the 5-minute settlement rule change | G18: 557800.4269 | H18: 761243.3479 | I18: 971216.7669 | J18: 1201025.498 | K18: 1450387.962
B19: ESV levy | C19: Material increase in ESV levy | G19: 743069.1999 | H19: 769815.7743 | I19: 796584.1458 | J19: 823551.015 | K19: 850717.8538
B20: Financial year RIN | C20: Prepare and audit an additional RIN on annual basis for calendar year accounts | G20: 354002.3762 | H20: 359893.0379 | I20: 365848.2613 | J20: 371192.4533 | K20: 376066.2215
B23: Total | E23: =SUM(E12:E22) -> 0 | F23: 0 | G23: 11284348.44 | H23: 11364640.26 | I23: 12836819.47 | J23: 13016286.56 | K23: 13424573.53
B24: Check | G24: =IF(ROUND(G$23,0)-ROUND('2.16 Opex Summary'!H$23,0)=0,"OK","Error") -> OK | H24: =IF(ROUND(H$23,0)-ROUND('2.16 Opex Summary'!I$23,0)=0,"OK","Error") -> OK | I24: =IF(ROUND(I$23,0)-ROUND('2.16 Opex Summary'!J$23,0)=0,"OK","Error") -> OK | J24: =IF(ROUND(J$23,0)-ROUND('2.16 Opex Summary'!K$23,0)=0,"OK","Error") -> OK | K24: =IF(ROUND(K$23,0)-ROUND('2.16 Opex Summary'!L$23,0)=0,"OK","Error") -> OK
B26: 2.17.2 - STEP CHANGES FOR STANDARD CONTROL SERVICES - FORECAST CAPEX
E27: EXPENDITURE
E28: =CONCATENATE("Forecast ($0's, real ", dms_DollarReal, ")") -> Forecast ($0's, real June 2021)
B29: Step change | C29: Description | E29: =CRCP_y4 -> 2019-20 | F29: =CRCP_y5 -> 2020-21 | G29: =FRCP_y1 -> 2021-22 | H29: =FRCP_y2 -> 2022-23 | I29: =FRCP_y3 -> 2023-24 | J29: =FRCP_y4 -> 2024-25 | K29: =FRCP_y5 -> 2025-26
B40: Total | E40: =SUM(E30:E39) -> 0 | F40: 0 | G40: 0 | H40: 0 | I40: 0 | J40: 0 | K40: 0
B42: 2.17.3 - STEP CHANGES FOR DUAL FUNCTION ASSETS - FORECAST OPEX
E43: EXPENDITURE
E44: =CONCATENATE("Forecast ($0's, real ", dms_DollarReal, ")") -> Forecast ($0's, real June 2021)
B45: Step change | C45: Description | E45: =CRCP_y4 -> 2019-20 | F45: =CRCP_y5 -> 2020-21 | G45: =FRCP_y1 -> 2021-22 | H45: =FRCP_y2 -> 2022-23 | I45: =FRCP_y3 -> 2023-24 | J45: =FRCP_y4 -> 2024-25 | K45: =FRCP_y5 -> 2025-26
B56: Total | E56: =SUM(E46:E55) -> 0 | F56: 0 | G56: 0 | H56: 0 | I56: 0 | J56: 0 | K56: 0
B57: Check | G57: =IF(ROUND(G$23,0)-ROUND('2.16 Opex Summary'!H$51,0)=0,"OK","Error") -> Error | H57: =IF(ROUND(H$23,0)-ROUND('2.16 Opex Summary'!I$51,0)=0,"OK","Error") -> Error | I57: =IF(ROUND(I$23,0)-ROUND('2.16 Opex Summary'!J$51,0)=0,"OK","Error") -> Error | J57: =IF(ROUND(J$23,0)-ROUND('2.16 Opex Summary'!K$51,0)=0,"OK","Error") -> Error | K57: =IF(ROUND(K$23,0)-ROUND('2.16 Opex Summary'!L$51,0)=0,"OK","Error") -> Error
B59: 2.17.4 - STEP CHANGES FOR DUAL FUNCTION ASSETS - FORECAST CAPEX
E60: EXPENDITURE
E61: =CONCATENATE("Forecast ($0's, real ", dms_DollarReal, ")") -> Forecast ($0's, real June 2021)
B62: Step change | C62: Description | E62: =CRCP_y4 -> 2019-20 | F62: =CRCP_y5 -> 2020-21 | G62: =FRCP_y1 -> 2021-22 | H62: =FRCP_y2 -> 2022-23 | I62: =FRCP_y3 -> 2023-24 | J62: =FRCP_y4 -> 2024-25 | K62: =FRCP_y5 -> 2025-26
B73: Total | E73: =SUM(E63:E72) -> 0 | F73: 0 | G73: 0 | H73: 0 | I73: 0 | J73: 0 | K73: 0
B76: 2.17.5 - FORECAST CATEGORY SPECIFIC OPEX
D77: EXPENDITURE
D78: =CONCATENATE("Forecast ($0's, real ", dms_DollarReal, ")") -> Forecast ($0's, real June 2021)
B79: Category | C79: Description | D79: =CRCP_y3 -> 2018-19 | E79: =CRCP_y4 -> 2019-20 | F79: =CRCP_y5 -> 2020-21 | G79: =FRCP_y1 -> 2021-22 | H79: =FRCP_y2 -> 2022-23 | I79: =FRCP_y3 -> 2023-24 | J79: =FRCP_y4 -> 2024-25 | K79: =FRCP_y5 -> 2025-26
B90: Total | D90: =SUM(D87:D89) -> 0 | E90: 0 | F90: 0 | G90: 0 | H90: 0 | I90: 0 | J90: 0 | K90: 0

Sheet 3.1 Revenue
B1: =INDEX(dms_Worksheet_List,MATCH(dms_Model,dms_Model_List)) -> REGULATORY REPORTING STATEMENT
B2: =INDEX(dms_TradingNameFull_List,MATCH(dms_TradingName,dms_TradingName_List)) -> Powercor Australia
B3: =dms_Header_Span -> 2021-22 to 2025-26
B4: 3.1 REVENUE
B6: There are THREE tables on this worksheet. Each table has been 'grouped' (and 'sub-grouped') for easy navigation. See the Instructions sheet on how to group or ungroup data.
B8: 3.1.1 - REVENUE GROUPING BY CHARGEABLE QUANTITY
C9: Standard control services | K9: Alternative control services
C10: REVENUE | K10: REVENUE
C11: =CONCATENATE("Forecast ($0's, real ", dms_DollarReal,")") -> Forecast ($0's, real June 2021) | K11: =CONCATENATE("Forecast ($0's, real ", dms_DollarReal,")") -> Forecast ($0's, real June 2021)
C12: =CRCP_y4 -> 2019-20 | D12: =CRCP_y5 -> 2020-21 | E12: =FRCP_y1 -> 2021-22 | F12: =FRCP_y2 -> 2022-23 | G12: =FRCP_y3 -> 2023-24 | H12: =FRCP_y4 -> 2024-25 | I12: =FRCP_y5 -> 2025-26 | K12: =CRCP_y4 -> 2019-20 | L12: =CRCP_y5 -> 2020-21 | M12: =FRCP_y1 -> 2021-22 | N12: =FRCP_y2 -> 2022-23 | O12: =FRCP_y3 -> 2023-24 | P12: =FRCP_y4 -> 2024-25 | Q12: =FRCP_y5 -> 2025-26
A13: DREV0101 | B13: Revenue from Fixed Customer Charges | C13: 164577459 | D13: 166159094.9 | E13: 166899200 | F13: 166512685.9 | G13: 166064563.6 | H13: 165524933.2 | I13: 164910756.4 | K13: 0 | L13: 0 | M13: 0 | N13: 0 | O13: 0 | P13: 0 | Q13: 0
A14: DREV0102 | B14: Revenue from Energy Delivery charges where time of use is not a determinant | C14: 159747750.4 | D14: 147986372.1 | E14: 142690221.9 | F14: 129932128.1 | G14: 115904060.4 | H14: 102030893.4 | I14: 88300825.8 | K14: 0 | L14: 0 | M14: 0 | N14: 0 | O14: 0 | P14: 0 | Q14: 0
A15: DREV0103 | B15: Revenue from On–Peak Energy Delivery charges | C15: 154912328.1 | D15: 144734469.2 | E15: 168572387.1 | F15: 176550096 | G15: 185428716 | H15: 194256885 | I15: 203033517.7 | K15: 0 | L15: 0 | M15: 0 | N15: 0 | O15: 0 | P15: 0 | Q15: 0
A16: DREV0104 | B16: Revenue from Shoulder period Energy Delivery Charges | C16: 427591.641 | D16: 395888.6374 | E16: 400059.6823 | F16: 0 | G16: 0 | H16: 0 | I16: 0 | K16: 0 | L16: 0 | M16: 0 | N16: 0 | O16: 0 | P16: 0 | Q16: 0
A17: DREV0105 | B17: Revenue from Off–Peak Energy Delivery charges | C17: 53801027.08 | D17: 50125324.67 | E17: 59654343.63 | F17: 65317083.72 | G17: 70899871.79 | H17: 76442533.69 | I17: 81945897.61 | K17: 0 | L17: 0 | M17: 0 | N17: 0 | O17: 0 | P17: 0 | Q17: 0
A18: DREV0106 | B18: Revenue from controlled load customer charges | C18: 5902165.956 | D18: 5464560.608 | E18: 5794343.155 | F18: 5790610.309 | G18: 5791186.397 | H18: 5792821.943 | I18: 5795325.843 | K18: 0 | L18: 0 | M18: 0 | N18: 0 | O18: 0 | P18: 0 | Q18: 0
A19: DREV0107 | B19: Revenue from unmetered supplies | C19: 6282132.052 | D19: 5816354.81 | E19: 6167367.9 | F19: 6163394.742 | G19: 6164007.918 | H19: 6165748.756 | I19: 6168413.851 | K19: 0 | L19: 0 | M19: 0 | N19: 0 | O19: 0 | P19: 0 | Q19: 0
A20: DREV0108 | B20: Revenue from Contracted Maximum Demand charges | C20: 0 | D20: 0 | E20: 0 | F20: 0 | G20: 0 | H20: 0 | I20: 0 | K20: 0 | L20: 0 | M20: 0 | N20: 0 | O20: 0 | P20: 0 | Q20: 0
A21: DREV0109 | B21: Revenue from Measured Maximum Demand charges | C21: 139042991.1 | D21: 128733901.7 | E21: 136715615.2 | F21: 136627539.9 | G21: 136641132.5 | H21: 136679722.7 | I21: 136738801.3 | K21: 0 | L21: 0 | M21: 0 | N21: 0 | O21: 0 | P21: 0 | Q21: 0
A22: DREV0110 | B22: Revenue from metering charges | C22: 0 | D22: 0 | E22: 0 | F22: 0 | G22: 0 | H22: 0 | I22: 0 | K22: 57925370.02 | L22: 28962715.02 | M22: 52082568.55 | N22: 52082568.55 | O22: 52082568.55 | P22: 52082568.55 | Q22: 52082568.55
A23: DREV0111 | B23: Revenue from connection charges | C23: 0 | D23: 0 | E23: 0 | F23: 0 | G23: 0 | H23: 0 | I23: 0 | K23: =SUM('4.2 Metering'!E44:E46) -> 16019790.23 | L23: =SUM('4.2 Metering'!F44:F46) -> 16113926.66 | M23: =SUM('4.2 Metering'!G44:G46) -> 16511051.8 | N23: =SUM('4.2 Metering'!H44:H46) -> 16317668.8 | O23: =SUM('4.2 Metering'!I44:I46) -> 16436754.98 | P23: =SUM('4.2 Metering'!J44:J46) -> 16435314.18 | Q23: =SUM('4.2 Metering'!K44:K46) -> 16480991.4
A24: DREV0112 | B24: Revenue from public lighting charges | C24: 0 | D24: 0 | E24: 0 | F24: 0 | G24: 0 | H24: 0 | I24: 0 | K24: 8604916.357 | L24: 8777014.684 | M24: 9417920.957 | N24: 9082654.015 | O24: 8821112.365 | P24: 8632995.486 | Q24: 8555235.057
A25: DREV0113 | B25: Revenue from other Sources | C25: 0 | D25: 0 | E25: 0 | F25: 0 | G25: 0 | H25: 0 | I25: 0 | K25: =L25/1.02 -> 14671417.13 | L25: =M25/1.02 -> 14964845.47 | M25: 15264142.38 | N25: 15320694.77 | O25: 15378375.95 | P25: 15437142.64 | Q25: 15497030.58
A26: DREV01 | B26: Total revenue by chargeable quantity | C26: =SUM(C13:C25) -> 684693445.3 | D26: 649415966.6 | E26: 686893538.6 | F26: 686893538.6 | G26: 686893538.6 | H26: 686893538.6 | I26: 686893538.6 | K26: =SUM(K13:K25) -> 97221493.74 | L26: 68818501.84 | M26: 93275683.69 | N26: 92803586.14 | O26: 92718811.85 | P26: 92588020.86 | Q26: 92615825.59
B29: 3.1.2 - REVENUE GROUPING BY CUSTOMER TYPE OR CLASS
C30: Standard control services | K30: Alternative control services
C31: REVENUE | K31: REVENUE
C32: =CONCATENATE("Forecast ($0's, real ", dms_DollarReal,")") -> Forecast ($0's, real June 2021) | K32: =CONCATENATE("Forecast ($0's, real ", dms_DollarReal,")") -> Forecast ($0's, real June 2021)
C33: =CRCP_y4 -> 2019-20 | D33: =CRCP_y5 -> 2020-21 | E33: =FRCP_y1 -> 2021-22 | F33: =FRCP_y2 -> 2022-23 | G33: =FRCP_y3 -> 2023-24 | H33: =FRCP_y4 -> 2024-25 | I33: =FRCP_y5 -> 2025-26 | K33: =CRCP_y4 -> 2019-20 | L33: =CRCP_y5 -> 2020-21 | M33: =FRCP_y1 -> 2021-22 | N33: =FRCP_y2 -> 2022-23 | O33: =FRCP_y3 -> 2023-24 | P33: =FRCP_y4 -> 2024-25 | Q33: =FRCP_y5 -> 2025-26
A34: DREV0201 | B34: Revenue from residential Customers | C34: 291571885.6 | D34: 280173099.7 | E34: 289530258.6 | F34: 289378317 | G34: 289006881.5 | H34: 288614110.9 | I34: 288204265.2 | K34: 0 | L34: 0 | M34: 0 | N34: 0 | O34: 0 | P34: 0 | Q34: 0
A35: DREV0202 | B35: Revenue from Non residential customers not on demand tariffs | C35: 82495103.93 | D35: 77713982.24 | E35: 90492092.27 | F35: 90921376.89 | G35: 91394973.84 | H35: 91868633.16 | I35: 92341802 | K35: 0 | L35: 0 | M35: 0 | N35: 0 | O35: 0 | P35: 0 | Q35: 0
A36: DREV0203 | B36: Revenue from Non-residential low voltage demand tariff customers | C36: 167898248.6 | D36: 157566000.6 | E36: 165644138.5 | F36: 165494600.8 | G36: 165439735 | H36: 165396425.3 | I36: 165362657 | K36: 0 | L36: 0 | M36: 0 | N36: 0 | O36: 0 | P36: 0 | Q36: 0
A37: DREV0204 | B37: Revenue from Non-residential high voltage demand tariff customers | C37: 53670047.08 | D37: 50425627.08 | E37: 53380048.53 | F37: 53330735.21 | G37: 53311182.57 | H37: 53294862.46 | I37: 53281216.17 | K37: 0 | L37: 0 | M37: 0 | N37: 0 | O37: 0 | P37: 0 | Q37: 0
A38: DREV0205 | B38: Revenue from unmetered supplies | C38: 6282132.052 | D38: 5816354.81 | E38: 6167367.9 | F38: 6163394.742 | G38: 6164007.918 | H38: 6165748.756 | I38: 6168413.851 | K38: 0 | L38: 0 | M38: 0 | N38: 0 | O38: 0 | P38: 0 | Q38: 0
A39: DREV0206 | B39: Revenue from Other Customers | C39: 82776027.98 | D39: 77720902.1 | E39: 81679632.84 | F39: 81605113.89 | G39: 81576757.72 | H39: 81553758.05 | I39: 81535184.45 | K39: 0 | L39: 0 | M39: 0 | N39: 0 | O39: 0 | P39: 0 | Q39: 0
A40: DREV02 | B40: Total revenue by customer class | C40: =SUM(C34:C39) -> 684693445.3 | D40: 649415966.6 | E40: 686893538.6 | F40: 686893538.6 | G40: 686893538.6 | H40: 686893538.6 | I40: 686893538.6 | K40: =SUM(K34:K39) -> 0 | L40: 0 | M40: 0 | N40: 0 | O40: 0 | P40: 0 | Q40: 0
B43: 3.1.3 - REVENUE (penalties) ALLOWED (deducted) THROUGH INCENTIVE SCHEMES
C44: Standard control services | K44: Alternative control services
C45: REVENUE | K45: REVENUE
C46: =CONCATENATE("Forecast ($0's, real ", dms_DollarReal,")") -> Forecast ($0's, real June 2021) | K46: =CONCATENATE("Forecast ($0's, real ", dms_DollarReal,")") -> Forecast ($0's, real June 2021)
C47: =CRCP_y4 -> 2019-20 | D47: =CRCP_y5 -> 2020-21 | E47: =FRCP_y1 -> 2021-22 | F47: =FRCP_y2 -> 2022-23 | G47: =FRCP_y3 -> 2023-24 | H47: =FRCP_y4 -> 2024-25 | I47: =FRCP_y5 -> 2025-26 | K47: =CRCP_y4 -> 2019-20 | L47: =CRCP_y5 -> 2020-21 | M47: =FRCP_y1 -> 2021-22 | N47: =FRCP_y2 -> 2022-23 | O47: =FRCP_y3 -> 2023-24 | P47: =FRCP_y4 -> 2024-25 | Q47: =FRCP_y5 -> 2025-26
A48: DREV0301 | B48: EBSS | C48: 5399908.291 | D48: 0 | E48: 7840816.606 | F48: -579127.1101 | G48: -4073953.291 | H48: -3234056.787 | I48: 0 | K48: 0 | L48: 0 | M48: 0 | N48: 0 | O48: 0 | P48: 0 | Q48: 0
A49: DREV0302 | B49: STPIS | C49: 16525331.75 | D49: 9025331.747 | E49: 0 | F49: 0 | G49: 0 | H49: 0 | I49: 0 | K49: 0 | L49: 0 | M49: 0 | N49: 0 | O49: 0 | P49: 0 | Q49: 0
A50: DREV0303 | B50: F-Factor | C50: 2817150 | D50: 497550 | E50: 0 | F50: 0 | G50: 0 | H50: 0 | I50: 0 | K50: 0 | L50: 0 | M50: 0 | N50: 0 | O50: 0 | P50: 0 | Q50: 0
A51: DREV0304 | B51: S-Factor True up | C51: 0 | D51: 0 | E51: 0 | F51: 0 | G51: 0 | H51: 0 | I51: 0 | K51: 0 | L51: 0 | M51: 0 | N51: 0 | O51: 0 | P51: 0 | Q51: 0
A52: DREV0305 | B52: Other | C52: 656896.98 | D52: 328448.49 | E52: 16215611.63 | F52: 16211480.12 | G52: 16226412.86 | H52: 16230479.78 | I52: 16242255.72 | K52: 0 | L52: 0 | M52: 0 | N52: 0 | O52: 0 | P52: 0 | Q52: 0
A53: DREV03 | B53: Total revenue of incentive schemes | C53: =SUM(C48:C52) -> 25399287.02 | D53: 9851330.237 | E53: 24056428.24 | F53: 15632353.01 | G53: 12152459.57 | H53: 12996423 | I53: 16242255.72 | K53: =SUM(K48:K52) -> 0 | L53: 0 | M53: 0 | N53: 0 | O53: 0 | P53: 0 | Q53: 0

Sheet 3.2 Operating expenditure
B1: =INDEX(dms_Worksheet_List,MATCH(dms_Model,dms_Model_List)) -> REGULATORY REPORTING STATEMENT
B2: =INDEX(dms_TradingNameFull_List,MATCH(dms_TradingName,dms_TradingName_List)) -> Powercor Australia
B3: =dms_Header_Span -> 2021-22 to 2025-26
B4: 3.2 OPERATING EXPENDITURE
B6: There are THREE tables on this worksheet. Both ROWS and COLUMNS have been grouped for ease of navigation. see the Instructions sheet on how to group or ungroup tables.
B8: 3.2.1 - OPEX CATEGORIES
B9: CURRENT OPEX CATEGORIES AND COST ALLOCATIONS
C10: Standard control services | K10: Alternative control services
C11: EXPENDITURE | K11: EXPENDITURE
C12: =CONCATENATE("Forecast ($0's, real ",dms_DollarReal,")") -> Forecast ($0's, real June 2021) | K12: =CONCATENATE("Forecast ($0's, real ",dms_DollarReal,")") -> Forecast ($0's, real June 2021)
C13: =CRCP_y4 -> 2019-20 | D13: =CRCP_y5 -> 2020-21 | E13: =FRCP_y1 -> 2021-22 | F13: =FRCP_y2 -> 2022-23 | G13: =FRCP_y3 -> 2023-24 | H13: =FRCP_y4 -> 2024-25 | I13: =FRCP_y5 -> 2025-26 | K13: =CRCP_y4 -> 2019-20 | L13: =CRCP_y5 -> 2020-21 | M13: =FRCP_y1 -> 2021-22 | N13: =FRCP_y2 -> 2022-23 | O13: =FRCP_y3 -> 2023-24 | P13: =FRCP_y4 -> 2024-25 | Q13: =FRCP_y5 -> 2025-26
A14: DOPEX0101 | B14: Maintenance | C14: ='2.1 Expenditure summary'!C26 -> 52128894.73 | D14: ='2.1 Expenditure summary'!D26 -> 54005645.59 | E14: ='2.17a Step changes'!G$12+'2.17a Step changes'!G$14+'2.17a Step changes'!G$15+'2.17a Step changes'!G$16+('2.16 Opex Summary'!H$25-'3.2 Operating expenditure'!E$17-SUM('2.17a Step changes'!G$12,'2.17a Step changes'!G$14,'2.17a Step changes'!G$15,'2.17a Step changes'!G$16))*$D14/SUM($D$14:$D$16) -> 62358296.19 | F14: ='2.17a Step changes'!H$12+'2.17a Step changes'!H$14+'2.17a Step changes'!H$15+'2.17a Step changes'!H$16+('2.16 Opex Summary'!I$25-'3.2 Operating expenditure'!F$17-SUM('2.17a Step changes'!H$12,'2.17a Step changes'!H$14,'2.17a Step changes'!H$15,'2.17a Step changes'!H$16))*$D14/SUM($D$14:$D$16) -> 63999502.35 | G14: ='2.17a Step changes'!I$12+'2.17a Step changes'!I$14+'2.17a Step changes'!I$15+'2.17a Step changes'!I$16+('2.16 Opex Summary'!J$25-'3.2 Operating expenditure'!G$17-SUM('2.17a Step changes'!I$12,'2.17a Step changes'!I$14,'2.17a Step changes'!I$15,'2.17a Step changes'!I$16))*$D14/SUM($D$14:$D$16) -> 66772096.18 | H14: ='2.17a Step changes'!J$12+'2.17a Step changes'!J$14+'2.17a Step changes'!J$15+'2.17a Step changes'!J$16+('2.16 Opex Summary'!K$25-'3.2 Operating expenditure'!H$17-SUM('2.17a Step changes'!J$12,'2.17a Step changes'!J$14,'2.17a Step changes'!J$15,'2.17a Step changes'!J$16))*$D14/SUM($D$14:$D$16) -> 68193287.29 | I14: ='2.17a Step changes'!K$12+'2.17a Step changes'!K$14+'2.17a Step changes'!K$15+'2.17a Step changes'!K$16+('2.16 Opex Summary'!L$25-'3.2 Operating expenditure'!I$17-SUM('2.17a Step changes'!K$12,'2.17a Step changes'!K$14,'2.17a Step changes'!K$15,'2.17a Step changes'!K$16))*$D14/SUM($D$14:$D$16) -> 69890551.45
A15: DOPEX0102 | B15: Vegetation Management | C15: ='2.1 Expenditure summary'!C25 -> 47416395.6 | D15: ='2.1 Expenditure summary'!D25 -> 49123486.5 | E15: =('2.16 Opex Summary'!H$25-'3.2 Operating expenditure'!E$17-SUM('2.17a Step changes'!G$12,'2.17a Step changes'!G$14,'2.17a Step changes'!G$15,'2.17a Step changes'!G$16))*$D15/SUM($D$14:$D$16) -> 50861220.18 | F15: =('2.16 Opex Summary'!I$25-'3.2 Operating expenditure'!F$17-SUM('2.17a Step changes'!H$12,'2.17a Step changes'!H$14,'2.17a Step changes'!H$15,'2.17a Step changes'!H$16))*$D15/SUM($D$14:$D$16) -> 52522975.22 | G15: =('2.16 Opex Summary'!J$25-'3.2 Operating expenditure'!G$17-SUM('2.17a Step changes'!I$12,'2.17a Step changes'!I$14,'2.17a Step changes'!I$15,'2.17a Step changes'!I$16))*$D15/SUM($D$14:$D$16) -> 53953969.15 | H15: =('2.16 Opex Summary'!K$25-'3.2 Operating expenditure'!H$17-SUM('2.17a Step changes'!J$12,'2.17a Step changes'!J$14,'2.17a Step changes'!J$15,'2.17a Step changes'!J$16))*$D15/SUM($D$14:$D$16) -> 55345662.56 | I15: =('2.16 Opex Summary'!L$25-'3.2 Operating expenditure'!I$17-SUM('2.17a Step changes'!K$12,'2.17a Step changes'!K$14,'2.17a Step changes'!K$15,'2.17a Step changes'!K$16))*$D15/SUM($D$14:$D$16) -> 56795102.5
A16: DOPEX0103 | B16: Emergency | C16: ='2.1 Expenditure summary'!C27 -> 30421875.54 | D16: ='2.1 Expenditure summary'!D27 -> 31517127.63 | E16: =('2.16 Opex Summary'!H$25-'3.2 Operating expenditure'!E$17-SUM('2.17a Step changes'!G$12,'2.17a Step changes'!G$14,'2.17a Step changes'!G$15,'2.17a Step changes'!G$16))*$D16/SUM($D$14:$D$16) -> 32632039.83 | F16: =('2.16 Opex Summary'!I$25-'3.2 Operating expenditure'!F$17-SUM('2.17a Step changes'!H$12,'2.17a Step changes'!H$14,'2.17a Step changes'!H$15,'2.17a Step changes'!H$16))*$D16/SUM($D$14:$D$16) -> 33698204.91 | G16: =('2.16 Opex Summary'!J$25-'3.2 Operating expenditure'!G$17-SUM('2.17a Step changes'!I$12,'2.17a Step changes'!I$14,'2.17a Step changes'!I$15,'2.17a Step changes'!I$16))*$D16/SUM($D$14:$D$16) -> 34616316.01 | H16: =('2.16 Opex Summary'!K$25-'3.2 Operating expenditure'!H$17-SUM('2.17a Step changes'!J$12,'2.17a Step changes'!J$14,'2.17a Step changes'!J$15,'2.17a Step changes'!J$16))*$D16/SUM($D$14:$D$16) -> 35509212.3 | I16: =('2.16 Opex Summary'!L$25-'3.2 Operating expenditure'!I$17-SUM('2.17a Step changes'!K$12,'2.17a Step changes'!K$14,'2.17a Step changes'!K$15,'2.17a Step changes'!K$16))*$D16/SUM($D$14:$D$16) -> 36439158.17
A17: DOPEX0104 | B17: Overheads | C17: ='2.10 Overheads'!D12+'2.10 Overheads'!D27 -> 120191301.6 | D17: ='2.10 Overheads'!E12+'2.10 Overheads'!E27 -> 124094047.8 | E17: ='2.10 Overheads'!F12+'2.10 Overheads'!F27 -> 134709613.8 | F17: ='2.10 Overheads'!G12+'2.10 Overheads'!G27 -> 138515642.1 | G17: ='2.10 Overheads'!H12+'2.10 Overheads'!H27 -> 143112787.8 | H17: ='2.10 Overheads'!I12+'2.10 Overheads'!I27 -> 147359427.7 | I17: ='2.10 Overheads'!J12+'2.10 Overheads'!J27 -> 151302816.3
A18: DOPEX0105 | B18: Public Lighting | K18: ='2.1 Expenditure summary'!C52 -> 4161202.701 | L18: ='2.1 Expenditure summary'!D52 -> 5148019.887 | M18: ='2.1 Expenditure summary'!E52 -> 6134837.074 | N18: ='2.1 Expenditure summary'!F52 -> 5857634.319 | O18: ='2.1 Expenditure summary'!G52 -> 5647835.433 | P18: ='2.1 Expenditure summary'!H52 -> 5508327.265 | Q18: ='2.1 Expenditure summary'!I52 -> 5458152.174
A19: DOPEX0106 | B19: Connections | K19: ='2.1 Expenditure summary'!C50 -> 16019790.23 | L19: ='2.1 Expenditure summary'!D50 -> 16113926.66 | M19: ='2.1 Expenditure summary'!E50 -> 16511051.8 | N19: ='2.1 Expenditure summary'!F50 -> 16317668.8 | O19: ='2.1 Expenditure summary'!G50 -> 16436754.98 | P19: ='2.1 Expenditure summary'!H50 -> 16435314.18 | Q19: ='2.1 Expenditure summary'!I50 -> 16480991.4
A20: DOPEX0107 | B20: Metering | K20: ='2.1 Expenditure summary'!C51 -> 11518624.03 | L20: ='2.1 Expenditure summary'!D51 -> 11912360.46 | M20: ='2.1 Expenditure summary'!E51 -> 10905283.05 | N20: ='2.1 Expenditure summary'!F51 -> 11328830.1 | O20: ='2.1 Expenditure summary'!G51 -> 11763310.29 | P20: ='2.1 Expenditure summary'!H51 -> 12184038.55 | Q20: ='2.1 Expenditure summary'!I51 -> 12595382.05
A21: DOPEX0108 | B21: Fee and quoted | K21: ='2.1 Expenditure summary'!C53 -> 15624070.56 | L21: ='2.1 Expenditure summary'!D53 -> 16702285.24 | M21: ='2.1 Expenditure summary'!E53 -> 15264142.38 | N21: ='2.1 Expenditure summary'!F53 -> 15320694.77 | O21: ='2.1 Expenditure summary'!G53 -> 15378375.95 | P21: ='2.1 Expenditure summary'!H53 -> 15437142.64 | Q21: ='2.1 Expenditure summary'!I53 -> 15497030.58
A22: DOPEX0109
A23: DOPEX0110
A24: DOPEX0111
A25: DOPEX0112
A26: DOPEX0113
A27: DOPEX0114
A28: DOPEX0115
A29: DOPEX0116
A30: DOPEX0117
A31: DOPEX0118
A32: DOPEX0119
A33: DOPEX0120
A34: DOPEX0121
A35: DOPEX0122
A36: DOPEX0123
A37: DOPEX0124
A38: DOPEX0125
A39: DOPEX0126
A40: DOPEX0127
A41: DOPEX0128
A42: DOPEX0129
A43: DOPEX0130
A44: DOPEX0131
A45: DOPEX0132
A46: DOPEX0133
A47: DOPEX0134
A48: DOPEX0135
A49: DOPEX0136
A50: DOPEX0137
A51: DOPEX0138
A52: DOPEX0139
A53: DOPEX0140
A54: DOPEX0141
A55: DOPEX0142
A56: DOPEX0143
A57: DOPEX0144
A58: DOPEX0145
A59: DOPEX0146
A60: DOPEX0147
A61: DOPEX0148
A62: DOPEX0149
A63: DOPEX01 | B63: Total opex | C63: =SUM(C14:C62) -> 250158467.5 | D63: 258740307.6 | E63: 280561170 | F63: 288736324.6 | G63: 298455169.1 | H63: 306407589.9 | I63: 314427628.5 | K63: =SUM(K14:K62) -> 47323687.52 | L63: 49876592.25 | M63: 48815314.31 | N63: 48824827.99 | O63: 49226276.65 | P63: 49564822.64 | Q63: 50031556.21
B66: 3.2.2 - OPEX CONSISTENCY
B67: OPEX CONSISTENCY - CURRENT COST ALLOCATION APPROACH
C68: Standard control services | K68: Alternative control services
C69: EXPENDITURE | K69: EXPENDITURE
C70: =CONCATENATE("Forecast ($0's, real ",dms_DollarReal,")") -> Forecast ($0's, real June 2021) | K70: =CONCATENATE("Forecast ($0's, real ",dms_DollarReal,")") -> Forecast ($0's, real June 2021)
C71: =CRCP_y4 -> 2019-20 | D71: =CRCP_y5 -> 2020-21 | E71: =FRCP_y1 -> 2021-22 | F71: =FRCP_y2 -> 2022-23 | G71: =FRCP_y3 -> 2023-24 | H71: =FRCP_y4 -> 2024-25 | I71: =FRCP_y5 -> 2025-26 | K71: =CRCP_y4 -> 2019-20 | L71: =CRCP_y5 -> 2020-21 | M71: =FRCP_y1 -> 2021-22 | N71: =FRCP_y2 -> 2022-23 | O71: =FRCP_y3 -> 2023-24 | P71: =FRCP_y4 -> 2024-25 | Q71: =FRCP_y5 -> 2025-26
A72: DOPEX0201 | B72: Opex for network services | C72: =C63-C74 -> 245155298.1 | D72: =D63-D74 -> 253565501.4 | E72: 274949946.6 | F72: 282961598.1 | G72: 292486065.8 | H72: 300279438.1 | I72: 308139075.9
A73: DOPEX0202 | B73: Opex for metering | K73: =K20 -> 11518624.03 | L73: =L20 -> 11912360.46 | M73: 10905283.05 | N73: 11328830.1 | O73: 11763310.29 | P73: 12184038.55 | Q73: 12595382.05
A74: DOPEX0203 | B74: Opex for connection services | C74: =C63*0.02 -> 5003169.35 | D74: =D63*0.02 -> 5174806.151 | E74: 5611223.4 | F74: 5774726.492 | G74: 5969103.383 | H74: 6128151.798 | I74: 6288552.569 | K74: =K19 -> 16019790.23 | L74: =L19 -> 16113926.66 | M74: 16511051.8 | N74: 16317668.8 | O74: 16436754.98 | P74: 16435314.18 | Q74: 16480991.4
A75: DOPEX0204 | B75: Opex for public lighting | K75: =K18 -> 4161202.701 | L75: =L18 -> 5148019.887 | M75: 6134837.074 | N75: 5857634.319 | O75: 5647835.433 | P75: 5508327.265 | Q75: 5458152.174
A76: DOPEX0205 | B76: Opex for amounts payable for easement levy or similar direct charges on DNSP
A77: DOPEX0207 | B77: Opex for transmission connection point planning
B80: 3.2.4 - OPEX FOR HIGH VOLTAGE CUSTOMERS
C81: End user costs (not standard control services)
C82: EXPENDITURE
C83: =CONCATENATE("Forecast ($0's, real ",dms_DollarReal,")") -> Forecast ($0's, real June 2021)
C84: =CRCP_y4 -> 2019-20 | D84: =CRCP_y5 -> 2020-21 | E84: =FRCP_y1 -> 2021-22 | F84: =FRCP_y2 -> 2022-23 | G84: =FRCP_y3 -> 2023-24 | H84: =FRCP_y4 -> 2024-25 | I84: =FRCP_y5 -> 2025-26
A85: DOPEX0401 | B85: Opex for high voltage customers

Sheet 3.3 Assets (RAB)
B1: =INDEX(dms_Worksheet_List,MATCH(dms_Model,dms_Model_List)) -> REGULATORY REPORTING STATEMENT
B2: =INDEX(dms_TradingNameFull_List,MATCH(dms_TradingName,dms_TradingName_List)) -> Powercor Australia
B3: =dms_Header_Span -> 2021-22 to 2025-26
B4: 3.3 ASSETS
B6: There are FOUR tables on this worksheet. Both ROWS and COLUMNS in each have been grouped (and sub-grouped) for ease of navigation. see the Instructions sheet on how to group or ungroup tables.
B8: 3.3.1 - REGULATORY ASSET BASE VALUES
C9: Network services | K9: Standard control services | S9: Alternative control services
C10: =CONCATENATE("Forecast ($0's, real ", dms_DollarReal,")") -> Forecast ($0's, real June 2021) | K10: =CONCATENATE("Forecast ($0's, real ", dms_DollarReal,")") -> Forecast ($0's, real June 2021) | S10: =CONCATENATE("Forecast ($0's, real ", dms_DollarReal,")") -> Forecast ($0's, real June 2021)
C11: =CRCP_y4 -> 2019-20 | D11: =CRCP_y5 -> 2020-21 | E11: =FRCP_y1 -> 2021-22 | F11: =FRCP_y2 -> 2022-23 | G11: =FRCP_y3 -> 2023-24 | H11: =FRCP_y4 -> 2024-25 | I11: =FRCP_y5 -> 2025-26 | K11: =CRCP_y4 -> 2019-20 | L11: =CRCP_y5 -> 2020-21 | M11: =FRCP_y1 -> 2021-22 | N11: =FRCP_y2 -> 2022-23 | O11: =FRCP_y3 -> 2023-24 | P11: =FRCP_y4 -> 2024-25 | Q11: =FRCP_y5 -> 2025-26 | S11: =CRCP_y4 -> 2019-20 | T11: =CRCP_y5 -> 2020-21 | U11: =FRCP_y1 -> 2021-22 | V11: =FRCP_y2 -> 2022-23 | W11: =FRCP_y3 -> 2023-24 | X11: =FRCP_y4 -> 2024-25 | Y11: =FRCP_y5 -> 2025-26
B12: For total asset base:
A13: DRAB0101 | B13: Opening value | C13: 3387329421 | D13: =C18 -> 3522294790 | E13: 3751174636 | F13: 3987423090 | G13: 4194579601 | H13: 4326130964 | I13: 4423119713 | K13: 4133699203 | L13: =K18 -> 4295514520 | M13: 4573381198 | N13: 4861685028 | O13: 5114486748 | P13: 5265180799 | Q13: 5367447647 | S13: 0 | T13: =S18 -> 0 | U13: 0 | V13: 0 | W13: 0 | X13: 0 | Y13: 0
A14: DRAB0102 | B14: Inflation addition | C14: 0 | D14: 0 | E14: 0 | F14: 0 | G14: 0 | H14: 0 | I14: 0 | K14: 0 | L14: 0 | M14: 0 | N14: 0 | O14: 0 | P14: 0 | Q14: 0 | S14: 0 | T14: 0 | U14: 0 | V14: 0 | W14: 0 | X14: 0 | Y14: 0
A15: DRAB0103 | B15: Straight line depreciation | C15: -186993986.5 | D15: -179809759.7 | E15: -193106725.3 | F15: -204484789.7 | G15: -216990973.6 | H15: -219984305.9 | I15: -227536639.9 | K15: -228196551.5 | L15: -219429340.3 | M15: -235656181.4 | N15: -249541307.3 | O15: -264803124.5 | P15: -268456012.7 | Q15: -277672440.4 | S15: 0 | T15: 0 | U15: 0 | V15: 0 | W15: 0 | X15: 0 | Y15: 0
A16: DRAB0105 | B16: Actual additions (recognised in RAB) | C16: 321959356.2 | D16: 408689605.4 | E16: 429355179.4 | F16: 411641300.6 | G16: 348542336.8 | H16: 316973054.2 | I16: 286716672.8 | K16: 392900414.7 | L16: 498740950.7 | M16: 523960011.7 | N16: 502343027.4 | O16: 425340733.3 | P16: 386815422.6 | Q16: 349892300 | S16: 0 | T16: 0 | U16: 0 | V16: 0 | W16: 0 | X16: 0 | Y16: 0
A17: DRAB0106 | B17: Disposals | C17: 0 | D17: 0 | E17: 0 | F17: 0 | G17: 0 | H17: 0 | I17: 0 | K17: -2888545.629 | L17: -1444932.359 | M17: 0 | N17: 0 | O17: -9843558.15 | P17: -16092561.63 | Q17: 0 | S17: 0 | T17: 0 | U17: 0 | V17: 0 | W17: 0 | X17: 0 | Y17: 0
A18: DRAB0107 | B18: Closing value | C18: =SUM(C13+C14+C15+C16+C17) -> 3522294790 | D18: 3751174636 | E18: 3987423090 | F18: 4194579601 | G18: 4326130964 | H18: 4423119713 | I18: 4482299746 | K18: =SUM(K13+K14+K15+K16+K17) -> 4295514520 | L18: 4573381198 | M18: 4861685028 | N18: 5114486748 | O18: 5265180799 | P18: 5367447647 | Q18: 5439667507 | S18: =SUM(S13+S14+S15+S16+S17) -> 0 | T18: 0 | U18: 0 | V18: 0 | W18: 0 | X18: 0 | Y18: 0
B21: 3.3.2 - ASSET VALUE ROLL FORWARD
C22: Network services | K22: Standard control services | S22: Alternative control services
C23: =CONCATENATE("Forecast ($0's, real ", dms_DollarReal,")") -> Forecast ($0's, real June 2021) | K23: =CONCATENATE("Forecast ($0's, real ", dms_DollarReal,")") -> Forecast ($0's, real June 2021) | S23: =CONCATENATE("Forecast ($0's, real ", dms_DollarReal,")") -> Forecast ($0's, real June 2021)
C24: =CRCP_y4 -> 2019-20 | D24: =CRCP_y5 -> 2020-21 | E24: =FRCP_y1 -> 2021-22 | F24: =FRCP_y2 -> 2022-23 | G24: =FRCP_y3 -> 2023-24 | H24: =FRCP_y4 -> 2024-25 | I24: =FRCP_y5 -> 2025-26 | K24: =CRCP_y4 -> 2019-20 | L24: =CRCP_y5 -> 2020-21 | M24: =FRCP_y1 -> 2021-22 | N24: =FRCP_y2 -> 2022-23 | O24: =FRCP_y3 -> 2023-24 | P24: =FRCP_y4 -> 2024-25 | Q24: =FRCP_y5 -> 2025-26 | S24: =CRCP_y4 -> 2019-20 | T24: =CRCP_y5 -> 2020-21 | U24: =FRCP_y1 -> 2021-22 | V24: =FRCP_y2 -> 2022-23 | W24: =FRCP_y3 -> 2023-24 | X24: =FRCP_y4 -> 2024-25 | Y24: =FRCP_y5 -> 2025-26
B25: For overhead network assets less than 33kV:
A26: DRAB0201 | B26: Opening value | C26: 1482185920 | D26: =C31 -> 1534994834 | E26: 1620364350 | F26: 1717385657 | G26: 1797517105 | H26: 1856769886 | I26: 1911514867 | K26: 1808773224 | L26: =K31 -> 1873218142 | M26: 1977398118 | N26: 2095797261 | O26: 2193585004 | P26: 2261116970 | Q26: 2320115496 | S26: 0 | T26: =S31 -> 0 | U26: 0 | V26: 0 | W26: 0 | X26: 0 | Y26: 0
A27: DRAB0202 | B27: Inflation addition | C27: 0 | D27: 0 | E27: 0 | F27: 0 | G27: 0 | H27: 0 | I27: 0 | K27: 0 | L27: 0 | M27: 0 | N27: 0 | O27: 0 | P27: 0 | Q27: 0 | S27: 0 | T27: 0 | U27: 0 | V27: 0 | W27: 0 | X27: 0 | Y27: 0
A28: DRAB0203 | B28: Straight line depreciation | C28: -61899433.65 | D28: -61124328.29 | E28: -68607949.88 | F28: -73323766.7 | G28: -77829471.52 | H28: -78572633 | I28: -81918608.65 | K28: -75538457.51 | L28: -74592564.15 | M28: -83725139.33 | N28: -89480047.05 | O28: -94978546.34 | P28: -95885457.26 | Q28: -99968690.73 | S28: 0 | T28: 0 | U28: 0 | V28: 0 | W28: 0 | X28: 0 | Y28: 0
A29: DRAB0205 | B29: Actual additions (recognised in RAB) | C29: 114708347.8 | D29: 146493843.8 | E29: 165629257.6 | F29: 153455213.8 | G29: 137082253.3 | H29: 133317614.2 | I29: 122904726.4 | K29: 139983375.3 | L29: 178772540.2 | M29: 202124282.8 | N29: 187267790.1 | O29: 167287184.3 | P29: 162693038.3 | Q29: 149985757.7 | S29: 0 | T29: 0 | U29: 0 | V29: 0 | W29: 0 | X29: 0 | Y29: 0
A30: DRAB0206 | B30: Disposals | C30: 0 | D30: 0 | E30: 0 | F30: 0 | G30: 0 | H30: 0 | I30: 0 | K30: 0 | L30: 0 | M30: 0 | N30: 0 | O30: -4776671.966 | P30: -7809055.104 | Q30: 0 | S30: 0 | T30: 0 | U30: 0 | V30: 0 | W30: 0 | X30: 0 | Y30: 0
A31: DRAB0207 | B31: Closing value | C31: =SUM(C26+C27+C28+C29+C30) -> 1534994834 | D31: 1620364350 | E31: 1717385657 | F31: 1797517105 | G31: 1856769886 | H31: 1911514867 | I31: 1952500985 | K31: =SUM(K26+K27+K28+K29+K30) -> 1873218142 | L31: 1977398118 | M31: 2095797261 | N31: 2193585004 | O31: 2261116970 | P31: 2320115496 | Q31: 2370132563 | S31: =SUM(S26+S27+S28+S29+S30) -> 0 | T31: 0 | U31: 0 | V31: 0 | W31: 0 | X31: 0 | Y31: 0
B32: For underground network assets less than 33kV:
A33: DRAB0301 | B33: Opening value | C33: 754881542.9 | D33: =C38 -> 781777274.4 | E33: 825256213.7 | F33: 874669444.1 | G33: 915480620.1 | H33: 945658231.9 | I33: 973540007.9 | K33: 921213393.9 | L33: =K38 -> 954035375.5 | M33: 1007094536 | N33: 1067395560 | O33: 1117199138 | P33: 1151593362 | Q33: 1181641481 | S33: 0 | T33: =S38 -> 0 | U33: 0 | V33: 0 | W33: 0 | X33: 0 | Y33: 0
A34: DRAB0302 | B34: Inflation addition | C34: 0 | D34: 0 | E34: 0 | F34: 0 | G34: 0 | H34: 0 | I34: 0 | K34: 0 | L34: 0 | M34: 0 | N34: 0 | O34: 0 | P34: 0 | Q34: 0 | S34: 0 | T34: 0 | U34: 0 | V34: 0 | W34: 0 | X34: 0 | Y34: 0
A35: DRAB0303 | B35: Straight line depreciation | C35: -31525559.2 | D35: -31130795.82 | E35: -34942225.77 | F35: -37344004.81 | G35: -39638773.21 | H35: -40017267.48 | I35: -41721382.49 | K35: -38471953.2 | L35: -37990207 | M35: -42641453.74 | N35: -45572444.76 | O35: -48372846.23 | P35: -48834738.56 | Q35: -50914341.09 | S35: 0 | T35: 0 | U35: 0 | V35: 0 | W35: 0 | X35: 0 | Y35: 0
A36: DRAB0305 | B36: Actual additions (recognised in RAB) | C36: 58421290.72 | D36: 74609735.06 | E36: 84355456.21 | F36: 78155180.78 | G36: 69816385.01 | H36: 67899043.5 | I36: 62595729.9 | K36: 71293934.8 | L36: 91049367.81 | M36: 102942477.3 | N36: 95376022.92 | O36: 85199843.06 | P36: 82860031.34 | Q36: 76388176.83 | S36: 0 | T36: 0 | U36: 0 | V36: 0 | W36: 0 | X36: 0 | Y36: 0
A37: DRAB0306 | B37: Disposals | C37: 0 | D37: 0 | E37: 0 | F37: 0 | G37: 0 | H37: 0 | I37: 0 | K37: 0 | L37: 0 | M37: 0 | N37: 0 | O37: -2432772.741 | P37: -3977174.176 | Q37: 0 | S37: 0 | T37: 0 | U37: 0 | V37: 0 | W37: 0 | X37: 0 | Y37: 0
A38: DRAB0307 | B38: Closing value | C38: =SUM(C33+C34+C35+C36+C37) -> 781777274.4 | D38: 825256213.7 | E38: 874669444.1 | F38: 915480620.1 | G38: 945658231.9 | H38: 973540007.9 | I38: 994414355.3 | K38: =SUM(K33+K34+K35+K36+K37) -> 954035375.5 | L38: 1007094536 | M38: 1067395560 | N38: 1117199138 | O38: 1151593362 | P38: 1181641481 | Q38: 1207115316 | S38: =SUM(S33+S34+S35+S36+S37) -> 0 | T38: 0 | U38: 0 | V38: 0 | W38: 0 | X38: 0 | Y38: 0
B39: For distribution substations and transformers:
A40: DRAB0401 | B40: Opening value | C40: 444492631.3 | D40: =C45 -> 460329492.8 | E40: 485930950.8 | F40: 515026664 | G40: 539057278 | H40: 556826590.5 | I40: 573244059.1 | K40: 444492631.3 | L40: =K45 -> 460329492.8 | M40: 485930950.8 | N40: 515026664 | O40: 539057278 | P40: 555652758.8 | Q40: 570151209.8 | S40: 0 | T40: =S45 -> 0 | U40: 0 | V40: 0 | W40: 0 | X40: 0 | Y40: 0
A41: DRAB0402 | B41: Inflation addition | C41: 0 | D41: 0 | E41: 0 | F41: 0 | G41: 0 | H41: 0 | I41: 0 | K41: 0 | L41: 0 | M41: 0 | N41: 0 | O41: 0 | P41: 0 | Q41: 0 | S41: 0 | T41: 0 | U41: 0 | V41: 0 | W41: 0 | X41: 0 | Y41: 0
A42: DRAB0403 | B42: Straight line depreciation | C42: -18563016.8 | D42: -18330570.51 | E42: -20574833.26 | F42: -21989059.24 | G42: -23340274.74 | H42: -23563141.38 | I42: -24566565.78 | K42: -18563016.8 | L42: -18330570.51 | M42: -20574833.26 | N42: -21989059.24 | O42: -23340274.74 | P42: -23563141.38 | Q42: -24566565.78 | S42: 0 | T42: 0 | U42: 0 | V42: 0 | W42: 0 | X42: 0 | Y42: 0
A43: DRAB0405 | B43: Actual additions (recognised in RAB) | C43: 34399878.34 | D43: 43932028.5 | E43: 49670546.39 | F43: 46019673.26 | G43: 41109587.29 | H43: 39980609.93 | I43: 36857889.76 | K43: 34399878.34 | L43: 43932028.5 | M43: 49670546.39 | N43: 46019673.26 | O43: 41109587.29 | P43: 39980609.93 | Q43: 36857889.76 | S43: 0 | T43: 0 | U43: 0 | V43: 0 | W43: 0 | X43: 0 | Y43: 0
A44: DRAB0406 | B44: Disposals | C44: 0 | D44: 0 | E44: 0 | F44: 0 | G44: 0 | H44: 0 | I44: 0 | K44: 0 | L44: 0 | M44: 0 | N44: 0 | O44: -1173831.779 | P44: -1919017.49 | Q44: 0 | S44: 0 | T44: 0 | U44: 0 | V44: 0 | W44: 0 | X44: 0 | Y44: 0
A45: DRAB0407 | B45: Closing value | C45: =SUM(C40+C41+C42+C43+C44) -> 460329492.8 | D45: 485930950.8 | E45: 515026664 | F45: 539057278 | G45: 556826590.5 | H45: 573244059.1 | I45: 585535383.1 | K45: =SUM(K40+K41+K42+K43+K44) -> 460329492.8 | L45: 485930950.8 | M45: 515026664 | N45: 539057278 | O45: 555652758.8 | P45: 570151209.8 | Q45: 582442533.8 | S45: =SUM(S40+S41+S42+S43+S44) -> 0 | T45: 0 | U45: 0 | V45: 0 | W45: 0 | X45: 0 | Y45: 0
B46: For overhead network assets 33kV and above:
A47: DRAB0501 | B47: Opening value | C47: 309182136.2 | D47: =C52 -> 320198009.9 | E47: 338005984.5 | F47: 358244508.4 | G47: 374959828.4 | H47: 387319884.9 | I47: 398739619.7 | K47: 309182136.2 | L47: =K52 -> 320198009.9 | M47: 338005984.5 | N47: 358244508.4 | O47: 374959828.4 | P47: 386503385.8 | Q47: 396588282.1 | S47: 0 | T47: =S52 -> 0 | U47: 0 | V47: 0 | W47: 0 | X47: 0 | Y47: 0
A48: DRAB0502 | B48: Inflation addition | C48: 0 | D48: 0 | E48: 0 | F48: 0 | G48: 0 | H48: 0 | I48: 0 | K48: 0 | L48: 0 | M48: 0 | N48: 0 | O48: 0 | P48: 0 | Q48: 0 | S48: 0 | T48: 0 | U48: 0 | V48: 0 | W48: 0 | X48: 0 | Y48: 0
A49: DRAB0503 | B49: Straight line depreciation | C49: -12912144.74 | D49: -12750458.73 | E49: -14311532.86 | F49: -15295246.38 | G49: -16235130.79 | H49: -16390153.35 | I49: -17088119.7 | K49: -12912144.74 | L49: -12750458.73 | M49: -14311532.86 | N49: -15295246.38 | O49: -16235130.79 | P49: -16390153.35 | Q49: -17088119.7 | S49: 0 | T49: 0 | U49: 0 | V49: 0 | W49: 0 | X49: 0 | Y49: 0
A50: DRAB0505 | B50: Actual additions (recognised in RAB) | C50: 23928018.42 | D50: 30558433.29 | E50: 34550056.76 | F50: 32010566.4 | G50: 28595187.24 | H50: 27809888.21 | I50: 25637772.8 | K50: 23928018.42 | L50: 30558433.29 | M50: 34550056.76 | N50: 32010566.4 | O50: 28595187.24 | P50: 27809888.21 | Q50: 25637772.8 | S50: 0 | T50: 0 | U50: 0 | V50: 0 | W50: 0 | X50: 0 | Y50: 0
A51: DRAB0506 | B51: Disposals | C51: 0 | D51: 0 | E51: 0 | F51: 0 | G51: 0 | H51: 0 | I51: 0 | K51: 0 | L51: 0 | M51: 0 | N51: 0 | O51: -816499.0631 | P51: -1334838.612 | Q51: 0 | S51: 0 | T51: 0 | U51: 0 | V51: 0 | W51: 0 | X51: 0 | Y51: 0
A52: DRAB0507 | B52: Closing value | C52: =SUM(C47+C48+C49+C50+C51) -> 320198009.9 | D52: 338005984.5 | E52: 358244508.4 | F52: 374959828.4 | G52: 387319884.9 | H52: 398739619.7 | I52: 407289272.8 | K52: =SUM(K47+K48+K49+K50+K51) -> 320198009.9 | L52: 338005984.5 | M52: 358244508.4 | N52: 374959828.4 | O52: 386503385.8 | P52: 396588282.1 | Q52: 405137935.2 | S52: =SUM(S47+S48+S49+S50+S51) -> 0 | T52: 0 | U52: 0 | V52: 0 | W52: 0 | X52: 0 | Y52: 0
B53: For underground network assets 33kV and above:
A54: DRAB0601 | B54: Opening value | C54: 8318294.178 | D54: =C59 -> 8614667.31 | E54: 9093776.397 | F54: 9638277.44 | G54: 10087989.54 | H54: 10420526.82 | I54: 10727765.51 | K54: 8318294.178 | L54: =K59 -> 8614667.31 | M54: 9093776.397 | N54: 9638277.44 | O54: 10087989.54 | P54: 10398559.58 | Q54: 10669885.52 | S54: 0 | T54: =S59 -> 0 | U54: 0 | V54: 0 | W54: 0 | X54: 0 | Y54: 0
A55: DRAB0602 | B55: Inflation addition | C55: 0 | D55: 0 | E55: 0 | F55: 0 | G55: 0 | H55: 0 | I55: 0 | K55: 0 | L55: 0 | M55: 0 | N55: 0 | O55: 0 | P55: 0 | Q55: 0 | S55: 0 | T55: 0 | U55: 0 | V55: 0 | W55: 0 | X55: 0 | Y55: 0
A56: DRAB0603 | B56: Straight line depreciation | C56: -347390.7636 | D56: -343040.7328 | E56: -385040.1642 | F56: -411506.177 | G56: -436793.0035 | H56: -440963.7595 | I56: -459741.9772 | K56: -347390.7636 | L56: -343040.7328 | M56: -385040.1642 | N56: -411506.177 | O56: -436793.0035 | P56: -440963.7595 | Q56: -459741.9772 | S56: 0 | T56: 0 | U56: 0 | V56: 0 | W56: 0 | X56: 0 | Y56: 0
A57: DRAB0605 | B57: Actual additions (recognised in RAB) | C57: 643763.8952 | D57: 822149.8202 | E57: 929541.2067 | F57: 861218.2817 | G57: 769330.2803 | H57: 748202.4479 | I57: 689763.4477 | K57: 643763.8952 | L57: 822149.8202 | M57: 929541.2067 | N57: 861218.2817 | O57: 769330.2803 | P57: 748202.4479 | Q57: 689763.4477 | S57: 0 | T57: 0 | U57: 0 | V57: 0 | W57: 0 | X57: 0 | Y57: 0
A58: DRAB0606 | B58: Disposals | C58: 0 | D58: 0 | E58: 0 | F58: 0 | G58: 0 | H58: 0 | I58: 0 | K58: 0 | L58: 0 | M58: 0 | N58: 0 | O58: -21967.24392 | P58: -35912.74835 | Q58: 0 | S58: 0 | T58: 0 | U58: 0 | V58: 0 | W58: 0 | X58: 0 | Y58: 0
A59: DRAB0607 | B59: Closing value | C59: =SUM(C54+C55+C56+C57+C58) -> 8614667.31 | D59: 9093776.397 | E59: 9638277.44 | F59: 10087989.54 | G59: 10420526.82 | H59: 10727765.51 | I59: 10957786.98 | K59: =SUM(K54+K55+K56+K57+K58) -> 8614667.31 | L59: 9093776.397 | M59: 9638277.44 | N59: 10087989.54 | O59: 10398559.58 | P59: 10669885.52 | Q59: 10899906.99 | S59: =SUM(S54+S55+S56+S57+S58) -> 0 | T59: 0 | U59: 0 | V59: 0 | W59: 0 | X59: 0 | Y59: 0
B60: Zone substations and transformers
A61: DRAB0701 | B61: Opening value | C61: 235461630.1 | D61: =C66 -> 243850910.3 | E61: 257412802.2 | F61: 272825710.2 | G61: 285555477 | H61: 294968436.9 | I61: 303665282.8 | K61: 235461630.1 | L61: =K66 -> 243850910.3 | M61: 257412802.2 | N61: 272825710.2 | O61: 285555477 | P61: 294346621.5 | Q61: 302026903.9 | S61: 0 | T61: =S66 -> 0 | U61: 0 | V61: 0 | W61: 0 | X61: 0 | Y61: 0
A62: DRAB0702 | B62: Inflation addition | C62: 0 | D62: 0 | E62: 0 | F62: 0 | G62: 0 | H62: 0 | I62: 0 | K62: 0 | L62: 0 | M62: 0 | N62: 0 | O62: 0 | P62: 0 | Q62: 0 | S62: 0 | T62: 0 | U62: 0 | V62: 0 | W62: 0 | X62: 0 | Y62: 0
A63: DRAB0703 | B63: Straight line depreciation | C63: -9833409.795 | D63: -9710275.736 | E63: -10899131.81 | F63: -11648291.48 | G63: -12364072.54 | H63: -12482131.96 | I63: -13013677.21 | K63: -9833409.795 | L63: -9710275.736 | M63: -10899131.81 | N63: -11648291.48 | O63: -12364072.54 | P63: -12482131.96 | Q63: -13013677.21 | S63: 0 | T63: 0 | U63: 0 | V63: 0 | W63: 0 | X63: 0 | Y63: 0
A64: DRAB0705 | B64: Actual additions (recognised in RAB) | C64: 18222690 | D64: 23272167.67 | E64: 26312039.83 | F64: 24378058.3 | G64: 21777032.4 | H64: 21178977.83 | I64: 19524775.42 | K64: 18222690 | L64: 23272167.67 | M64: 26312039.83 | N64: 24378058.3 | O64: 21777032.4 | P64: 21178977.83 | Q64: 19524775.42 | S64: 0 | T64: 0 | U64: 0 | V64: 0 | W64: 0 | X64: 0 | Y64: 0
A65: DRAB0706 | B65: Disposals | C65: 0 | D65: 0 | E65: 0 | F65: 0 | G65: 0 | H65: 0 | I65: 0 | K65: 0 | L65: 0 | M65: 0 | N65: 0 | O65: -621815.3567 | P65: -1016563.503 | Q65: 0 | S65: 0 | T65: 0 | U65: 0 | V65: 0 | W65: 0 | X65: 0 | Y65: 0
A66: DRAB0707 | B66: Closing value | C66: =SUM(C61+C62+C63+C64+C65) -> 243850910.3 | D66: 257412802.2 | E66: 272825710.2 | F66: 285555477 | G66: 294968436.9 | H66: 303665282.8 | I66: 310176381 | K66: =SUM(K61+K62+K63+K64+K65) -> 243850910.3 | L66: 257412802.2 | M66: 272825710.2 | N66: 285555477 | O66: 294346621.5 | P66: 302026903.9 | Q66: 308538002.1 | S66: =SUM(S61+S62+S63+S64+S65) -> 0 | T66: 0 | U66: 0 | V66: 0 | W66: 0 | X66: 0 | Y66: 0
B67: For easements:
A68: DRAB0801 | B68: Opening value | C68: 0 | D68: =C72 -> 0 | E68: 0 | F68: 0 | G68: 0 | H68: 0 | I68: 0 | K68: 0 | L68: =K72 -> 0 | M68: 0 | N68: 0 | O68: 0 | P68: 0 | Q68: 0 | S68: 0 | T68: =S72 -> 0 | U68: 0 | V68: 0 | W68: 0 | X68: 0 | Y68: 0
A69: DRAB0802 | B69: Inflation addition | C69: 0 | D69: 0 | E69: 0 | F69: 0 | G69: 0 | H69: 0 | I69: 0 | K69: 0 | L69: 0 | M69: 0 | N69: 0 | O69: 0 | P69: 0 | Q69: 0 | S69: 0 | T69: 0 | U69: 0 | V69: 0 | W69: 0 | X69: 0 | Y69: 0
A70: DRAB0803 | B70: Actual additions (recognised in RAB) | C70: 0 | D70: 0 | E70: 0 | F70: 0 | G70: 0 | H70: 0 | I70: 0 | K70: 0 | L70: 0 | M70: 0 | N70: 0 | O70: 0 | P70: 0 | Q70: 0 | S70: 0 | T70: 0 | U70: 0 | V70: 0 | W70: 0 | X70: 0 | Y70: 0
A71: DRAB0804 | B71: Disposals | C71: 0 | D71: 0 | E71: 0 | F71: 0 | G71: 0 | H71: 0 | I71: 0 | K71: 0 | L71: 0 | M71: 0 | N71: 0 | O71: 0 | P71: 0 | Q71: 0 | S71: 0 | T71: 0 | U71: 0 | V71: 0 | W71: 0 | X71: 0 | Y71: 0
A72: DRAB0805 | B72: Closing value | C72: 0 | D72: 0 | E72: 0 | F72: 0 | G72: 0 | H72: 0 | I72: 0 | K72: 0 | L72: 0 | M72: 0 | N72: 0 | O72: 0 | P72: 0 | Q72: 0 | S72: =SUM(S68+S69+S70+S71) -> 0 | T72: 0 | U72: 0 | V72: 0 | W72: 0 | X72: 0 | Y72: 0
B73: For meters:
A74: DRAB0901 | B74: Opening value | C74: 0 | D74: =C79 -> 0 | E74: 0 | F74: 0 | G74: 0 | H74: 0 | I74: 0 | K74: 0 | L74: =K79 -> 0 | M74: 0 | N74: 0 | O74: 0 | P74: 0 | Q74: 0 | S74: 258880149.4 | T74: =S79 -> 235437741.8 | U74: 217495870.5 | V74: 204747064.6 | W74: 190860278.1 | X74: 173392534.2 | Y74: 157767740.9
A75: DRAB0902 | B75: Inflation addition | C75: 0 | D75: 0 | E75: 0 | F75: 0 | G75: 0 | H75: 0 | I75: 0 | K75: 0 | L75: 0 | M75: 0 | N75: 0 | O75: 0 | P75: 0 | Q75: 0 | S75: 0 | T75: 0 | U75: 0 | V75: 0 | W75: 0 | X75: 0 | Y75: 0
A76: DRAB0903 | B76: Straight line depreciation | C76: 0 | D76: 0 | E76: 0 | F76: 0 | G76: 0 | H76: 0 | I76: 0 | K76: 0 | L76: 0 | M76: 0 | N76: 0 | O76: 0 | P76: 0 | Q76: 0 | S76: -36598210 | T76: -32164374.27 | U76: -31306902.26 | V76: -32527842.12 | W76: -33795193.73 | X76: -34855976.81 | Y76: -35472359.95
A77: DRAB0905 | B77: Actual additions (recognised in RAB) | C77: 0 | D77: 0 | E77: 0 | F77: 0 | G77: 0 | H77: 0 | I77: 0 | K77: 0 | L77: 0 | M77: 0 | N77: 0 | O77: 0 | P77: 0 | Q77: 0 | S77: 13155802.44 | T77: 14222502.93 | U77: 18558096.43 | V77: 18641055.59 | W77: 16327449.85 | X77: 19231183.47 | Y77: 22279129.62
A78: DRAB0906 | B78: Disposals | C78: 0 | D78: 0 | E78: 0 | F78: 0 | G78: 0 | H78: 0 | I78: 0 | K78: 0 | L78: 0 | M78: 0 | N78: 0 | O78: 0 | P78: 0 | Q78: 0 | S78: 0 | T78: 0 | U78: 0 | V78: 0 | W78: 0 | X78: 0 | Y78: 0
A79: DRAB0907 | B79: Closing value | C79: =SUM(C74+C75+C76+C77+C78) -> 0 | D79: 0 | E79: 0 | F79: 0 | G79: 0 | H79: 0 | I79: 0 | K79: =SUM(K74+K75+K76+K77+K78) -> 0 | L79: 0 | M79: 0 | N79: 0 | O79: 0 | P79: 0 | Q79: 0 | S79: =SUM(S74+S75+S76+S77+S78) -> 235437741.8 | T79: 217495870.5 | U79: 204747064.6 | V79: 190860278.1 | W79: 173392534.2 | X79: 157767740.9 | Y79: 144574510.6
B80: For “other” asset items with long lives:
A81: DRAB1001 | B81: Opening value | C81: 312128963.6 | D81: =C86 -> 349462145.7 | E81: 407525140.5 | F81: 471083741.9 | G81: 538406033.3 | H81: 562249849.4 | I81: 553777719.7 | K81: 312128963.6 | L81: =K86 -> 346573600.1 | M81: 403191662.5 | N81: 466750263.9 | O81: 534072555.3 | P81: 557916371.4 | Q81: 549444241.7 | S81: 0 | T81: =S86 -> 0 | U81: 0 | V81: 0 | W81: 0 | X81: 0 | Y81: 0
A82: DRAB1002 | B82: Inflation addition | C82: 0 | D82: 0 | E82: 0 | F82: 0 | G82: 0 | H82: 0 | I82: 0 | K82: 0 | L82: 0 | M82: 0 | N82: 0 | O82: 0 | P82: 0 | Q82: 0 | S82: 0 | T82: 0 | U82: 0 | V82: 0 | W82: 0 | X82: 0 | Y82: 0
A83: DRAB1003 | B83: Straight line depreciation | C83: -35562809.71 | D83: -33193827.03 | E83: -35487725.65 | F83: -42351275.37 | G83: -49524772.59 | H83: -53506201.79 | I83: -56820975.97 | K83: -35562809.71 | L83: -33193827.03 | M83: -35487725.65 | N83: -42351275.37 | O83: -49524772.59 | P83: -53506201.79 | Q83: -56820975.97 | S83: 0 | T83: 0 | U83: 0 | V83: 0 | W83: 0 | X83: 0 | Y83: 0
A84: DRAB1005 | B84: Actual additions (recognised in RAB) | C84: 72895991.86 | D84: 91256821.81 | E84: 99046327.06 | F84: 109673566.8 | G84: 73368588.64 | H84: 45034072.08 | I84: 36735921.35 | K84: 72895991.86 | L84: 91256821.81 | M84: 99046327.06 | N84: 109673566.8 | O84: 73368588.64 | P84: 45034072.08 | Q84: 36735921.35 | S84: 0 | T84: 0 | U84: 0 | V84: 0 | W84: 0 | X84: 0 | Y84: 0
A85: DRAB1006 | B85: Disposals | C85: 0 | D85: 0 | E85: 0 | F85: 0 | G85: 0 | H85: 0 | I85: 0 | K85: -2888545.629 | L85: -1444932.359 | M85: 0 | N85: 0 | O85: 0 | P85: 0 | Q85: 0 | S85: 0 | T85: 0 | U85: 0 | V85: 0 | W85: 0 | X85: 0 | Y85: 0
A86: DRAB1007 | B86: Closing value | C86: =SUM(C81+C82+C83+C84+C85) -> 349462145.7 | D86: 407525140.5 | E86: 471083741.9 | F86: 538406033.3 | G86: 562249849.4 | H86: 553777719.7 | I86: 533692665 | K86: =SUM(K81+K82+K83+K84+K85) -> 346573600.1 | L86: 403191662.5 | M86: 466750263.9 | N86: 534072555.3 | O86: 557916371.4 | P86: 549444241.7 | Q86: 529359187 | S86: =SUM(S81+S82+S83+S84+S85) -> 0 | T86: 0 | U86: 0 | V86: 0 | W86: 0 | X86: 0 | Y86: 0
B87: For “other” asset items with short lives:
A88: DRAB1101 | B88: Opening value | C88: 94128929.46 | D88: =C93 -> 88694322.43 | E88: 95253367.61 | F88: 76006783.33 | G88: 59969477.85 | H88: 47652769.64 | I88: 36810147.46 | K88: 94128929.46 | L88: =K93 -> 88694322.43 | M88: 95253367.61 | N88: 76006783.33 | O88: 59969477.85 | P88: 47652769.64 | Q88: 36810147.46 | S88: 28057437.15 | T88: =S93 -> 29663938.26 | U88: 29753831.32 | V88: 28830153.1 | W88: 28231524.77 | X88: 27752667.92 | Y88: 27673586.11
A89: DRAB1102 | B89: Inflation addition | C89: 0 | D89: 0 | E89: 0 | F89: 0 | G89: 0 | H89: 0 | I89: 0 | K89: 0 | L89: 0 | M89: 0 | N89: 0 | O89: 0 | P89: 0 | Q89: 0 | S89: -657543.8197 | T89: -695193.1914 | U89: -697299.8921 | V89: -675652.9078 | W89: -661623.6735 | X89: -650401.3598 | Y89: -648548.0274
A90: DRAB1103 | B90: Straight line depreciation | C90: -36967369.04 | D90: -32518396.42 | E90: -27631324.57 | F90: -22793436.88 | G90: -19550688.29 | H90: -17353224.6 | I90: -14840327.97 | K90: -36967369.04 | L90: -32518396.42 | M90: -27631324.57 | N90: -22793436.88 | O90: -19550688.29 | P90: -17353224.6 | Q90: -14840327.97 | S90: -1783740.786 | T90: -1880315.191 | U90: -1919836.101 | V90: -1946673.689 | W90: -1984451.675 | X90: -1724615.936 | Y90: -1780161.996
A91: DRAB1105 | B91: Actual additions (recognised in RAB) | C91: 31532762 | D91: 39077441.6 | E91: 8384740.293 | F91: 6756131.401 | G91: 7233980.085 | H91: 6510602.417 | I91: 4072242.685 | K91: 31532762 | L91: 39077441.6 | M91: 8384740.293 | N91: 6756131.401 | O91: 7233980.085 | P91: 6510602.417 | Q91: 4072242.685 | S91: 4047785.72 | T91: 2665401.439 | U91: 1693457.776 | V91: 2023698.265 | W91: 2167218.499 | X91: 2295935.485 | Y91: 2410170.366
A92: DRAB1106 | B92: Disposals | C92: 0 | D92: 0 | E92: 0 | F92: 0 | G92: 0 | H92: 0 | I92: 0 | K92: 0 | L92: 0 | M92: 0 | N92: 0 | O92: 0 | P92: 0 | Q92: 0 | S92: 0 | T92: 0 | U92: 0 | V92: 0 | W92: 0 | X92: 0 | Y92: 0
A93: DRAB1107 | B93: Closing value | C93: =SUM(C88+C89+C90+C91+C92) -> 88694322.43 | D93: 95253367.61 | E93: 76006783.33 | F93: 59969477.85 | G93: 47652769.64 | H93: 36810147.46 | I93: 26042062.18 | K93: =SUM(K88+K89+K90+K91+K92) -> 88694322.43 | L93: 95253367.61 | M93: 76006783.33 | N93: 59969477.85 | O93: 47652769.64 | P93: 36810147.46 | Q93: 26042062.18 | S93: =SUM(S88+S89+S90+S91+S92) -> 29663938.26 | T93: 29753831.32 | U93: 28830153.1 | V93: 28231524.77 | W93: 27752667.92 | X93: 27673586.11 | Y93: 27655046.46
B97: 3.3.3 - TOTAL DISAGGREGATED RAB ASSET VALUES
C98: Network services | K98: Standard control services | S98: Alternative control services
C99: =CONCATENATE("Forecast ($0's, real ", dms_DollarReal,")") -> Forecast ($0's, real June 2021) | K99: =CONCATENATE("Forecast ($0's, real ", dms_DollarReal,")") -> Forecast ($0's, real June 2021) | S99: =CONCATENATE("Forecast ($0's, real ", dms_DollarReal,")") -> Forecast ($0's, real June 2021)
C100: =CRCP_y4 -> 2019-20 | D100: =CRCP_y5 -> 2020-21 | E100: =FRCP_y1 -> 2021-22 | F100: =FRCP_y2 -> 2022-23 | G100: =FRCP_y3 -> 2023-24 | H100: =FRCP_y4 -> 2024-25 | I100: =FRCP_y5 -> 2025-26 | K100: =CRCP_y4 -> 2019-20 | L100: =CRCP_y5 -> 2020-21 | M100: =FRCP_y1 -> 2021-22 | N100: =FRCP_y2 -> 2022-23 | O100: =FRCP_y3 -> 2023-24 | P100: =FRCP_y4 -> 2024-25 | Q100: =FRCP_y5 -> 2025-26 | S100: =CRCP_y4 -> 2019-20 | T100: =CRCP_y5 -> 2020-21 | U100: =FRCP_y1 -> 2021-22 | V100: =FRCP_y2 -> 2022-23 | W100: =FRCP_y3 -> 2023-24 | X100: =FRCP_y4 -> 2024-25 | Y100: =FRCP_y5 -> 2025-26
A101: DRAB1201 | B101: Overhead network assets less than 33kV (wires and poles) | C101: 1508590377 | D101: 1577679592 | E101: 1668875004 | F101: 1757451381 | G101: 1827143495 | H101: 1884142377 | I101: 1932007926 | K101: 1840995683 | L101: 1925308130 | M101: 2036597689 | N101: 2144691133 | O101: 2227350987 | P101: 2290616233 | Q101: 2345124030 | S101: 0 | T101: 0 | U101: 0 | V101: 0 | W101: 0 | X101: 0 | Y101: 0
A102: DRAB1202 | B102: Underground network assets less than 33kV (cables) | C102: 768329408.7 | D102: 803516744 | E102: 849962828.9 | F102: 895075032.1 | G102: 930569426 | H102: 959599119.9 | I102: 983977181.6 | K102: 937624384.7 | L102: 980564955.9 | M102: 1037245048 | N102: 1092297349 | O102: 1134396250 | P102: 1166617421 | Q102: 1194378399 | S102: 0 | T102: 0 | U102: 0 | V102: 0 | W102: 0 | X102: 0 | Y102: 0
A103: DRAB1203 | B103: Distribution substations including transformers | C103: 452411062.1 | D103: 473130221.8 | E103: 500478807.4 | F103: 527041971 | G103: 547941934.3 | H103: 565035324.8 | I103: 579389721.1 | K103: 452411062.1 | L103: 473130221.8 | M103: 500478807.4 | N103: 527041971 | O103: 547355018.4 | P103: 562901984.3 | Q103: 576296871.8 | S103: 0 | T103: 0 | U103: 0 | V103: 0 | W103: 0 | X103: 0 | Y103: 0
A104: DRAB1204 | B104: Overhead network assets 33kV and above (wires and towers / poles etc) | C104: 314690073.1 | D104: 329101997.2 | E104: 348125246.4 | F104: 366602168.4 | G104: 381139856.6 | H104: 393029752.3 | I104: 403014446.3 | K104: 314690073.1 | L104: 329101997.2 | M104: 348125246.4 | N104: 366602168.4 | O104: 380731607.1 | P104: 391545833.9 | Q104: 400863108.6 | S104: 0 | T104: 0 | U104: 0 | V104: 0 | W104: 0 | X104: 0 | Y104: 0
A105: DRAB1205 | B105: Underground network assets 33kV and above(cables, ducts etc) | C105: 8466480.744 | D105: 8854221.854 | E105: 9366026.919 | F105: 9863133.492 | G105: 10254258.18 | H105: 10574146.17 | I105: 10842776.25 | K105: 8466480.744 | L105: 8854221.854 | M105: 9366026.919 | N105: 9863133.492 | O105: 10243274.56 | P105: 10534222.55 | Q105: 10784896.25 | S105: 0 | T105: 0 | U105: 0 | V105: 0 | W105: 0 | X105: 0 | Y105: 0
A106: DRAB1206 | B106: Zone substations and transformers | C106: 239656270.2 | D106: 250631856.2 | E106: 265119256.2 | F106: 279190593.6 | G106: 290261957 | H106: 299316859.8 | I106: 306920831.9 | K106: 239656270.2 | L106: 250631856.2 | M106: 265119256.2 | N106: 279190593.6 | O106: 289951049.3 | P106: 298186762.7 | Q106: 305282453 | S106: 0 | T106: 0 | U106: 0 | V106: 0 | W106: 0 | X106: 0 | Y106: 0
A107: DRAB1207 | B107: Easements | C107: 0 | D107: 0 | E107: 0 | F107: 0 | G107: 0 | H107: 0 | I107: 0 | K107: 0 | L107: 0 | M107: 0 | N107: 0 | O107: 0 | P107: 0 | Q107: 0 | S107: 0 | T107: 0 | U107: 0 | V107: 0 | W107: 0 | X107: 0 | Y107: 0
A108: DRAB1208 | B108: Meters | C108: 0 | D108: 0 | E108: 0 | F108: 0 | G108: 0 | H108: 0 | I108: 0 | K108: 0 | L108: 0 | M108: 0 | N108: 0 | O108: 0 | P108: 0 | Q108: 0 | S108: =AVERAGE(S74,S79) -> 247158945.6 | T108: =AVERAGE(T74,T79) -> 226466806.1 | U108: 211121467.6 | V108: 197803671.4 | W108: 182126406.2 | X108: 165580137.6 | Y108: 151171125.7
A109: DRAB1209 | B109: “Other” assets with long lives | C109: 330795554.7 | D109: 378493643.1 | E109: 439304441.2 | F109: 504744887.6 | G109: 550327941.3 | H109: 558013784.5 | I109: 543735192.3 | K109: 329351281.8 | L109: 374882631.3 | M109: 434970963.2 | N109: 500411409.6 | O109: 545994463.3 | P109: 553680306.5 | Q109: 539401714.3 | S109: 0 | T109: 0 | U109: 0 | V109: 0 | W109: 0 | X109: 0 | Y109: 0
A110: DRAB1210 | B110: “Other” assets with short lives | C110: 91411625.95 | D110: 91973845.02 | E110: 85630075.47 | F110: 67988130.59 | G110: 53811123.75 | H110: 42231458.55 | I110: 31426104.82 | K110: 91411625.95 | L110: 91973845.02 | M110: 85630075.47 | N110: 67988130.59 | O110: 53811123.75 | P110: 42231458.55 | Q110: 31426104.82 | S110: =AVERAGE(S88,S93) -> 28860687.71 | T110: =AVERAGE(T88,T93) -> 29708884.79 | U110: 29291992.21 | V110: 28530838.94 | W110: 27992096.35 | X110: 27713127.02 | Y110: 27664316.28
A111: DRAB13 | B111: Value of Capital Contributions or Contributed Assets (included in the above) | C111: 0 | D111: 0 | E111: 0 | F111: 0 | G111: 0 | H111: 0 | I111: 0 | K111: 0 | L111: 0 | M111: 0 | N111: 0 | O111: 0 | P111: 0 | Q111: 0 | S111: 0 | T111: 0 | U111: 0 | V111: 0 | W111: 0 | X111: 0 | Y111: 0
B114: 3.3.4 - ASSET LIVES
C115: Network services | K115: Standard control services | S115: Alternative control services
C116: Forecast ( years ) | K116: Forecast ( years ) | S116: Forecast ( years )
C117: =CRCP_y4 -> 2019-20 | D117: =CRCP_y5 -> 2020-21 | E117: =FRCP_y1 -> 2021-22 | F117: =FRCP_y2 -> 2022-23 | G117: =FRCP_y3 -> 2023-24 | H117: =FRCP_y4 -> 2024-25 | I117: =FRCP_y5 -> 2025-26 | K117: =CRCP_y4 -> 2019-20 | L117: =CRCP_y5 -> 2020-21 | M117: =FRCP_y1 -> 2021-22 | N117: =FRCP_y2 -> 2022-23 | O117: =FRCP_y3 -> 2023-24 | P117: =FRCP_y4 -> 2024-25 | Q117: =FRCP_y5 -> 2025-26 | S117: =CRCP_y4 -> 2019-20 | T117: =CRCP_y5 -> 2020-21 | U117: =FRCP_y1 -> 2021-22 | V117: =FRCP_y2 -> 2022-23 | W117: =FRCP_y3 -> 2023-24 | X117: =FRCP_y4 -> 2024-25 | Y117: =FRCP_y5 -> 2025-26
B118: Estimated service life of new assets
A119: DRAB1401 | B119: Overhead network assets less than 33kV (wires and poles) | C119: 50.15206383 | D119: 50.15206383 | E119: 49.08991563 | F119: 49.08991563 | G119: 49.08991563 | H119: 49.08991563 | I119: 49.08991563 | K119: 50.15206383 | L119: 50.15206383 | M119: 49.08991563 | N119: 49.08991563 | O119: 49.08991563 | P119: 49.08991563 | Q119: 49.08991563 | S119: 0 | T119: 0 | U119: 0 | V119: 0 | W119: 0 | X119: 0 | Y119: 0
A120: DRAB1402 | B120: Underground network assets less than 33kV (cables) | C120: 50.15206383 | D120: 50.15206383 | E120: 49.08991563 | F120: 49.08991563 | G120: 49.08991563 | H120: 49.08991563 | I120: 49.08991563 | K120: 50.15206383 | L120: 50.15206383 | M120: 49.08991563 | N120: 49.08991563 | O120: 49.08991563 | P120: 49.08991563 | Q120: 49.08991563 | S120: 0 | T120: 0 | U120: 0 | V120: 0 | W120: 0 | X120: 0 | Y120: 0
A121: DRAB1403 | B121: Distribution substations including transformers | C121: 50.15206383 | D121: 50.15206383 | E121: 49.08991563 | F121: 49.08991563 | G121: 49.08991563 | H121: 49.08991563 | I121: 49.08991563 | K121: 50.15206383 | L121: 50.15206383 | M121: 49.08991563 | N121: 49.08991563 | O121: 49.08991563 | P121: 49.08991563 | Q121: 49.08991563 | S121: 0 | T121: 0 | U121: 0 | V121: 0 | W121: 0 | X121: 0 | Y121: 0
A122: DRAB1404 | B122: Overhead network assets 33kV and above (wires and towers / poles etc) | C122: 50.15206383 | D122: 50.15206383 | E122: 49.08991563 | F122: 49.08991563 | G122: 49.08991563 | H122: 49.08991563 | I122: 49.08991563 | K122: 50.15206383 | L122: 50.15206383 | M122: 49.08991563 | N122: 49.08991563 | O122: 49.08991563 | P122: 49.08991563 | Q122: 49.08991563 | S122: 0 | T122: 0 | U122: 0 | V122: 0 | W122: 0 | X122: 0 | Y122: 0
A123: DRAB1405 | B123: Underground network assets 33kV and above(cables, ducts etc) | C123: 50.15206383 | D123: 50.15206383 | E123: 49.08991563 | F123: 49.08991563 | G123: 49.08991563 | H123: 49.08991563 | I123: 49.08991563 | K123: 50.15206383 | L123: 50.15206383 | M123: 49.08991563 | N123: 49.08991563 | O123: 49.08991563 | P123: 49.08991563 | Q123: 49.08991563 | S123: 0 | T123: 0 | U123: 0 | V123: 0 | W123: 0 | X123: 0 | Y123: 0
A124: DRAB1406 | B124: Zone substations and transformers | C124: 50.15206383 | D124: 50.15206383 | E124: 49.08991563 | F124: 49.08991563 | G124: 49.08991563 | H124: 49.08991563 | I124: 49.08991563 | K124: 50.15206383 | L124: 50.15206383 | M124: 49.08991563 | N124: 49.08991563 | O124: 49.08991563 | P124: 49.08991563 | Q124: 49.08991563 | S124: 0 | T124: 0 | U124: 0 | V124: 0 | W124: 0 | X124: 0 | Y124: 0
A125: DRAB1407 | B125: Meters | C125: 0 | D125: 0 | E125: 0 | F125: 0 | G125: 0 | H125: 0 | I125: 0 | K125: 0 | L125: 0 | M125: 0 | N125: 0 | O125: 0 | P125: 0 | Q125: 0 | S125: 15 | T125: 15 | U125: 15 | V125: 15 | W125: 15 | X125: 15 | Y125: 15
A126: DRAB1408 | B126: “Other” assets with long lives | C126: 12.76087836 | D126: 12.76087836 | E126: 14.68527359 | F126: 14.68527359 | G126: 14.68527359 | H126: 14.68527359 | I126: 14.68527359 | K126: 12.76087836 | L126: 12.76087836 | M126: 14.68527359 | N126: 14.68527359 | O126: 14.68527359 | P126: 14.68527359 | Q126: 14.68527359 | S126: 0 | T126: 0 | U126: 0 | V126: 0 | W126: 0 | X126: 0 | Y126: 0
A127: DRAB1409 | B127: “Other” assets with short lives | C127: 6 | D127: 6 | E127: 6 | F127: 6 | G127: 6 | H127: 6 | I127: 6 | K127: 6 | L127: 6 | M127: 6 | N127: 6 | O127: 6 | P127: 6 | Q127: 6 | S127: 25 | T127: 25 | U127: 25 | V127: 25 | W127: 25 | X127: 25 | Y127: 25
B128: Estimated residual service life
A129: DRAB1501 | B129: Overhead network assets less than 33kV (wires and poles) | C129: 24 | D129: 25 | E129: 24 | F129: 23 | G129: 23 | H129: 24 | I129: 23 | K129: 24 | L129: 25 | M129: 24 | N129: 23 | O129: 23 | P129: 24 | Q129: 23 | S129: 0 | T129: 0 | U129: 0 | V129: 0 | W129: 0 | X129: 0 | Y129: 0
A130: DRAB1502 | B130: Underground network assets less than 33kV (cables) | C130: 24 | D130: 25 | E130: 24 | F130: 23 | G130: 23 | H130: 24 | I130: 23 | K130: 24 | L130: 25 | M130: 24 | N130: 23 | O130: 23 | P130: 24 | Q130: 23 | S130: 0 | T130: 0 | U130: 0 | V130: 0 | W130: 0 | X130: 0 | Y130: 0
A131: DRAB1503 | B131: Distribution substations including transformers | C131: 24 | D131: 25 | E131: 24 | F131: 23 | G131: 23 | H131: 24 | I131: 23 | K131: 24 | L131: 25 | M131: 24 | N131: 23 | O131: 23 | P131: 24 | Q131: 23 | S131: 0 | T131: 0 | U131: 0 | V131: 0 | W131: 0 | X131: 0 | Y131: 0
A132: DRAB1504 | B132: Overhead network assets 33kV and above (wires and towers / poles etc) | C132: 24 | D132: 25 | E132: 24 | F132: 23 | G132: 23 | H132: 24 | I132: 23 | K132: 24 | L132: 25 | M132: 24 | N132: 23 | O132: 23 | P132: 24 | Q132: 23 | S132: 0 | T132: 0 | U132: 0 | V132: 0 | W132: 0 | X132: 0 | Y132: 0
A133: DRAB1505 | B133: Underground network assets 33kV and above (cables, ducts etc) | C133: 24 | D133: 25 | E133: 24 | F133: 23 | G133: 23 | H133: 24 | I133: 23 | K133: 24 | L133: 25 | M133: 24 | N133: 23 | O133: 23 | P133: 24 | Q133: 23 | S133: 0 | T133: 0 | U133: 0 | V133: 0 | W133: 0 | X133: 0 | Y133: 0
A134: DRAB1506 | B134: Zone substations and transformers | C134: 24 | D134: 25 | E134: 24 | F134: 23 | G134: 23 | H134: 24 | I134: 23 | K134: 24 | L134: 25 | M134: 24 | N134: 23 | O134: 23 | P134: 24 | Q134: 23 | S134: 0 | T134: 0 | U134: 0 | V134: 0 | W134: 0 | X134: 0 | Y134: 0
A135: DRAB1507 | B135: Meters | C135: 0 | D135: 0 | E135: 0 | F135: 0 | G135: 0 | H135: 0 | I135: 0 | K135: 0 | L135: 0 | M135: 0 | N135: 0 | O135: 0 | P135: 0 | Q135: 0 | S135: =-S74/S76 -> 7.073574074 | T135: =-T74/T76 -> 7.319829693 | U135: 6.947217858 | V135: 6.29451729 | W135: 5.647556859 | X135: 4.974542391 | Y135: 4.447624605
A136: DRAB1508 | B136: “Other” assets with long lives | C136: 9 | D136: 10 | E136: 11 | F136: 11 | G136: 11 | H136: 10 | I136: 10 | K136: 9 | L136: 10 | M136: 11 | N136: 11 | O136: 11 | P136: 10 | Q136: 10 | S136: 0 | T136: 0 | U136: 0 | V136: 0 | W136: 0 | X136: 0 | Y136: 0
A137: DRAB1509 | B137: “Other” assets with short lives | C137: 3 | D137: 3 | E137: 3 | F137: 3 | G137: 3 | H137: 3 | I137: 2 | K137: 3 | L137: 3 | M137: 3 | N137: 3 | O137: 3 | P137: 3 | Q137: 2 | S137: =-S88/S90 -> 15.72954847 | T137: =-T88/T90 -> 15.77604564 | U137: 15.49811013 | V137: 14.80995673 | W137: 14.22636043 | X137: 16.09208598 | Y137: 15.54554371

Sheet 3.4 Operational data
B1: =INDEX(dms_Worksheet_List,MATCH(dms_Model,dms_Model_List)) -> REGULATORY REPORTING STATEMENT
B2: =INDEX(dms_TradingNameFull_List,MATCH(dms_TradingName,dms_TradingName_List)) -> Powercor Australia
B3: =dms_Header_Span -> 2021-22 to 2025-26
B4: 3.4 OPERATIONAL DATA
B6: There are TWO tables on this worksheet. Each table has been grouped for ease of navigation. See the Instructions sheet on how to group or ungroup tables.
B8: 3.4.1 - ENERGY DELIVERY
D9: Standard control services
D10: Forecast
C11: Units | D11: =CRCP_y4 -> 2019-20 | E11: =CRCP_y5 -> 2020-21 | F11: =FRCP_y1 -> 2021-22 | G11: =FRCP_y2 -> 2022-23 | H11: =FRCP_y3 -> 2023-24 | I11: =FRCP_y4 -> 2024-25 | J11: =FRCP_y5 -> 2025-26
A12: DOPED01 | B12: Total energy delivered | C12: GWh
B13: 3.4.1.1 - Energy grouping - delivery by chargeable quantity
A14: DOPED0201 | B14: Energy Delivery where time of use is not a determinant | C14: GWh | D14: 2537.971878 | E14: 2703.636548 | F14: 2589.767222 | G14: 2388.261719 | H14: 2156.230625 | I14: 1921.879221 | J14: 1685.184302
A15: DOPED0202 | B15: Energy Delivery at On-peak times | C15: GWh | D15: 4053.569641 | E15: 4069.918713 | F15: 4136.295552 | G15: 4260.253576 | H15: 4395.574371 | I15: 4532.248374 | J15: 4670.289117
A16: DOPED0203 | B16: Energy Delivery at Shoulder times | C16: GWh | D16: 7.016279176 | E16: 7.405506921 | F16: 7.159468547 | G16: 0 | H16: 0 | I16: 0 | J16: 0
A17: DOPED0204 | B17: Energy Delivery at Off-peak times | C17: GWh | D17: 3834.437998 | E17: 3812.250764 | F17: 3912.691835 | G17: 4103.857923 | H17: 4308.091954 | I17: 4514.368325 | J17: 4722.70746
A18: DOPED0205 | B18: Controlled load energy deliveries | C18: GWh | D18: 375.4175994 | E18: 381.1827514 | F18: 383.079183 | G18: 386.9099748 | H18: 390.7790746 | I18: 394.6868653 | J18: 398.633734
A19: DOPED0206 | B19: Energy Delivery to unmetered supplies | C19: GWh | D19: 77.59605429 | E19: 78.78761501 | F19: 79.17964724 | G19: 79.97154632 | H19: 80.77136314 | I19: 81.57917503 | J19: 82.39506263
B20: 3.4.1.2 - Energy - received from TNSP and other DNSPs by time of receipt
A21: DOPED0301 | B21: Energy into DNSP network at On-peak times | C21: GWh | D21: 0 | E21: 0 | F21: 0 | G21: 0 | H21: 0 | I21: 0 | J21: 0
A22: DOPED0302 | B22: Energy into DNSP network at Shoulder times | C22: GWh | D22: 0 | E22: 0 | F22: 0 | G22: 0 | H22: 0 | I22: 0 | J22: 0
A23: DOPED0303 | B23: Energy into DNSP network at Off-peak times | C23: GWh | D23: 0 | E23: 0 | F23: 0 | G23: 0 | H23: 0 | I23: 0 | J23: 0
A24: DOPED0304 | B24: Energy received from TNSP and other DNSPs not included in the above categories | C24: GWh | D24: =SUM(D14:D19)*(1+'3.6 Quality of service'!D16)-SUM(D26:D33) -> 9109.976939 | E24: =SUM(E14:E19)*(1+'3.6 Quality of service'!E16)-SUM(E26:E33) -> 8443.134725 | F24: =SUM(F14:F19)*(1+'3.6 Quality of service'!F16)-SUM(F26:F33) -> 7642.034687 | G24: =SUM(G14:G19)*(1+'3.6 Quality of service'!G16)-SUM(G26:G33) -> 6895.342698 | H24: =SUM(H14:H19)*(1+'3.6 Quality of service'!H16)-SUM(H26:H33) -> 6207.657174 | I24: =SUM(I14:I19)*(1+'3.6 Quality of service'!I16)-SUM(I26:I33) -> 5527.017313 | J24: =SUM(J14:J19)*(1+'3.6 Quality of service'!J16)-SUM(J26:J33) -> 4847.526862
B25: 3.4.1.3 - Energy - received into DNSP system from embedded generation by time of receipt
A26: DOPED0401 | B26: Energy into DNSP network at On-peak times from non-residential embedded generation | C26: GWh | D26: 1279.959318 | E26: 1752.431814 | F26: 2224.90431 | G26: 2697.376805 | H26: 3169.849301 | I26: 3642.321797 | J26: 4114.794292
A27: DOPED0402 | B27: Energy into DNSP network at Shoulder times from non-residential embedded generation | C27: GWh | D27: 0 | E27: 0 | F27: 0 | G27: 0 | H27: 0 | I27: 0 | J27: 0
A28: DOPED0403 | B28: Energy into DNSP network at Off-peak times from non-residential embedded generation | C28: GWh | D28: 824.5430815 | E28: 1128.907386 | F28: 1433.27169 | G28: 1737.635995 | H28: 2042.000299 | I28: 2346.364603 | J28: 2650.728908
A29: DOPED0404 | B29: Energy received from embedded generation not included in above categories from non-residential embedded generation | C29: GWh | D29: 0 | E29: 0 | F29: 0 | G29: 0 | H29: 0 | I29: 0 | J29: 0
A30: DOPED0405 | B30: Energy into DNSP network at On-peak times from residential embedded generation | C30: GWh | D30: 248.8611224 | E30: 297.1888439 | F30: 356.3216183 | G30: 419.1508951 | H30: 440.6180693 | I30: 457.8979863 | J30: 475.2166285
A31: DOPED0406 | B31: Energy into DNSP network at Shoulder times from residential embedded generation | C31: GWh | D31: 0 | E31: 0 | F31: 0 | G31: 0 | H31: 0 | I31: 0 | J31: 0
A32: DOPED0407 | B32: Energy into DNSP network at Off-peak times from residential embedded generation | C32: GWh | D32: 99.06122349 | E32: 118.2984719 | F32: 141.8367607 | G32: 166.8464728 | H32: 175.3916586 | I32: 182.2700722 | J32: 189.1639007
A33: DOPED0408 | B33: Energy received from embedded generation not included in above categories from residential embedded generation | C33: GWh | D33: 0 | E33: 0 | F33: 0 | G33: 0 | H33: 0 | I33: 0 | J33: 0
B34: 3.4.1.4 - Energy grouping - customer type or class
A35: DOPED0501 | B35: Residential customers energy deliveries | C35: GWh | D35: 3631.231225 | E35: 3686.988706 | F35: 3704.349286 | G35: 3741.392779 | H35: 3778.806707 | I35: 3816.594774 | J35: 3854.760722
A36: DOPED0502 | B36: Non residential customers not on demand tariffs energy deliveries | C36: GWh | D36: 962.5061086 | E36: 977.2863575 | F36: 982.0492031 | G36: 991.8696951 | H36: 1001.788392 | I36: 1011.806276 | J36: 1021.924339
A37: DOPED0503 | B37: Non-residential low voltage demand tariff customers energy deliveries | C37: GWh | D37: 2441.759544 | E37: 2479.256743 | F37: 2490.720263 | G37: 2515.627466 | H37: 2540.78374 | I37: 2566.191578 | J37: 2591.853494
A38: DOPED0504 | B38: Non-residential high voltage demand tariff customers energy deliveries | C38: GWh | D38: 1673.593782 | E38: 1699.294554 | F38: 1707.279132 | G38: 1724.351923 | H38: 1741.595443 | I38: 1759.011397 | J38: 1776.601511
A39: DOPED0505 | B39: Other Customer Class Energy Deliveries | C39: GWh | D39: 2176.918789 | E39: 2210.355538 | F39: 2223.775023 | G39: 2246.012876 | H39: 2268.473106 | I39: 2291.157935 | J39: 2314.06961
B43: 3.4.3 - SYSTEM DEMAND
D44: Standard control services
D45: Forecast
C46: Units | D46: =CRCP_y4 -> 2019-20 | E46: =CRCP_y5 -> 2020-21 | F46: =FRCP_y1 -> 2021-22 | G46: =FRCP_y2 -> 2022-23 | H46: =FRCP_y3 -> 2023-24 | I46: =FRCP_y4 -> 2024-25 | J46: =FRCP_y5 -> 2025-26
B47: 3.4.3.1 - Annual system maximum demand characteristics at the zone substation level – MW measure
A48: DOPSD0102 | B48: Non–coincident Summated Weather Adjusted System Annual Maximum Demand 10% POE | C48: MW | D48: 2553.18 | E48: 2601.066 | F48: 2665.904 | G48: 2750.291 | H48: 2809.943 | I48: 2887.295 | J48: 2999.996
A49: DOPSD0103 | B49: Non–coincident Summated Weather Adjusted System Annual Maximum Demand 50% POE | C49: MW | D49: 2303.133 | E49: 2325.141 | F49: 2381.342 | G49: 2460.705 | H49: 2499.119 | I49: 2555.227 | J49: 2647.303
A50: DOPSD0105 | B50: Coincident Weather Adjusted System Annual Maximum Demand 10% POE | C50: MW | D50: 2135.378584 | E50: 2168.708949 | F50: 2215.88229 | G50: 2278.919127 | H50: 2321.08818 | I50: 2377.523972 | J50: 2462.576682
A51: DOPSD0106 | B51: Coincident Weather Adjusted System Annual Maximum Demand 50% POE | C51: MW | D51: 1926.30373 | E51: 1938.769755 | F51: 1979.547055 | G51: 2039.231928 | H51: 2064.680666 | I51: 2104.506019 | J51: 2173.57628
B52: 3.4.3.2 - Annual system maximum demand characteristics at the transmission connection point – MW measure
A53: DOPSD0108 | B53: Non–coincident Summated Weather Adjusted System Annual Maximum Demand 10% POE | C53: MW | D53: 3015.877449 | E53: 3085.701563 | F53: 3211.036504 | G53: 3241.05207 | H53: 3297.511845 | I53: 3346.143068 | J53: 3379.557355
A54: DOPSD0109 | B54: Non–coincident Summated Weather Adjusted System Annual Maximum Demand 50% POE | C54: MW | D54: 2718.537512 | E54: 2780.977633 | F54: 2879.26766 | G54: 2924.116844 | H54: 2970.558746 | I54: 3013.481242 | J54: 3066.990876
A55: DOPSD0111 | B55: Coincident Weather Adjusted System Annual Maximum Demand 10% POE | C55: MW | D55: 2612.628681 | E55: 2694.483741 | F55: 2886.063906 | G55: 2905.077202 | H55: 2961.48966 | I55: 3007.978095 | J55: 3027.350883
A56: DOPSD0112 | B56: Coincident Weather Adjusted System Annual Maximum Demand 50% POE | C56: MW | D56: 2416.198341 | E56: 2463.686178 | F56: 2591.488793 | G56: 2676.323705 | H56: 2712.020053 | I56: 2746.37097 | J56: 2775.354714
B57: 3.4.3.3 - Annual system maximum demand characteristics at the zone substation level – MVA measure
A58: DOPSD0202 | B58: Non–coincident Summated Weather Adjusted System Annual Maximum Demand 10% POE | C58: MVA | D58: 2588.398 | E58: 2639.146 | F58: 2705.012 | G58: 2791.189 | H58: 2852.94 | I58: 2931.697 | J58: 3046.027
A59: DOPSD0203 | B59: Non–coincident Summated Weather Adjusted System Annual Maximum Demand 50% POE | C59: MVA | D59: 2339.25 | E59: 2362.298 | F59: 2419.489 | G59: 2501.192 | H59: 2540.539 | I59: 2598.217 | J59: 2691.622
A60: DOPSD0205 | B60: Coincident Weather Adjusted System Annual Maximum Demand 10% POE | C60: MVA | D60: 2197.004139 | E60: 2240.799751 | F60: 2297.463359 | G60: 2371.419377 | H60: 2424.663272 | I60: 2492.398666 | J60: 2590.429415
A61: DOPSD0206 | B61: Coincident Weather Adjusted System Annual Maximum Demand 50% POE | C61: MVA | D61: 1985.29793 | E61: 2005.468815 | F61: 2054.64607 | G61: 2124.674959 | H61: 2158.755184 | I61: 2208.436751 | J61: 2288.524644
B62: 3.4.3.4 - Annual system maximum demand characteristics at the transmission connection point – MVA measure
A63: DOPSD0208 | B63: Non–coincident Summated Weather Adjusted System Annual Maximum Demand 10% POE | C63: MVA | D63: 3060.521716 | E63: 3130.760314 | F63: 3258.360829 | G63: 3290.633479 | H63: 3348.462198 | I63: 3395.625265 | J63: 3428.284612
A64: DOPSD0209 | B64: Non–coincident Summated Weather Adjusted System Annual Maximum Demand 50% POE | C64: MVA | D64: 2762.232948 | E64: 2825.489449 | F64: 2924.436085 | G64: 2970.026758 | H64: 3017.201821 | I64: 3061.143348 | J64: 3114.879387
A65: DOPSD0211 | B65: Coincident Weather Adjusted System Annual Maximum Demand 10% POE | C65: MVA | D65: 2653.038389 | E65: 2734.830781 | F65: 2929.761418 | G65: 2949.224714 | H65: 3005.263556 | I65: 3052.484313 | J65: 3072.594858
A66: DOPSD0212 | B66: Coincident Weather Adjusted System Annual Maximum Demand 50% POE | C66: MVA | D66: 2454.324415 | E66: 2502.236992 | F66: 2631.258671 | G66: 2717.584757 | H66: 2754.120607 | I66: 2788.035904 | J66: 2818.6971
B67: 3.4.3.5 - Power factor conversion between MVA and MW
A68: DOPSD0301 | B68: Average overall network power factor conversion between MVA and MW | C68: Factor | D68: 0.966 | E68: 0.966 | F68: 0.966 | G68: 0.966 | H68: 0.966 | I68: 0.966 | J68: 0.966
A69: DOPSD0302 | B69: Average power factor conversion for low voltage distribution lines | C69: Factor | D69: 0.85 | E69: 0.85 | F69: 0.85 | G69: 0.85 | H69: 0.85 | I69: 0.85 | J69: 0.85
A70: DOPSD0303 | B70: Average power factor conversion for 3.3 kV lines | C70: Factor | D70: 0 | E70: 0 | F70: 0 | G70: 0 | H70: 0 | I70: 0 | J70: 0
A71: DOPSD0304 | B71: Average power factor conversion for 6.6 kV lines | C71: Factor | D71: 0 | E71: 0 | F71: 0 | G71: 0 | H71: 0 | I71: 0 | J71: 0
A72: DOPSD0305 | B72: Average power factor conversion for 7.6 kV lines | C72: Factor | D72: 0 | E72: 0 | F72: 0 | G72: 0 | H72: 0 | I72: 0 | J72: 0
A73: DOPSD0306 | B73: Average power factor conversion for 11 kV lines | C73: Factor | D73: 0.9 | E73: 0.9 | F73: 0.9 | G73: 0.9 | H73: 0.9 | I73: 0.9 | J73: 0.9
A74: DOPSD0307 | B74: Average power factor conversion for SWER lines | C74: Factor | D74: 0.9 | E74: 0.9 | F74: 0.9 | G74: 0.9 | H74: 0.9 | I74: 0.9 | J74: 0.9
A75: DOPSD0308 | B75: Average power factor conversion for 22 kV lines | C75: Factor | D75: 0.9 | E75: 0.9 | F75: 0.9 | G75: 0.9 | H75: 0.9 | I75: 0.9 | J75: 0.9
A76: DOPSD0309 | B76: Average power factor conversion for 33 kV lines | C76: Factor | D76: 0 | E76: 0 | F76: 0 | G76: 0 | H76: 0 | I76: 0 | J76: 0
A77: DOPSD0310 | B77: Average power factor conversion for 44 kV lines | C77: Factor | D77: 0 | E77: 0 | F77: 0 | G77: 0 | H77: 0 | I77: 0 | J77: 0
A78: DOPSD0311 | B78: Average power factor conversion for 66 kV lines | C78: Factor | D78: 0.95 | E78: 0.95 | F78: 0.95 | G78: 0.95 | H78: 0.95 | I78: 0.95 | J78: 0.95
A79: DOPSD0312 | B79: Average power factor conversion for 110 kV lines | C79: Factor | D79: 0 | E79: 0 | F79: 0 | G79: 0 | H79: 0 | I79: 0 | J79: 0
A80: DOPSD0313 | B80: Average power factor conversion for 132 kV lines | C80: Factor | D80: 0 | E80: 0 | F80: 0 | G80: 0 | H80: 0 | I80: 0 | J80: 0
A81: DOPSD0314 | B81: Average power factor conversion for 220 kV lines | C81: Factor | D81: 0 | E81: 0 | F81: 0 | G81: 0 | H81: 0 | I81: 0 | J81: 0
B82: 3.4.3.6 - Demand supplied (for customers charged on this basis) – MW measure
A83: DOPSD0401 | B83: Summated Chargeable Contracted Maximum Demand | C83: MW | D83: 0 | E83: 0 | F83: 0 | G83: 0 | H83: 0 | I83: 0 | J83: 0
A84: DOPSD0402 | B84: Summated Chargeable Measured Maximum Demand | C84: MW | D84: 0 | E84: 0 | F84: 0 | G84: 0 | H84: 0 | I84: 0 | J84: 0
B85: 3.4.3.7 - Demand supplied (for customers charged on this basis) – MVA measure
A86: DOPSD0403 | B86: Summated Chargeable Contracted Maximum Demand | C86: MVA | D86: 0 | E86: 0 | F86: 0 | G86: 0 | H86: 0 | I86: 0 | J86: 0
A87: DOPSD0404 | B87: Summated Chargeable Measured Maximum Demand | C87: MVA | D87: 0 | E87: 0 | F87: 0 | G87: 0 | H87: 0 | I87: 0 | J87: 0

Sheet 3.5 Physical assets
B1: =INDEX(dms_Worksheet_List,MATCH(dms_Model,dms_Model_List)) -> REGULATORY REPORTING STATEMENT
B2: =INDEX(dms_TradingNameFull_List,MATCH(dms_TradingName,dms_TradingName_List)) -> Powercor Australia
B3: =dms_Header_Span -> 2021-22 to 2025-26
B4: 3.5 PHYSICAL ASSETS DATA
B6: There are THREE tables on this worksheet. Each table has been grouped (and sub-grouped) for ease of navigation. See the Instructions sheet on how to group or ungroup tables.
B8: 3.5.1 - NETWORK CAPACITIES VARIABLES
D9: VOLUMES
C10: Units | D10: =CRCP_y4 -> 2019-20 | E10: =CRCP_y5 -> 2020-21 | F10: =FRCP_y1 -> 2021-22 | G10: =FRCP_y2 -> 2022-23 | H10: =FRCP_y3 -> 2023-24 | I10: =FRCP_y4 -> 2024-25 | J10: =FRCP_y5 -> 2025-26
B11: CIRCUIT LENGTH
B12: 3.5.1.1 - Overhead network length of circuit at each voltage
A13: DPA0101 | B13: Overhead low voltage distribution | C13: km | D13: 9559.467531 | E13: 9555.421043 | F13: 9551.376267 | G13: 9547.333203 | H13: 9543.291851 | I13: 9539.25221 | J13: 9535.214278
A14: DPA0102 | B14: Overhead 2.2 kV | C14: km | D14: 0 | E14: 0 | F14: 0 | G14: 0 | H14: 0 | I14: 0 | J14: 0
A15: DPA0103 | B15: Overhead 7.6 kV | C15: km | D15: 0 | E15: 0 | F15: 0 | G15: 0 | H15: 0 | I15: 0 | J15: 0
A16: DPA0104 | B16: Overhead 11 kV | C16: km | D16: 54.72039467 | E16: 54.69723172 | F16: 54.67407858 | G16: 54.65093524 | H16: 54.62780169 | I16: 54.60467794 | J16: 54.58156397
A17: DPA0105 | B17: Overhead SWER | C17: km | D17: 21388.85512 | E17: 21379.80129 | F17: 21370.7513 | G17: 21361.70514 | H17: 21352.6628 | I17: 21343.6243 | J17: 21334.58961
A18: DPA0106 | B18: Overhead 22 kV | C18: km | D18: 34508.2585 | E18: 34493.65128 | F18: 34479.05024 | G18: 34464.45538 | H18: 34449.86669 | I18: 34435.28419 | J18: 34420.70786
A19: DPA0107 | B19: Overhead 33 kV | C19: km | D19: 0 | E19: 0 | F19: 0 | G19: 0 | H19: 0 | I19: 0 | J19: 0
A20: DPA0108 | B20: Overhead 44 kV | C20: km | D20: 0 | E20: 0 | F20: 0 | G20: 0 | H20: 0 | I20: 0 | J20: 0
A21: DPA0109 | B21: Overhead 66 kV | C21: km | D21: 3192.433222 | E21: 3191.081876 | F21: 3189.731102 | G21: 3188.380901 | H21: 3187.03127 | I21: 3185.682211 | J21: 3184.333723
A22: DPA0110 | B22: Overhead 132 kV | C22: km | D22: 0 | E22: 0 | F22: 0 | G22: 0 | H22: 0 | I22: 0 | J22: 0
A23: DPA0111 | B23: Overhead 6.6kv | C23: km | D23: 0 | E23: 0 | F23: 0 | G23: 0 | H23: 0 | I23: 0 | J23: 0
A24: DPA0112 | B24: Overhead 110kV | C24: km | D24: 0 | E24: 0 | F24: 0 | G24: 0 | H24: 0 | I24: 0 | J24: 0
A25: DPA0113 | B25: Overhead 220kV | C25: km | D25: 0 | E25: 0 | F25: 0 | G25: 0 | H25: 0 | I25: 0 | J25: 0
A26: DPA0114 | B26: Other | C26: km | D26: 0 | E26: 0 | F26: 0 | G26: 0 | H26: 0 | I26: 0 | J26: 0
A27: DPA01 | B27: Total overhead circuit km | D27: =SUM(D13:D26) -> 68703.73476 | E27: =SUM(E13:E26) -> 68674.65272 | F27: 68645.58298 | G27: 68616.52555 | H27: 68587.48042 | I27: 68558.44758 | J27: 68529.42704
B28: 3.5.1.2 - Underground network circuit length at each voltage
A29: DPA0201 | B29: Underground low voltage distribution | C29: km | D29: 4824.443588 | E29: 5112.894762 | F29: 5418.592293 | G29: 5742.567334 | H29: 6085.912687 | I29: 6449.786495 | J29: 6835.416144
A30: DPA0202 | B30: Underground 5 kV | C30: km | D30: 0 | E30: 0 | F30: 0 | G30: 0 | H30: 0 | I30: 0 | J30: 0
A31: DPA0203 | B31: Underground 6.6 Kv | C31: km | D31: 0 | E31: 0 | F31: 0 | G31: 0 | H31: 0 | I31: 0 | J31: 0
A32: DPA0204 | B32: Underground 7.6 kV | C32: km | D32: 0 | E32: 0 | F32: 0 | G32: 0 | H32: 0 | I32: 0 | J32: 0
A33: DPA0205 | B33: Underground 11 kV | C33: km | D33: 19.76737319 | E33: 20.94925498 | F33: 22.20180091 | G33: 23.52923596 | H33: 24.93603772 | I33: 26.42695148 | J33: 28.00700627
A34: DPA0206 | B34: Underground SWER | C34: km | D34: 331.6068778 | E34: 351.4334944 | F34: 372.4455349 | G34: 394.7138752 | H34: 418.313629 | I34: 443.3244007 | J34: 469.8305545
A35: DPA0207 | B35: Underground 22 kV | C35: km | D35: 2125.731551 | E35: 2252.828023 | F35: 2387.523533 | G35: 2530.272422 | H35: 2681.5562 | I35: 2841.885162 | J35: 3011.800116
A36: DPA0208 | B36: Underground 33 kV | C36: km | D36: 0 | E36: 0 | F36: 0 | G36: 0 | H36: 0 | I36: 0 | J36: 0
A37: DPA0209 | B37: Underground 66 kV | C37: km | D37: 3.952659678 | E37: 4.188987309 | F37: 4.439444855 | G37: 4.704877139 | H37: 4.986179492 | I37: 5.284300778 | J37: 5.600246594
A38: DPA0210 | B38: Underground 110 kV | C38: km | D38: 0 | E38: 0 | F38: 0 | G38: 0 | H38: 0 | I38: 0 | J38: 0
A39: DPA0211 | B39: Underground 132 kV | C39: km | D39: 0 | E39: 0 | F39: 0 | G39: 0 | H39: 0 | I39: 0 | J39: 0
A40: DPA0212 | B40: Other | C40: km | D40: 0 | E40: 0 | F40: 0 | G40: 0 | H40: 0 | I40: 0 | J40: 0
A41: DPA02 | B41: Total underground circuit km | D41: =SUM(D29:D40) -> 7305.50205 | E41: 7742.294522 | F41: 8205.202607 | G41: 8695.787745 | H41: 9215.704733 | I41: 9766.70731 | J41: 10350.65407
B43: CIRCUIT CAPACITY MVA
B44: 3.5.1.3 - Estimated overhead network weighted average MVA capacity by voltage class
A45: DPA0301 | B45: Overhead low voltage distribution | C45: MVA | D45: 0.2 | E45: 0.2 | F45: 0.2 | G45: 0.2 | H45: 0.2 | I45: 0.2 | J45: 0.2
A46: DPA0302 | B46: Overhead 6.6 kV | C46: MVA | D46: 0 | E46: 0 | F46: 0 | G46: 0 | H46: 0 | I46: 0 | J46: 0
A47: DPA0303 | B47: Overhead 7.6 kV | C47: MVA | D47: 0 | E47: 0 | F47: 0 | G47: 0 | H47: 0 | I47: 0 | J47: 0
A48: DPA0304 | B48: Overhead 11 kV | C48: MVA | D48: 4 | E48: 4 | F48: 4 | G48: 4 | H48: 4 | I48: 4 | J48: 4
A49: DPA0305 | B49: Overhead SWER | C49: MVA | D49: 0.08 | E49: 0.08 | F49: 0.08 | G49: 0.08 | H49: 0.08 | I49: 0.08 | J49: 0.08
A50: DPA0306 | B50: Overhead 22 kV | C50: MVA | D50: 8 | E50: 8 | F50: 8 | G50: 8 | H50: 8 | I50: 8 | J50: 8
A51: DPA0307 | B51: Overhead 33 kV | C51: MVA | D51: 0 | E51: 0 | F51: 0 | G51: 0 | H51: 0 | I51: 0 | J51: 0
A52: DPA0308 | B52: Overhead 44 kV | C52: MVA | D52: 0 | E52: 0 | F52: 0 | G52: 0 | H52: 0 | I52: 0 | J52: 0
A53: DPA0309 | B53: Overhead 66 kV | C53: MVA | D53: 50 | E53: 50 | F53: 50 | G53: 50 | H53: 50 | I53: 50 | J53: 50
A54: DPA0310 | B54: Overhead 110 kV | C54: MVA | D54: 0 | E54: 0 | F54: 0 | G54: 0 | H54: 0 | I54: 0 | J54: 0
A55: DPA0311 | B55: Overhead 132 kV | C55: MVA | D55: 0 | E55: 0 | F55: 0 | G55: 0 | H55: 0 | I55: 0 | J55: 0
A56: DPA0312 | B56: Overhead 220 kV | C56: MVA | D56: 0 | E56: 0 | F56: 0 | G56: 0 | H56: 0 | I56: 0 | J56: 0
A57: DPA0313 | B57: Other | C57: MVA | D57: 0 | E57: 0 | F57: 0 | G57: 0 | H57: 0 | I57: 0 | J57: 0
B58: 3.5.1.4 - Estimated underground network weighted average MVA capacity by voltage class
A59: DPA0401 | B59: Underground low voltage distribution | C59: MVA | D59: 0.2 | E59: 0.2 | F59: 0.2 | G59: 0.2 | H59: 0.2 | I59: 0.2 | J59: 0.2
A60: DPA0402 | B60: Underground 5 kV | C60: MVA | D60: 0 | E60: 0 | F60: 0 | G60: 0 | H60: 0 | I60: 0 | J60: 0
A61: DPA0403 | B61: Underground 6.6 kV | C61: MVA | D61: 0 | E61: 0 | F61: 0 | G61: 0 | H61: 0 | I61: 0 | J61: 0
A62: DPA0404 | B62: Underground 7.6 kV | C62: MVA | D62: 0 | E62: 0 | F62: 0 | G62: 0 | H62: 0 | I62: 0 | J62: 0
A63: DPA0405 | B63: Underground 11 kV | C63: MVA | D63: 4 | E63: 4 | F63: 4 | G63: 4 | H63: 4 | I63: 4 | J63: 4
A64: DPA0406 | B64: Underground SWER | C64: MVA | D64: 0.08 | E64: 0.08 | F64: 0.08 | G64: 0.08 | H64: 0.08 | I64: 0.08 | J64: 0.08
A65: DPA0407 | B65: Underground 12.7 kV | C65: MVA | D65: 0 | E65: 0 | F65: 0 | G65: 0 | H65: 0 | I65: 0 | J65: 0
A66: DPA0408 | B66: Underground 22 kV | C66: MVA | D66: 8 | E66: 8 | F66: 8 | G66: 8 | H66: 8 | I66: 8 | J66: 8
A67: DPA0409 | B67: Underground 33 kV | C67: MVA | D67: 0 | E67: 0 | F67: 0 | G67: 0 | H67: 0 | I67: 0 | J67: 0
A68: DPA0410 | B68: Underground 66 kV | C68: MVA | D68: 60 | E68: 60 | F68: 60 | G68: 60 | H68: 60 | I68: 60 | J68: 60
A69: DPA0411 | B69: Underground 110 kV | C69: MVA | D69: 0 | E69: 0 | F69: 0 | G69: 0 | H69: 0 | I69: 0 | J69: 0
A70: DPA0412 | B70: Underground 132 kV | C70: MVA | D70: 0 | E70: 0 | F70: 0 | G70: 0 | H70: 0 | I70: 0 | J70: 0
A71: DPA0413 | B71: Other | C71: MVA | D71: 0 | E71: 0 | F71: 0 | G71: 0 | H71: 0 | I71: 0 | J71: 0
B75: 3.5.2 - TRANSFORMER CAPACITIES VARIABLES
D76: VOLUMES
C77: Units | D77: =CRCP_y4 -> 2019-20 | E77: =CRCP_y5 -> 2020-21 | F77: =FRCP_y1 -> 2021-22 | G77: =FRCP_y2 -> 2022-23 | H77: =FRCP_y3 -> 2023-24 | I77: =FRCP_y4 -> 2024-25 | J77: =FRCP_y5 -> 2025-26
B78: Distribution transformer total installed capacity
A79: DPA0501 | B79: Distribution transformer capacity owned by utility | C79: MVA | D79: 7670.9852 | E79: 7858.747 | F79: 8046.5088 | G79: 8234.2706 | H79: 8422.0324 | I79: 8609.7942 | J79: 8797.556
A80: DPA0502 | B80: Distribution transformer capacity owned by High Voltage Customers | C80: MVA | D80: 667.6598 | E80: 731.34 | F80: 795.0202 | G80: 858.7004 | H80: 922.3806 | I80: 986.0608 | J80: 1049.741
A81: DPA0503 | B81: Cold spare capacity included in DPA0501 | C81: MVA | D81: 102.8702 | E81: 110.979 | F81: 119.0878 | G81: 127.1966 | H81: 135.3054 | I81: 143.4142 | J81: 151.523
B82: Zone substation transformer capacity
A83: DPA0601 | B83: Total installed capacity for first step transformation where there are two steps to reach distribution voltage | C83: MVA | D83: 0 | E83: 0 | F83: 0 | G83: 0 | H83: 0 | I83: 0 | J83: 0
A84: DPA0602 | B84: Total installed capacity for second step transformation where there are two steps to reach distribution voltage | C84: MVA | D84: 0 | E84: 0 | F84: 0 | G84: 0 | H84: 0 | I84: 0 | J84: 0
A85: DPA0603 | B85: Total zone substation transformer capacity where there is only a single step transformation to reach distribution voltage | C85: MVA | D85: 3367 | E85: 3367 | F85: 3406 | G85: 3406 | H85: 3505 | I85: 3505 | J85: 3538
A86: DPA0604 | B86: Total zone substation transformer capacity | C86: MVA | D86: 3446 | E86: 3446 | F86: 3485 | G86: 3485 | H86: 3584 | I86: 3584 | J86: 3617
A87: DPA0605 | B87: Cold spare capacity of zone substation transformers included in DPA0604 | C87: MVA | D87: 79 | E87: 79 | F87: 79 | G87: 79 | H87: 79 | I87: 79 | J87: 79
B91: 3.5.3 - PUBLIC LIGHTING
D92: VOLUMES
C93: Units | D93: =CRCP_y4 -> 2019-20 | E93: =CRCP_y5 -> 2020-21 | F93: =FRCP_y1 -> 2021-22 | G93: =FRCP_y2 -> 2022-23 | H93: =FRCP_y3 -> 2023-24 | I93: =FRCP_y4 -> 2024-25 | J93: =FRCP_y5 -> 2025-26
A94: DPA0701 | B94: Public lighting luminaires | C94: 0's | D94: 180510.3805 | E94: 184205.5545 | F94: 188422.0324 | G94: 192861.8592 | H94: 197157.2633 | I94: 201485.1517 | J94: 203724.7782
A95: DPA0702 | B95: Public lighting poles | C95: 0's | D95: 97538.125 | E95: 102808.375 | F95: 105443.5 | G95: 110713.75 | H95: 115984 | I95: 121254.25 | J95: 126524.5

Sheet 3.6 Quality of service
B1: =INDEX(dms_Worksheet_List,MATCH(dms_Model,dms_Model_List)) -> REGULATORY REPORTING STATEMENT
B2: =INDEX(dms_TradingNameFull_List,MATCH(dms_TradingName,dms_TradingName_List)) -> Powercor Australia
B3: =dms_Header_Span -> 2021-22 to 2025-26
B4: 3.6 QUALITY OF SERVICE DATA
B6: 3.6.2 - ENERGY NOT SUPPLIED
D7: Forecast
C8: Units | D8: =CRCP_y4 -> 2019-20 | E8: =CRCP_y5 -> 2020-21 | F8: =FRCP_y1 -> 2021-22 | G8: =FRCP_y2 -> 2022-23 | H8: =FRCP_y3 -> 2023-24 | I8: =FRCP_y4 -> 2024-25 | J8: =FRCP_y5 -> 2025-26
A9: DQS0201 | B9: Energy Not Supplied (planned) | C9: GWh | D9: 1.364784217 | E9: 1.385742707 | F9: 1.392636956 | G9: 1.406563338 | H9: 1.420628984 | I9: 1.434835287 | J9: 1.449183651
A10: DQS0202 | B10: Energy Not Supplied (unplanned) | C10: GWh | D10: 2.89773962 | E10: 2.942239143 | F10: 2.956877163 | G10: 2.986445962 | H10: 3.016310449 | I10: 3.04647358 | J10: 3.076938341
A11: DQS02 | B11: Total | D11: =SUM(D9:D10) -> 4.262523837 | E11: 4.32798185 | F11: 4.349514119 | G11: 4.393009301 | H11: 4.436939433 | I11: 4.481308866 | J11: 4.526121992
B13: 3.6.3 - SYSTEM LOSSES
D14: Forecast
C15: Units | D15: =CRCP_y4 -> 2019-20 | E15: =CRCP_y5 -> 2020-21 | F15: =FRCP_y1 -> 2021-22 | G15: =FRCP_y2 -> 2022-23 | H15: =FRCP_y3 -> 2023-24 | I15: =FRCP_y4 -> 2024-25 | J15: =FRCP_y5 -> 2025-26
A16: DQS03 | B16: System losses | C16: % | D16: 0.06213408488 | E16: 0.06213408488 | F16: 0.06213408488 | G16: 0.06213408488 | H16: 0.06213408488 | I16: 0.06213408488 | J16: 0.06213408488
B18: 3.6.4 - CAPACITY UTILISATION
D19: Forecast
C20: Units | D20: =CRCP_y4 -> 2019-20 | E20: =CRCP_y5 -> 2020-21 | F20: =FRCP_y1 -> 2021-22 | G20: =FRCP_y2 -> 2022-23 | H20: =FRCP_y3 -> 2023-24 | I20: =FRCP_y4 -> 2024-25 | J20: =FRCP_y5 -> 2025-26
A21: DQS04 | B21: Overall utilisation | C21: % | D21: 0.7042744807 | E21: 0.7115385757 | F21: 0.7218373423 | G21: 0.7445941625 | H21: 0.7363246864 | I21: 0.7546917047 | J21: 0.775936741

Sheet 3.7 Operating Environment
B1: =INDEX(dms_Worksheet_List,MATCH(dms_Model,dms_Model_List)) -> REGULATORY REPORTING STATEMENT
B2: =INDEX(dms_TradingNameFull_List,MATCH(dms_TradingName,dms_TradingName_List)) -> Powercor Australia
B3: =dms_Header_Span -> 2021-22 to 2025-26
B4: 3.7 OPERATING ENVIRONMENT FACTORS
B6: There are THREE tables on this worksheet. Each table has been grouped (and sub-grouped) for ease of navigation. See the Instructions sheet on how to group or ungroup tables.
A8: DOEF01 | B8: 3.7.1 - DENSITY FACTORS
D9: Forecast
C10: Units | D10: =CRCP_y4 -> 2019-20 | E10: =CRCP_y5 -> 2020-21 | F10: =FRCP_y1 -> 2021-22 | G10: =FRCP_y2 -> 2022-23 | H10: =FRCP_y3 -> 2023-24 | I10: =FRCP_y4 -> 2024-25 | J10: =FRCP_y5 -> 2025-26
A11: DOEF0101 | B11: Customer density | C11: Customer / km | D11: 12.6195838
A12: DOEF0102 | B12: Energy density | C12: MWh/customer | D12: 12.58332905
A13: DOEF0103 | B13: Demand density | C13: kVA / customer | D13: 2.703980059
A15: DOEF02 | B15: 3.7.2 - TERRAIN FACTORS
D16: Forecast
C17: Units | D17: =CRCP_y4 -> 2019-20 | E17: =CRCP_y5 -> 2020-21 | F17: =FRCP_y1 -> 2021-22 | G17: =FRCP_y2 -> 2022-23 | H17: =FRCP_y3 -> 2023-24 | I17: =FRCP_y4 -> 2024-25 | J17: =FRCP_y5 -> 2025-26
A18: DOEF0201 | B18: Rural proportion | C18: % | D18: 92.48
A19: DOEF0202 | B19: Urban and CBD vegetation maintenance spans | C19: 0's | D19: 31022.25
A20: DOEF0203 | B20: Rural vegetation maintenance spans | C20: 0's | D20: 57612.75
A21: DOEF0204 | B21: Total vegetation maintenance spans | C21: 0's | D21: 88635
A22: DOEF0205 | B22: Total number of spans | C22: 0's | D22: 506638
A23: DOEF0206 | B23: Average urban and CBD vegetation maintenance span cycle | C23: Years | D23: 2.01242257
A24: DOEF0207 | B24: Average rural vegetation maintenance span cycle | C24: Years | D24: 2.455203347
A25: DOEF0208 | B25: Average number of trees per urban and CBD vegetation maintenance span | C25: Trees | D25: 3.091059491
A26: DOEF0209 | B26: Average number of trees per rural vegetation maintenance span | C26: Trees | D26: 7.851082403
A27: DOEF0210 | B27: Average number of defects per urban and CBD vegetation maintenance span | C27: Defects | D27: 1
A28: DOEF0211 | B28: Average number of defects per rural vegetation maintenance span | C28: Defects | D28: 1
A29: DOEF0212 | B29: Tropical proportion | C29: Spans | D29: 0
A30: DOEF0213 | B30: Standard vehicle access | C30: km | D30: 4397 | E30: 4397 | F30: 4397 | G30: 4397 | H30: 4397 | I30: 4397 | J30: 4397
A31: DOEF0214 | B31: Bushfire risk | C31: Spans | D31: 281150.4668
A33: DOEF03 | B33: 3.7.3 - SERVICE AREA FACTORS
D34: Forecast
C35: Units | D35: =CRCP_y4 -> 2019-20 | E35: =CRCP_y5 -> 2020-21 | F35: =FRCP_y1 -> 2021-22 | G35: =FRCP_y2 -> 2022-23 | H35: =FRCP_y3 -> 2023-24 | I35: =FRCP_y4 -> 2024-25 | J35: =FRCP_y5 -> 2025-26
A36: DOEF0301 | B36: Route Line length | C36: km | D36: 68553.2615 | E36: 68838.39135 | F36: 69124.70712 | G36: 69412.21375 | H36: 69700.91619 | I36: 69990.81942 | J36: 70281.92842

Sheet 4.1 Public lighting
B1: =INDEX(dms_Worksheet_List,MATCH(dms_Model,dms_Model_List)) -> REGULATORY REPORTING STATEMENT
B2: =INDEX(dms_TradingNameFull_List,MATCH(dms_TradingName,dms_TradingName_List)) -> Powercor Australia
B3: =dms_Header_Span -> 2021-22 to 2025-26
B4: 4.1 PUBLIC LIGHTING
B6: There are TWO tables on this worksheet. Each table has been grouped (and sub-grouped) for ease of navigation. See the Instructions sheet on how to group or ungroup tables.
B8: 4.1.2 - DESCRIPTOR METRICS ANNUALLY
D9: VOLUMES & EXPENDITURE
C10: Units | D10: =CRCP_y4 -> 2019-20 | E10: =CRCP_y5 -> 2020-21 | F10: =FRCP_y1 -> 2021-22 | G10: =FRCP_y2 -> 2022-23 | H10: =FRCP_y3 -> 2023-24 | I10: =FRCP_y4 -> 2024-25 | J10: =FRCP_y5 -> 2025-26
B11: LIGHT INSTALLATION
B12: Number of lights installed | C12: 0's | D12: 3831 | E12: 3831 | F12: 3831 | G12: 3831 | H12: 3831 | I12: 3831 | J12: 3831
B13: Number of poles installed | C13: 0's | D13: 4083 | E13: 4083 | F13: 4083 | G13: 4083 | H13: 4083 | I13: 4083 | J13: 4083
B14: Total expenditure | C14: $0's | D14: 3359738.892 | E14: 3401745.908 | F14: 3459463.752 | G14: 3532450.345 | H14: 3609501.563 | I14: 3682435.244 | J14: 3748463.227
B15: LIGHT REPLACEMENT
B16: Number of lights replaced | C16: 0's | D16: 2291.735932 | E16: 2289.53475 | F16: 2293.284994 | G16: 2305.716138 | H16: 2322.839359 | I16: 2345.992526 | J16: 2359.518339
B17: Number of poles replaced | C17: 0's | D17: 101.1444851 | E17: 101.1444851 | F17: 101.1444851 | G17: 101.1444851 | H17: 101.1444851 | I17: 101.1444851 | J17: 101.1444851
B18: Total expenditure | C18: $0's | D18: 4091324.784 | E18: 2892391.28 | F18: 1693457.776 | G18: 2023698.265 | H18: 2167218.499 | I18: 2295935.485 | J18: 2410170.366
B19: LIGHT MAINTENANCE
B20: Number of lights maintained | C20: 0's | D20: 25207.07273 | E20: 25856.14547 | F20: 26505.2182 | G20: 27154.29094 | H20: 27803.36367 | I20: 28452.43641 | J20: 29101.50914
B21: Number of poles maintained | C21: 0's | D21: 0 | E21: 0 | F21: 0 | G21: 0 | H21: 0 | I21: 0 | J21: 0
B22: Total expenditure | C22: $0's | D22: 4161202.701 | E22: 5148019.887 | F22: 6134837.074 | G22: 5857634.319 | H22: 5647835.433 | I22: 5508327.265 | J22: 5458152.174
B23: QUALITY OF SUPPLY
B24: Mean days to rectify/replace public lighting assets | C24: days | D24: 2 | E24: 2 | F24: 2 | G24: 2 | H24: 2 | I24: 2 | J24: 2
B25: GSO breaches | C25: 0's | D25: 63 | E25: 63 | F25: 63 | G25: 63 | H25: 63 | I25: 63 | J25: 63
B26: GSL payments | C26: $0's | D26: 1650 | E26: 1650 | F26: 1650 | G26: 1650 | H26: 1650 | I26: 1650 | J26: 1650
B27: Customer complaints | C27: 0's | D27: 0 | E27: 0 | F27: 0 | G27: 0 | H27: 0 | I27: 0 | J27: 0
B31: 4.1.3 - COST METRICS
D32: =CONCATENATE("AVERAGE UNIT COST ($0's, real ",dms_DollarReal, ")") -> AVERAGE UNIT COST ($0's, real June 2021)
D33: =CRCP_y4 -> 2019-20 | E33: =CRCP_y5 -> 2020-21 | F33: =FRCP_y1 -> 2021-22 | G33: =FRCP_y2 -> 2022-23 | H33: =FRCP_y3 -> 2023-24 | I33: =FRCP_y4 -> 2024-25 | J33: =FRCP_y5 -> 2025-26
B34: LIGHT INSTALLATION
B35: Major Road | C35: Major Road | D35: 1847 | E35: 1870.093151 | F35: 1901.823253 | G35: 1941.947275 | H35: 1984.305805 | I35: 2024.400739 | J35: 2060.699299
B36: Minor Road | C36: Minor Road | D36: 1102.7 | E36: 1116.487124 | F36: 1135.430699 | G36: 1159.385631 | H36: 1184.674613 | I36: 1208.612179 | J36: 1230.283225
B95: LIGHT REPLACEMENT
B96: Major Road | C96: Major Road | D96: 1310.692444 | E96: 1310.692444 | F96: 1327.08011 | G96: 1349.596843 | H96: 1378.070179 | I96: 1408.129196 | J96: 1436.581891
B97: Minor Road | C97: Minor Road | D97: 510.3777778 | E97: 510.3777778 | F97: 516.7590616 | G97: 525.5269765 | H97: 536.6143665 | I97: 548.3192134 | J97: 559.3985654
B156: LIGHT MAINTENANCE
B157: Major/Minor - Routine Maintenance | C157: Major/Minor - Routine Maintenance | D157: 67.07358262 | E157: 67.91220762 | F157: 69.06448246 | G157: 70.52158149 | H157: 72.05982639 | I157: 73.51586908 | J157: 74.83404694
B158: Major/Minor - Non-Routine Maintenance | C158: Major/Minor - Non-Routine Maintenance | D158: 284.8460664 | E158: 288.4075137 | F158: 293.3009597 | G158: 299.4889239 | H158: 306.0214959 | I158: 312.2049741 | J158: 317.802972

Sheet 4.2 Metering
B1: =INDEX(dms_Worksheet_List,MATCH(dms_Model,dms_Model_List)) -> REGULATORY REPORTING STATEMENT
B2: =INDEX(dms_TradingNameFull_List,MATCH(dms_TradingName,dms_TradingName_List)) -> Powercor Australia
B3: =dms_Header_Span -> 2021-22 to 2025-26
B4: 4.2 METERING
B6: There are TWO tables on this worksheet. Each table has been 'grouped' (and 'sub-grouped') for easy navigation. See the Instructions sheet on how to group or ungroup data.
B8: 4.2.1 - METERING DESCRIPTOR METRIC
E9: VOLUMES (0's)
B10: ASSET CATEGORY | C10: ASSET SUBCATEGORY | E10: =CRCP_y4 -> 2019-20 | F10: =CRCP_y5 -> 2020-21 | G10: =FRCP_y1 -> 2021-22 | H10: =FRCP_y2 -> 2022-23 | I10: =FRCP_y3 -> 2023-24 | J10: =FRCP_y4 -> 2024-25 | K10: =FRCP_y5 -> 2025-26
B11: Meter Type 4 | C11: Single phase meter population | E11: 747689.4278 | F11: 765930.1979 | G11: 798479.4763 | H11: 821339.4843 | I11: 839604.9248 | J11: 857756.0549 | K11: 875858.4634
C12: Multi phase meter population | E12: 142729.5244 | F12: 145425.619 | G12: 150449.9076 | H12: 154035.7132 | I12: 156738.691 | J12: 159424.9914 | K12: 162104.8067
C13: Current transformer connected meter population | E13: 6058.970882 | F13: 6401.05064 | G13: 6958.7426 | H13: 7336.295825 | I13: 7678.038214 | J13: 8017.582891 | K13: 8356.036835
C14: Direct connect meter population | E14: 884359.9813 | F14: 904954.7663 | G14: 941970.6413 | H14: 968038.9017 | I14: 988665.5776 | J14: 1009163.463 | K14: 1029607.233
B15: Meter Type 5 | C15: Single phase meter population | E15: 660.6216513 | F15: 656.2862722 | G15: 471.6645219 | H15: 290.3697169 | I15: 288.4797959 | J15: 286.6044596 | K15: 284.7425385
C16: Multi phase meter population | E16: 353.656102 | F16: 351.3352074 | G16: 252.500105 | H16: 155.446044 | I16: 154.4342967 | J16: 153.4303573 | K16: 152.4335996
C17: Current transformer connected meter population | E17: 134.1111623 | F17: 133.2310477 | G17: 95.7514443 | H17: 58.94723577 | I17: 58.56356759 | J17: 58.18286023 | K17: 57.80487624
C18: Direct connect meter population | E18: 880.166591 | F18: 874.3904319 | G18: 628.4131826 | H18: 386.8685251 | I18: 384.350525 | J18: 381.8519568 | K18: 379.3712618
B19: Meter Type 6 | C19: Single phase meter population | E19: 14766.13568 | F19: 14669.23181 | G19: 10542.58865 | H19: 6490.308981 | I19: 6448.065693 | J19: 6406.148403 | K19: 6364.530966
C20: Multi phase meter population | E20: 4655.147456 | F20: 4624.597702 | G20: 3323.639022 | H20: 2046.124051 | I20: 2032.806502 | J20: 2019.591726 | K20: 2006.471482
C21: Current transformer connected meter population | E21: 71.52595322 | F21: 71.0565588 | G21: 51.06743696 | H21: 31.43852574 | I21: 31.23390271 | J21: 31.03085879 | K21: 30.82926733
C22: Direct connect meter population | E22: 19349.75718 | F22: 19222.77295 | G22: 13815.16024 | H22: 8504.994506 | I22: 8449.638292 | J22: 8394.709271 | K22: 8340.173181
B25: 4.2.2 - COST METRICS
B26: EXPENDITURE
E27: =CONCATENATE("EXPENDITURE ($0's, real ",dms_DollarReal,")") -> EXPENDITURE ($0's, real June 2021)
B28: SERVICE SUBCATEGORY | C28: METER TYPE | E28: =CRCP_y4 -> 2019-20 | F28: =CRCP_y5 -> 2020-21 | G28: =FRCP_y1 -> 2021-22 | H28: =FRCP_y2 -> 2022-23 | I28: =FRCP_y3 -> 2023-24 | J28: =FRCP_y4 -> 2024-25 | K28: =FRCP_y5 -> 2025-26
B29: Meter purchase | D29: Meter Type 4 | E29: 6939778.263 | F29: 7311013.124 | G29: 9378078.496 | H29: 9917151.473 | I29: 9355395.346 | J29: 10575179.6 | K29: 11487467.59
D30: Meter Type 5 | E30: 0 | F30: 0 | G30: 0 | H30: 0 | I30: 0 | J30: 0 | K30: 0
D31: Meter Type 6 | E31: 0 | F31: 0 | G31: 0 | H31: 0 | I31: 0 | J31: 0 | K31: 0
B32: Meter testing | D32: Meter Type 4 | E32: 1678538.664 | F32: 1735915.469 | G32: 1835319.412 | H32: 1906600.842 | I32: 1979722.269 | J32: 2050529.277 | K32: 2119756.867
D33: Meter Type 5 | E33: 76.67811359 | F33: 79.29917035 | G33: 56.51356036 | H33: 58.68806203 | I33: 60.96743037 | J33: 63.30563637 | K33: 65.56983412
D34: Meter Type 6 | E34: 1301.538015 | F34: 1346.027959 | G34: 996.1740079 | H34: 1034.864117 | I34: 1074.552938 | J34: 1112.985541 | K34: 1150.560867
B35: Meter investigation | D35: Meter Type 4 | E35: 177912.4061 | F35: 183993.9135 | G35: 194529.9799 | H35: 202085.2724 | I35: 209835.5908 | J35: 217340.5982 | K35: 224678.1993
D36: Meter Type 5 | E36: 104.7638632 | F36: 108.3449637 | G36: 80.1843944 | H36: 83.29865246 | I36: 86.4932993 | J36: 89.58683007 | K36: 92.61135666
D37: Meter Type 6 | E37: 1778.266889 | F37: 1839.052663 | G37: 1361.053795 | H37: 1413.915362 | I37: 1468.141452 | J37: 1520.651193 | K37: 1571.989654
B38: Scheduled meter reading | D38: Meter Type 4 | E38: 0 | F38: 0 | G38: 0 | H38: 0 | I38: 0 | J38: 0 | K38: 0
D39: Meter Type 5 | E39: 43828.1902 | F39: 45326.3514 | G39: 33545.31593 | H39: 34848.17257 | I39: 36184.66003 | J39: 37478.84536 | K39: 38744.16264
D40: Meter Type 6 | E40: 743941.8237 | F40: 769371.6844 | G40: 569399.8176 | H40: 591514.5693 | I40: 614200.1722 | J40: 636167.7367 | K40: 657645.2935
B41: Special meter reading | D41: Meter Type 4 | E41: 0 | F41: 0 | G41: 0 | H41: 0 | I41: 0 | J41: 0 | K41: 0
D42: Meter Type 5 | E42: 0 | F42: 0 | G42: 0 | H42: 0 | I42: 0 | J42: 0 | K42: 0
D43: Meter Type 6 | E43: 0 | F43: 0 | G43: 0 | H43: 0 | I43: 0 | J43: 0 | K43: 0
B44: New meter installation | D44: Meter Type 4 | E44: 16019790.23 | F44: 16113926.66 | G44: 16511051.8 | H44: 16317668.8 | I44: 16436754.98 | J44: 16435314.18 | K44: 16480991.4
D45: Meter Type 5 | E45: 0 | F45: 0 | G45: 0 | H45: 0 | I45: 0 | J45: 0 | K45: 0
D46: Meter Type 6 | E46: 0 | F46: 0 | G46: 0 | H46: 0 | I46: 0 | J46: 0 | K46: 0
B47: Meter replacement | D47: Meter Type 4 | E47: 2884775.277 | F47: 3260072.798 | G47: 7231592.305 | H47: 8202587.917 | I47: 6072876.05 | J47: 8127806.115 | K47: 9647726.245
D48: Meter Type 5 | E48: 0 | F48: 0 | G48: 0 | H48: 0 | I48: 0 | J48: 0 | K48: 0
D49: Meter Type 6 | E49: 0 | F49: 0 | G49: 0 | H49: 0 | I49: 0 | J49: 0 | K49: 0
B50: Meter maintenance | D50: Meter Type 4 | E50: 0 | F50: 0 | G50: 0 | H50: 0 | I50: 0 | J50: 0 | K50: 0
D51: Meter Type 5 | E51: 0 | F51: 0 | G51: 0 | H51: 0 | I51: 0 | J51: 0 | K51: 0
D52: Meter Type 6 | E52: 0 | F52: 0 | G52: 0 | H52: 0 | I52: 0 | J52: 0 | K52: 0
B53: Remote meter reading | D53: Meter Type 4 | E53: 574925.2101 | F53: 594577.6447 | G53: 628625.0183 | H53: 653040.0001 | I53: 678085.2093 | J53: 702337.6944 | K53: 726049.2046
B54: Remote meter re-configuration | D54: Meter Type 4 | E54: 772.5509763 | F54: 798.958772 | G54: 844.7096476 | H54: 877.5170766 | I54: 911.1713684 | J54: 943.7604439 | K54: 975.6225889
B55: Other metering | D55: Meter Type 4 | E55: 2637946.133 | F55: 2728117.973 | G55: 2884338.532 | H55: 2996362.506 | I55: 3111278.17 | J55: 3222556.556 | K55: 3331352.771
D56: Meter Type 5 | E56: 4483.330707 | F56: 4636.582576 | G56: 3431.461447 | H56: 3564.734967 | I56: 3701.448694 | J56: 3833.835197 | K56: 3963.268692
D57: Meter Type 6 | E57: 76100.2726 | F57: 78701.57726 | G57: 58245.79283 | H57: 60507.98401 | I57: 62828.56945 | J57: 65075.70436 | K57: 67272.71478
D58: Meter Type 7 | E58: 0 | F58: 0 | G58: 0 | H58: 0 | I58: 0 | J58: 0 | K58: 0
B59: IT infrastructure capex | D59: Meter Type 4 | E59: 285003.3058 | F59: 289078.853 | G59: 387488.7943 | H59: 0 | I59: 404458.5761 | J59: 0 | K59: 419236.4809
B60: IT infrastructure opex | D60: Meter Type 4 | E60: 4118471.088 | F60: 4259251.109 | G60: 4503149.136 | H60: 4678045.618 | I60: 4857456.727 | J60: 5031189.166 | K60: 5201046.336
B61: Communications infrastructure capex | D61: Meter Type 4 | E61: 2506669.453 | F61: 2506669.453 | G61: 310063.8172 | H61: 319569.7248 | I61: 328252.3506 | J61: 344208.5196 | K61: 525574.9431
B62: Communications infrastructure opex | D62: Meter Type 4 | E62: 1458443.109 | F62: 1508296.477 | G62: 191359.9495 | H62: 198792.1221 | I62: 206416.1425 | J62: 213798.8495 | K62: 221016.8782
B64: VOLUMES
E65: VOLUMES (0's)
B66: SERVICE SUBCATEGORY | C66: METER TYPE | E66: =CRCP_y4 -> 2019-20 | F66: =CRCP_y5 -> 2020-21 | G66: =FRCP_y1 -> 2021-22 | H66: =FRCP_y2 -> 2022-23 | I66: =FRCP_y3 -> 2023-24 | J66: =FRCP_y4 -> 2024-25 | K66: =FRCP_y5 -> 2025-26
B67: Meter purchase | D67: Meter Type 4 | E67: 21505.661 | F67: 28820.22852 | G67: 30265.30584 | H67: 38524.32472 | I67: 40511.30471 | J67: 38038.33974 | K67: 42568.92222
D68: Meter Type 5 | E68: 0 | F68: 0 | G68: 0 | H68: 0 | I68: 0 | J68: 0 | K68: 0
D69: Meter Type 6 | E69: 0 | F69: 0 | G69: 0 | H69: 0 | I69: 0 | J69: 0 | K69: 0
B70: Meter testing | D70: Meter Type 4 | E70: 4059.656134 | F70: 4155.112853 | G70: 4326.420709 | H70: 4446.994186 | I70: 4542.594766 | J70: 4637.598138 | K70: 4732.349807
D71: Meter Type 5 | E71: 0 | F71: 0 | G71: 0 | H71: 0 | I71: 0 | J71: 0 | K71: 0
D72: Meter Type 6 | E72: 0 | F72: 0 | G72: 0 | H72: 0 | I72: 0 | J72: 0 | K72: 0
B73: Meter investigation | D73: Meter Type 4 | E73: 584.0520847 | F73: 597.7851925 | G73: 622.4308047 | H73: 639.7773947 | I73: 653.5311995 | J73: 667.1990855 | K73: 680.8307598
D74: Meter Type 5 | E74: 0 | F74: 0 | G74: 0 | H74: 0 | I74: 0 | J74: 0 | K74: 0
D75: Meter Type 6 | E75: 0 | F75: 0 | G75: 0 | H75: 0 | I75: 0 | J75: 0 | K75: 0
B76: Scheduled meter reading | D76: Meter Type 4 | E76: 0 | F76: 0 | G76: 0 | H76: 0 | I76: 0 | J76: 0 | K76: 0
D77: Meter Type 5 | E77: 5145.476526 | F77: 5111.708952 | G77: 3673.719627 | H77: 2261.643347 | I77: 2246.923054 | J77: 2232.316359 | K77: 2217.814153
D78: Meter Type 6 | E78: 87339.56782 | F78: 86766.39537 | G78: 62357.89491 | H78: 38389.24373 | I78: 38139.38076 | J78: 37891.44602 | K78: 37645.28487
B79: Special meter reading | D79: Meter Type 4 | E79: 0 | F79: 0 | G79: 0 | H79: 0 | I79: 0 | J79: 0 | K79: 0
D80: Meter Type 5 | E80: 0 | F80: 0 | G80: 0 | H80: 0 | I80: 0 | J80: 0 | K80: 0
D81: Meter Type 6 | E81: 0 | F81: 0 | G81: 0 | H81: 0 | I81: 0 | J81: 0 | K81: 0
B82: New meter installation | D82: Meter Type 4 | E82: 26623.8571 | F82: 26780.30578 | G82: 27440.30212 | H82: 27118.9045 | I82: 27316.81491 | J82: 27314.41544 | K82: 27390.32364
D83: Meter Type 5 | E83: 0 | F83: 0 | G83: 0 | H83: 0 | I83: 0 | J83: 0 | K83: 0
D84: Meter Type 6 | E84: 0 | F84: 0 | G84: 0 | H84: 0 | I84: 0 | J84: 0 | K84: 0
B85: Meter replacement | D85: Meter Type 4 | E85: 5349.371421 | F85: 6165.050061 | G85: 13133.4726 | H85: 14968.90021 | I85: 11825.07483 | J85: 15885.10678 | K85: 18750.5036
D86: Meter Type 5 | E86: 0 | F86: 0 | G86: 0 | H86: 0 | I86: 0 | J86: 0 | K86: 0
D87: Meter Type 6 | E87: 0 | F87: 0 | G87: 0 | H87: 0 | I87: 0 | J87: 0 | K87: 0
B88: Meter maintenance | D88: Meter Type 4 | E88: 0 | F88: 0 | G88: 0 | H88: 0 | I88: 0 | J88: 0 | K88: 0
D89: Meter Type 5 | E89: 0 | F89: 0 | G89: 0 | H89: 0 | I89: 0 | J89: 0 | K89: 0
D90: Meter Type 6 | E90: 0 | F90: 0 | G90: 0 | H90: 0 | I90: 0 | J90: 0 | K90: 0
B91: Remote meter reading | D91: Meter Type 4 | E91: 827843.2427 | F91: 847308.7336 | G91: 882241.7541 | H91: 906829.0431 | I91: 926323.8701 | J91: 945696.9146 | K91: 965018.6322
B92: Remote meter re-configuration | D92: Meter Type 4 | E92: 14276.31594 | F92: 14612.00208 | G92: 15214.42874 | H92: 15638.44126 | I92: 15974.63331 | J92: 16308.72518 | K92: 16641.93192

Sheet 4.3 Fee-based services
B1: =INDEX(dms_Worksheet_List,MATCH(dms_Model,dms_Model_List)) -> REGULATORY REPORTING STATEMENT
B2: =INDEX(dms_TradingNameFull_List,MATCH(dms_TradingName,dms_TradingName_List)) -> Powercor Australia
B3: =dms_Header_Span -> 2021-22 to 2025-26
B4: 4.3 ANCILLARY SERVICES - FEE BASED SERVICES
B6: There are TWO tables on this worksheet. The COLUMNS representing each table have been 'grouped' for easy navigation. See the Instructions sheet on how to group or ungroup data.
B8: 4.3.1 - COST METRICS FOR FEE-BASED SERVICES
B9: SERVICE SUBCATEGORY | C9: =CONCATENATE("EXPENDITURE ($0's, real ", dms_DollarReal, ")") -> EXPENDITURE ($0's, real June 2021) | J9: VOLUMES (0's)
C10: =CRCP_y4 -> 2019-20 | D10: =CRCP_y5 -> 2020-21 | E10: =FRCP_y1 -> 2021-22 | F10: =FRCP_y2 -> 2022-23 | G10: =FRCP_y3 -> 2023-24 | H10: =FRCP_y4 -> 2024-25 | I10: =FRCP_y5 -> 2025-26 | J10: =CRCP_y4 -> 2019-20 | K10: =CRCP_y5 -> 2020-21 | L10: =FRCP_y1 -> 2021-22 | M10: =FRCP_y2 -> 2022-23 | N10: =FRCP_y3 -> 2023-24 | O10: =FRCP_y4 -> 2024-25 | P10: =FRCP_y5 -> 2025-26
B11: COMMON FEE-BASED SERVICES
B12: Energisation
B13: De-energisation | C13: 235084.0546 | D13: 240313.2643 | E13: 248600.2249 | F13: 253572.2294 | G13: 258643.674 | H13: 263816.5475 | I13: 269092.8785 | J13: 3907.261896 | K13: 3985.407134 | L13: 4065.115276 | M13: 4146.417582 | N13: 4229.345933 | O13: 4313.932852 | P13: 4400.211509
B14: Re-energisation | C14: 687913.2267 | D14: 703215.1685 | E14: 788414.2347 | F14: 804182.5194 | G14: 820266.1698 | H14: 836671.4932 | I14: 853404.9231 | J14: 12154 | K14: 12398 | L14: 12645.51458 | M14: 12898.42487 | N14: 13156.39337 | O14: 13419.52124 | P14: 13687.91166
B15: MISCELLANEOUS FEE-BASED SERVICES
B16: Service (DNSP to nominate) | C16: 1642067.404 | D16: 1677256.431 | E16: 1728492.004 | F16: 1763061.844 | G16: 1798323.081 | H16: 1834289.543 | I16: 1870975.334 | J16: 3865 | K16: 3925 | L16: 3964 | M16: 4043.28 | N16: 4124.1456 | O16: 4206.628512 | P16: 4290.761082
C17: 47363.73306 | D17: 47467.93327 | E17: 50713.67026 | F17: 50713.67026 | G17: 50713.67026 | H17: 50713.67026 | I17: 50713.67026 | J17: 100 | K17: 100 | L17: 100 | M17: 100 | N17: 100 | O17: 100 | P17: 100
C18: 33194.04665 | D18: 33267.07355 | E18: 33739.46573 | F18: 34414.25504 | G18: 35102.54014 | H18: 35804.59095 | I18: 36520.68276 | J18: 667.9168457 | K18: 667.9168457 | L18: 667.9168457 | M18: 681.2751826 | N18: 694.9006863 | O18: 708.7987 | P18: 722.974674
C19: 3678178 | D19: 3696970 | E19: 0 | F19: 0 | G19: 0 | H19: 0 | I19: 0 | J19: 5207 | K19: 5207 | L19: 0 | M19: 0 | N19: 0 | O19: 0 | P19: 0
C20: 247940 | D20: 795990 | E20: 0 | F20: 0 | G20: 0 | H20: 0 | I20: 0 | J20: 644 | K20: 2041 | L20: 0 | M20: 0 | N20: 0 | O20: 0 | P20: 0
C21: 962071.6225 | D21: 981705.7373 | E21: 1001769.603 | F21: 1001769.603 | G21: 1001769.603 | H21: 1001769.603 | I21: 1001769.603 | J21: 16729 | K21: 16729 | L21: 16729.48521 | M21: 16729.48521 | N21: 16729.48521 | O21: 16729.48521 | P21: 16729.48521
C22: 778287.5287 | D22: 858282.8138 | E22: 0 | F22: 0 | G22: 0 | H22: 0 | I22: 0 | J22: 70042 | K22: 77071.61954 | L22: 0 | M22: 0 | N22: 0 | O22: 0 | P22: 0
C23: 645824.6403 | D23: 757619.563 | E23: 0 | F23: 0 | G23: 0 | H23: 0 | I23: 0 | J23: 58121 | K23: 68032.31497 | L23: 0 | M23: 0 | N23: 0 | O23: 0 | P23: 0
C24: 0 | D24: 0 | E24: 292810.3427 | F24: 292810.3427 | G24: 292810.3427 | H24: 292810.3427 | I24: 292810.3427 | J24: 0 | K24: 0 | L24: 723.0125992 | M24: 723.0125992 | N24: 723.0125992 | O24: 723.0125992 | P24: 723.0125992
C25: 0 | D25: 0 | E25: 239234.5637 | F25: 239234.5637 | G25: 239234.5637 | H25: 239234.5637 | I25: 239234.5637 | J25: 0 | K25: 0 | L25: 325.0978916 | M25: 325.0978916 | N25: 325.0978916 | O25: 325.0978916 | P25: 325.0978916
C26: 0 | D26: 0 | E26: 2329391.537 | F26: 2329391.537 | G26: 2329391.537 | H26: 2329391.537 | I26: 2329391.537 | J26: 0 | K26: 0 | L26: 3348.42941 | M26: 3348.42941 | N26: 3348.42941 | O26: 3348.42941 | P26: 3348.42941
C27: 0 | D27: 0 | E27: 868347.3406 | F27: 868347.3406 | G27: 868347.3406 | H27: 868347.3406 | I27: 868347.3406 | J27: 0 | K27: 0 | L27: 1004.4601 | M27: 1004.4601 | N27: 1004.4601 | O27: 1004.4601 | P27: 1004.4601
C28: 0 | D28: 0 | E28: 771919.0053 | F28: 771919.0053 | G28: 771919.0053 | H28: 771919.0053 | I28: 771919.0053 | J28: 0 | K28: 0 | L28: 2042.31197 | M28: 2042.31197 | N28: 2042.31197 | O28: 2042.31197 | P28: 2042.31197

Sheet 4.4 Quoted services
B1: =INDEX(dms_Worksheet_List,MATCH(dms_Model,dms_Model_List)) -> REGULATORY REPORTING STATEMENT
B2: =INDEX(dms_TradingNameFull_List,MATCH(dms_TradingName,dms_TradingName_List)) -> Powercor Australia
B3: =dms_Header_Span -> 2021-22 to 2025-26
B4: 4.4 ANCILLARY SERVICES - QUOTED SERVICES
B6: There are TWO tables on this worksheet. The COLUMNS representing each table have been 'grouped' for easy navigation. See the Instructions sheet on how to group or ungroup data.
B8: 4.4.1 - COST METRICS FOR QUOTED SERVICES
B9: SERVICE SUBCATEGORY | C9: =CONCATENATE("EXPENDITURE ($0's, real ", dms_DollarReal, ")") -> EXPENDITURE ($0's, real June 2021) | J9: VOLUMES (0's)
C10: =CRCP_y4 -> 2019-20 | D10: =CRCP_y5 -> 2020-21 | E10: =FRCP_y1 -> 2021-22 | F10: =FRCP_y2 -> 2022-23 | G10: =FRCP_y3 -> 2023-24 | H10: =FRCP_y4 -> 2024-25 | I10: =FRCP_y5 -> 2025-26 | J10: =CRCP_y4 -> 2019-20 | K10: =CRCP_y5 -> 2020-21 | L10: =FRCP_y1 -> 2021-22 | M10: =FRCP_y2 -> 2022-23 | N10: =FRCP_y3 -> 2023-24 | O10: =FRCP_y4 -> 2024-25 | P10: =FRCP_y5 -> 2025-26
B11: Recoverable Works | C11: 30955797.47 | D11: 30648692.26 | E11: 30100055.03 | F11: 25798803.73 | G11: 23625817.48 | H11: 22512445.11 | I11: 22543397.26 | J11: 391.4615046 | K11: 387.5445265 | L11: 380.5469246 | M11: 325.6865493 | N11: 297.971163 | O11: 283.7706382 | P11: 284.1654178
B12: Audit design and construction | C12: 2641732.833 | D12: 2738447.993 | E12: 2738447.993 | F12: 2738447.993 | G12: 2738447.993 | H12: 2738447.993 | I12: 2738447.993 | J12: 1279 | K12: 1279 | L12: 1279 | M12: 1279 | N12: 1279 | O12: 1279 | P12: 1279
B13: Specification and design enquiry | C13: 3179852.151 | D13: 3296268.128 | E13: 3296268.128 | F13: 3296268.128 | G13: 3296268.128 | H13: 3296268.128 | I13: 3296268.128 | J13: 436 | K13: 436 | L13: 436 | M13: 436 | N13: 436 | O13: 436 | P13: 436
B14: High load escorts–surveying and lifting overhead lines | C14: 139947.7734 | D14: 145071.3313 | E14: 145071.3313 | F14: 145071.3313 | G14: 145071.3313 | H14: 145071.3313 | I14: 145071.3313 | J14: 30 | K14: 30 | L14: 30 | M14: 30 | N14: 30 | O14: 30 | P14: 30
B15: No-go zone safety-related services | C15: 403125.2757 | D15: 417883.8936 | E15: 417883.8936 | F15: 417883.8936 | G15: 417883.8936 | H15: 417883.8936 | I15: 417883.8936 | J15: 248 | K15: 248 | L15: 248 | M15: 248 | N15: 248 | O15: 248 | P15: 248
B16: Elective undergrounding | C16: 276782.8418 | D16: 286916 | E16: 286916 | F16: 286916 | G16: 286916 | H16: 286916 | I16: 286916 | J16: 74 | K16: 74 | L16: 74 | M16: 74 | N16: 74 | O16: 74 | P16: 74
B17: Reserve feeder maintenance | C17: 24705.43004 | D17: 25609.90818 | E17: 26123.04187 | F17: 26690.51746 | G17: 27267.08094 | H17: 27787.05926 | I17: 28263.35189 | J17: 4 | K17: 4 | L17: 4 | M17: 4 | N17: 4 | O17: 4 | P17: 4

Sheet 5.4 MD & utilisation-Spatial
B1: =INDEX(dms_Worksheet_List,MATCH(dms_Model,dms_Model_List)) -> REGULATORY REPORTING STATEMENT
B2: =INDEX(dms_TradingNameFull_List,MATCH(dms_TradingName,dms_TradingName_List)) -> Powercor Australia
B3: =dms_Header_Span -> 2021-22 to 2025-26
B4: 5.4 MAXIMUM DEMAND AND UTILISATION AT SPATIAL LEVEL
B6: There are two tables on this worksheet. The tables have been sub-grouped for ease of navigation. See the Instructions sheet on how to group or ungroup tables.
B8: 5.4.1 - NON-COINCIDENT & COINCIDENT MAXIMUM DEMAND
B9: SUBTRANSMISSION SUBSTATION
F10: Demand
B11: SUBSTATION | C11: FORECASTING ELEMENTS | D11: UNIT | E11: MAX DEMAND | F11: =CRCP_y4 -> 2019-20 | G11: =CRCP_y5 -> 2020-21 | H11: =FRCP_y1 -> 2021-22 | I11: =FRCP_y2 -> 2022-23 | J11: =FRCP_y3 -> 2023-24 | K11: =FRCP_y4 -> 2024-25 | L11: =FRCP_y5 -> 2025-26
B12: <Enter substation name> | C12: Substation Rating | D12: MVA | E12: Non-Coincident
E13: Coincident
C14: Raw Adjusted MD | D14: MW | E14: Non-Coincident
E15: Coincident
C16: Raw Adjusted MD | D16: MVA | E16: Non-Coincident
E17: Coincident
C18: Date MD occurred | E18: Non-Coincident
E19: Coincident
C20: Half hour time period MD occurred | E20: Non-Coincident
E21: Coincident
C22: Winter/Summer Peaking | E22: Non-Coincident
E23: Coincident
C24: Adjustments - Embedded generation | D24: MW | E24: Non-Coincident
E25: Coincident
C26: Weather Corrected 10% POE | D26: MW | E26: Non-Coincident
E27: Coincident
C28: Weather Corrected MD 10% POE | D28: MVA | E28: Non-Coincident
E29: Coincident
C30: Weather Corrected MD 50% POE | D30: MW | E30: Non-Coincident
E31: Coincident
C32: Weather Corrected MD 50% POE | D32: MVA | E32: Non-Coincident
E33: Coincident
